Workbook

Sheet Visor
A1: Programa de Apoyo al Pago de la Prima de Servicios - PAP
A2: Reporte por sector económico - consolidado en junio, diciembre 2020 Y Errores Operativos
A4: Seleccione el sector económico | D4: Industrias manufactureras | N4: =IFERROR(VLOOKUP(D4,Hoja4!$C$2:$D$23,2,FALSE),"") -> C
E8: Total Empleadores beneficiados | I8: % | K8: Total Empleadores beneficiados | O8: % | Q8: Recursos asociados en Millones
B10: General | E10: =Hoja4!I24 -> 95307 | I10: =E10/$E$10 -> 1 | K10: =Hoja4!K24 -> 1048561 | O10: =K10/$K$10 -> 1 | Q10: =Hoja4!M24/1000000 -> 289505.92
B11: ="Sección "&N4 -> Sección C | E11: =VLOOKUP(N4,Hoja4!$H$1:$M$24,2,FALSE) -> 15243 | I11: =E11/$E$10 -> 0.1599357865 | K11: =VLOOKUP(N4,Hoja4!$H$1:$M$24,4,FALSE) -> 155140 | O11: =K11/$K$10 -> 0.14795515 | Q11: =VLOOKUP(N4,Hoja4!$H$1:$M$24,6,FALSE)/1000000 -> 42877.56
B30: Empleadores | E30: Natural | H30: Jurídica | L30: Recurso en millones | O30: Natural | R30: Jurídica
B31: ="Total sección "&N4 -> Total sección C | E31: =COUNTIFS(insumos2!$AN$1:$AN$399999,"Aprobado con subsidio",insumos2!$AK$1:$AK$399999,"Natural") -> 2923 | H31: =COUNTIFS(insumos2!$AN$1:$AN$399999,"Aprobado con subsidio",insumos2!$AK$1:$AK$399999,"Jurídica") -> 12320 | L31: ="Total sección "&N4 -> Total sección C | O31: =SUMIFS(insumos1!$K$2:$K$372158,insumos1!$H$2:$H$372158,Visor!N4,insumos1!$I$2:$I$372158,"Natural")/1000000 -> 6435.22 | R31: =SUMIFS(insumos1!$K$2:$K$372158,insumos1!$H$2:$H$372158,Visor!N4,insumos1!$I$2:$I$372158,"Jurídica")/1000000 -> 36442.34
B32: ="% sección "&N4 -> % sección C | E32: =E31/(E31+H31) -> 0.1917601522 | H32: =H31/(E31+H31) -> 0.8082398478 | L32: ="% sección "&N4 -> % sección C | O32: =O31/(O31+R31) -> 0.1500836335 | R32: =R31/(O31+R31) -> 0.8499163665
B33: ="% general" -> % general | E33: 0.1646 | H33: 0.8354 | L33: ="% general" -> % general | O33: 0.0563 | R33: 0.9437
C36: Tamaño | E36: Empleadores | H36: % | J36: Empleados | N36: % | P36: Recursos en millones
C37: Micro | E37: =COUNTIFS(insumos2!$AN$2:$AN$399999,"Aprobado con subsidio",insumos2!$AO$2:$AO$399999,"MICRO") -> 8697 | H37: =E37/$E$42 -> 0.570556977 | J37: =SUMIFS(insumos2!$AI$2:$AI$399999,insumos2!$AN$2:$AN$399999,"Aprobado con subsidio",insumos2!$AO$2:$AO$399999,"MICRO") -> 33589 | N37: =J37/$J$42 -> 0.2165076705 | P37: =SUMIFS(insumos1!$K$2:$K$372158,insumos1!$H$2:$H$372158,Visor!N4,insumos1!$J$2:$J$372158,"MICRO")/1000000 -> 10847.1
C38: Pequeña | E38: =COUNTIFS(insumos2!$AN$2:$AN$399999,"Aprobado con subsidio",insumos2!$AO$2:$AO$399999,"PEQUEÑA") -> 5124 | H38: 0.3361543003 | J38: =SUMIFS(insumos2!$AI$2:$AI$399999,insumos2!$AN$2:$AN$399999,"Aprobado con subsidio",insumos2!$AO$2:$AO$399999,"PEQUEÑA") -> 55732 | N38: 0.3592368184 | P38: =SUMIFS(insumos1!$K$2:$K$372158,insumos1!$H$2:$H$372158,Visor!N4,insumos1!$J$2:$J$372158,"PEQUEÑA")/1000000 -> 15896.32
C39: Mediana | E39: =COUNTIFS(insumos2!$AN$2:$AN$399999,"Aprobado con subsidio",insumos2!$AO$2:$AO$399999,"MEDIANA") -> 1149 | H39: 0.07537886243 | J39: =SUMIFS(insumos2!$AI$2:$AI$399999,insumos2!$AN$2:$AN$399999,"Aprobado con subsidio",insumos2!$AO$2:$AO$399999,"MEDIANA") -> 35111 | N39: 0.2263181642 | P39: =SUMIFS(insumos1!$K$2:$K$372158,insumos1!$H$2:$H$372158,Visor!N4,insumos1!$J$2:$J$372158,"MEDIANA")/1000000 -> 9083.8
C40: Grande | E40: =COUNTIFS(insumos2!$AN$2:$AN$399999,"Aprobado con subsidio",insumos2!$AO$2:$AO$399999,"GRANDE") -> 187 | H40: 0.01226792626 | J40: =SUMIFS(insumos2!$AI$2:$AI$399999,insumos2!$AN$2:$AN$399999,"Aprobado con subsidio",insumos2!$AO$2:$AO$399999,"GRANDE") -> 14835 | N40: 0.09562330798 | P40: =SUMIFS(insumos1!$K$2:$K$372158,insumos1!$H$2:$H$372158,Visor!N4,insumos1!$J$2:$J$372158,"GRANDE")/1000000 -> 3534.3
C41: Muy grande | E41: =COUNTIFS(insumos2!$AN$2:$AN$399999,"Aprobado con subsidio",insumos2!$AO$2:$AO$399999,"MUY GRANDE") -> 86 | H41: 0.005641934002 | J41: =SUMIFS(insumos2!$AI$2:$AI$399999,insumos2!$AN$2:$AN$399999,"Aprobado con subsidio",insumos2!$AO$2:$AO$399999,"MUY GRANDE") -> 15873 | N41: 0.1023140389 | P41: =SUMIFS(insumos1!$K$2:$K$372158,insumos1!$H$2:$H$372158,Visor!N4,insumos1!$J$2:$J$372158,"MUY GRANDE")/1000000 -> 3516.04
C42: Total | E42: =COUNTIFS(insumos2!$AN$2:$AN$399999,"Aprobado con subsidio") -> 15243 | H42: 1 | J42: =SUMIFS(insumos2!$AI$2:$AI$399999,insumos2!$AN$2:$AN$399999,"Aprobado con subsidio") -> 155140 | N42: 1 | P42: =P41+P40+P39+P37+P38 -> 42877.56
B44: Tamaño | C44: ="Sección "&N4 -> Sección C | D44: general | E44: ="Sección "&N4 -> Sección C | F44: general
B45: Micro | C45: =H37 -> 0.570556977 | D45: 0.6376801371 | E45: =N37 -> 0.2165076705 | F45: 0.104427293
B46: Pequeña | C46: =H38 -> 0.3361543003 | D46: 0.2743797922 | E46: =N38 -> 0.3592368184 | F46: 0.1894298344
B47: Mediana | C47: =H39 -> 0.07537886243 | D47: 0.06616490439 | E47: =N39 -> 0.2263181642 | F47: 0.1934365931
B48: Grande | C48: =H40 -> 0.01226792626 | D48: 0.01371264116 | E48: =N40 -> 0.09562330798 | F48: 0.1301781558
B49: Muy Grande | C49: =H41 -> 0.005641934002 | D49: 0.008062525129 | E49: =N41 -> 0.1023140389 | F49: 0.3835281237
G61: Actividad económica | J61: =D4 -> Industrias manufactureras | U61: =N4 -> C
A66: Distribución Departamental | K66: Distribución en los principales municipios del País
A67: Departamento | D67: Empleadores | F67: % | G67: Empleados | I67: % | K67: Departamento | M67: Municipio | P67: Empleadores | R67: % | S67: Empleados | U67: %
A68: =IFERROR(insumos2!BE2,"") -> Bogotá | D68: =insumos2!BF2 -> 5229 | F68: =IFERROR(D68/$D$96,"") -> 0.3430427081 | G68: =insumos2!BG2 -> 45246 | I68: =G68/$G$96 -> 0.291646255 | K68: =IFERROR(insumos2!BN2,"") -> Bogotá | M68: =IFERROR(insumos2!BO2,"") -> Bogotá, d.c. | P68: =IF(K68<>"",insumos2!BP2,"") -> 5229 | R68: =IFERROR(P68/$P$96,"") -> 0.3430427081 | S68: =IF(K68<>"",insumos2!BQ2,"") -> 45246 | U68: =IFERROR(S68/$S$96,"") -> 0.291646255
A69: =IFERROR(insumos2!BE3,"") -> Antioquia | D69: =insumos2!BF3 -> 3954 | F69: =IFERROR(D69/$D$96,"") -> 0.2593977563 | G69: =insumos2!BG3 -> 42339 | I69: 0.2729083409 | K69: =IFERROR(insumos2!BN3,"") -> Antioquia | M69: =IFERROR(insumos2!BO3,"") -> Medellín | P69: =IF(K69<>"",insumos2!BP3,"") -> 2353 | R69: =IFERROR(P69/$P$96,"") -> 0.1543659385 | S69: =IF(K69<>"",insumos2!BQ3,"") -> 23527 | U69: =IFERROR(S69/$S$96,"") -> 0.1516501225
A70: =IFERROR(insumos2!BE4,"") -> Valle del cauca | D70: =insumos2!BF4 -> 1566 | F70: 0.102735682 | G70: =insumos2!BG4 -> 20548 | I70: 0.1324481114 | K70: =IFERROR(insumos2!BN4,"") -> Valle del cauca | M70: =IFERROR(insumos2!BO4,"") -> Cali | P70: =IF(K70<>"",insumos2!BP4,"") -> 1124 | R70: 0.07373876533 | S70: =IF(K70<>"",insumos2!BQ4,"") -> 12848 | U70: 0.08281552146
A71: =IFERROR(insumos2!BE5,"") -> Cundinamarca | D71: =insumos2!BF5 -> 731 | F71: 0.04795643902 | G71: =insumos2!BG5 -> 7674 | I71: 0.04946499936 | K71: =IFERROR(insumos2!BN5,"") -> Atlántico | M71: =IFERROR(insumos2!BO5,"") -> Barranquilla | P71: =IF(K71<>"",insumos2!BP5,"") -> 497 | R71: 0.03260513022 | S71: =IF(K71<>"",insumos2!BQ5,"") -> 6129 | U71: 0.03950625242
A72: =IFERROR(insumos2!BE6,"") -> Santander | D72: =insumos2!BF6 -> 710 | F72: 0.04657875746 | G72: =insumos2!BG6 -> 5024 | I72: 0.03238365347 | K72: =IFERROR(insumos2!BN6,"") -> Santander | M72: =IFERROR(insumos2!BO6,"") -> Bucaramanga | P72: =IF(K72<>"",insumos2!BP6,"") -> 474 | R72: 0.0310962409 | S72: =IF(K72<>"",insumos2!BQ6,"") -> 3336 | U72: 0.02150315844
A73: =IFERROR(insumos2!BE7,"") -> Atlántico | D73: =insumos2!BF7 -> 574 | F73: 0.03765662927 | G73: =insumos2!BG7 -> 6904 | I73: 0.04450174036 | K73: =IFERROR(insumos2!BN7,"") -> Antioquia | M73: =IFERROR(insumos2!BO7,"") -> Itagüí | P73: =IF(K73<>"",insumos2!BP7,"") -> 416 | R73: 0.02729121564 | S73: =IF(K73<>"",insumos2!BQ7,"") -> 4446 | U73: 0.02865798633
A74: =IFERROR(insumos2!BE8,"") -> Risaralda | D74: =insumos2!BF8 -> 376 | F74: 0.02466706029 | G74: =insumos2!BG8 -> 6859 | I74: 0.04421167977 | K74: =IFERROR(insumos2!BN8,"") -> Risaralda | M74: =IFERROR(insumos2!BO8,"") -> Pereira | P74: =IF(K74<>"",insumos2!BP8,"") -> 222 | R74: 0.01456406219 | S74: =IF(K74<>"",insumos2!BQ8,"") -> 2996 | U74: 0.01931158953
A75: =IFERROR(insumos2!BE9,"") -> Norte de stder | D75: =insumos2!BF9 -> 269 | F75: 0.01764744473 | G75: =insumos2!BG9 -> 2688 | I75: 0.01732628594 | K75: =IFERROR(insumos2!BN9,"") -> Bolívar | M75: =IFERROR(insumos2!BO9,"") -> Cartagena de ind | P75: =IF(K75<>"",insumos2!BP9,"") -> 221 | R75: 0.01449845831 | S75: =IF(K75<>"",insumos2!BQ9,"") -> 1648 | U75: 0.0106226634
A76: =IFERROR(insumos2!BE10,"") -> Bolívar | D76: =insumos2!BF10 -> 241 | F76: 0.01581053598 | G76: =insumos2!BG10 -> 1823 | I76: 0.01175067681 | K76: =IFERROR(insumos2!BN10,"") -> Norte de stder | M76: =IFERROR(insumos2!BO10,"") -> Cucuta | P76: =IF(K76<>"",insumos2!BP10,"") -> 207 | R76: 0.01358000394 | S76: =IF(K76<>"",insumos2!BQ10,"") -> 1948 | U76: 0.01255640067
A77: =IFERROR(insumos2!BE11,"") -> Caldas | D77: =insumos2!BF11 -> 200 | F77: 0.01312077675 | G77: =insumos2!BG11 -> 2378 | I77: 0.01532809076 | K77: =IFERROR(insumos2!BN11,"") -> Caldas | M77: =IFERROR(insumos2!BO11,"") -> Manizales | P77: =IF(K77<>"",insumos2!BP11,"") -> 162 | R77: 0.01062782917 | S77: =IF(K77<>"",insumos2!BQ11,"") -> 2079 | U77: 0.01340079928
A78: =IFERROR(insumos2!BE12,"") -> Tolima | D78: =insumos2!BF12 -> 194 | F78: 0.01272715345 | G78: =insumos2!BG12 -> 2618 | I78: 0.01687508057 | K78: =IFERROR(insumos2!BN12,"") -> Tolima | M78: =IFERROR(insumos2!BO12,"") -> Ibagué | P78: =IF(K78<>"",insumos2!BP12,"") -> 158 | R78: 0.01036541363 | S78: =IF(K78<>"",insumos2!BQ12,"") -> 2330 | U78: 0.01501869279
A79: =IFERROR(insumos2!BE13,"") -> Boyacá | D79: =insumos2!BF13 -> 186 | F79: 0.01220232238 | G79: =insumos2!BG13 -> 1382 | I79: 0.008908083022 | K79: =IFERROR(insumos2!BN13,"") -> Antioquia | M79: =IFERROR(insumos2!BO13,"") -> Envigado | P79: =IF(K79<>"",insumos2!BP13,"") -> 153 | R79: 0.01003739421 | S79: =IF(K79<>"",insumos2!BQ13,"") -> 1518 | U79: 0.009784710584
A80: =IFERROR(insumos2!BE14,"") -> Huila | D80: =insumos2!BF14 -> 152 | F80: 0.00997179033 | G80: =insumos2!BG14 -> 1193 | I80: 0.007689828542 | K80: =IFERROR(insumos2!BN14,"") -> Antioquia | M80: =IFERROR(insumos2!BO14,"") -> Sabaneta | P80: =IF(K80<>"",insumos2!BP14,"") -> 139 | R80: 0.009118939841 | S80: =IF(K80<>"",insumos2!BQ14,"") -> 2510 | U80: 0.01617893516
A81: =IFERROR(insumos2!BE15,"") -> Quindío | D81: =insumos2!BF15 -> 134 | F81: 0.008790920422 | G81: =insumos2!BG15 -> 1527 | I81: 0.009842722702 | K81: =IFERROR(insumos2!BN15,"") -> Antioquia | M81: =IFERROR(insumos2!BO15,"") -> Bello | P81: =IF(K81<>"",insumos2!BP15,"") -> 129 | R81: 0.008462901004 | S81: =IF(K81<>"",insumos2!BQ15,"") -> 1376 | U81: 0.008869408276
A82: =IFERROR(insumos2!BE16,"") -> Meta | D82: =insumos2!BF16 -> 120 | F82: 0.00787246605 | G82: =insumos2!BG16 -> 769 | I82: 0.004956813201 | K82: =IFERROR(insumos2!BN16,"") -> Cundinamarca | M82: =IFERROR(insumos2!BO16,"") -> Soacha | P82: =IF(K82<>"",insumos2!BP16,"") -> 129 | R82: 0.008462901004 | S82: =IF(K82<>"",insumos2!BQ16,"") -> 983 | U82: 0.006336212453
A83: =IFERROR(insumos2!BE17,"") -> Nariño | D83: =insumos2!BF17 -> 118 | F83: 0.007741258282 | G83: =insumos2!BG17 -> 1315 | I83: 0.008476215032 | K83: =IFERROR(insumos2!BN17,"") -> Valle del cauca | M83: =IFERROR(insumos2!BO17,"") -> Yumbo | P83: =IF(K83<>"",insumos2!BP17,"") -> 128 | R83: 0.00839729712 | S83: =IF(K83<>"",insumos2!BQ17,"") -> 3904 | U83: 0.02516436767
A84: =IFERROR(insumos2!BE18,"") -> Magdalena | D84: =insumos2!BF18 -> 97 | F84: 0.006363576724 | G84: =insumos2!BG18 -> 931 | I84: 0.006001031327 | K84: =IFERROR(insumos2!BN18,"") -> Risaralda | M84: =IFERROR(insumos2!BO18,"") -> Dosquebradas | P84: =IF(K84<>"",insumos2!BP18,"") -> 126 | R84: 0.008266089352 | S84: =IF(K84<>"",insumos2!BQ18,"") -> 3500 | U84: 0.02256026814
A85: =IFERROR(insumos2!BE19,"") -> Córdoba | D85: =insumos2!BF19 -> 79 | F85: 0.005182706816 | G85: =insumos2!BG19 -> 1100 | I85: 0.007090369988 | K85: =IFERROR(insumos2!BN19,"") -> Antioquia | M85: =IFERROR(insumos2!BO19,"") -> Rionegro | P85: =IF(K85<>"",insumos2!BP19,"") -> 124 | R85: 0.008134881585 | S85: =IF(K85<>"",insumos2!BQ19,"") -> 1171 | U85: 0.007548021142
A86: =IFERROR(insumos2!BE20,"") -> Cauca | D86: =insumos2!BF20 -> 73 | F86: 0.004789083514 | G86: =insumos2!BG20 -> 948 | I86: 0.006110609772 | K86: =IFERROR(insumos2!BN20,"") -> Antioquia | M86: =IFERROR(insumos2!BO20,"") -> La estrella | P86: =IF(K86<>"",insumos2!BP20,"") -> 123 | R86: 0.008069277701 | S86: =IF(K86<>"",insumos2!BQ20,"") -> 1634 | U86: 0.01053242233
A87: =IFERROR(insumos2!BE21,"") -> Cesar | D87: =insumos2!BF21 -> 57 | F87: 0.003739421374 | G87: =insumos2!BG21 -> 419 | I87: 0.002700786386 | K87: =IFERROR(insumos2!BN21,"") -> Huila | M87: =IFERROR(insumos2!BO21,"") -> Neiva | P87: =IF(K87<>"",insumos2!BP21,"") -> 116 | R87: 0.007610050515 | S87: =IF(K87<>"",insumos2!BQ21,"") -> 856 | U87: 0.005517597009
A88: =IFERROR(insumos2!BE22,"") -> Casanare | D88: =insumos2!BF22 -> 45 | F88: 0.002952174769 | G88: =insumos2!BG22 -> 284 | I88: 0.001830604615 | K88: =IFERROR(insumos2!BN22,"") -> Valle del cauca | M88: =IFERROR(insumos2!BO22,"") -> Palmira | P88: =IF(K88<>"",insumos2!BP22,"") -> 110 | R88: 0.007216427212 | S88: =IF(K88<>"",insumos2!BQ22,"") -> 1335 | U88: 0.00860513085
A89: =IFERROR(insumos2!BE23,"") -> Sucre | D89: =insumos2!BF23 -> 41 | F89: 0.002689759234 | G89: =insumos2!BG23 -> 584 | I89: 0.003764341885 | K89: =IFERROR(insumos2!BN23,"") -> Quindío | M89: =IFERROR(insumos2!BO23,"") -> Armenia | P89: =IF(K89<>"",insumos2!BP23,"") -> 100 | R89: 0.006560388375 | S89: =IF(K89<>"",insumos2!BQ23,"") -> 1157 | U89: 0.00745778007
A90: =IFERROR(insumos2!BE24,"") -> Caquetá | D90: =insumos2!BF24 -> 27 | F90: 0.001771304861 | G90: =insumos2!BG24 -> 166 | I90: 0.001070001289 | K90: =IFERROR(insumos2!BN24,"") -> Nariño | M90: =IFERROR(insumos2!BO24,"") -> Pasto | P90: =IF(K90<>"",insumos2!BP24,"") -> 94 | R90: 0.006166765072 | S90: =IF(K90<>"",insumos2!BQ24,"") -> 1165 | U90: 0.007509346397
A91: =IFERROR(insumos2!BE25,"") -> San Andrés | D91: =insumos2!BF25 -> 14 | F91: 0.0009184543725 | G91: =insumos2!BG25 -> 62 | I91: 0.0003996390357 | K91: =IFERROR(insumos2!BN25,"") -> Cundinamarca | M91: =IFERROR(insumos2!BO25,"") -> Mosquera | P91: =IF(K91<>"",insumos2!BP25,"") -> 91 | R91: 0.005969953421 | S91: =IF(K91<>"",insumos2!BQ25,"") -> 894 | U91: 0.005762537063
A92: =IFERROR(insumos2!BE26,"") -> Arauca | D92: =insumos2!BF26 -> 12 | F92: =D92/$D$96 -> 0.000787246605 | G92: =insumos2!BG26 -> 57 | I92: 0.0003674100812 | K92: =IFERROR(insumos2!BN26,"") -> Meta | M92: =IFERROR(insumos2!BO26,"") -> Villavicencio | P92: =IF(K92<>"",insumos2!BP26,"") -> 89 | R92: 0.005838745654 | S92: =IF(K92<>"",insumos2!BQ26,"") -> 596 | U92: 0.003841691376
A93: =IFERROR(insumos2!BE27,"") -> La guajira | D93: =insumos2!BF27 -> 12 | F93: 0.000787246605 | G93: =insumos2!BG27 -> 75 | I93: 0.0004834343174 | K93: =IFERROR(insumos2!BN27,"") -> Cundinamarca | M93: =IFERROR(insumos2!BO27,"") -> Cota | P93: =IF(K93<>"",insumos2!BP27,"") -> 85 | R93: 0.005576330119 | S93: =IF(K93<>"",insumos2!BQ27,"") -> 1176 | U93: 0.007580250097
A94: =IFERROR(insumos2!BE28,"") -> Putumayo | D94: =insumos2!BF28 -> 9 | F94: 0.0005904349537 | G94: =insumos2!BG28 -> 64 | I94: 0.0004125306175 | K94: =IFERROR(insumos2!BN28,"") -> Magdalena | M94: =IFERROR(insumos2!BO28,"") -> Santa marta | P94: =IF(K94<>"",insumos2!BP28,"") -> 80 | R94: 0.0052483107 | S94: =IF(K94<>"",insumos2!BQ28,"") -> 754 | U94: 0.004860126338
A95: =IFERROR(insumos2!BE29,"") -> Otros | D95: =insumos2!BF29 -> 23 | F95: 0.001508889326 | G95: =insumos2!BG29 -> 163 | I95: 0.001050663916 | K95: =IF(K94="","",IFERROR(insumos2!BN29,"")) -> Otros | M95: =IF(M94="","",IFERROR(insumos2!BO29,"")) -> Otros | P95: =IF(K95<>"",insumos2!BP29,"") -> 2364 | R95: 0.1550875812 | S95: =IF(K95<>"",insumos2!BQ29,"") -> 24078 | U95: 0.1552017533
A96: =insumos2!BE30 -> Total | D96: =insumos2!BF30 -> 15243 | F96: =D96/$D$96 -> 1 | G96: =insumos2!BG30 -> 155140 | I96: 1 | K96: =insumos2!BN30 -> Total | P96: =insumos2!BP30 -> 15243 | R96: =P96/$P$96 -> 1 | S96: =insumos2!BQ30 -> 155140 | U96: =S96/$S$96 -> 1
G127: Actividad económica | J127: =J61 -> Industrias manufactureras | U127: =U61 -> C
B131: Sexo | D131: ="Total empleadores sección "&N4 -> Total empleadores sección C | G131: %
B133: Hombres | D133: =VLOOKUP(N4,Hoja4!$H$2:$P$23,7,FALSE) -> 79695 | G133: =D133/$D$136 -> 0.5136973057
B134: Mujeres | D134: =VLOOKUP(N4,Hoja4!$H$2:$P$23,8,FALSE) -> 75313 | G134: =D134/$D$136 -> 0.4854518499
B135: No disponible | D135: =VLOOKUP(N4,Hoja4!$H$2:$P$23,9,FALSE) -> 132 | G135: =D135/$D$136 -> 0.0008508443986
B136: Total | D136: =D135+D134+D133 -> 155140 | G136: =D136/$D$136 -> 1
B139: ="Para la Sección "&U127&" hay "&ROUND(VLOOKUP(U127,Hoja4!$H$2:$R$23,11,FALSE),0)&" mujeres por cada 100 hombres beneficiados del Programa." -> Para la Sección C hay 95 mujeres por cada 100 hombres beneficiados del Programa.
B152: ="Grupo o División de la sección "&U127 -> Grupo o División de la sección C | I152: Empleadores | M152: % | O152: Empleados | S152: %
B153: =IF(insumos2!BV2=0,"",insumos2!BV2) -> Elaboración de productos alimenticios | I153: =IF(insumos2!BV2=0,"",insumos2!BW2) -> 2601 | M153: =IFERROR(I153/insumos2!$BT$28,"") -> 0.1706357016 | O153: =IF(insumos2!BX2=0,"",insumos2!BX2) -> 29177 | S153: =IFERROR(O153/insumos2!$BU$28,"") -> 0.188068841
B154: =IF(insumos2!BV3=0,"",insumos2!BV3) -> Confección de prendas de vestir | I154: =IF(insumos2!BV3=0,"",insumos2!BW3) -> 2177 | M154: =IFERROR(I154/insumos2!$BT$28,"") -> 0.1428196549 | O154: =IF(insumos2!BX3=0,"",insumos2!BX3) -> 39257 | S154: =IFERROR(O154/insumos2!$BU$28,"") -> 0.2530424133
B155: =IF(insumos2!BV4=0,"",insumos2!BV4) -> Fabricación de productos elaborados de metal, excepto maquinaria y equipo | I155: =IF(insumos2!BV4=0,"",insumos2!BW4) -> 1525 | M155: =IFERROR(I155/insumos2!$BT$28,"") -> 0.1000459227 | O155: =IF(insumos2!BX4=0,"",insumos2!BX4) -> 11392 | S155: =IFERROR(O155/insumos2!$BU$28,"") -> 0.07343044992
B156: =IF(insumos2!BV5=0,"",insumos2!BV5) -> Instalación, mantenimiento y reparación especializado de maquinaria y equipo | I156: =IF(insumos2!BV5=0,"",insumos2!BW5) -> 1523 | M156: =IFERROR(I156/insumos2!$BT$28,"") -> 0.09991471495 | O156: =IF(insumos2!BX5=0,"",insumos2!BX5) -> 7472 | S156: =IFERROR(O156/insumos2!$BU$28,"") -> 0.04816294959
B157: =IF(insumos2!BV6=0,"",insumos2!BV6) -> Actividades de impresión y de producción de copias a partir de grabaciones originales | I157: =IF(insumos2!BV6=0,"",insumos2!BW6) -> 831 | M157: =IFERROR(I157/insumos2!$BT$28,"") -> 0.0545168274 | O157: =IF(insumos2!BX6=0,"",insumos2!BX6) -> 5470 | S157: =IFERROR(O157/insumos2!$BU$28,"") -> 0.03525847622
B158: =IF(insumos2!BV7=0,"",insumos2!BV7) -> Fabricación de muebles, colchones y somieres | I158: =IF(insumos2!BV7=0,"",insumos2!BW7) -> 790 | M158: =IFERROR(I158/insumos2!$BT$28,"") -> 0.05182706816 | O158: =IF(insumos2!BX7=0,"",insumos2!BX7) -> 6961 | S158: =IFERROR(O158/insumos2!$BU$28,"") -> 0.04486915044
B159: =IF(insumos2!BV8=0,"",insumos2!BV8) -> Fabricación de productos de caucho y de plástico | I159: =IF(insumos2!BV8=0,"",insumos2!BW8) -> 726 | M159: =IFERROR(I159/insumos2!$BT$28,"") -> 0.0476284196 | O159: =IF(insumos2!BX8=0,"",insumos2!BX8) -> 6673 | S159: =IFERROR(O159/insumos2!$BU$28,"") -> 0.04301276267
B160: =IF(insumos2!BV9=0,"",insumos2!BV9) -> Fabricación de productos textiles | I160: =IF(insumos2!BV9=0,"",insumos2!BW9) -> 590 | M160: =IFERROR(I160/insumos2!$BT$28,"") -> 0.03870629141 | O160: =IF(insumos2!BX9=0,"",insumos2!BX9) -> 6854 | S160: =IFERROR(O160/insumos2!$BU$28,"") -> 0.04417945082
B161: =IF(insumos2!BV10=0,"",insumos2!BV10) -> Otras industrias manufactureras | I161: =IF(insumos2!BV10=0,"",insumos2!BW10) -> 575 | M161: =IFERROR(I161/insumos2!$BT$28,"") -> 0.03772223316 | O161: =IF(insumos2!BX10=0,"",insumos2!BX10) -> 4730 | S161: =IFERROR(O161/insumos2!$BU$28,"") -> 0.03048859095
B162: =IF(insumos2!BV11=0,"",insumos2!BV11) -> Curtido y recurtido de cueros; fabricación de calzado; fabricación de artículos de viaje, maletas, bolsos de mano y artículos similares, y fabricación de artículos de talabartería y guarnicionería; adobo y teñido de pieles | I162: =IF(insumos2!BV11=0,"",insumos2!BW11) -> 546 | M162: =IFERROR(I162/insumos2!$BT$28,"") -> 0.03581972053 | O162: =IF(insumos2!BX11=0,"",insumos2!BX11) -> 8035 | S162: =IFERROR(O162/insumos2!$BU$28,"") -> 0.05179192987
B163: =IF(insumos2!BV12=0,"",insumos2!BV12) -> Transformación de la madera y fabricación de productos de madera y de corcho, excepto muebles; fabricación de artículos de cestería y espartería | I163: =IF(insumos2!BV12=0,"",insumos2!BW12) -> 545 | M163: =IFERROR(I163/insumos2!$BT$28,"") -> 0.03575411664 | O163: =IF(insumos2!BX12=0,"",insumos2!BX12) -> 4633 | S163: =IFERROR(O163/insumos2!$BU$28,"") -> 0.02986334923
B164: =IF(insumos2!BV13=0,"",insumos2!BV13) -> Fabricación de sustancias y productos químicos | I164: =IF(insumos2!BV13=0,"",insumos2!BW13) -> 479 | M164: =IFERROR(I164/insumos2!$BT$28,"") -> 0.03142426032 | O164: =IF(insumos2!BX13=0,"",insumos2!BX13) -> 4094 | S164: =IFERROR(O164/insumos2!$BU$28,"") -> 0.02638906794
B165: =IF(insumos2!BV14=0,"",insumos2!BV14) -> Fabricación de otros productos minerales no metálicos | I165: =IF(insumos2!BV14=0,"",insumos2!BW14) -> 431 | M165: =IFERROR(I165/insumos2!$BT$28,"") -> 0.0282752739 | O165: =IF(insumos2!BX14=0,"",insumos2!BX14) -> 5162 | S165: =IFERROR(O165/insumos2!$BU$28,"") -> 0.03327317262
B166: =IF(insumos2!BV15=0,"",insumos2!BV15) -> Fabricación de maquinaria y equipo n.c.p. | I166: =IF(insumos2!BV15=0,"",insumos2!BW15) -> 422 | M166: =IFERROR(I166/insumos2!$BT$28,"") -> 0.02768483894 | O166: =IF(insumos2!BX15=0,"",insumos2!BX15) -> 2719 | S166: =IFERROR(O166/insumos2!$BU$28,"") -> 0.01752610545
B167: =IF(insumos2!BV16=0,"",insumos2!BV16) -> Fabricación de papel, cartón y productos de papel y cartón | I167: =IF(insumos2!BV16=0,"",insumos2!BW16) -> 335 | M167: =IFERROR(I167/insumos2!$BT$28,"") -> 0.02197730106 | O167: =IF(insumos2!BX16=0,"",insumos2!BX16) -> 2812 | S167: =IFERROR(O167/insumos2!$BU$28,"") -> 0.01812556401
B168: =IF(insumos2!BV17=0,"",insumos2!BV17) -> Fabricación de vehículos automotores, remolques y semirremolques | I168: =IF(insumos2!BV17=0,"",insumos2!BW17) -> 287 | M168: =IFERROR(I168/insumos2!$BT$28,"") -> 0.01882831464 | O168: =IF(insumos2!BX17=0,"",insumos2!BX17) -> 3303 | S168: =IFERROR(O168/insumos2!$BU$28,"") -> 0.02129044734
B169: =IF(insumos2!BV18=0,"",insumos2!BV18) -> Fabricación de productos metalúrgicos básicos | I169: =IF(insumos2!BV18=0,"",insumos2!BW18) -> 259 | M169: =IFERROR(I169/insumos2!$BT$28,"") -> 0.01699140589 | O169: =IF(insumos2!BX18=0,"",insumos2!BX18) -> 1713 | S169: =IFERROR(O169/insumos2!$BU$28,"") -> 0.01104163981
B170: =IF(insumos2!BV19=0,"",insumos2!BV19) -> Elaboración de bebidas | I170: =IF(insumos2!BV19=0,"",insumos2!BW19) -> 188 | M170: =IFERROR(I170/insumos2!$BT$28,"") -> 0.01233353014 | O170: =IF(insumos2!BX19=0,"",insumos2!BX19) -> 1510 | S170: =IFERROR(O170/insumos2!$BU$28,"") -> 0.009733144257
B171: =IF(insumos2!BV20=0,"",insumos2!BV20) -> Fabricación de aparatos y equipo eléctrico | I171: =IF(insumos2!BV20=0,"",insumos2!BW20) -> 181 | M171: =IFERROR(I171/insumos2!$BT$28,"") -> 0.01187430296 | O171: =IF(insumos2!BX20=0,"",insumos2!BX20) -> 1352 | S171: =IFERROR(O171/insumos2!$BU$28,"") -> 0.008714709295
B172: =IF(insumos2!BV21=0,"",insumos2!BV21) -> Fabricación de productos farmacéuticos, sustancias químicas medicinales y productos botánicos de uso farmacéutico | I172: =IF(insumos2!BV21=0,"",insumos2!BW21) -> 84 | M172: =IFERROR(I172/insumos2!$BT$28,"") -> 0.005510726235 | O172: =IF(insumos2!BX21=0,"",insumos2!BX21) -> 701 | S172: =IFERROR(O172/insumos2!$BU$28,"") -> 0.00451849942
B173: =IF(insumos2!BV22=0,"",insumos2!BV22) -> Fabricación de productos informáticos, electrónicos y ópticos | I173: =IF(insumos2!BV22=0,"",insumos2!BW22) -> 66 | M173: =IFERROR(I173/insumos2!$BT$28,"") -> 0.004329856327 | O173: =IF(insumos2!BX22=0,"",insumos2!BX22) -> 379 | S173: =IFERROR(O173/insumos2!$BU$28,"") -> 0.002442954751
B174: =IF(insumos2!BV23=0,"",insumos2!BV23) -> Coquización, fabricación de productos de la refinación del petróleo y actividad de mezcla de combustibles | I174: =IF(insumos2!BV23=0,"",insumos2!BW23) -> 45 | M174: =IFERROR(I174/insumos2!$BT$28,"") -> 0.002952174769 | O174: =IF(insumos2!BX23=0,"",insumos2!BX23) -> 378 | S174: =IFERROR(O174/insumos2!$BU$28,"") -> 0.00243650896
B175: =IF(insumos2!BV24=0,"",insumos2!BV24) -> Fabricación de otros tipos de equipo de transporte | I175: =IF(insumos2!BV24=0,"",insumos2!BW24) -> 36 | M175: =IFERROR(I175/insumos2!$BT$28,"") -> 0.002361739815 | O175: =IF(insumos2!BX24=0,"",insumos2!BX24) -> 356 | S175: =IFERROR(O175/insumos2!$BU$28,"") -> 0.00229470156
B176: =IF(insumos2!BV25=0,"",insumos2!BV25) -> Elaboración de productos de tabaco | I176: =IF(insumos2!BV25=0,"",insumos2!BW25) -> 1 | M176: =IFERROR(I176/insumos2!$BT$28,"") -> 6.560388375e-05 | O176: =IF(insumos2!BX25=0,"",insumos2!BX25) -> 7 | S176: =IFERROR(O176/insumos2!$BU$28,"") -> 4.512053629e-05
B177: =IF(insumos2!BV26=0,"",insumos2!BV26) ->  | I177: =IF(insumos2!BV26=0,"",insumos2!BW26) ->  | M177: =IFERROR(I177/insumos2!$BT$28,"") ->  | O177: =IF(insumos2!BX26=0,"",insumos2!BX26) ->  | S177: =IFERROR(O177/insumos2!$BU$28,"") -> 
B180: Postulaciones recibidas en la sección | F180: Cantidad | I180: % | L180: Empleados postulados en la sección | P180: Cantidad | S180: %
B181: Total solicitudes | F181: =COUNT(insumos2!$AI$2:$AI$399999) -> 16999 | I181: =F181/$F$181 -> 1 | L181: Total empleados | P181: =SUM(insumos2!$AI$2:$AJ$399999) -> 355264 | S181: =P181/$P$181 -> 1
B182: Empleadores con beneficiados | F182: =COUNTIFS(insumos2!$AN$2:$AN$399999,"Aprobado con subsidio") -> 15243 | I182: =F182/$F$181 -> 0.8966998059 | L182: Conformidad | P182: =SUMIFS(insumos2!$AI$2:$AI$399999,insumos2!$AN$2:$AN$399999,"Aprobado con subsidio") -> 155140 | S182: =P182/$P$181 -> 0.4366893353
B183: Empleadores sin beneficio | F183: =F181-F182 -> 1756 | I183: =F183/$F$181 -> 0.1033001941 | L183: No conformidad | P183: =P181-P182 -> 200124 | S183: =P183/$P$181 -> 0.5633106647

Sheet insumos1 (hidden)
A1: Ciclo | B1: DIVIPOLA1 | C1: MpioNOM | D1: Depto | E1: DeptoNOM | F1: NOM_AECONOMICA1 | G1: SECTOR_ECONOMICO1 | H1: actividad | I1: TIPO_PERSONA1 | J1: SIZE1 | K1: Suma de RECURSOS1 | Q1: Suma de Suma de RECURSOS1 | R1: Etiquetas de columna
A2: I | B2: 5001 | C2: MEDELLÍN | D2: 5 | E2: ANTIOQUIA | F2: OTRAS | G2: 10 | H2: Otras | I2: Jurídica | J2: MICRO | K2: 2200000 | Q2: Etiquetas de fila | R2: 1 | S2: 2 | T2: 3 | U2: 4 | V2: 5 | W2: 6 | X2: 7 | Y2: 8 | Z2: 9 | AA2: 10 | AB2: 11 | AC2: EO_SA | AD2: Total general
A3: I | B3: 5001 | C3: MEDELLÍN | D3: 5 | E3: ANTIOQUIA | F3: AGRICULTURA, GANADERÍA, CAZA, SILVICULTURA Y PESCA | G3: 111 | H3: A | I3: Jurídica | J3: MICRO | K3: 880000 | Q3: ACTIVIDADES ARTÍSTICAS, DE ENTRETENIMIENTO Y RECREACIÓN | R3: 15487875000 | S3: 15599142000 | T3: 12897144000 | U3: 11213397000 | V3: 13012425000 | W3: 11462866000 | X3: 11571104000 | Y3: 11202419000 | Z3: 11060261000 | AA3: 11675829000 | AB3: 10661911000 | AC3: 4176688000 | AD3: 140021061000
A4: I | B4: 5001 | C4: MEDELLÍN | D4: 5 | E4: ANTIOQUIA | F4: AGRICULTURA, GANADERÍA, CAZA, SILVICULTURA Y PESCA | G4: 112 | H4: A | I4: Jurídica | J4: MICRO | K4: 660000 | Q4: ACTIVIDADES DE ATENCIÓN DE LA SALUD HUMANA Y DE ASISTENCIA SOCIAL | R4: 63169470000 | S4: 59343570000 | T4: 43074720000 | U4: 34766199000 | V4: 33470467000 | W4: 26348770000 | X4: 24864742000 | Y4: 21808556000 | Z4: 21944785000 | AA4: 22446095000 | AB4: 19709237000 | AC4: 4906018000 | AD4: 375852629000
A5: I | B5: 5001 | C5: MEDELLÍN | D5: 5 | E5: ANTIOQUIA | F5: AGRICULTURA, GANADERÍA, CAZA, SILVICULTURA Y PESCA | G5: 113 | H5: A | I5: Jurídica | J5: PEQUEÑA | K5: 1100000 | Q5: ACTIVIDADES DE LOS HOGARES INDIVIDUALES EN CALIDAD DE EMPLEADORES; ACTIVIDADES NO DIFERENCIADAS DE LOS HOGARES INDIVIDUALES COMO PRODUCTORES DE BIENES Y SERVICIOS PARA USO PROPIO | R5: 53703000 | S5: 64233000 | T5: 50544000 | U5: 59319000 | V5: 45995000 | W5: 48629000 | X5: 47840000 | Y5: 51263000 | Z5: 66816000 | AA5: 50743000 | AB5: 73898000 | AC5: 2195000 | AD5: 615178000
A6: I | B6: 5001 | C6: MEDELLÍN | D6: 5 | E6: ANTIOQUIA | F6: AGRICULTURA, GANADERÍA, CAZA, SILVICULTURA Y PESCA | G6: 119 | H6: A | I6: Jurídica | J6: PEQUEÑA | K6: 3520000 | Q6: ACTIVIDADES DE ORGANIZACIONES Y ENTIDADES EXTRATERRITORIALES | R6: 6669000 | S6: 37206000 | T6: 15444000 | U6: 15093000 | V6: 12992000 | W6: 7550000 | X6: 7550000 | Y6: 10536000 | Z6: 4994000 | AA6: 20239000 | AD6: 138273000
A7: I | B7: 5001 | C7: MEDELLÍN | D7: 5 | E7: ANTIOQUIA | F7: AGRICULTURA, GANADERÍA, CAZA, SILVICULTURA Y PESCA | G7: 121 | H7: A | I7: Jurídica | J7: GRANDE | K7: 44440000 | Q7: ACTIVIDADES DE SERVICIOS ADMINISTRATIVOS Y DE APOYO | R7: 133808922000 | S7: 147424914000 | T7: 135768204000 | U7: 117859833000 | V7: 122010438000 | W7: 117864897000 | X7: 111245264000 | Y7: 83641688000 | Z7: 78337356000 | AA7: 86002923000 | AB7: 73768010000 | AC7: 17959704000 | AD7: 1225692153000
A8: I | B8: 5001 | C8: MEDELLÍN | D8: 5 | E8: ANTIOQUIA | F8: AGRICULTURA, GANADERÍA, CAZA, SILVICULTURA Y PESCA | G8: 121 | H8: A | I8: Jurídica | J8: MEDIANA | K8: 30580000 | Q8: ACTIVIDADES FINANCIERAS Y DE SEGUROS | R8: 7251309000 | S8: 7558785000 | T8: 5632497000 | U8: 4413123000 | V8: 4771350000 | W8: 4209638000 | X8: 4411793000 | Y8: 3828825000 | Z8: 3185105000 | AA8: 3331751000 | AB8: 2588258000 | AC8: 705981000 | AD8: 51888415000
A9: I | B9: 5001 | C9: MEDELLÍN | D9: 5 | E9: ANTIOQUIA | F9: AGRICULTURA, GANADERÍA, CAZA, SILVICULTURA Y PESCA | G9: 121 | H9: A | I9: Jurídica | J9: MICRO | K9: 4840000 | Q9: ACTIVIDADES INMOBILIARIAS | R9: 8052642000 | S9: 8673561000 | T9: 7076511000 | U9: 7244991000 | V9: 7637814000 | W9: 7404676000 | X9: 7099201000 | Y9: 5951076000 | Z9: 6224999000 | AA9: 6208288000 | AB9: 5656808000 | AC9: 1884147000 | AD9: 79114714000
A10: I | B10: 5001 | C10: MEDELLÍN | D10: 5 | E10: ANTIOQUIA | F10: AGRICULTURA, GANADERÍA, CAZA, SILVICULTURA Y PESCA | G10: 121 | H10: A | I10: Jurídica | J10: MUY GRANDE | K10: 94380000 | Q10: ACTIVIDADES PROFESIONALES, CIENTÍFICAS Y TÉCNICAS | R10: 38787255000 | S10: 44501535000 | T10: 42058926000 | U10: 36757422000 | V10: 42561024000 | W10: 38047358000 | X10: 33171472000 | Y10: 27017263000 | Z10: 31363570000 | AA10: 31329788000 | AB10: 28294315000 | AC10: 9064014000 | AD10: 402953942000
A11: I | B11: 5001 | C11: MEDELLÍN | D11: 5 | E11: ANTIOQUIA | F11: AGRICULTURA, GANADERÍA, CAZA, SILVICULTURA Y PESCA | G11: 121 | H11: A | I11: Jurídica | J11: PEQUEÑA | K11: 27940000 | Q11: ADMINISTRACIÓN PÚBLICA Y DEFENSA; PLANES DE SEGURIDAD SOCIAL DE AFILIACIÓN OBLIGATORIA | R11: 841698000 | S11: 1175499000 | T11: 4308876000 | U11: 1197261000 | V11: 5325234000 | W11: 5334473000 | X11: 5320268000 | Y11: 4800503000 | Z11: 4359920000 | AA11: 870291000 | AB11: 1102633000 | AC11: 3123248000 | AD11: 37759904000
A12: I | B12: 5001 | C12: MEDELLÍN | D12: 5 | E12: ANTIOQUIA | F12: AGRICULTURA, GANADERÍA, CAZA, SILVICULTURA Y PESCA | G12: 122 | H12: A | I12: Jurídica | J12: MEDIANA | K12: 4840000 | Q12: AGRICULTURA, GANADERÍA, CAZA, SILVICULTURA Y PESCA | R12: 29879577000 | S12: 31821309000 | T12: 29911167000 | U12: 23507172000 | V12: 21901099000 | W12: 17863871000 | X12: 17712151000 | Y12: 14413350000 | Z12: 17532894000 | AA12: 12241882000 | AB12: 10714729000 | AC12: 8590335000 | AD12: 236089536000
A13: I | B13: 5001 | C13: MEDELLÍN | D13: 5 | E13: ANTIOQUIA | F13: AGRICULTURA, GANADERÍA, CAZA, SILVICULTURA Y PESCA | G13: 122 | H13: A | I13: Jurídica | J13: MICRO | K13: 2420000 | Q13: ALOJAMIENTO Y SERVICIOS DE COMIDA | R13: 37098594000 | S13: 36363951000 | T13: 33191262000 | U13: 30448548000 | V13: 33634135000 | W13: 31534904000 | X13: 27308304000 | Y13: 25650039000 | Z13: 27754359000 | AA13: 30925183000 | AB13: 25833243000 | AC13: 2046446000 | AD13: 341788968000
A14: I | B14: 5001 | C14: MEDELLÍN | D14: 5 | E14: ANTIOQUIA | F14: AGRICULTURA, GANADERÍA, CAZA, SILVICULTURA Y PESCA | G14: 122 | H14: A | I14: Jurídica | J14: PEQUEÑA | K14: 5280000 | Q14: COMERCIO AL POR MAYOR Y AL POR MENOR; REPARACIÓN DE VEHÍCULOS AUTOMOTORES Y MOTOCICLETAS | R14: 160029324000 | S14: 151233966000 | T14: 120997773000 | U14: 106466724000 | V14: 101776309000 | W14: 83140825000 | X14: 77206118000 | Y14: 63588260000 | Z14: 66304104000 | AA14: 85241054000 | AC14: 12259238000 | AD14: 1028243695000
A15: I | B15: 5001 | C15: MEDELLÍN | D15: 5 | E15: ANTIOQUIA | F15: AGRICULTURA, GANADERÍA, CAZA, SILVICULTURA Y PESCA | G15: 123 | H15: A | I15: Jurídica | J15: MEDIANA | K15: 50160000 | Q15: COMERCIO AL POR MAYOR Y AL POR MENOR; REPARACIÓN DE VEHÍCULOS AUTOMOTORES Y MOTOCICLETAS. | AB15: 64540497000 | AD15: 64540497000
A16: I | B16: 5001 | C16: MEDELLÍN | D16: 5 | E16: ANTIOQUIA | F16: AGRICULTURA, GANADERÍA, CAZA, SILVICULTURA Y PESCA | G16: 123 | H16: A | I16: Jurídica | J16: MICRO | K16: 880000 | Q16: CONSTRUCCIÓN | R16: 59637006000 | S16: 68136822000 | T16: 64444653000 | U16: 58476951000 | V16: 50573115000 | W16: 50366303000 | X16: 47593881000 | Y16: 43325865000 | Z16: 38946646000 | AA16: 44852815000 | AB16: 42488115000 | AC16: 6756983000 | AD16: 575599155000
A17: I | B17: 5001 | C17: MEDELLÍN | D17: 5 | E17: ANTIOQUIA | F17: AGRICULTURA, GANADERÍA, CAZA, SILVICULTURA Y PESCA | G17: 123 | H17: A | I17: Jurídica | J17: PEQUEÑA | K17: 5500000 | Q17: DISTRIBUCIÓN DE AGUA; EVACUACIÓN Y TRATAMIENTO DE AGUAS RESIDUALES, GESTIÓN DE DESECHOS Y ACTIVIDADES DE SANEAMIENTO AMBIENTAL | R17: 3493152000 | S17: 3403998000 | T17: 4203225000 | U17: 2494908000 | V17: 2012691000 | W17: 1897715000 | X17: 1757712000 | Y17: 1665455000 | Z17: 1541508000 | AA17: 1622823000 | AB17: 1218578000 | AC17: 257212000 | AD17: 25568977000
A18: I | B18: 5001 | C18: MEDELLÍN | D18: 5 | E18: ANTIOQUIA | F18: AGRICULTURA, GANADERÍA, CAZA, SILVICULTURA Y PESCA | G18: 125 | H18: A | I18: Jurídica | J18: GRANDE | K18: 11220000 | Q18: EDUCACIÓN | R18: 27161784000 | S18: 29268486000 | T18: 26893269000 | U18: 28889757000 | V18: 31233825000 | W18: 29896995000 | X18: 30011790000 | Y18: 23380372000 | Z18: 15114704000 | AA18: 15513482000 | AB18: 20530311000 | AC18: 4561508000 | AD18: 282456283000
A19: I | B19: 5001 | C19: MEDELLÍN | D19: 5 | E19: ANTIOQUIA | F19: AGRICULTURA, GANADERÍA, CAZA, SILVICULTURA Y PESCA | G19: 125 | H19: A | I19: Jurídica | J19: MICRO | K19: 7480000 | Q19: EXPLOTACIÓN DE MINAS Y CANTERAS | R19: 11917503000 | S19: 12650040000 | T19: 12428910000 | U19: 11866959000 | V19: 9389242000 | W19: 9148594000 | X19: 7355448000 | Y19: 8388868000 | Z19: 8211359000 | AA19: 5644153000 | AB19: 5851554000 | AC19: 721720000 | AD19: 103574350000
A20: I | B20: 5001 | C20: MEDELLÍN | D20: 5 | E20: ANTIOQUIA | F20: AGRICULTURA, GANADERÍA, CAZA, SILVICULTURA Y PESCA | G20: 125 | H20: A | I20: Jurídica | J20: MUY GRANDE | K20: 151360000 | Q20: INDUSTRIAS MANUFACTURERAS | R20: 147655521000 | S20: 141350157000 | T20: 113489883000 | U20: 93844764000 | V20: 93837609000 | W20: 74405105000 | X20: 67748738000 | Y20: 59465421000 | Z20: 57514549000 | AA20: 71463338000 | AB20: 62642202000 | AC20: 10585445000 | AD20: 994002732000
A21: I | B21: 5001 | C21: MEDELLÍN | D21: 5 | E21: ANTIOQUIA | F21: AGRICULTURA, GANADERÍA, CAZA, SILVICULTURA Y PESCA | G21: 125 | H21: A | I21: Jurídica | J21: PEQUEÑA | K21: 15400000 | Q21: INFORMACIÓN Y COMUNICACIONES | R21: 22157577000 | S21: 19511739000 | T21: 19300437000 | U21: 15005250000 | V21: 14974249000 | W21: 13390190000 | X21: 12263220000 | Y21: 10040469000 | Z21: 9773523000 | AA21: 11483698000 | AB21: 9430071000 | AC21: 1685650000 | AD21: 159016073000
A22: I | B22: 5001 | C22: MEDELLÍN | D22: 5 | E22: ANTIOQUIA | F22: AGRICULTURA, GANADERÍA, CAZA, SILVICULTURA Y PESCA | G22: 126 | H22: A | I22: Jurídica | J22: MICRO | K22: 2200000 | Q22: OTRAS | R22: 22113000 | S22: 53001000 | T22: 56511000 | U22: 47385000 | V22: 38795000 | W22: 39496000 | X22: 34583000 | Y22: 18169000 | Z22: 18064000 | AA22: 16067000 | AB22: 16521000 | AD22: 360705000
A23: I | B23: 5001 | C23: MEDELLÍN | D23: 5 | E23: ANTIOQUIA | F23: AGRICULTURA, GANADERÍA, CAZA, SILVICULTURA Y PESCA | G23: 126 | H23: A | I23: Jurídica | J23: PEQUEÑA | K23: 12540000 | Q23: OTRAS ACTIVIDADES DE SERVICIOS | R23: 18685836000 | S23: 19227780000 | T23: 16021044000 | U23: 13804830000 | V23: 14740328000 | W23: 13756463000 | X23: 13855824000 | Y23: 11248425000 | Z23: 12183466000 | AA23: 11368761000 | AB23: 10701251000 | AC23: 3028864000 | AD23: 158622872000
A24: I | B24: 5001 | C24: MEDELLÍN | D24: 5 | E24: ANTIOQUIA | F24: AGRICULTURA, GANADERÍA, CAZA, SILVICULTURA Y PESCA | G24: 128 | H24: A | I24: Jurídica | J24: MICRO | K24: 440000 | Q24: SUMINISTRO DE ELECTRICIDAD, GAS, VAPOR Y AIRE ACONDICIONADO | R24: 611793000 | S24: 661284000 | T24: 421902000 | U24: 547911000 | V24: 404594000 | W24: 302352000 | X24: 259519000 | Y24: 257848000 | Z24: 301357000 | AA24: 149310000 | AB24: 263130000 | AC24: 115934000 | AD24: 4296934000
A25: I | B25: 5001 | C25: MEDELLÍN | D25: 5 | E25: ANTIOQUIA | F25: AGRICULTURA, GANADERÍA, CAZA, SILVICULTURA Y PESCA | G25: 129 | H25: A | I25: Jurídica | J25: MICRO | K25: 880000 | Q25: TRANSPORTE Y ALMACENAMIENTO | R25: 69643314000 | S25: 65129805000 | T25: 55977480000 | U25: 47176155000 | V25: 47190439000 | W25: 44541004000 | X25: 45504585000 | Y25: 38474533000 | Z25: 42841372000 | AA25: 43788614000 | AB25: 43173234000 | AC25: 8556974000 | AD25: 551997509000
A26: I | B26: 5001 | C26: MEDELLÍN | D26: 5 | E26: ANTIOQUIA | F26: AGRICULTURA, GANADERÍA, CAZA, SILVICULTURA Y PESCA | G26: 129 | H26: A | I26: Jurídica | J26: PEQUEÑA | K26: 7480000 | Q26: Total general | R26: 855452637000 | S26: 863190783000 | T26: 748220382000 | U26: 646103952000 | V26: 650554169000 | W26: 581012674000 | X26: 546351107000 | Y26: 458229203000 | Z26: 454585711000 | AA26: 496247127000 | AB26: 439258506000 | AC26: 100988304000 | AD26: 6840194555000
A27: I | B27: 5001 | C27: MEDELLÍN | D27: 5 | E27: ANTIOQUIA | F27: AGRICULTURA, GANADERÍA, CAZA, SILVICULTURA Y PESCA | G27: 130 | H27: A | I27: Jurídica | J27: MICRO | K27: 5720000
A28: I | B28: 5001 | C28: MEDELLÍN | D28: 5 | E28: ANTIOQUIA | F28: AGRICULTURA, GANADERÍA, CAZA, SILVICULTURA Y PESCA | G28: 130 | H28: A | I28: Jurídica | J28: PEQUEÑA | K28: 4840000
A29: I | B29: 5001 | C29: MEDELLÍN | D29: 5 | E29: ANTIOQUIA | F29: AGRICULTURA, GANADERÍA, CAZA, SILVICULTURA Y PESCA | G29: 141 | H29: A | I29: Jurídica | J29: MEDIANA | K29: 85800000
A30: I | B30: 5001 | C30: MEDELLÍN | D30: 5 | E30: ANTIOQUIA | F30: AGRICULTURA, GANADERÍA, CAZA, SILVICULTURA Y PESCA | G30: 141 | H30: A | I30: Jurídica | J30: MICRO | K30: 46420000
A31: I | B31: 5001 | C31: MEDELLÍN | D31: 5 | E31: ANTIOQUIA | F31: AGRICULTURA, GANADERÍA, CAZA, SILVICULTURA Y PESCA | G31: 141 | H31: A | I31: Jurídica | J31: PEQUEÑA | K31: 104720000
A32: I | B32: 5001 | C32: MEDELLÍN | D32: 5 | E32: ANTIOQUIA | F32: AGRICULTURA, GANADERÍA, CAZA, SILVICULTURA Y PESCA | G32: 144 | H32: A | I32: Jurídica | J32: MEDIANA | K32: 1320000
A33: I | B33: 5001 | C33: MEDELLÍN | D33: 5 | E33: ANTIOQUIA | F33: AGRICULTURA, GANADERÍA, CAZA, SILVICULTURA Y PESCA | G33: 144 | H33: A | I33: Jurídica | J33: MICRO | K33: 3080000
A34: I | B34: 5001 | C34: MEDELLÍN | D34: 5 | E34: ANTIOQUIA | F34: AGRICULTURA, GANADERÍA, CAZA, SILVICULTURA Y PESCA | G34: 144 | H34: A | I34: Jurídica | J34: PEQUEÑA | K34: 5500000
A35: I | B35: 5001 | C35: MEDELLÍN | D35: 5 | E35: ANTIOQUIA | F35: AGRICULTURA, GANADERÍA, CAZA, SILVICULTURA Y PESCA | G35: 145 | H35: A | I35: Jurídica | J35: GRANDE | K35: 15400000
A36: I | B36: 5001 | C36: MEDELLÍN | D36: 5 | E36: ANTIOQUIA | F36: AGRICULTURA, GANADERÍA, CAZA, SILVICULTURA Y PESCA | G36: 145 | H36: A | I36: Jurídica | J36: PEQUEÑA | K36: 2420000
A37: I | B37: 5001 | C37: MEDELLÍN | D37: 5 | E37: ANTIOQUIA | F37: AGRICULTURA, GANADERÍA, CAZA, SILVICULTURA Y PESCA | G37: 149 | H37: A | I37: Jurídica | J37: MEDIANA | K37: 17820000
A38: I | B38: 5001 | C38: MEDELLÍN | D38: 5 | E38: ANTIOQUIA | F38: AGRICULTURA, GANADERÍA, CAZA, SILVICULTURA Y PESCA | G38: 150 | H38: A | I38: Jurídica | J38: MEDIANA | K38: 39160000
A39: I | B39: 5001 | C39: MEDELLÍN | D39: 5 | E39: ANTIOQUIA | F39: AGRICULTURA, GANADERÍA, CAZA, SILVICULTURA Y PESCA | G39: 150 | H39: A | I39: Jurídica | J39: MICRO | K39: 9900000
A40: I | B40: 5001 | C40: MEDELLÍN | D40: 5 | E40: ANTIOQUIA | F40: AGRICULTURA, GANADERÍA, CAZA, SILVICULTURA Y PESCA | G40: 150 | H40: A | I40: Jurídica | J40: PEQUEÑA | K40: 39820000
A41: I | B41: 5001 | C41: MEDELLÍN | D41: 5 | E41: ANTIOQUIA | F41: AGRICULTURA, GANADERÍA, CAZA, SILVICULTURA Y PESCA | G41: 161 | H41: A | I41: Jurídica | J41: MEDIANA | K41: 29260000
A42: I | B42: 5001 | C42: MEDELLÍN | D42: 5 | E42: ANTIOQUIA | F42: AGRICULTURA, GANADERÍA, CAZA, SILVICULTURA Y PESCA | G42: 161 | H42: A | I42: Jurídica | J42: MICRO | K42: 3300000
A43: I | B43: 5001 | C43: MEDELLÍN | D43: 5 | E43: ANTIOQUIA | F43: AGRICULTURA, GANADERÍA, CAZA, SILVICULTURA Y PESCA | G43: 161 | H43: A | I43: Jurídica | J43: PEQUEÑA | K43: 660000
A44: I | B44: 5001 | C44: MEDELLÍN | D44: 5 | E44: ANTIOQUIA | F44: AGRICULTURA, GANADERÍA, CAZA, SILVICULTURA Y PESCA | G44: 162 | H44: A | I44: Jurídica | J44: MICRO | K44: 4840000
A45: I | B45: 5001 | C45: MEDELLÍN | D45: 5 | E45: ANTIOQUIA | F45: AGRICULTURA, GANADERÍA, CAZA, SILVICULTURA Y PESCA | G45: 162 | H45: A | I45: Jurídica | J45: PEQUEÑA | K45: 7040000
A46: I | B46: 5001 | C46: MEDELLÍN | D46: 5 | E46: ANTIOQUIA | F46: AGRICULTURA, GANADERÍA, CAZA, SILVICULTURA Y PESCA | G46: 163 | H46: A | I46: Jurídica | J46: MICRO | K46: 440000
A47: I | B47: 5001 | C47: MEDELLÍN | D47: 5 | E47: ANTIOQUIA | F47: AGRICULTURA, GANADERÍA, CAZA, SILVICULTURA Y PESCA | G47: 210 | H47: A | I47: Jurídica | J47: MEDIANA | K47: 38060000
A48: I | B48: 5001 | C48: MEDELLÍN | D48: 5 | E48: ANTIOQUIA | F48: AGRICULTURA, GANADERÍA, CAZA, SILVICULTURA Y PESCA | G48: 210 | H48: A | I48: Jurídica | J48: MICRO | K48: 4180000
A49: I | B49: 5001 | C49: MEDELLÍN | D49: 5 | E49: ANTIOQUIA | F49: AGRICULTURA, GANADERÍA, CAZA, SILVICULTURA Y PESCA | G49: 210 | H49: A | I49: Jurídica | J49: PEQUEÑA | K49: 15180000
A50: I | B50: 5001 | C50: MEDELLÍN | D50: 5 | E50: ANTIOQUIA | F50: AGRICULTURA, GANADERÍA, CAZA, SILVICULTURA Y PESCA | G50: 220 | H50: A | I50: Jurídica | J50: MICRO | K50: 440000
A51: I | B51: 5001 | C51: MEDELLÍN | D51: 5 | E51: ANTIOQUIA | F51: AGRICULTURA, GANADERÍA, CAZA, SILVICULTURA Y PESCA | G51: 322 | H51: A | I51: Jurídica | J51: MEDIANA | K51: 3520000
A52: I | B52: 5001 | C52: MEDELLÍN | D52: 5 | E52: ANTIOQUIA | F52: AGRICULTURA, GANADERÍA, CAZA, SILVICULTURA Y PESCA | G52: 322 | H52: A | I52: Jurídica | J52: MICRO | K52: 440000
A53: I | B53: 5001 | C53: MEDELLÍN | D53: 5 | E53: ANTIOQUIA | F53: AGRICULTURA, GANADERÍA, CAZA, SILVICULTURA Y PESCA | G53: 322 | H53: A | I53: Jurídica | J53: PEQUEÑA | K53: 3520000
A54: I | B54: 5001 | C54: MEDELLÍN | D54: 5 | E54: ANTIOQUIA | F54: EXPLOTACIÓN DE MINAS Y CANTERAS | G54: 510 | H54: B | I54: Jurídica | J54: MEDIANA | K54: 49940000
A55: I | B55: 5001 | C55: MEDELLÍN | D55: 5 | E55: ANTIOQUIA | F55: EXPLOTACIÓN DE MINAS Y CANTERAS | G55: 510 | H55: B | I55: Jurídica | J55: PEQUEÑA | K55: 4620000
A56: I | B56: 5001 | C56: MEDELLÍN | D56: 5 | E56: ANTIOQUIA | F56: EXPLOTACIÓN DE MINAS Y CANTERAS | G56: 722 | H56: B | I56: Jurídica | J56: PEQUEÑA | K56: 2420000
A57: I | B57: 5001 | C57: MEDELLÍN | D57: 5 | E57: ANTIOQUIA | F57: EXPLOTACIÓN DE MINAS Y CANTERAS | G57: 811 | H57: B | I57: Jurídica | J57: MEDIANA | K57: 14080000
A58: I | B58: 5001 | C58: MEDELLÍN | D58: 5 | E58: ANTIOQUIA | F58: EXPLOTACIÓN DE MINAS Y CANTERAS | G58: 811 | H58: B | I58: Jurídica | J58: MICRO | K58: 1760000
A59: I | B59: 5001 | C59: MEDELLÍN | D59: 5 | E59: ANTIOQUIA | F59: EXPLOTACIÓN DE MINAS Y CANTERAS | G59: 811 | H59: B | I59: Jurídica | J59: PEQUEÑA | K59: 1980000
A60: I | B60: 5001 | C60: MEDELLÍN | D60: 5 | E60: ANTIOQUIA | F60: EXPLOTACIÓN DE MINAS Y CANTERAS | G60: 812 | H60: B | I60: Jurídica | J60: MICRO | K60: 2200000
A61: I | B61: 5001 | C61: MEDELLÍN | D61: 5 | E61: ANTIOQUIA | F61: EXPLOTACIÓN DE MINAS Y CANTERAS | G61: 899 | H61: B | I61: Jurídica | J61: MEDIANA | K61: 5060000
A62: I | B62: 5001 | C62: MEDELLÍN | D62: 5 | E62: ANTIOQUIA | F62: EXPLOTACIÓN DE MINAS Y CANTERAS | G62: 910 | H62: B | I62: Jurídica | J62: MICRO | K62: 660000
A63: I | B63: 5001 | C63: MEDELLÍN | D63: 5 | E63: ANTIOQUIA | F63: EXPLOTACIÓN DE MINAS Y CANTERAS | G63: 990 | H63: B | I63: Jurídica | J63: MICRO | K63: 440000
A64: I | B64: 5001 | C64: MEDELLÍN | D64: 5 | E64: ANTIOQUIA | F64: INDUSTRIAS MANUFACTURERAS | G64: 1011 | H64: C | I64: Jurídica | J64: GRANDE | K64: 880000
A65: I | B65: 5001 | C65: MEDELLÍN | D65: 5 | E65: ANTIOQUIA | F65: INDUSTRIAS MANUFACTURERAS | G65: 1011 | H65: C | I65: Jurídica | J65: MEDIANA | K65: 19800000
A66: I | B66: 5001 | C66: MEDELLÍN | D66: 5 | E66: ANTIOQUIA | F66: INDUSTRIAS MANUFACTURERAS | G66: 1011 | H66: C | I66: Jurídica | J66: MICRO | K66: 7260000
A67: I | B67: 5001 | C67: MEDELLÍN | D67: 5 | E67: ANTIOQUIA | F67: INDUSTRIAS MANUFACTURERAS | G67: 1011 | H67: C | I67: Jurídica | J67: PEQUEÑA | K67: 23100000
A68: I | B68: 5001 | C68: MEDELLÍN | D68: 5 | E68: ANTIOQUIA | F68: INDUSTRIAS MANUFACTURERAS | G68: 1012 | H68: C | I68: Jurídica | J68: MEDIANA | K68: 6600000
A69: I | B69: 5001 | C69: MEDELLÍN | D69: 5 | E69: ANTIOQUIA | F69: INDUSTRIAS MANUFACTURERAS | G69: 1012 | H69: C | I69: Jurídica | J69: MICRO | K69: 1540000
A70: I | B70: 5001 | C70: MEDELLÍN | D70: 5 | E70: ANTIOQUIA | F70: INDUSTRIAS MANUFACTURERAS | G70: 1012 | H70: C | I70: Jurídica | J70: PEQUEÑA | K70: 10780000
A71: I | B71: 5001 | C71: MEDELLÍN | D71: 5 | E71: ANTIOQUIA | F71: INDUSTRIAS MANUFACTURERAS | G71: 1020 | H71: C | I71: Jurídica | J71: MICRO | K71: 10780000
A72: I | B72: 5001 | C72: MEDELLÍN | D72: 5 | E72: ANTIOQUIA | F72: INDUSTRIAS MANUFACTURERAS | G72: 1020 | H72: C | I72: Jurídica | J72: PEQUEÑA | K72: 29480000
A73: I | B73: 5001 | C73: MEDELLÍN | D73: 5 | E73: ANTIOQUIA | F73: INDUSTRIAS MANUFACTURERAS | G73: 1040 | H73: C | I73: Jurídica | J73: GRANDE | K73: 21340000
A74: I | B74: 5001 | C74: MEDELLÍN | D74: 5 | E74: ANTIOQUIA | F74: INDUSTRIAS MANUFACTURERAS | G74: 1040 | H74: C | I74: Jurídica | J74: MICRO | K74: 4620000
A75: I | B75: 5001 | C75: MEDELLÍN | D75: 5 | E75: ANTIOQUIA | F75: INDUSTRIAS MANUFACTURERAS | G75: 1040 | H75: C | I75: Jurídica | J75: PEQUEÑA | K75: 3080000
A76: I | B76: 5001 | C76: MEDELLÍN | D76: 5 | E76: ANTIOQUIA | F76: INDUSTRIAS MANUFACTURERAS | G76: 1051 | H76: C | I76: Jurídica | J76: MICRO | K76: 3080000
A77: I | B77: 5001 | C77: MEDELLÍN | D77: 5 | E77: ANTIOQUIA | F77: INDUSTRIAS MANUFACTURERAS | G77: 1051 | H77: C | I77: Jurídica | J77: PEQUEÑA | K77: 6380000
A78: I | B78: 5001 | C78: MEDELLÍN | D78: 5 | E78: ANTIOQUIA | F78: INDUSTRIAS MANUFACTURERAS | G78: 1052 | H78: C | I78: Jurídica | J78: PEQUEÑA | K78: 3520000
A79: I | B79: 5001 | C79: MEDELLÍN | D79: 5 | E79: ANTIOQUIA | F79: INDUSTRIAS MANUFACTURERAS | G79: 1061 | H79: C | I79: Jurídica | J79: MICRO | K79: 2420000
A80: I | B80: 5001 | C80: MEDELLÍN | D80: 5 | E80: ANTIOQUIA | F80: INDUSTRIAS MANUFACTURERAS | G80: 1062 | H80: C | I80: Jurídica | J80: MICRO | K80: 220000
A81: I | B81: 5001 | C81: MEDELLÍN | D81: 5 | E81: ANTIOQUIA | F81: INDUSTRIAS MANUFACTURERAS | G81: 1062 | H81: C | I81: Jurídica | J81: PEQUEÑA | K81: 5500000
A82: I | B82: 5001 | C82: MEDELLÍN | D82: 5 | E82: ANTIOQUIA | F82: INDUSTRIAS MANUFACTURERAS | G82: 1071 | H82: C | I82: Jurídica | J82: MICRO | K82: 660000
A83: I | B83: 5001 | C83: MEDELLÍN | D83: 5 | E83: ANTIOQUIA | F83: INDUSTRIAS MANUFACTURERAS | G83: 1072 | H83: C | I83: Jurídica | J83: MICRO | K83: 440000
A84: I | B84: 5001 | C84: MEDELLÍN | D84: 5 | E84: ANTIOQUIA | F84: INDUSTRIAS MANUFACTURERAS | G84: 1081 | H84: C | I84: Jurídica | J84: GRANDE | K84: 14520000
A85: I | B85: 5001 | C85: MEDELLÍN | D85: 5 | E85: ANTIOQUIA | F85: INDUSTRIAS MANUFACTURERAS | G85: 1081 | H85: C | I85: Jurídica | J85: MEDIANA | K85: 104720000
A86: I | B86: 5001 | C86: MEDELLÍN | D86: 5 | E86: ANTIOQUIA | F86: INDUSTRIAS MANUFACTURERAS | G86: 1081 | H86: C | I86: Jurídica | J86: MICRO | K86: 18040000
A87: I | B87: 5001 | C87: MEDELLÍN | D87: 5 | E87: ANTIOQUIA | F87: INDUSTRIAS MANUFACTURERAS | G87: 1081 | H87: C | I87: Jurídica | J87: PEQUEÑA | K87: 45980000
A88: I | B88: 5001 | C88: MEDELLÍN | D88: 5 | E88: ANTIOQUIA | F88: INDUSTRIAS MANUFACTURERAS | G88: 1082 | H88: C | I88: Jurídica | J88: MICRO | K88: 3520000
A89: I | B89: 5001 | C89: MEDELLÍN | D89: 5 | E89: ANTIOQUIA | F89: INDUSTRIAS MANUFACTURERAS | G89: 1083 | H89: C | I89: Jurídica | J89: MICRO | K89: 1980000
A90: I | B90: 5001 | C90: MEDELLÍN | D90: 5 | E90: ANTIOQUIA | F90: INDUSTRIAS MANUFACTURERAS | G90: 1084 | H90: C | I90: Jurídica | J90: GRANDE | K90: 58300000
A91: I | B91: 5001 | C91: MEDELLÍN | D91: 5 | E91: ANTIOQUIA | F91: INDUSTRIAS MANUFACTURERAS | G91: 1084 | H91: C | I91: Jurídica | J91: MEDIANA | K91: 53240000
A92: I | B92: 5001 | C92: MEDELLÍN | D92: 5 | E92: ANTIOQUIA | F92: INDUSTRIAS MANUFACTURERAS | G92: 1084 | H92: C | I92: Jurídica | J92: MICRO | K92: 8360000
A93: I | B93: 5001 | C93: MEDELLÍN | D93: 5 | E93: ANTIOQUIA | F93: INDUSTRIAS MANUFACTURERAS | G93: 1084 | H93: C | I93: Jurídica | J93: MUY GRANDE | K93: 17600000
A94: I | B94: 5001 | C94: MEDELLÍN | D94: 5 | E94: ANTIOQUIA | F94: INDUSTRIAS MANUFACTURERAS | G94: 1084 | H94: C | I94: Jurídica | J94: PEQUEÑA | K94: 34540000
A95: I | B95: 5001 | C95: MEDELLÍN | D95: 5 | E95: ANTIOQUIA | F95: INDUSTRIAS MANUFACTURERAS | G95: 1089 | H95: C | I95: Jurídica | J95: GRANDE | K95: 31020000
A96: I | B96: 5001 | C96: MEDELLÍN | D96: 5 | E96: ANTIOQUIA | F96: INDUSTRIAS MANUFACTURERAS | G96: 1089 | H96: C | I96: Jurídica | J96: MEDIANA | K96: 5500000
A97: I | B97: 5001 | C97: MEDELLÍN | D97: 5 | E97: ANTIOQUIA | F97: INDUSTRIAS MANUFACTURERAS | G97: 1089 | H97: C | I97: Jurídica | J97: MICRO | K97: 12980000
A98: I | B98: 5001 | C98: MEDELLÍN | D98: 5 | E98: ANTIOQUIA | F98: INDUSTRIAS MANUFACTURERAS | G98: 1089 | H98: C | I98: Jurídica | J98: PEQUEÑA | K98: 17380000
A99: I | B99: 5001 | C99: MEDELLÍN | D99: 5 | E99: ANTIOQUIA | F99: INDUSTRIAS MANUFACTURERAS | G99: 1090 | H99: C | I99: Jurídica | J99: MICRO | K99: 3960000
A100: I | B100: 5001 | C100: MEDELLÍN | D100: 5 | E100: ANTIOQUIA | F100: INDUSTRIAS MANUFACTURERAS | G100: 1102 | H100: C | I100: Jurídica | J100: PEQUEÑA | K100: 660000
A101: I | B101: 5001 | C101: MEDELLÍN | D101: 5 | E101: ANTIOQUIA | F101: INDUSTRIAS MANUFACTURERAS | G101: 1103 | H101: C | I101: Jurídica | J101: MICRO | K101: 1100000
A102: I | B102: 5001 | C102: MEDELLÍN | D102: 5 | E102: ANTIOQUIA | F102: INDUSTRIAS MANUFACTURERAS | G102: 1104 | H102: C | I102: Jurídica | J102: MICRO | K102: 3080000
A103: I | B103: 5001 | C103: MEDELLÍN | D103: 5 | E103: ANTIOQUIA | F103: INDUSTRIAS MANUFACTURERAS | G103: 1104 | H103: C | I103: Jurídica | J103: MUY GRANDE | K103: 25300000
A104: I | B104: 5001 | C104: MEDELLÍN | D104: 5 | E104: ANTIOQUIA | F104: INDUSTRIAS MANUFACTURERAS | G104: 1104 | H104: C | I104: Jurídica | J104: PEQUEÑA | K104: 3080000
A105: I | B105: 5001 | C105: MEDELLÍN | D105: 5 | E105: ANTIOQUIA | F105: INDUSTRIAS MANUFACTURERAS | G105: 1311 | H105: C | I105: Jurídica | J105: MICRO | K105: 2420000
A106: I | B106: 5001 | C106: MEDELLÍN | D106: 5 | E106: ANTIOQUIA | F106: INDUSTRIAS MANUFACTURERAS | G106: 1311 | H106: C | I106: Jurídica | J106: PEQUEÑA | K106: 1980000
A107: I | B107: 5001 | C107: MEDELLÍN | D107: 5 | E107: ANTIOQUIA | F107: INDUSTRIAS MANUFACTURERAS | G107: 1312 | H107: C | I107: Jurídica | J107: MICRO | K107: 11000000
A108: I | B108: 5001 | C108: MEDELLÍN | D108: 5 | E108: ANTIOQUIA | F108: INDUSTRIAS MANUFACTURERAS | G108: 1312 | H108: C | I108: Jurídica | J108: PEQUEÑA | K108: 3960000
A109: I | B109: 5001 | C109: MEDELLÍN | D109: 5 | E109: ANTIOQUIA | F109: INDUSTRIAS MANUFACTURERAS | G109: 1313 | H109: C | I109: Jurídica | J109: MEDIANA | K109: 10120000
A110: I | B110: 5001 | C110: MEDELLÍN | D110: 5 | E110: ANTIOQUIA | F110: INDUSTRIAS MANUFACTURERAS | G110: 1313 | H110: C | I110: Jurídica | J110: MICRO | K110: 27940000
A111: I | B111: 5001 | C111: MEDELLÍN | D111: 5 | E111: ANTIOQUIA | F111: INDUSTRIAS MANUFACTURERAS | G111: 1313 | H111: C | I111: Jurídica | J111: PEQUEÑA | K111: 36740000
A112: I | B112: 5001 | C112: MEDELLÍN | D112: 5 | E112: ANTIOQUIA | F112: INDUSTRIAS MANUFACTURERAS | G112: 1391 | H112: C | I112: Jurídica | J112: MICRO | K112: 880000
A113: I | B113: 5001 | C113: MEDELLÍN | D113: 5 | E113: ANTIOQUIA | F113: INDUSTRIAS MANUFACTURERAS | G113: 1392 | H113: C | I113: Jurídica | J113: MEDIANA | K113: 7920000
A114: I | B114: 5001 | C114: MEDELLÍN | D114: 5 | E114: ANTIOQUIA | F114: INDUSTRIAS MANUFACTURERAS | G114: 1392 | H114: C | I114: Jurídica | J114: MICRO | K114: 7920000
A115: I | B115: 5001 | C115: MEDELLÍN | D115: 5 | E115: ANTIOQUIA | F115: INDUSTRIAS MANUFACTURERAS | G115: 1392 | H115: C | I115: Jurídica | J115: PEQUEÑA | K115: 22880000
A116: I | B116: 5001 | C116: MEDELLÍN | D116: 5 | E116: ANTIOQUIA | F116: INDUSTRIAS MANUFACTURERAS | G116: 1393 | H116: C | I116: Jurídica | J116: MICRO | K116: 440000
A117: I | B117: 5001 | C117: MEDELLÍN | D117: 5 | E117: ANTIOQUIA | F117: INDUSTRIAS MANUFACTURERAS | G117: 1394 | H117: C | I117: Jurídica | J117: MICRO | K117: 220000
A118: I | B118: 5001 | C118: MEDELLÍN | D118: 5 | E118: ANTIOQUIA | F118: INDUSTRIAS MANUFACTURERAS | G118: 1394 | H118: C | I118: Jurídica | J118: PEQUEÑA | K118: 3520000
A119: I | B119: 5001 | C119: MEDELLÍN | D119: 5 | E119: ANTIOQUIA | F119: INDUSTRIAS MANUFACTURERAS | G119: 1399 | H119: C | I119: Jurídica | J119: GRANDE | K119: 23980000
A120: I | B120: 5001 | C120: MEDELLÍN | D120: 5 | E120: ANTIOQUIA | F120: INDUSTRIAS MANUFACTURERAS | G120: 1399 | H120: C | I120: Jurídica | J120: MEDIANA | K120: 8360000
A121: I | B121: 5001 | C121: MEDELLÍN | D121: 5 | E121: ANTIOQUIA | F121: INDUSTRIAS MANUFACTURERAS | G121: 1399 | H121: C | I121: Jurídica | J121: MICRO | K121: 8360000
A122: I | B122: 5001 | C122: MEDELLÍN | D122: 5 | E122: ANTIOQUIA | F122: INDUSTRIAS MANUFACTURERAS | G122: 1399 | H122: C | I122: Jurídica | J122: PEQUEÑA | K122: 16060000
A123: I | B123: 5001 | C123: MEDELLÍN | D123: 5 | E123: ANTIOQUIA | F123: INDUSTRIAS MANUFACTURERAS | G123: 1410 | H123: C | I123: Jurídica | J123: GRANDE | K123: 319440000
A124: I | B124: 5001 | C124: MEDELLÍN | D124: 5 | E124: ANTIOQUIA | F124: INDUSTRIAS MANUFACTURERAS | G124: 1410 | H124: C | I124: Jurídica | J124: MEDIANA | K124: 385660000
A125: I | B125: 5001 | C125: MEDELLÍN | D125: 5 | E125: ANTIOQUIA | F125: INDUSTRIAS MANUFACTURERAS | G125: 1410 | H125: C | I125: Jurídica | J125: MICRO | K125: 198440000
A126: I | B126: 5001 | C126: MEDELLÍN | D126: 5 | E126: ANTIOQUIA | F126: INDUSTRIAS MANUFACTURERAS | G126: 1410 | H126: C | I126: Jurídica | J126: MUY GRANDE | K126: 96580000
A127: I | B127: 5001 | C127: MEDELLÍN | D127: 5 | E127: ANTIOQUIA | F127: INDUSTRIAS MANUFACTURERAS | G127: 1410 | H127: C | I127: Jurídica | J127: PEQUEÑA | K127: 545820000
A128: I | B128: 5001 | C128: MEDELLÍN | D128: 5 | E128: ANTIOQUIA | F128: INDUSTRIAS MANUFACTURERAS | G128: 1420 | H128: C | I128: Jurídica | J128: MICRO | K128: 660000
A129: I | B129: 5001 | C129: MEDELLÍN | D129: 5 | E129: ANTIOQUIA | F129: INDUSTRIAS MANUFACTURERAS | G129: 1430 | H129: C | I129: Jurídica | J129: PEQUEÑA | K129: 10340000
A130: I | B130: 5001 | C130: MEDELLÍN | D130: 5 | E130: ANTIOQUIA | F130: INDUSTRIAS MANUFACTURERAS | G130: 1511 | H130: C | I130: Jurídica | J130: MICRO | K130: 1760000
A131: I | B131: 5001 | C131: MEDELLÍN | D131: 5 | E131: ANTIOQUIA | F131: INDUSTRIAS MANUFACTURERAS | G131: 1512 | H131: C | I131: Jurídica | J131: MEDIANA | K131: 11440000
A132: I | B132: 5001 | C132: MEDELLÍN | D132: 5 | E132: ANTIOQUIA | F132: INDUSTRIAS MANUFACTURERAS | G132: 1512 | H132: C | I132: Jurídica | J132: MICRO | K132: 4840000
A133: I | B133: 5001 | C133: MEDELLÍN | D133: 5 | E133: ANTIOQUIA | F133: INDUSTRIAS MANUFACTURERAS | G133: 1512 | H133: C | I133: Jurídica | J133: PEQUEÑA | K133: 11440000
A134: I | B134: 5001 | C134: MEDELLÍN | D134: 5 | E134: ANTIOQUIA | F134: INDUSTRIAS MANUFACTURERAS | G134: 1513 | H134: C | I134: Jurídica | J134: MICRO | K134: 1100000
A135: I | B135: 5001 | C135: MEDELLÍN | D135: 5 | E135: ANTIOQUIA | F135: INDUSTRIAS MANUFACTURERAS | G135: 1521 | H135: C | I135: Jurídica | J135: GRANDE | K135: 12320000
A136: I | B136: 5001 | C136: MEDELLÍN | D136: 5 | E136: ANTIOQUIA | F136: INDUSTRIAS MANUFACTURERAS | G136: 1521 | H136: C | I136: Jurídica | J136: MEDIANA | K136: 32340000
A137: I | B137: 5001 | C137: MEDELLÍN | D137: 5 | E137: ANTIOQUIA | F137: INDUSTRIAS MANUFACTURERAS | G137: 1521 | H137: C | I137: Jurídica | J137: MICRO | K137: 6160000
A138: I | B138: 5001 | C138: MEDELLÍN | D138: 5 | E138: ANTIOQUIA | F138: INDUSTRIAS MANUFACTURERAS | G138: 1521 | H138: C | I138: Jurídica | J138: MUY GRANDE | K138: 93940000
A139: I | B139: 5001 | C139: MEDELLÍN | D139: 5 | E139: ANTIOQUIA | F139: INDUSTRIAS MANUFACTURERAS | G139: 1521 | H139: C | I139: Jurídica | J139: PEQUEÑA | K139: 9240000
A140: I | B140: 5001 | C140: MEDELLÍN | D140: 5 | E140: ANTIOQUIA | F140: INDUSTRIAS MANUFACTURERAS | G140: 1522 | H140: C | I140: Jurídica | J140: MEDIANA | K140: 18480000
A141: I | B141: 5001 | C141: MEDELLÍN | D141: 5 | E141: ANTIOQUIA | F141: INDUSTRIAS MANUFACTURERAS | G141: 1522 | H141: C | I141: Jurídica | J141: MICRO | K141: 220000
A142: I | B142: 5001 | C142: MEDELLÍN | D142: 5 | E142: ANTIOQUIA | F142: INDUSTRIAS MANUFACTURERAS | G142: 1522 | H142: C | I142: Jurídica | J142: PEQUEÑA | K142: 15840000
A143: I | B143: 5001 | C143: MEDELLÍN | D143: 5 | E143: ANTIOQUIA | F143: INDUSTRIAS MANUFACTURERAS | G143: 1523 | H143: C | I143: Jurídica | J143: PEQUEÑA | K143: 12100000
A144: I | B144: 5001 | C144: MEDELLÍN | D144: 5 | E144: ANTIOQUIA | F144: INDUSTRIAS MANUFACTURERAS | G144: 1610 | H144: C | I144: Jurídica | J144: MICRO | K144: 12540000
A145: I | B145: 5001 | C145: MEDELLÍN | D145: 5 | E145: ANTIOQUIA | F145: INDUSTRIAS MANUFACTURERAS | G145: 1610 | H145: C | I145: Jurídica | J145: PEQUEÑA | K145: 16280000
A146: I | B146: 5001 | C146: MEDELLÍN | D146: 5 | E146: ANTIOQUIA | F146: INDUSTRIAS MANUFACTURERAS | G146: 1620 | H146: C | I146: Jurídica | J146: MICRO | K146: 440000
A147: I | B147: 5001 | C147: MEDELLÍN | D147: 5 | E147: ANTIOQUIA | F147: INDUSTRIAS MANUFACTURERAS | G147: 1620 | H147: C | I147: Jurídica | J147: PEQUEÑA | K147: 440000
A148: I | B148: 5001 | C148: MEDELLÍN | D148: 5 | E148: ANTIOQUIA | F148: INDUSTRIAS MANUFACTURERAS | G148: 1630 | H148: C | I148: Jurídica | J148: MICRO | K148: 15840000
A149: I | B149: 5001 | C149: MEDELLÍN | D149: 5 | E149: ANTIOQUIA | F149: INDUSTRIAS MANUFACTURERAS | G149: 1630 | H149: C | I149: Jurídica | J149: PEQUEÑA | K149: 5720000
A150: I | B150: 5001 | C150: MEDELLÍN | D150: 5 | E150: ANTIOQUIA | F150: INDUSTRIAS MANUFACTURERAS | G150: 1690 | H150: C | I150: Jurídica | J150: MICRO | K150: 2640000
A151: I | B151: 5001 | C151: MEDELLÍN | D151: 5 | E151: ANTIOQUIA | F151: INDUSTRIAS MANUFACTURERAS | G151: 1690 | H151: C | I151: Jurídica | J151: PEQUEÑA | K151: 4180000
A152: I | B152: 5001 | C152: MEDELLÍN | D152: 5 | E152: ANTIOQUIA | F152: INDUSTRIAS MANUFACTURERAS | G152: 1702 | H152: C | I152: Jurídica | J152: MICRO | K152: 660000
A153: I | B153: 5001 | C153: MEDELLÍN | D153: 5 | E153: ANTIOQUIA | F153: INDUSTRIAS MANUFACTURERAS | G153: 1702 | H153: C | I153: Jurídica | J153: PEQUEÑA | K153: 2420000
A154: I | B154: 5001 | C154: MEDELLÍN | D154: 5 | E154: ANTIOQUIA | F154: INDUSTRIAS MANUFACTURERAS | G154: 1709 | H154: C | I154: Jurídica | J154: MEDIANA | K154: 1100000
A155: I | B155: 5001 | C155: MEDELLÍN | D155: 5 | E155: ANTIOQUIA | F155: INDUSTRIAS MANUFACTURERAS | G155: 1709 | H155: C | I155: Jurídica | J155: MICRO | K155: 3960000
A156: I | B156: 5001 | C156: MEDELLÍN | D156: 5 | E156: ANTIOQUIA | F156: INDUSTRIAS MANUFACTURERAS | G156: 1709 | H156: C | I156: Jurídica | J156: PEQUEÑA | K156: 5280000
A157: I | B157: 5001 | C157: MEDELLÍN | D157: 5 | E157: ANTIOQUIA | F157: INDUSTRIAS MANUFACTURERAS | G157: 1811 | H157: C | I157: Jurídica | J157: MEDIANA | K157: 10120000
A158: I | B158: 5001 | C158: MEDELLÍN | D158: 5 | E158: ANTIOQUIA | F158: INDUSTRIAS MANUFACTURERAS | G158: 1811 | H158: C | I158: Jurídica | J158: MICRO | K158: 55440000
A159: I | B159: 5001 | C159: MEDELLÍN | D159: 5 | E159: ANTIOQUIA | F159: INDUSTRIAS MANUFACTURERAS | G159: 1811 | H159: C | I159: Jurídica | J159: PEQUEÑA | K159: 46200000
A160: I | B160: 5001 | C160: MEDELLÍN | D160: 5 | E160: ANTIOQUIA | F160: INDUSTRIAS MANUFACTURERAS | G160: 1812 | H160: C | I160: Jurídica | J160: MEDIANA | K160: 9680000
A161: I | B161: 5001 | C161: MEDELLÍN | D161: 5 | E161: ANTIOQUIA | F161: INDUSTRIAS MANUFACTURERAS | G161: 1812 | H161: C | I161: Jurídica | J161: MICRO | K161: 16720000
A162: I | B162: 5001 | C162: MEDELLÍN | D162: 5 | E162: ANTIOQUIA | F162: INDUSTRIAS MANUFACTURERAS | G162: 1812 | H162: C | I162: Jurídica | J162: PEQUEÑA | K162: 18040000
A163: I | B163: 5001 | C163: MEDELLÍN | D163: 5 | E163: ANTIOQUIA | F163: INDUSTRIAS MANUFACTURERAS | G163: 1921 | H163: C | I163: Jurídica | J163: MICRO | K163: 1100000
A164: I | B164: 5001 | C164: MEDELLÍN | D164: 5 | E164: ANTIOQUIA | F164: INDUSTRIAS MANUFACTURERAS | G164: 1921 | H164: C | I164: Jurídica | J164: PEQUEÑA | K164: 1760000
A165: I | B165: 5001 | C165: MEDELLÍN | D165: 5 | E165: ANTIOQUIA | F165: INDUSTRIAS MANUFACTURERAS | G165: 2011 | H165: C | I165: Jurídica | J165: MEDIANA | K165: 1540000
A166: I | B166: 5001 | C166: MEDELLÍN | D166: 5 | E166: ANTIOQUIA | F166: INDUSTRIAS MANUFACTURERAS | G166: 2011 | H166: C | I166: Jurídica | J166: MICRO | K166: 440000
A167: I | B167: 5001 | C167: MEDELLÍN | D167: 5 | E167: ANTIOQUIA | F167: INDUSTRIAS MANUFACTURERAS | G167: 2011 | H167: C | I167: Jurídica | J167: PEQUEÑA | K167: 1100000
A168: I | B168: 5001 | C168: MEDELLÍN | D168: 5 | E168: ANTIOQUIA | F168: INDUSTRIAS MANUFACTURERAS | G168: 2012 | H168: C | I168: Jurídica | J168: MICRO | K168: 880000
A169: I | B169: 5001 | C169: MEDELLÍN | D169: 5 | E169: ANTIOQUIA | F169: INDUSTRIAS MANUFACTURERAS | G169: 2013 | H169: C | I169: Jurídica | J169: MICRO | K169: 2420000
A170: I | B170: 5001 | C170: MEDELLÍN | D170: 5 | E170: ANTIOQUIA | F170: INDUSTRIAS MANUFACTURERAS | G170: 2013 | H170: C | I170: Jurídica | J170: PEQUEÑA | K170: 3740000
A171: I | B171: 5001 | C171: MEDELLÍN | D171: 5 | E171: ANTIOQUIA | F171: INDUSTRIAS MANUFACTURERAS | G171: 2014 | H171: C | I171: Jurídica | J171: MICRO | K171: 220000
A172: I | B172: 5001 | C172: MEDELLÍN | D172: 5 | E172: ANTIOQUIA | F172: INDUSTRIAS MANUFACTURERAS | G172: 2022 | H172: C | I172: Jurídica | J172: MEDIANA | K172: 2200000
A173: I | B173: 5001 | C173: MEDELLÍN | D173: 5 | E173: ANTIOQUIA | F173: INDUSTRIAS MANUFACTURERAS | G173: 2022 | H173: C | I173: Jurídica | J173: MICRO | K173: 4620000
A174: I | B174: 5001 | C174: MEDELLÍN | D174: 5 | E174: ANTIOQUIA | F174: INDUSTRIAS MANUFACTURERAS | G174: 2022 | H174: C | I174: Jurídica | J174: PEQUEÑA | K174: 3080000
A175: I | B175: 5001 | C175: MEDELLÍN | D175: 5 | E175: ANTIOQUIA | F175: INDUSTRIAS MANUFACTURERAS | G175: 2023 | H175: C | I175: Jurídica | J175: MICRO | K175: 7260000
A176: I | B176: 5001 | C176: MEDELLÍN | D176: 5 | E176: ANTIOQUIA | F176: INDUSTRIAS MANUFACTURERAS | G176: 2023 | H176: C | I176: Jurídica | J176: MUY GRANDE | K176: 80960000
A177: I | B177: 5001 | C177: MEDELLÍN | D177: 5 | E177: ANTIOQUIA | F177: INDUSTRIAS MANUFACTURERAS | G177: 2023 | H177: C | I177: Jurídica | J177: PEQUEÑA | K177: 13420000
A178: I | B178: 5001 | C178: MEDELLÍN | D178: 5 | E178: ANTIOQUIA | F178: INDUSTRIAS MANUFACTURERAS | G178: 2029 | H178: C | I178: Jurídica | J178: MICRO | K178: 2200000
A179: I | B179: 5001 | C179: MEDELLÍN | D179: 5 | E179: ANTIOQUIA | F179: INDUSTRIAS MANUFACTURERAS | G179: 2029 | H179: C | I179: Jurídica | J179: PEQUEÑA | K179: 4180000
A180: I | B180: 5001 | C180: MEDELLÍN | D180: 5 | E180: ANTIOQUIA | F180: INDUSTRIAS MANUFACTURERAS | G180: 2030 | H180: C | I180: Jurídica | J180: MICRO | K180: 220000
A181: I | B181: 5001 | C181: MEDELLÍN | D181: 5 | E181: ANTIOQUIA | F181: INDUSTRIAS MANUFACTURERAS | G181: 2030 | H181: C | I181: Jurídica | J181: PEQUEÑA | K181: 1760000
A182: I | B182: 5001 | C182: MEDELLÍN | D182: 5 | E182: ANTIOQUIA | F182: INDUSTRIAS MANUFACTURERAS | G182: 2100 | H182: C | I182: Jurídica | J182: MEDIANA | K182: 3740000
A183: I | B183: 5001 | C183: MEDELLÍN | D183: 5 | E183: ANTIOQUIA | F183: INDUSTRIAS MANUFACTURERAS | G183: 2100 | H183: C | I183: Jurídica | J183: MICRO | K183: 3960000
A184: I | B184: 5001 | C184: MEDELLÍN | D184: 5 | E184: ANTIOQUIA | F184: INDUSTRIAS MANUFACTURERAS | G184: 2100 | H184: C | I184: Jurídica | J184: PEQUEÑA | K184: 1980000
A185: I | B185: 5001 | C185: MEDELLÍN | D185: 5 | E185: ANTIOQUIA | F185: INDUSTRIAS MANUFACTURERAS | G185: 2212 | H185: C | I185: Jurídica | J185: PEQUEÑA | K185: 6380000
A186: I | B186: 5001 | C186: MEDELLÍN | D186: 5 | E186: ANTIOQUIA | F186: INDUSTRIAS MANUFACTURERAS | G186: 2219 | H186: C | I186: Jurídica | J186: MICRO | K186: 1100000
A187: I | B187: 5001 | C187: MEDELLÍN | D187: 5 | E187: ANTIOQUIA | F187: INDUSTRIAS MANUFACTURERAS | G187: 2219 | H187: C | I187: Jurídica | J187: PEQUEÑA | K187: 3960000
A188: I | B188: 5001 | C188: MEDELLÍN | D188: 5 | E188: ANTIOQUIA | F188: INDUSTRIAS MANUFACTURERAS | G188: 2221 | H188: C | I188: Jurídica | J188: MICRO | K188: 5060000
A189: I | B189: 5001 | C189: MEDELLÍN | D189: 5 | E189: ANTIOQUIA | F189: INDUSTRIAS MANUFACTURERAS | G189: 2221 | H189: C | I189: Jurídica | J189: PEQUEÑA | K189: 15840000
A190: I | B190: 5001 | C190: MEDELLÍN | D190: 5 | E190: ANTIOQUIA | F190: INDUSTRIAS MANUFACTURERAS | G190: 2229 | H190: C | I190: Jurídica | J190: MEDIANA | K190: 37840000
A191: I | B191: 5001 | C191: MEDELLÍN | D191: 5 | E191: ANTIOQUIA | F191: INDUSTRIAS MANUFACTURERAS | G191: 2229 | H191: C | I191: Jurídica | J191: MICRO | K191: 16940000
A192: I | B192: 5001 | C192: MEDELLÍN | D192: 5 | E192: ANTIOQUIA | F192: INDUSTRIAS MANUFACTURERAS | G192: 2229 | H192: C | I192: Jurídica | J192: PEQUEÑA | K192: 32560000
A193: I | B193: 5001 | C193: MEDELLÍN | D193: 5 | E193: ANTIOQUIA | F193: INDUSTRIAS MANUFACTURERAS | G193: 2310 | H193: C | I193: Jurídica | J193: MICRO | K193: 2860000
A194: I | B194: 5001 | C194: MEDELLÍN | D194: 5 | E194: ANTIOQUIA | F194: INDUSTRIAS MANUFACTURERAS | G194: 2310 | H194: C | I194: Jurídica | J194: PEQUEÑA | K194: 2200000
A195: I | B195: 5001 | C195: MEDELLÍN | D195: 5 | E195: ANTIOQUIA | F195: INDUSTRIAS MANUFACTURERAS | G195: 2391 | H195: C | I195: Jurídica | J195: PEQUEÑA | K195: 3300000
A196: I | B196: 5001 | C196: MEDELLÍN | D196: 5 | E196: ANTIOQUIA | F196: INDUSTRIAS MANUFACTURERAS | G196: 2392 | H196: C | I196: Jurídica | J196: GRANDE | K196: 880000
A197: I | B197: 5001 | C197: MEDELLÍN | D197: 5 | E197: ANTIOQUIA | F197: INDUSTRIAS MANUFACTURERAS | G197: 2392 | H197: C | I197: Jurídica | J197: MEDIANA | K197: 12540000
A198: I | B198: 5001 | C198: MEDELLÍN | D198: 5 | E198: ANTIOQUIA | F198: INDUSTRIAS MANUFACTURERAS | G198: 2392 | H198: C | I198: Jurídica | J198: PEQUEÑA | K198: 6820000
A199: I | B199: 5001 | C199: MEDELLÍN | D199: 5 | E199: ANTIOQUIA | F199: INDUSTRIAS MANUFACTURERAS | G199: 2394 | H199: C | I199: Jurídica | J199: MICRO | K199: 440000
A200: I | B200: 5001 | C200: MEDELLÍN | D200: 5 | E200: ANTIOQUIA | F200: INDUSTRIAS MANUFACTURERAS | G200: 2395 | H200: C | I200: Jurídica | J200: MEDIANA | K200: 1980000
... 4300 more rows

Sheet insumos2 (hidden)
A1: TIPO DE IDENTIFICACION POSTULANTE | B1: NUMERO IDENTIFICACION EMPRESA | C1: CIUDAD - DIVIPOLA - R | D1: Municipio | E1: TOTAL COTIZANTES CON CONCEPTO DE CONFORMIDAD TOTAL A GIRAR | F1: TOTAL COTIZANTES CON CONCEPTO DE NO CONFORMIDAD | G1: TIPO DE PERSONA | H1: Departamento DIVIPOLA (P) | I1: Nombre dpto | J1: ESTADO_TOTAL A GIRAR | K1: Tamaño del Empleador | L1: STRCODPAR_CIIU_EMPRESA | M1: ACTIVIDAD ECONOMICA | N1: ACTIVIDAD ECONOMICA | O1: Division 3DC_TD 3D | P1: grupo especial 2DC_TD 3D | Q1: SEXO_F_ | R1: SEXO_M_ | S1: SEXO_ND_ | U1: Departamentos | V1: empleadores | W1: Departamentos | X1: empleadores | AE1: TIPO DE IDENTIFICACION POSTULANTE | AF1: NUMERO IDENTIFICACION EMPRESA | AG1: CIUDAD - DIVIPOLA - R | AH1: Municipio | AI1: TOTAL COTIZANTES CON CONCEPTO DE CONFORMIDAD TOTAL A GIRAR | AJ1: TOTAL COTIZANTES CON CONCEPTO DE NO CONFORMIDAD | AK1: TIPO DE PERSONA | AL1: Departamento DIVIPOLA (P) | AM1: Nombre dpto | AN1: ESTADO_TOTAL A GIRAR | AO1: Tamaño del Empleador | AP1: STRCODPAR_CIIU_EMPRESA | AQ1: ACTIVIDAD ECONOMICA | AR1: ACTIVIDAD ECONOMICA | AS1: Division | AT1: Grupo | AU1: SEXO_F_ | AV1: SEXO_M_ | AW1: SEXO_ND_ | AY1: Departamentos | AZ1: empleadores | BA1: Departamentos | BB1: empleadores | BC1: nomdpto | BE1: =BC1 -> nomdpto | BF1: empleadores | BG1: empleados | BI1: codmunicipio | BJ1: aportantes | BK1: codmunicipio | BL1: aportantes | BM1: cod_dpto | BN1: nom_dpto | BO1: nom_mpio | BP1: empleadores | BQ1: empleados | BS1: Grupo | BT1: empleadores | BU1: empleados | BV1: Grupo | BW1: empleadores | BX1: empleados
C2: 11001 | D2: BOGOTÁ, D.C. | E2: 4 | F2: 1 | G2: Jurídica | H2: 11 | I2: BOGOTÁ, D.C. | J2: Aprobado con subsidio | K2: MICRO | L2: 4774 | M2: COMERCIO AL POR MAYOR Y AL POR MENOR; REPARACIÓN DE VEHÍCULOS AUTOMOTORES Y MOTOCICLETAS | N2: G | O2: Comercio al por menor de otros productos en establecimientos especializados | P2: Comercio al por menor de otros productos en establecimientos especializados | Q2: 2 | R2: 2 | S2: 0 | U2: 68 | V2: =COUNTIFS($J$2:$J$399999,"Aprobado con subsidio",$H$2:$H$399999,U2) -> 4322 | W2: =_xlfn._xlws.SORT($U$2:$V$34,2,-1) -> 11 | X2: 30449 | Y2: =VLOOKUP(W2,Hoja4!$A$29:$B$61,2,FALSE) -> Bogotá | AE2: =_xlfn._xlws.FILTER($A$2:$S$399999,$N$2:$N$399999=Visor!$N$4,"") -> 0 | AF2: 0 | AG2: 73268 | AH2: ESPINAL | AI2: 7 | AJ2: 0 | AK2: Jurídica | AL2: 73 | AM2: TOLIMA | AN2: Aprobado con subsidio | AO2: MICRO | AP2: 1104 | AQ2: INDUSTRIAS MANUFACTURERAS | AR2: C | AS2: Elaboración de bebidas | AT2: Elaboración de bebidas | AU2: 0 | AV2: 7 | AW2: 0 | AY2: 68 | AZ2: =COUNTIFS($AN$2:$AN$399999,"Aprobado con subsidio",$AL$2:$AL$399999,AY2) -> 710 | BA2: =_xlfn._xlws.SORT($AY$2:$AZ$34,2,-1) -> 11 | BB2: 5229 | BC2: =VLOOKUP(BA2,Hoja4!$A$29:$B$61,2,FALSE) -> Bogotá | BE2: =BC2 -> Bogotá | BF2: =BB2 -> 5229 | BG2: =SUMIFS($AI$2:$AI$399999,$AN$2:$AN$399999,"Aprobado con subsidio",$AL$2:$AL$399999,BA2) -> 45246 | BI2: =_xlfn.UNIQUE($AG$2:$AG$399999) -> 73268 | BJ2: =COUNTIFS($AN$2:$AN$399999,"Aprobado con subsidio",$AG$2:$AG$399999,BI2) -> 12 | BK2: =_xlfn._xlws.SORT($BI$2:$BJ$1122,2,-1) -> 11001 | BL2: 5229 | BM2: =IF(LEN(BK2)=5,MID(BK2,1,2),MID(BK2,1,1))*1 -> 11 | BN2: =VLOOKUP(BM2,Hoja4!$A$29:$B$61,2,FALSE) -> Bogotá | BO2: =VLOOKUP(BK2,Hoja4!$D$29:$E$1150,2,FALSE) -> Bogotá, d.c. | BP2: =BL2 -> 5229 | BQ2: =SUMIFS($AI$2:$AI$399999,$AG$2:$AG$399999,BK2) -> 45246 | BS2: =_xlfn.UNIQUE($AT$2:$AT$399999) -> Elaboración de bebidas | BT2: =COUNTIFS($AT$2:$AT$399999,BS2,$AN$2:$AN$399999,"Aprobado con subsidio") -> 188 | BU2: =SUMIFS($AI$2:$AI$399999,$AT$2:$AT$399999,BS2,$AN$2:$AN$399999,"Aprobado con subsidio") -> 1510 | BV2: =_xlfn._xlws.SORT(BS2:BU26,2,-1) -> Elaboración de productos alimenticios | BW2: 2601 | BX2: 29177
C3: 76109 | D3: BUENAVENTURA | E3: 7 | F3: 1 | G3: Jurídica | H3: 76 | I3: VALLE DEL CAUCA | J3: Aprobado con subsidio | K3: MICRO | L3: 5611 | M3: ALOJAMIENTO Y SERVICIOS DE COMIDA | N3: I | O3: Actividades de restaurantes, cafeterías y servicio móvil de comidas | P3: Actividades de restaurantes, cafeterías y servicio móvil de comidas | Q3: 7 | R3: 0 | S3: 0 | U3: 13 | V3: =COUNTIFS($J$2:$J$399999,"Aprobado con subsidio",$H$2:$H$399999,U3) -> 2796 | W3: 5 | X3: 18855 | Y3: =VLOOKUP(W3,Hoja4!$A$29:$B$61,2,FALSE) -> Antioquia | AE3: 0 | AF3: 0 | AG3: 73001 | AH3: IBAGUÉ | AI3: 14 | AJ3: 15 | AK3: Jurídica | AL3: 73 | AM3: TOLIMA | AN3: Aprobado con subsidio | AO3: PEQUEÑA | AP3: 2511 | AQ3: INDUSTRIAS MANUFACTURERAS | AR3: C | AS3: Fabricación de productos metálicos para uso estructural, tanques, depósitos y generadores de vapor. | AT3: Fabricación de productos elaborados de metal, excepto maquinaria y equipo | AU3: 1 | AV3: 13 | AW3: 0 | AY3: 13 | AZ3: 241 | BA3: 5 | BB3: 3954 | BC3: =VLOOKUP(BA3,Hoja4!$A$29:$B$61,2,FALSE) -> Antioquia | BE3: =BC3 -> Antioquia | BF3: =BB3 -> 3954 | BG3: 42339 | BI3: 73001 | BJ3: 158 | BK3: 5001 | BL3: 2353 | BM3: =IF(LEN(BK3)=5,MID(BK3,1,2),MID(BK3,1,1))*1 -> 5 | BN3: =VLOOKUP(BM3,Hoja4!$A$29:$B$61,2,FALSE) -> Antioquia | BO3: =VLOOKUP(BK3,Hoja4!$D$29:$E$1150,2,FALSE) -> Medellín | BP3: 2353 | BQ3: 23527 | BS3: Fabricación de productos elaborados de metal, excepto maquinaria y equipo | BT3: 1525 | BU3: 11392 | BV3: Confección de prendas de vestir | BW3: 2177 | BX3: 39257
C4: 44430 | D4: MAICAO | E4: 12 | F4: 9 | G4: Jurídica | H4: 44 | I4: LA GUAJIRA | J4: Aprobado con subsidio | K4: PEQUEÑA | L4: 8692 | M4: ACTIVIDADES DE ATENCIÓN DE LA SALUD HUMANA Y DE ASISTENCIA SOCIAL | N4: Q | O4: Otras actividades de atención relacionadas con la salud humana | P4: Otras actividades de atención relacionadas con la salud humana | Q4: 9 | R4: 3 | S4: 0 | U4: 15 | V4: 1616 | W4: 76 | X4: 9245 | Y4: =VLOOKUP(W4,Hoja4!$A$29:$B$61,2,FALSE) -> Valle del cauca | AE4: 0 | AF4: 0 | AG4: 11001 | AH4: BOGOTÁ, D.C. | AI4: 3 | AJ4: 1 | AK4: Jurídica | AL4: 11 | AM4: BOGOTÁ, D.C. | AN4: Aprobado con subsidio | AO4: MICRO | AP4: 2592 | AQ4: INDUSTRIAS MANUFACTURERAS | AR4: C | AS4: Fabricación de otros productos elaborados de metal y actividades de servicios relacionadas con el trabajo de metales | AT4: Fabricación de productos elaborados de metal, excepto maquinaria y equipo | AU4: 1 | AV4: 2 | AW4: 0 | AY4: 15 | AZ4: 186 | BA4: 76 | BB4: 1566 | BC4: =VLOOKUP(BA4,Hoja4!$A$29:$B$61,2,FALSE) -> Valle del cauca | BE4: Valle del cauca | BF4: 1566 | BG4: 20548 | BI4: 11001 | BJ4: 5229 | BK4: 76001 | BL4: 1124 | BM4: 76 | BN4: =VLOOKUP(BM4,Hoja4!$A$29:$B$61,2,FALSE) -> Valle del cauca | BO4: =VLOOKUP(BK4,Hoja4!$D$29:$E$1150,2,FALSE) -> Cali | BP4: 1124 | BQ4: 12848 | BS4: Elaboración de productos alimenticios | BT4: 2601 | BU4: 29177 | BV4: Fabricación de productos elaborados de metal, excepto maquinaria y equipo | BW4: 1525 | BX4: 11392
C5: 11001 | D5: BOGOTÁ, D.C. | E5: 30 | F5: 111 | G5: Jurídica | H5: 11 | I5: BOGOTÁ, D.C. | J5: Aprobado con subsidio | K5: MEDIANA | L5: 8110 | M5: ACTIVIDADES DE SERVICIOS ADMINISTRATIVOS Y DE APOYO | N5: N | O5: Actividades combinadas de apoyo a instalaciones | P5: Actividades combinadas de apoyo a instalaciones | Q5: 9 | R5: 21 | S5: 0 | U5: 5 | V5: 18855 | W5: 8 | X5: 4552 | Y5: =VLOOKUP(W5,Hoja4!$A$29:$B$61,2,FALSE) -> Atlántico | AE5: 0 | AF5: 0 | AG5: 11001 | AH5: BOGOTÁ, D.C. | AI5: 4 | AJ5: 0 | AK5: Natural | AL5: 11 | AM5: BOGOTÁ, D.C. | AN5: Aprobado con subsidio | AO5: MICRO | AP5: 1081 | AQ5: INDUSTRIAS MANUFACTURERAS | AR5: C | AS5: Elaboración de otros productos alimenticios | AT5: Elaboración de productos alimenticios | AU5: 1 | AV5: 3 | AW5: 0 | AY5: 5 | AZ5: 3954 | BA5: 25 | BB5: 731 | BC5: =VLOOKUP(BA5,Hoja4!$A$29:$B$61,2,FALSE) -> Cundinamarca | BE5: Cundinamarca | BF5: 731 | BG5: 7674 | BI5: 76869 | BJ5: 5 | BK5: 8001 | BL5: 497 | BM5: 8 | BN5: =VLOOKUP(BM5,Hoja4!$A$29:$B$61,2,FALSE) -> Atlántico | BO5: =VLOOKUP(BK5,Hoja4!$D$29:$E$1150,2,FALSE) -> Barranquilla | BP5: 497 | BQ5: 6129 | BS5: Confección de prendas de vestir | BT5: 2177 | BU5: 39257 | BV5: Instalación, mantenimiento y reparación especializado de maquinaria y equipo | BW5: 1523 | BX5: 7472
C6: 11001 | D6: BOGOTÁ, D.C. | E6: 1 | F6: 6 | G6: Jurídica | H6: 11 | I6: BOGOTÁ, D.C. | J6: Aprobado con subsidio | K6: MICRO | L6: 5911 | M6: INFORMACIÓN Y COMUNICACIONES | N6: J | O6: Actividades de producción de películas cinematográficas, vídeo y producción de programas, anuncios y comerciales de televisión | P6: Actividades de producción de películas cinematográficas, vídeo y producción de programas, anuncios y comerciales de televisión | Q6: 1 | R6: 0 | S6: 0 | U6: 76 | V6: 9245 | W6: 68 | X6: 4322 | Y6: =VLOOKUP(W6,Hoja4!$A$29:$B$61,2,FALSE) -> Santander | AE6: 0 | AF6: 0 | AG6: 11001 | AH6: BOGOTÁ, D.C. | AI6: 2 | AJ6: 1 | AK6: Jurídica | AL6: 11 | AM6: BOGOTÁ, D.C. | AN6: Aprobado con subsidio | AO6: PEQUEÑA | AP6: 1410 | AQ6: INDUSTRIAS MANUFACTURERAS | AR6: C | AS6: Confección de prendas de vestir, excepto prendas de piel | AT6: Confección de prendas de vestir | AU6: 1 | AV6: 1 | AW6: 0 | AY6: 76 | AZ6: 1566 | BA6: 68 | BB6: 710 | BC6: =VLOOKUP(BA6,Hoja4!$A$29:$B$61,2,FALSE) -> Santander | BE6: Santander | BF6: 710 | BG6: 5024 | BI6: 8001 | BJ6: 497 | BK6: 68001 | BL6: 474 | BM6: 68 | BN6: =VLOOKUP(BM6,Hoja4!$A$29:$B$61,2,FALSE) -> Santander | BO6: =VLOOKUP(BK6,Hoja4!$D$29:$E$1150,2,FALSE) -> Bucaramanga | BP6: 474 | BQ6: 3336 | BS6: Fabricación de otros productos minerales no metálicos | BT6: 431 | BU6: 5162 | BV6: Actividades de impresión y de producción de copias a partir de grabaciones originales | BW6: 831 | BX6: 5470
C7: 68679 | D7: SAN GIL | E7: 0 | F7: 0 | G7: Jurídica | H7: 68 | I7: SANTANDER | J7: 0 | K7: MICRO | L7: 9499 | M7: OTRAS ACTIVIDADES DE SERVICIOS | N7: S | O7: Actividades de otras asociaciones | P7: Actividades de otras asociaciones | Q7: 0 | R7: 0 | S7: 0 | U7: 54 | V7: 1985 | W7: 25 | X7: 4219 | Y7: =VLOOKUP(W7,Hoja4!$A$29:$B$61,2,FALSE) -> Cundinamarca | AE7: 0 | AF7: 0 | AG7: 73268 | AH7: ESPINAL | AI7: 12 | AJ7: 2 | AK7: Natural | AL7: 73 | AM7: TOLIMA | AN7: Aprobado con subsidio | AO7: PEQUEÑA | AP7: 1081 | AQ7: INDUSTRIAS MANUFACTURERAS | AR7: C | AS7: Elaboración de otros productos alimenticios | AT7: Elaboración de productos alimenticios | AU7: 10 | AV7: 2 | AW7: 0 | AY7: 54 | AZ7: 269 | BA7: 8 | BB7: 574 | BC7: =VLOOKUP(BA7,Hoja4!$A$29:$B$61,2,FALSE) -> Atlántico | BE7: Atlántico | BF7: 574 | BG7: 6904 | BI7: 63001 | BJ7: 100 | BK7: 5360 | BL7: 416 | BM7: 5 | BN7: =VLOOKUP(BM7,Hoja4!$A$29:$B$61,2,FALSE) -> Antioquia | BO7: =VLOOKUP(BK7,Hoja4!$D$29:$E$1150,2,FALSE) -> Itagüí | BP7: 416 | BQ7: 4446 | BS7: Instalación, mantenimiento y reparación especializado de maquinaria y equipo | BT7: 1523 | BU7: 7472 | BV7: Fabricación de muebles, colchones y somieres | BW7: 790 | BX7: 6961
C8: 23001 | D8: MONTERÍA | E8: 38 | F8: 223 | G8: Jurídica | H8: 23 | I8: CÓRDOBA | J8: Aprobado con subsidio | K8: GRANDE | L8: 8610 | M8: ACTIVIDADES DE ATENCIÓN DE LA SALUD HUMANA Y DE ASISTENCIA SOCIAL | N8: Q | O8: Actividades de hospitales y clínicas, con internación | P8: Actividades de hospitales y clínicas, con internación | Q8: 27 | R8: 11 | S8: 0 | U8: 11 | V8: 30449 | W8: 13 | X8: 2796 | Y8: =VLOOKUP(W8,Hoja4!$A$29:$B$61,2,FALSE) -> Bolívar | AE8: 0 | AF8: 0 | AG8: 76869 | AH8: VIJES | AI8: 6 | AJ8: 0 | AK8: Natural | AL8: 76 | AM8: VALLE DEL CAUCA | AN8: Aprobado con subsidio | AO8: MICRO | AP8: 2399 | AQ8: INDUSTRIAS MANUFACTURERAS | AR8: C | AS8: Fabricación de productos minerales no metálicos n.c.p. | AT8: Fabricación de otros productos minerales no metálicos | AU8: 0 | AV8: 6 | AW8: 0 | AY8: 11 | AZ8: 5229 | BA8: 66 | BB8: 376 | BC8: =VLOOKUP(BA8,Hoja4!$A$29:$B$61,2,FALSE) -> Risaralda | BE8: Risaralda | BF8: 376 | BG8: 6859 | BI8: 25175 | BJ8: 50 | BK8: 66001 | BL8: 222 | BM8: 66 | BN8: =VLOOKUP(BM8,Hoja4!$A$29:$B$61,2,FALSE) -> Risaralda | BO8: =VLOOKUP(BK8,Hoja4!$D$29:$E$1150,2,FALSE) -> Pereira | BP8: 222 | BQ8: 2996 | BS8: Fabricación de maquinaria y equipo n.c.p. | BT8: 422 | BU8: 2719 | BV8: Fabricación de productos de caucho y de plástico | BW8: 726 | BX8: 6673
C9: 73268 | D9: ESPINAL | E9: 7 | F9: 0 | G9: Jurídica | H9: 73 | I9: TOLIMA | J9: Aprobado con subsidio | K9: MICRO | L9: 1104 | M9: INDUSTRIAS MANUFACTURERAS | N9: C | O9: Elaboración de bebidas | P9: Elaboración de bebidas | Q9: 0 | R9: 7 | S9: 0 | U9: 66 | V9: 2293 | W9: 66 | X9: 2293 | Y9: =VLOOKUP(W9,Hoja4!$A$29:$B$61,2,FALSE) -> Risaralda | AE9: 0 | AF9: 0 | AG9: 8001 | AH9: BARRANQUILLA | AI9: 7 | AJ9: 0 | AK9: Jurídica | AL9: 8 | AM9: ATLÁNTICO | AN9: Aprobado con subsidio | AO9: MICRO | AP9: 3319 | AQ9: INDUSTRIAS MANUFACTURERAS | AR9: C | AS9: Mantenimiento y reparación especializado de productos elaborados en metal y de maquinaria y equipo | AT9: Instalación, mantenimiento y reparación especializado de maquinaria y equipo | AU9: 1 | AV9: 6 | AW9: 0 | AY9: 66 | AZ9: 376 | BA9: 54 | BB9: 269 | BC9: =VLOOKUP(BA9,Hoja4!$A$29:$B$61,2,FALSE) -> Norte de stder | BE9: Norte de stder | BF9: 269 | BG9: 2688 | BI9: 15500 | BJ9: 3 | BK9: 13001 | BL9: 221 | BM9: 13 | BN9: =VLOOKUP(BM9,Hoja4!$A$29:$B$61,2,FALSE) -> Bolívar | BO9: =VLOOKUP(BK9,Hoja4!$D$29:$E$1150,2,FALSE) -> Cartagena de ind | BP9: 221 | BQ9: 1648 | BS9: Fabricación de muebles, colchones y somieres | BT9: 790 | BU9: 6961 | BV9: Fabricación de productos textiles | BW9: 590 | BX9: 6854
C10: 5615 | D10: RIONEGRO | E10: 1 | F10: 1 | G10: Jurídica | H10: 5 | I10: ANTIOQUIA | J10: Aprobado con subsidio | K10: MICRO | L10: 4732 | M10: COMERCIO AL POR MAYOR Y AL POR MENOR; REPARACIÓN DE VEHÍCULOS AUTOMOTORES Y MOTOCICLETAS | N10: G | O10: Comercio al por menor de combustible, lubricantes, aditivos y productos de limpieza para automotores, en establecimientos especializados | P10: Comercio al por menor de combustible, lubricantes, aditivos y productos de limpieza para automotores, en establecimientos especializados | Q10: 0 | R10: 1 | S10: 0 | U10: 52 | V10: 1327 | W10: 54 | X10: 1985 | Y10: =VLOOKUP(W10,Hoja4!$A$29:$B$61,2,FALSE) -> Norte de stder | AE10: 0 | AF10: 0 | AG10: 11001 | AH10: BOGOTÁ, D.C. | AI10: 5 | AJ10: 1 | AK10: Jurídica | AL10: 11 | AM10: BOGOTÁ, D.C. | AN10: Aprobado con subsidio | AO10: MICRO | AP10: 3312 | AQ10: INDUSTRIAS MANUFACTURERAS | AR10: C | AS10: Mantenimiento y reparación especializado de productos elaborados en metal y de maquinaria y equipo | AT10: Instalación, mantenimiento y reparación especializado de maquinaria y equipo | AU10: 1 | AV10: 4 | AW10: 0 | AY10: 52 | AZ10: 118 | BA10: 13 | BB10: 241 | BC10: =VLOOKUP(BA10,Hoja4!$A$29:$B$61,2,FALSE) -> Bolívar | BE10: Bolívar | BF10: 241 | BG10: 1823 | BI10: 25214 | BJ10: 85 | BK10: 54001 | BL10: 207 | BM10: 54 | BN10: =VLOOKUP(BM10,Hoja4!$A$29:$B$61,2,FALSE) -> Norte de stder | BO10: =VLOOKUP(BK10,Hoja4!$D$29:$E$1150,2,FALSE) -> Cucuta | BP10: 207 | BQ10: 1948 | BS10: Fabricación de productos textiles | BT10: 590 | BU10: 6854 | BV10: Otras industrias manufactureras | BW10: 575 | BX10: 4730
C11: 11001 | D11: BOGOTÁ, D.C. | E11: 1 | F11: 0 | G11: Jurídica | H11: 11 | I11: BOGOTÁ, D.C. | J11: Aprobado con subsidio | K11: MICRO | L11: 6820 | M11: ACTIVIDADES INMOBILIARIAS | N11: L | O11: Actividades inmobiliarias realizadas a cambio de una retribución o por contrata | P11: Actividades inmobiliarias realizadas a cambio de una retribución o por contrata | Q11: 1 | R11: 0 | S11: 0 | U11: 19 | V11: 735 | W11: 15 | X11: 1616 | Y11: =VLOOKUP(W11,Hoja4!$A$29:$B$61,2,FALSE) -> Boyacá | AE11: 0 | AF11: 0 | AG11: 63001 | AH11: ARMENIA | AI11: 7 | AJ11: 14 | AK11: Jurídica | AL11: 63 | AM11: QUINDÍO | AN11: Aprobado con subsidio | AO11: PEQUEÑA | AP11: 2823 | AQ11: INDUSTRIAS MANUFACTURERAS | AR11: C | AS11: Fabricación de maquinaria y equipo de uso especial | AT11: Fabricación de maquinaria y equipo n.c.p. | AU11: 3 | AV11: 4 | AW11: 0 | AY11: 19 | AZ11: 73 | BA11: 17 | BB11: 200 | BC11: =VLOOKUP(BA11,Hoja4!$A$29:$B$61,2,FALSE) -> Caldas | BE11: Caldas | BF11: 200 | BG11: 2378 | BI11: 8638 | BJ11: 4 | BK11: 17001 | BL11: 162 | BM11: 17 | BN11: =VLOOKUP(BM11,Hoja4!$A$29:$B$61,2,FALSE) -> Caldas | BO11: =VLOOKUP(BK11,Hoja4!$D$29:$E$1150,2,FALSE) -> Manizales | BP11: 162 | BQ11: 2079 | BS11: Transformación de la madera y fabricación de productos de madera y de corcho, excepto muebles; fabricación de artículos de cestería y espartería | BT11: 545 | BU11: 4633 | BV11: Curtido y recurtido de cueros; fabricación de calzado; fabricación de artículos de viaje, maletas, bolsos de mano y artículos similares, y fabricación de artículos de talabartería y guarnicionería; adobo y teñido de pieles | BW11: 546 | BX11: 8035
C12: 76001 | D12: CALI | E12: 11 | F12: 3 | G12: Jurídica | H12: 76 | I12: VALLE DEL CAUCA | J12: Aprobado con subsidio | K12: PEQUEÑA | L12: 9311 | M12: ACTIVIDADES ARTÍSTICAS, DE ENTRETENIMIENTO Y RECREACIÓN | N12: R | O12: Actividades deportivas | P12: Actividades deportivas | Q12: 3 | R12: 8 | S12: 0 | U12: 47 | V12: 1082 | W12: 73 | X12: 1559 | Y12: =VLOOKUP(W12,Hoja4!$A$29:$B$61,2,FALSE) -> Tolima | AE12: 0 | AF12: 0 | AG12: 8001 | AH12: BARRANQUILLA | AI12: 87 | AJ12: 23 | AK12: Jurídica | AL12: 8 | AM12: ATLÁNTICO | AN12: Aprobado con subsidio | AO12: MEDIANA | AP12: 1410 | AQ12: INDUSTRIAS MANUFACTURERAS | AR12: C | AS12: Confección de prendas de vestir, excepto prendas de piel | AT12: Confección de prendas de vestir | AU12: 73 | AV12: 14 | AW12: 0 | AY12: 47 | AZ12: 97 | BA12: 73 | BB12: 194 | BC12: =VLOOKUP(BA12,Hoja4!$A$29:$B$61,2,FALSE) -> Tolima | BE12: Tolima | BF12: 194 | BG12: 2618 | BI12: 25286 | BJ12: 72 | BK12: 73001 | BL12: 158 | BM12: 73 | BN12: =VLOOKUP(BM12,Hoja4!$A$29:$B$61,2,FALSE) -> Tolima | BO12: =VLOOKUP(BK12,Hoja4!$D$29:$E$1150,2,FALSE) -> Ibagué | BP12: 158 | BQ12: 2330 | BS12: Fabricación de productos de caucho y de plástico | BT12: 726 | BU12: 6673 | BV12: Transformación de la madera y fabricación de productos de madera y de corcho, excepto muebles; fabricación de artículos de cestería y espartería | BW12: 545 | BX12: 4633
C13: 23660 | D13: SAHAGÚN | E13: 4 | F13: 2 | G13: Jurídica | H13: 23 | I13: CÓRDOBA | J13: Aprobado con subsidio | K13: MICRO | L13: 4923 | M13: TRANSPORTE Y ALMACENAMIENTO | N13: H | O13: Transporte terrestre publico automotor | P13: Transporte terrestre publico automotor | Q13: 0 | R13: 4 | S13: 0 | U13: 50 | V13: 1489 | W13: 50 | X13: 1489 | Y13: =VLOOKUP(W13,Hoja4!$A$29:$B$61,2,FALSE) -> Meta | AE13: 0 | AF13: 0 | AG13: 25175 | AH13: CHÍA | AI13: 5 | AJ13: 5 | AK13: Jurídica | AL13: 25 | AM13: CUNDINAMARCA | AN13: Aprobado con subsidio | AO13: MICRO | AP13: 3110 | AQ13: INDUSTRIAS MANUFACTURERAS | AR13: C | AS13: Fabricación de muebles | AT13: Fabricación de muebles, colchones y somieres | AU13: 1 | AV13: 4 | AW13: 0 | AY13: 50 | AZ13: 120 | BA13: 15 | BB13: 186 | BC13: =VLOOKUP(BA13,Hoja4!$A$29:$B$61,2,FALSE) -> Boyacá | BE13: Boyacá | BF13: 186 | BG13: 1382 | BI13: 41298 | BJ13: 5 | BK13: 5266 | BL13: 153 | BM13: 5 | BN13: =VLOOKUP(BM13,Hoja4!$A$29:$B$61,2,FALSE) -> Antioquia | BO13: =VLOOKUP(BK13,Hoja4!$D$29:$E$1150,2,FALSE) -> Envigado | BP13: 153 | BQ13: 1518 | BS13: Fabricación de papel, cartón y productos de papel y cartón | BT13: 335 | BU13: 2812 | BV13: Fabricación de sustancias y productos químicos | BW13: 479 | BX13: 4094
C14: 11001 | D14: BOGOTÁ, D.C. | E14: 2 | F14: 1 | G14: Jurídica | H14: 11 | I14: BOGOTÁ, D.C. | J14: Aprobado con subsidio | K14: MICRO | L14: 8230 | M14: ACTIVIDADES DE SERVICIOS ADMINISTRATIVOS Y DE APOYO | N14: N | O14: Organización de convenciones y eventos comerciales | P14: Organización de convenciones y eventos comerciales | Q14: 0 | R14: 2 | S14: 0 | U14: 63 | V14: 1032 | W14: 17 | X14: 1448 | Y14: =VLOOKUP(W14,Hoja4!$A$29:$B$61,2,FALSE) -> Caldas | AE14: 0 | AF14: 0 | AG14: 11001 | AH14: BOGOTÁ, D.C. | AI14: 10 | AJ14: 12 | AK14: Jurídica | AL14: 11 | AM14: BOGOTÁ, D.C. | AN14: Aprobado con subsidio | AO14: PEQUEÑA | AP14: 1393 | AQ14: INDUSTRIAS MANUFACTURERAS | AR14: C | AS14: Fabricación de otros productos textiles | AT14: Fabricación de productos textiles | AU14: 6 | AV14: 4 | AW14: 0 | AY14: 63 | AZ14: 134 | BA14: 41 | BB14: 152 | BC14: =VLOOKUP(BA14,Hoja4!$A$29:$B$61,2,FALSE) -> Huila | BE14: Huila | BF14: 152 | BG14: 1193 | BI14: 85001 | BJ14: 26 | BK14: 5631 | BL14: 139 | BM14: 5 | BN14: =VLOOKUP(BM14,Hoja4!$A$29:$B$61,2,FALSE) -> Antioquia | BO14: =VLOOKUP(BK14,Hoja4!$D$29:$E$1150,2,FALSE) -> Sabaneta | BP14: 139 | BQ14: 2510 | BS14: Actividades de impresión y de producción de copias a partir de grabaciones originales | BT14: 831 | BU14: 5470 | BV14: Fabricación de otros productos minerales no metálicos | BW14: 431 | BX14: 5162
C15: 81001 | D15: ARAUCA | E15: 5 | F15: 4 | G15: Jurídica | H15: 81 | I15: ARAUCA | J15: Aprobado con subsidio | K15: MICRO | L15: 4210 | M15: CONSTRUCCIÓN | N15: F | O15: Construcción de carreteras y vías de ferrocarril | P15: Construcción de carreteras y vías de ferrocarril | Q15: 2 | R15: 3 | S15: 0 | U15: 70 | V15: 563 | W15: 41 | X15: 1385 | Y15: =VLOOKUP(W15,Hoja4!$A$29:$B$61,2,FALSE) -> Huila | AE15: 0 | AF15: 0 | AG15: 15500 | AH15: OICATÁ | AI15: 7 | AJ15: 2 | AK15: Jurídica | AL15: 15 | AM15: BOYACÁ | AN15: Aprobado con subsidio | AO15: MICRO | AP15: 1610 | AQ15: INDUSTRIAS MANUFACTURERAS | AR15: C | AS15: Aserrado, acepillado e impregnación de la madera | AT15: Transformación de la madera y fabricación de productos de madera y de corcho, excepto muebles; fabricación de artículos de cestería y espartería | AU15: 1 | AV15: 6 | AW15: 0 | AY15: 70 | AZ15: 41 | BA15: 63 | BB15: 134 | BC15: =VLOOKUP(BA15,Hoja4!$A$29:$B$61,2,FALSE) -> Quindío | BE15: Quindío | BF15: 134 | BG15: 1527 | BI15: 76001 | BJ15: 1124 | BK15: 5088 | BL15: 129 | BM15: 5 | BN15: =VLOOKUP(BM15,Hoja4!$A$29:$B$61,2,FALSE) -> Antioquia | BO15: =VLOOKUP(BK15,Hoja4!$D$29:$E$1150,2,FALSE) -> Bello | BP15: 129 | BQ15: 1376 | BS15: Otras industrias manufactureras | BT15: 575 | BU15: 4730 | BV15: Fabricación de maquinaria y equipo n.c.p. | BW15: 422 | BX15: 2719
C16: 73001 | D16: IBAGUÉ | E16: 14 | F16: 15 | G16: Jurídica | H16: 73 | I16: TOLIMA | J16: Aprobado con subsidio | K16: PEQUEÑA | L16: 2511 | M16: INDUSTRIAS MANUFACTURERAS | N16: C | O16: Fabricación de productos metálicos para uso estructural, tanques, depósitos y generadores de vapor. | P16: Fabricación de productos elaborados de metal, excepto maquinaria y equipo | Q16: 1 | R16: 13 | S16: 0 | U16: 41 | V16: 1385 | W16: 52 | X16: 1327 | Y16: =VLOOKUP(W16,Hoja4!$A$29:$B$61,2,FALSE) -> Nariño | AE16: 0 | AF16: 0 | AG16: 11001 | AH16: BOGOTÁ, D.C. | AI16: 3 | AJ16: 3 | AK16: Jurídica | AL16: 11 | AM16: BOGOTÁ, D.C. | AN16: Aprobado con subsidio | AO16: MICRO | AP16: 2229 | AQ16: INDUSTRIAS MANUFACTURERAS | AR16: C | AS16: Fabricación de productos de plástico | AT16: Fabricación de productos de caucho y de plástico | AU16: 0 | AV16: 3 | AW16: 0 | AY16: 41 | AZ16: 152 | BA16: 50 | BB16: 120 | BC16: =VLOOKUP(BA16,Hoja4!$A$29:$B$61,2,FALSE) -> Meta | BE16: Meta | BF16: 120 | BG16: 769 | BI16: 5001 | BJ16: 2353 | BK16: 25754 | BL16: 129 | BM16: 25 | BN16: =VLOOKUP(BM16,Hoja4!$A$29:$B$61,2,FALSE) -> Cundinamarca | BO16: =VLOOKUP(BK16,Hoja4!$D$29:$E$1150,2,FALSE) -> Soacha | BP16: 129 | BQ16: 983 | BS16: Fabricación de vehículos automotores, remolques y semirremolques | BT16: 287 | BU16: 3303 | BV16: Fabricación de papel, cartón y productos de papel y cartón | BW16: 335 | BX16: 2812
C17: 68679 | D17: SAN GIL | E17: 7 | F17: 2 | G17: Jurídica | H17: 68 | I17: SANTANDER | J17: Aprobado con subsidio | K17: MICRO | L17: 9499 | M17: OTRAS ACTIVIDADES DE SERVICIOS | N17: S | O17: Actividades de otras asociaciones | P17: Actividades de otras asociaciones | Q17: 6 | R17: 1 | S17: 0 | U17: 25 | V17: 4219 | W17: 23 | X17: 1163 | Y17: =VLOOKUP(W17,Hoja4!$A$29:$B$61,2,FALSE) -> Córdoba | AE17: 0 | AF17: 0 | AG17: 25214 | AH17: COTA | AI17: 36 | AJ17: 11 | AK17: Jurídica | AL17: 25 | AM17: CUNDINAMARCA | AN17: Aprobado con subsidio | AO17: MEDIANA | AP17: 1011 | AQ17: INDUSTRIAS MANUFACTURERAS | AR17: C | AS17: Procesamiento y conservación de carne, pescado, crustáceos y moluscos | AT17: Elaboración de productos alimenticios | AU17: 14 | AV17: 22 | AW17: 0 | AY17: 25 | AZ17: 731 | BA17: 52 | BB17: 118 | BC17: =VLOOKUP(BA17,Hoja4!$A$29:$B$61,2,FALSE) -> Nariño | BE17: Nariño | BF17: 118 | BG17: 1315 | BI17: 66001 | BJ17: 222 | BK17: 76892 | BL17: 128 | BM17: 76 | BN17: =VLOOKUP(BM17,Hoja4!$A$29:$B$61,2,FALSE) -> Valle del cauca | BO17: =VLOOKUP(BK17,Hoja4!$D$29:$E$1150,2,FALSE) -> Yumbo | BP17: 128 | BQ17: 3904 | BS17: Fabricación de sustancias y productos químicos | BT17: 479 | BU17: 4094 | BV17: Fabricación de vehículos automotores, remolques y semirremolques | BW17: 287 | BX17: 3303
C18: 11001 | D18: BOGOTÁ, D.C. | E18: 2 | F18: 2 | G18: Jurídica | H18: 11 | I18: BOGOTÁ, D.C. | J18: Aprobado con subsidio | K18: MICRO | L18: 7020 | M18: ACTIVIDADES PROFESIONALES, CIENTÍFICAS Y TÉCNICAS | N18: M | O18: Actividades de consultoría de gestión | P18: Actividades de consultoría de gestión | Q18: 1 | R18: 1 | S18: 0 | U18: 8 | V18: 4552 | W18: 47 | X18: 1082 | Y18: =VLOOKUP(W18,Hoja4!$A$29:$B$61,2,FALSE) -> Magdalena | AE18: 0 | AF18: 0 | AG18: 11001 | AH18: BOGOTÁ, D.C. | AI18: 0 | AJ18: 0 | AK18: Jurídica | AL18: 11 | AM18: BOGOTÁ, D.C. | AN18: 0 | AO18: MICRO | AP18: 2229 | AQ18: INDUSTRIAS MANUFACTURERAS | AR18: C | AS18: Fabricación de productos de plástico | AT18: Fabricación de productos de caucho y de plástico | AU18: 0 | AV18: 0 | AW18: 0 | AY18: 8 | AZ18: 574 | BA18: 47 | BB18: 97 | BC18: =VLOOKUP(BA18,Hoja4!$A$29:$B$61,2,FALSE) -> Magdalena | BE18: Magdalena | BF18: 97 | BG18: 931 | BI18: 15238 | BJ18: 55 | BK18: 66170 | BL18: 126 | BM18: 66 | BN18: =VLOOKUP(BM18,Hoja4!$A$29:$B$61,2,FALSE) -> Risaralda | BO18: =VLOOKUP(BK18,Hoja4!$D$29:$E$1150,2,FALSE) -> Dosquebradas | BP18: 126 | BQ18: 3500 | BS18: Fabricación de aparatos y equipo eléctrico | BT18: 181 | BU18: 1352 | BV18: Fabricación de productos metalúrgicos básicos | BW18: 259 | BX18: 1713
C19: 76001 | D19: CALI | E19: 0 | F19: 0 | G19: Jurídica | H19: 76 | I19: VALLE DEL CAUCA | J19: 0 | K19: $null$ | L19: 4923 | M19: TRANSPORTE Y ALMACENAMIENTO | N19: H | O19: Transporte terrestre publico automotor | P19: Transporte terrestre publico automotor | Q19: 0 | R19: 0 | S19: 0 | U19: 85 | V19: 596 | W19: 63 | X19: 1032 | Y19: =VLOOKUP(W19,Hoja4!$A$29:$B$61,2,FALSE) -> Quindío | AE19: 0 | AF19: 0 | AG19: 8638 | AH19: SABANALARGA | AI19: 9 | AJ19: 1 | AK19: Natural | AL19: 8 | AM19: ATLÁNTICO | AN19: Aprobado con subsidio | AO19: PEQUEÑA | AP19: 1081 | AQ19: INDUSTRIAS MANUFACTURERAS | AR19: C | AS19: Elaboración de otros productos alimenticios | AT19: Elaboración de productos alimenticios | AU19: 4 | AV19: 5 | AW19: 0 | AY19: 85 | AZ19: 45 | BA19: 23 | BB19: 79 | BC19: =VLOOKUP(BA19,Hoja4!$A$29:$B$61,2,FALSE) -> Córdoba | BE19: Córdoba | BF19: 79 | BG19: 1100 | BI19: 41001 | BJ19: 116 | BK19: 5615 | BL19: 124 | BM19: 5 | BN19: =VLOOKUP(BM19,Hoja4!$A$29:$B$61,2,FALSE) -> Antioquia | BO19: =VLOOKUP(BK19,Hoja4!$D$29:$E$1150,2,FALSE) -> Rionegro | BP19: 124 | BQ19: 1171 | BS19: Curtido y recurtido de cueros; fabricación de calzado; fabricación de artículos de viaje, maletas, bolsos de mano y artículos similares, y fabricación de artículos de talabartería y guarnicionería; adobo y teñido de pieles | BT19: 546 | BU19: 8035 | BV19: Elaboración de bebidas | BW19: 188 | BX19: 1510
C20: 11001 | D20: BOGOTÁ, D.C. | E20: 1 | F20: 2 | G20: Natural | H20: 11 | I20: BOGOTÁ, D.C. | J20: Aprobado con subsidio | K20: MICRO | L20: 4530 | M20: COMERCIO AL POR MAYOR Y AL POR MENOR; REPARACIÓN DE VEHÍCULOS AUTOMOTORES Y MOTOCICLETAS | N20: G | O20: Comercio de partes, piezas (autopartes) y accesorios (lujos) para vehículos automotores | P20: Comercio de partes, piezas (autopartes) y accesorios (lujos) para vehículos automotores | Q20: 0 | R20: 1 | S20: 0 | U20: 73 | V20: 1559 | W20: 20 | X20: 956 | Y20: =VLOOKUP(W20,Hoja4!$A$29:$B$61,2,FALSE) -> Cesar | AE20: 0 | AF20: 0 | AG20: 11001 | AH20: BOGOTÁ, D.C. | AI20: 0 | AJ20: 0 | AK20: Jurídica | AL20: 11 | AM20: BOGOTÁ, D.C. | AN20: 0 | AO20: GRANDE | AP20: 1011 | AQ20: INDUSTRIAS MANUFACTURERAS | AR20: C | AS20: Procesamiento y conservación de carne, pescado, crustáceos y moluscos | AT20: Elaboración de productos alimenticios | AU20: 0 | AV20: 0 | AW20: 0 | AY20: 73 | AZ20: 194 | BA20: 19 | BB20: 73 | BC20: =VLOOKUP(BA20,Hoja4!$A$29:$B$61,2,FALSE) -> Cauca | BE20: Cauca | BF20: 73 | BG20: 948 | BI20: 52001 | BJ20: 94 | BK20: 5380 | BL20: 123 | BM20: 5 | BN20: =VLOOKUP(BM20,Hoja4!$A$29:$B$61,2,FALSE) -> Antioquia | BO20: =VLOOKUP(BK20,Hoja4!$D$29:$E$1150,2,FALSE) -> La estrella | BP20: 123 | BQ20: 1634 | BS20: Fabricación de productos metalúrgicos básicos | BT20: 259 | BU20: 1713 | BV20: Fabricación de aparatos y equipo eléctrico | BW20: 181 | BX20: 1352
C21: 68081 | D21: BARRANCABERMEJA | E21: 6 | F21: 17 | G21: Natural | H21: 68 | I21: SANTANDER | J21: Aprobado con subsidio | K21: PEQUEÑA | L21: 8521 | M21: EDUCACIÓN | N21: P | O21: Educación secundaria y de formación laboral | P21: Educación secundaria y de formación laboral | Q21: 4 | R21: 2 | S21: 0 | U21: 20 | V21: 956 | W21: 19 | X21: 735 | Y21: =VLOOKUP(W21,Hoja4!$A$29:$B$61,2,FALSE) -> Cauca | AE21: 0 | AF21: 0 | AG21: 11001 | AH21: BOGOTÁ, D.C. | AI21: 5 | AJ21: 2 | AK21: Jurídica | AL21: 11 | AM21: BOGOTÁ, D.C. | AN21: Aprobado con subsidio | AO21: MICRO | AP21: 1082 | AQ21: INDUSTRIAS MANUFACTURERAS | AR21: C | AS21: Elaboración de otros productos alimenticios | AT21: Elaboración de productos alimenticios | AU21: 3 | AV21: 2 | AW21: 0 | AY21: 20 | AZ21: 57 | BA21: 20 | BB21: 57 | BC21: =VLOOKUP(BA21,Hoja4!$A$29:$B$61,2,FALSE) -> Cesar | BE21: Cesar | BF21: 57 | BG21: 419 | BI21: 68001 | BJ21: 474 | BK21: 41001 | BL21: 116 | BM21: 41 | BN21: =VLOOKUP(BM21,Hoja4!$A$29:$B$61,2,FALSE) -> Huila | BO21: =VLOOKUP(BK21,Hoja4!$D$29:$E$1150,2,FALSE) -> Neiva | BP21: 116 | BQ21: 856 | BS21: Fabricación de productos farmacéuticos, sustancias químicas medicinales y productos botánicos de uso farmacéutico | BT21: 84 | BU21: 701 | BV21: Fabricación de productos farmacéuticos, sustancias químicas medicinales y productos botánicos de uso farmacéutico | BW21: 84 | BX21: 701
C22: 63001 | D22: ARMENIA | E22: 2 | F22: 6 | G22: Jurídica | H22: 63 | I22: QUINDÍO | J22: Aprobado con subsidio | K22: PEQUEÑA | L22: 4322 | M22: CONSTRUCCIÓN | N22: F | O22: Instalaciones eléctricas, de fontanería y otras instalaciones especializadas | P22: Instalaciones eléctricas, de fontanería y otras instalaciones especializadas | Q22: 0 | R22: 2 | S22: 0 | U22: 97 | V22: 6 | W22: 85 | X22: 596 | Y22: =VLOOKUP(W22,Hoja4!$A$29:$B$61,2,FALSE) -> Casanare | AE22: 0 | AF22: 0 | AG22: 25286 | AH22: FUNZA | AI22: 9 | AJ22: 27 | AK22: Jurídica | AL22: 25 | AM22: CUNDINAMARCA | AN22: Aprobado con subsidio | AO22: PEQUEÑA | AP22: 1709 | AQ22: INDUSTRIAS MANUFACTURERAS | AR22: C | AS22: Fabricación de papel, cartón y productos de papel y cartón | AT22: Fabricación de papel, cartón y productos de papel y cartón | AU22: 4 | AV22: 5 | AW22: 0 | AY22: 97 | AZ22: 0 | BA22: 85 | BB22: 45 | BC22: =VLOOKUP(BA22,Hoja4!$A$29:$B$61,2,FALSE) -> Casanare | BE22: Casanare | BF22: 45 | BG22: 284 | BI22: 76892 | BJ22: 128 | BK22: 76520 | BL22: 110 | BM22: 76 | BN22: =VLOOKUP(BM22,Hoja4!$A$29:$B$61,2,FALSE) -> Valle del cauca | BO22: =VLOOKUP(BK22,Hoja4!$D$29:$E$1150,2,FALSE) -> Palmira | BP22: 110 | BQ22: 1335 | BS22: Coquización, fabricación de productos de la refinación del petróleo y actividad de mezcla de combustibles | BT22: 45 | BU22: 378 | BV22: Fabricación de productos informáticos, electrónicos y ópticos | BW22: 66 | BX22: 379
C23: 15001 | D23: TUNJA | E23: 14 | F23: 1 | G23: Jurídica | H23: 15 | I23: BOYACÁ | J23: Aprobado con subsidio | K23: PEQUEÑA | L23: 4290 | M23: CONSTRUCCIÓN | N23: F | O23: Construcción de otras obras de ingeniería civil | P23: Construcción de otras obras de ingeniería civil | Q23: 1 | R23: 13 | S23: 0 | U23: 81 | V23: 205 | W23: 70 | X23: 563 | Y23: =VLOOKUP(W23,Hoja4!$A$29:$B$61,2,FALSE) -> Sucre | AE23: 0 | AF23: 0 | AG23: 11001 | AH23: BOGOTÁ, D.C. | AI23: 13 | AJ23: 0 | AK23: Jurídica | AL23: 11 | AM23: BOGOTÁ, D.C. | AN23: Aprobado con subsidio | AO23: PEQUEÑA | AP23: 1011 | AQ23: INDUSTRIAS MANUFACTURERAS | AR23: C | AS23: Procesamiento y conservación de carne, pescado, crustáceos y moluscos | AT23: Elaboración de productos alimenticios | AU23: 5 | AV23: 8 | AW23: 0 | AY23: 81 | AZ23: 12 | BA23: 70 | BB23: 41 | BC23: =VLOOKUP(BA23,Hoja4!$A$29:$B$61,2,FALSE) -> Sucre | BE23: Sucre | BF23: 41 | BG23: 584 | BI23: 91001 | BJ23: 6 | BK23: 63001 | BL23: 100 | BM23: 63 | BN23: =VLOOKUP(BM23,Hoja4!$A$29:$B$61,2,FALSE) -> Quindío | BO23: =VLOOKUP(BK23,Hoja4!$D$29:$E$1150,2,FALSE) -> Armenia | BP23: 100 | BQ23: 1157 | BS23: Fabricación de otros tipos de equipo de transporte | BT23: 36 | BU23: 356 | BV23: Coquización, fabricación de productos de la refinación del petróleo y actividad de mezcla de combustibles | BW23: 45 | BX23: 378
C24: 11001 | D24: BOGOTÁ, D.C. | E24: 3 | F24: 1 | G24: Jurídica | H24: 11 | I24: BOGOTÁ, D.C. | J24: Aprobado con subsidio | K24: MICRO | L24: 2592 | M24: INDUSTRIAS MANUFACTURERAS | N24: C | O24: Fabricación de otros productos elaborados de metal y actividades de servicios relacionadas con el trabajo de metales | P24: Fabricación de productos elaborados de metal, excepto maquinaria y equipo | Q24: 1 | R24: 2 | S24: 0 | U24: 44 | V24: 324 | W24: 18 | X24: 345 | Y24: =VLOOKUP(W24,Hoja4!$A$29:$B$61,2,FALSE) -> Caquetá | AE24: 0 | AF24: 0 | AG24: 11001 | AH24: BOGOTÁ, D.C. | AI24: 9 | AJ24: 23 | AK24: Jurídica | AL24: 11 | AM24: BOGOTÁ, D.C. | AN24: Aprobado con subsidio | AO24: PEQUEÑA | AP24: 1011 | AQ24: INDUSTRIAS MANUFACTURERAS | AR24: C | AS24: Procesamiento y conservación de carne, pescado, crustáceos y moluscos | AT24: Elaboración de productos alimenticios | AU24: 2 | AV24: 7 | AW24: 0 | AY24: 44 | AZ24: 12 | BA24: 18 | BB24: 27 | BC24: =VLOOKUP(BA24,Hoja4!$A$29:$B$61,2,FALSE) -> Caquetá | BE24: Caquetá | BF24: 27 | BG24: 166 | BI24: 5308 | BJ24: 26 | BK24: 52001 | BL24: 94 | BM24: 52 | BN24: =VLOOKUP(BM24,Hoja4!$A$29:$B$61,2,FALSE) -> Nariño | BO24: =VLOOKUP(BK24,Hoja4!$D$29:$E$1150,2,FALSE) -> Pasto | BP24: 94 | BQ24: 1165 | BS24: Fabricación de productos informáticos, electrónicos y ópticos | BT24: 66 | BU24: 379 | BV24: Fabricación de otros tipos de equipo de transporte | BW24: 36 | BX24: 356
C25: 11001 | D25: BOGOTÁ, D.C. | E25: 4 | F25: 0 | G25: Natural | H25: 11 | I25: BOGOTÁ, D.C. | J25: Aprobado con subsidio | K25: MICRO | L25: 1081 | M25: INDUSTRIAS MANUFACTURERAS | N25: C | O25: Elaboración de otros productos alimenticios | P25: Elaboración de productos alimenticios | Q25: 1 | R25: 3 | S25: 0 | U25: 17 | V25: 1448 | W25: 44 | X25: 324 | Y25: =VLOOKUP(W25,Hoja4!$A$29:$B$61,2,FALSE) -> La guajira | AE25: 0 | AF25: 0 | AG25: 11001 | AH25: BOGOTÁ, D.C. | AI25: 9 | AJ25: 2 | AK25: Jurídica | AL25: 11 | AM25: BOGOTÁ, D.C. | AN25: Aprobado con subsidio | AO25: PEQUEÑA | AP25: 1011 | AQ25: INDUSTRIAS MANUFACTURERAS | AR25: C | AS25: Procesamiento y conservación de carne, pescado, crustáceos y moluscos | AT25: Elaboración de productos alimenticios | AU25: 2 | AV25: 7 | AW25: 0 | AY25: 17 | AZ25: 200 | BA25: 88 | BB25: 14 | BC25: =VLOOKUP(BA25,Hoja4!$A$29:$B$61,2,FALSE) -> San Andrés | BE25: =BC25 -> San Andrés | BF25: =BB25 -> 14 | BG25: 62 | BI25: 25307 | BJ25: 13 | BK25: 25473 | BL25: 91 | BM25: 25 | BN25: =VLOOKUP(BM25,Hoja4!$A$29:$B$61,2,FALSE) -> Cundinamarca | BO25: =VLOOKUP(BK25,Hoja4!$D$29:$E$1150,2,FALSE) -> Mosquera | BP25: 91 | BQ25: 894 | BS25: Elaboración de productos de tabaco | BT25: 1 | BU25: 7 | BV25: Elaboración de productos de tabaco | BW25: 1 | BX25: 7
C26: 11001 | D26: BOGOTÁ, D.C. | E26: 2 | F26: 1 | G26: Jurídica | H26: 11 | I26: BOGOTÁ, D.C. | J26: Aprobado con subsidio | K26: PEQUEÑA | L26: 1410 | M26: INDUSTRIAS MANUFACTURERAS | N26: C | O26: Confección de prendas de vestir, excepto prendas de piel | P26: Confección de prendas de vestir | Q26: 1 | R26: 1 | S26: 0 | U26: 18 | V26: 345 | W26: 88 | X26: 254 | Y26: =VLOOKUP(W26,Hoja4!$A$29:$B$61,2,FALSE) -> San Andrés | AE26: 0 | AF26: 0 | AG26: 11001 | AH26: BOGOTÁ, D.C. | AI26: 5 | AJ26: 2 | AK26: Jurídica | AL26: 11 | AM26: BOGOTÁ, D.C. | AN26: Aprobado con subsidio | AO26: MICRO | AP26: 1811 | AQ26: INDUSTRIAS MANUFACTURERAS | AR26: C | AS26: Actividades de impresión y actividades de servicios relacionados con la impresión | AT26: Actividades de impresión y de producción de copias a partir de grabaciones originales | AU26: 3 | AV26: 2 | AW26: 0 | AY26: 18 | AZ26: 27 | BA26: 81 | BB26: 12 | BC26: =VLOOKUP(BA26,Hoja4!$A$29:$B$61,2,FALSE) -> Arauca | BE26: Arauca | BF26: =BB26 -> 12 | BG26: 57 | BI26: 25758 | BJ26: 9 | BK26: 50001 | BL26: 89 | BM26: 50 | BN26: =VLOOKUP(BM26,Hoja4!$A$29:$B$61,2,FALSE) -> Meta | BO26: =VLOOKUP(BK26,Hoja4!$D$29:$E$1150,2,FALSE) -> Villavicencio | BP26: 89 | BQ26: 596 | BS26: 0 | BT26: 0 | BU26: 0 | BV26: 0 | BW26: 0 | BX26: 0
C27: 11001 | D27: BOGOTÁ, D.C. | E27: 3 | F27: 1 | G27: Jurídica | H27: 11 | I27: BOGOTÁ, D.C. | J27: Aprobado con subsidio | K27: PEQUEÑA | L27: 4330 | M27: CONSTRUCCIÓN | N27: F | O27: Terminación y acabado de edificios y obras de ingeniería civil | P27: Terminación y acabado de edificios y obras de ingeniería civil | Q27: 0 | R27: 3 | S27: 0 | U27: 23 | V27: 1163 | W27: 81 | X27: 205 | Y27: =VLOOKUP(W27,Hoja4!$A$29:$B$61,2,FALSE) -> Arauca | AE27: 0 | AF27: 0 | AG27: 41298 | AH27: GARZÓN | AI27: 14 | AJ27: 2 | AK27: Jurídica | AL27: 41 | AM27: HUILA | AN27: Aprobado con subsidio | AO27: MICRO | AP27: 2392 | AQ27: INDUSTRIAS MANUFACTURERAS | AR27: C | AS27: Fabricación de productos minerales no metálicos n.c.p. | AT27: Fabricación de otros productos minerales no metálicos | AU27: 1 | AV27: 13 | AW27: 0 | AY27: 23 | AZ27: 79 | BA27: 44 | BB27: 12 | BC27: =VLOOKUP(BA27,Hoja4!$A$29:$B$61,2,FALSE) -> La guajira | BE27: La guajira | BF27: =BB27 -> 12 | BG27: 75 | BI27: 13001 | BJ27: 221 | BK27: 25214 | BL27: 85 | BM27: 25 | BN27: =VLOOKUP(BM27,Hoja4!$A$29:$B$61,2,FALSE) -> Cundinamarca | BO27: =VLOOKUP(BK27,Hoja4!$D$29:$E$1150,2,FALSE) -> Cota | BP27: 85 | BQ27: 1176 | BT27: 0 | BU27: 0
C28: 25899 | D28: ZIPAQUIRÁ | E28: 2 | F28: 3 | G28: Jurídica | H28: 25 | I28: CUNDINAMARCA | J28: Aprobado con subsidio | K28: MICRO | L28: 4390 | M28: CONSTRUCCIÓN | N28: F | O28: Otras actividades especializadas para la construcción de edificios y obras de ingeniería civil | P28: Otras actividades especializadas para la construcción de edificios y obras de ingeniería civil | Q28: 0 | R28: 2 | S28: 0 | U28: 88 | V28: 254 | W28: 86 | X28: 192 | Y28: =VLOOKUP(W28,Hoja4!$A$29:$B$61,2,FALSE) -> Putumayo | AE28: 0 | AF28: 0 | AG28: 85001 | AH28: YOPAL | AI28: 6 | AJ28: 7 | AK28: Jurídica | AL28: 85 | AM28: CASANARE | AN28: Aprobado con subsidio | AO28: PEQUEÑA | AP28: 2511 | AQ28: INDUSTRIAS MANUFACTURERAS | AR28: C | AS28: Fabricación de productos metálicos para uso estructural, tanques, depósitos y generadores de vapor. | AT28: Fabricación de productos elaborados de metal, excepto maquinaria y equipo | AU28: 1 | AV28: 5 | AW28: 0 | AY28: 88 | AZ28: 14 | BA28: 86 | BB28: 9 | BC28: =VLOOKUP(BA28,Hoja4!$A$29:$B$61,2,FALSE) -> Putumayo | BE28: Putumayo | BF28: =BB28 -> 9 | BG28: 64 | BI28: 76520 | BJ28: 110 | BK28: 47001 | BL28: 80 | BM28: 47 | BN28: =VLOOKUP(BM28,Hoja4!$A$29:$B$61,2,FALSE) -> Magdalena | BO28: =VLOOKUP(BK28,Hoja4!$D$29:$E$1150,2,FALSE) -> Santa marta | BP28: 80 | BQ28: 754 | BT28: =SUM(BT2:BT27) -> 15243 | BU28: =SUM(BU2:BU27) -> 155140
C29: 73268 | D29: ESPINAL | E29: 12 | F29: 2 | G29: Natural | H29: 73 | I29: TOLIMA | J29: Aprobado con subsidio | K29: PEQUEÑA | L29: 1081 | M29: INDUSTRIAS MANUFACTURERAS | N29: C | O29: Elaboración de otros productos alimenticios | P29: Elaboración de productos alimenticios | Q29: 10 | R29: 2 | S29: 0 | U29: 91 | V29: 73 | W29: 27 | X29: 165 | Y29: =VLOOKUP(W29,Hoja4!$A$29:$B$61,2,FALSE) -> Chocó | AE29: 0 | AF29: 0 | AG29: 76001 | AH29: CALI | AI29: 2 | AJ29: 0 | AK29: Jurídica | AL29: 76 | AM29: VALLE DEL CAUCA | AN29: Aprobado con subsidio | AO29: MICRO | AP29: 1410 | AQ29: INDUSTRIAS MANUFACTURERAS | AR29: C | AS29: Confección de prendas de vestir, excepto prendas de piel | AT29: Confección de prendas de vestir | AU29: 0 | AV29: 2 | AW29: 0 | AY29: 91 | AZ29: 6 | BA29: 27 | BB29: 9 | BC29: =VLOOKUP(BA29,Hoja4!$A$29:$B$61,2,FALSE) -> Chocó | BE29: Otros | BF29: =SUM(BB29:BB34) -> 23 | BG29: =SUMIFS($AI$2:$AI$399999,$AN$2:$AN$399999,"Aprobado con subsidio")-SUM(BG2:BG28) -> 163 | BI29: 54518 | BJ29: 11 | BK29: 25286 | BL29: 72 | BN29: Otros | BO29: Otros | BP29: =SUM(BL29:BL1000) -> 2364 | BQ29: =SUMIFS($AI$2:$AI$399999,$AN$2:$AN$399999,"Aprobado con subsidio")-SUM(BQ2:BQ28) -> 24078
C30: 25875 | D30: VILLETA | E30: 3 | F30: 0 | G30: Natural | H30: 25 | I30: CUNDINAMARCA | J30: Aprobado con subsidio | K30: MICRO | L30: 4719 | M30: COMERCIO AL POR MAYOR Y AL POR MENOR; REPARACIÓN DE VEHÍCULOS AUTOMOTORES Y MOTOCICLETAS | N30: G | O30: Comercio al por menor en establecimientos no especializados | P30: Comercio al por menor en establecimientos no especializados | Q30: 1 | R30: 2 | S30: 0 | U30: 95 | V30: 51 | W30: 91 | X30: 73 | Y30: =VLOOKUP(W30,Hoja4!$A$29:$B$61,2,FALSE) -> Amazonas | AE30: 0 | AF30: 0 | AG30: 5001 | AH30: MEDELLÍN | AI30: 12 | AJ30: 1 | AK30: Jurídica | AL30: 5 | AM30: ANTIOQUIA | AN30: Aprobado con subsidio | AO30: PEQUEÑA | AP30: 1410 | AQ30: INDUSTRIAS MANUFACTURERAS | AR30: C | AS30: Confección de prendas de vestir, excepto prendas de piel | AT30: Confección de prendas de vestir | AU30: 11 | AV30: 1 | AW30: 0 | AY30: 95 | AZ30: 5 | BA30: 91 | BB30: 6 | BC30: =VLOOKUP(BA30,Hoja4!$A$29:$B$61,2,FALSE) -> Amazonas | BE30: Total | BF30: =SUM(BF2:BF29) -> 15243 | BG30: =SUM(BG2:BG29) -> 155140 | BI30: 5212 | BJ30: 65 | BK30: 5212 | BL30: 65 | BN30: Total | BP30: =SUM(BP2:BP29) -> 15243 | BQ30: =SUM(BQ2:BQ29) -> 155140
C31: 44001 | D31: RIOHACHA | E31: 4 | F31: 0 | G31: Natural | H31: 44 | I31: LA GUAJIRA | J31: Aprobado con subsidio | K31: MICRO | L31: 4752 | M31: COMERCIO AL POR MAYOR Y AL POR MENOR; REPARACIÓN DE VEHÍCULOS AUTOMOTORES Y MOTOCICLETAS | N31: G | O31: Comercio al por menor de otros enseres domésticos en establecimientos especializados | P31: Comercio al por menor de otros enseres domésticos en establecimientos especializados | Q31: 1 | R31: 3 | S31: 0 | U31: 86 | V31: 192 | W31: 95 | X31: 51 | Y31: =VLOOKUP(W31,Hoja4!$A$29:$B$61,2,FALSE) -> Guaviare | AE31: 0 | AF31: 0 | AG31: 66001 | AH31: PEREIRA | AI31: 7 | AJ31: 6 | AK31: Jurídica | AL31: 66 | AM31: RISARALDA | AN31: Aprobado con subsidio | AO31: PEQUEÑA | AP31: 3250 | AQ31: INDUSTRIAS MANUFACTURERAS | AR31: C | AS31: Fabricación de instrumentos, aparatos y materiales médicos y odontológicos (incluido mobiliario) | AT31: Otras industrias manufactureras | AU31: 2 | AV31: 5 | AW31: 0 | AY31: 86 | AZ31: 9 | BA31: 95 | BB31: 5 | BC31: =VLOOKUP(BA31,Hoja4!$A$29:$B$61,2,FALSE) -> Guaviare | BI31: 54001 | BJ31: 207 | BK31: 68307 | BL31: 57
C32: 76001 | D32: CALI | E32: 3 | F32: 2 | G32: Jurídica | H32: 76 | I32: VALLE DEL CAUCA | J32: Aprobado con subsidio | K32: MICRO | L32: 4390 | M32: CONSTRUCCIÓN | N32: F | O32: Otras actividades especializadas para la construcción de edificios y obras de ingeniería civil | P32: Otras actividades especializadas para la construcción de edificios y obras de ingeniería civil | Q32: 0 | R32: 3 | S32: 0 | U32: 27 | V32: 165 | W32: 99 | X32: 14 | Y32: =VLOOKUP(W32,Hoja4!$A$29:$B$61,2,FALSE) -> Vichada | AE32: 0 | AF32: 0 | AG32: 11001 | AH32: BOGOTÁ, D.C. | AI32: 2 | AJ32: 1 | AK32: Jurídica | AL32: 11 | AM32: BOGOTÁ, D.C. | AN32: Aprobado con subsidio | AO32: MICRO | AP32: 2511 | AQ32: INDUSTRIAS MANUFACTURERAS | AR32: C | AS32: Fabricación de productos metálicos para uso estructural, tanques, depósitos y generadores de vapor. | AT32: Fabricación de productos elaborados de metal, excepto maquinaria y equipo | AU32: 0 | AV32: 2 | AW32: 0 | AY32: 27 | AZ32: 9 | BA32: 94 | BB32: 2 | BC32: =VLOOKUP(BA32,Hoja4!$A$29:$B$61,2,FALSE) -> Guainía | BI32: 50001 | BJ32: 89 | BK32: 5237 | BL32: 57
C33: 68001 | D33: BUCARAMANGA | E33: 3 | F33: 2 | G33: Jurídica | H33: 68 | I33: SANTANDER | J33: Aprobado con subsidio | K33: MICRO | L33: 4111 | M33: CONSTRUCCIÓN | N33: F | O33: Construcción de edificios | P33: Construcción de edificios | Q33: 2 | R33: 1 | S33: 0 | U33: 94 | V33: 11 | W33: 94 | X33: 11 | Y33: =VLOOKUP(W33,Hoja4!$A$29:$B$61,2,FALSE) -> Guainía | AE33: 0 | AF33: 0 | AG33: 11001 | AH33: BOGOTÁ, D.C. | AI33: 11 | AJ33: 0 | AK33: Natural | AL33: 11 | AM33: BOGOTÁ, D.C. | AN33: Aprobado con subsidio | AO33: PEQUEÑA | AP33: 2392 | AQ33: INDUSTRIAS MANUFACTURERAS | AR33: C | AS33: Fabricación de productos minerales no metálicos n.c.p. | AT33: Fabricación de otros productos minerales no metálicos | AU33: 1 | AV33: 10 | AW33: 0 | AY33: 94 | AZ33: 2 | BA33: 99 | BB33: 1 | BC33: =VLOOKUP(BA33,Hoja4!$A$29:$B$61,2,FALSE) -> Vichada | BI33: 17001 | BJ33: 162 | BK33: 15238 | BL33: 55
C34: 8001 | D34: BARRANQUILLA | E34: 3 | F34: 0 | G34: Jurídica | H34: 8 | I34: ATLÁNTICO | J34: Aprobado con subsidio | K34: MICRO | L34: 4752 | M34: COMERCIO AL POR MAYOR Y AL POR MENOR; REPARACIÓN DE VEHÍCULOS AUTOMOTORES Y MOTOCICLETAS | N34: G | O34: Comercio al por menor de otros enseres domésticos en establecimientos especializados | P34: Comercio al por menor de otros enseres domésticos en establecimientos especializados | Q34: 1 | R34: 2 | S34: 0 | U34: 99 | V34: 14 | W34: 97 | X34: 6 | Y34: =VLOOKUP(W34,Hoja4!$A$29:$B$61,2,FALSE) -> Vaupés | AE34: 0 | AF34: 0 | AG34: 15238 | AH34: DUITAMA | AI34: 19 | AJ34: 12 | AK34: Natural | AL34: 15 | AM34: BOYACÁ | AN34: Aprobado con subsidio | AO34: PEQUEÑA | AP34: 2930 | AQ34: INDUSTRIAS MANUFACTURERAS | AR34: C | AS34: Fabricación de partes, piezas (autopartes) y accesorios (lujos) para vehículos automotores | AT34: Fabricación de vehículos automotores, remolques y semirremolques | AU34: 6 | AV34: 13 | AW34: 0 | AY34: 99 | AZ34: 1 | BA34: 97 | BB34: 0 | BC34: =VLOOKUP(BA34,Hoja4!$A$29:$B$61,2,FALSE) -> Vaupés | BI34: 70001 | BJ34: 32 | BK34: 23001 | BL34: 52
C35: 11001 | D35: BOGOTÁ, D.C. | E35: 4 | F35: 0 | G35: Natural | H35: 11 | I35: BOGOTÁ, D.C. | J35: Aprobado con subsidio | K35: MICRO | L35: 6810 | M35: ACTIVIDADES INMOBILIARIAS | N35: L | O35: Actividades inmobiliarias realizadas con bienes propios o arrendados | P35: Actividades inmobiliarias realizadas con bienes propios o arrendados | Q35: 1 | R35: 3 | S35: 0 | AE35: 0 | AF35: 0 | AG35: 41001 | AH35: NEIVA | AI35: 9 | AJ35: 2 | AK35: Natural | AL35: 41 | AM35: HUILA | AN35: Aprobado con subsidio | AO35: PEQUEÑA | AP35: 1081 | AQ35: INDUSTRIAS MANUFACTURERAS | AR35: C | AS35: Elaboración de otros productos alimenticios | AT35: Elaboración de productos alimenticios | AU35: 6 | AV35: 3 | AW35: 0 | BI35: 23417 | BJ35: 3 | BK35: 25175 | BL35: 50
C36: 5440 | D36: MARINILLA | E36: 5 | F36: 1 | G36: Jurídica | H36: 5 | I36: ANTIOQUIA | J36: Aprobado con subsidio | K36: MICRO | L36: 4921 | M36: TRANSPORTE Y ALMACENAMIENTO | N36: H | O36: Transporte terrestre publico automotor | P36: Transporte terrestre publico automotor | Q36: 1 | R36: 4 | S36: 0 | AE36: 0 | AF36: 0 | AG36: 52001 | AH36: PASTO | AI36: 10 | AJ36: 1 | AK36: Natural | AL36: 52 | AM36: NARIÑO | AN36: Aprobado con subsidio | AO36: PEQUEÑA | AP36: 3110 | AQ36: INDUSTRIAS MANUFACTURERAS | AR36: C | AS36: Fabricación de muebles | AT36: Fabricación de muebles, colchones y somieres | AU36: 1 | AV36: 9 | AW36: 0 | BI36: 50573 | BJ36: 3 | BK36: 68276 | BL36: 48
C37: 25473 | D37: MOSQUERA | E37: 4 | F37: 9 | G37: Jurídica | H37: 25 | I37: CUNDINAMARCA | J37: Aprobado con subsidio | K37: PEQUEÑA | L37: 4664 | M37: COMERCIO AL POR MAYOR Y AL POR MENOR; REPARACIÓN DE VEHÍCULOS AUTOMOTORES Y MOTOCICLETAS | N37: G | O37: Comercio al por mayor especializado de otros productos | P37: Comercio al por mayor especializado de otros productos | Q37: 2 | R37: 2 | S37: 0 | AE37: 0 | AF37: 0 | AG37: 68001 | AH37: BUCARAMANGA | AI37: 2 | AJ37: 0 | AK37: Jurídica | AL37: 68 | AM37: SANTANDER | AN37: Aprobado con subsidio | AO37: MICRO | AP37: 1811 | AQ37: INDUSTRIAS MANUFACTURERAS | AR37: C | AS37: Actividades de impresión y actividades de servicios relacionados con la impresión | AT37: Actividades de impresión y de producción de copias a partir de grabaciones originales | AU37: 2 | AV37: 0 | AW37: 0 | BI37: 76111 | BJ37: 19 | BK37: 68081 | BL37: 45
C38: 76869 | D38: VIJES | E38: 6 | F38: 0 | G38: Natural | H38: 76 | I38: VALLE DEL CAUCA | J38: Aprobado con subsidio | K38: MICRO | L38: 2399 | M38: INDUSTRIAS MANUFACTURERAS | N38: C | O38: Fabricación de productos minerales no metálicos n.c.p. | P38: Fabricación de otros productos minerales no metálicos | Q38: 0 | R38: 6 | S38: 0 | AE38: 0 | AF38: 0 | AG38: 76892 | AH38: YUMBO | AI38: 6 | AJ38: 1 | AK38: Jurídica | AL38: 76 | AM38: VALLE DEL CAUCA | AN38: Aprobado con subsidio | AO38: MICRO | AP38: 3312 | AQ38: INDUSTRIAS MANUFACTURERAS | AR38: C | AS38: Mantenimiento y reparación especializado de productos elaborados en metal y de maquinaria y equipo | AT38: Instalación, mantenimiento y reparación especializado de maquinaria y equipo | AU38: 1 | AV38: 5 | AW38: 0 | BI38: 47001 | BJ38: 80 | BK38: 20001 | BL38: 43
C39: 25175 | D39: CHÍA | E39: 5 | F39: 0 | G39: Jurídica | H39: 25 | I39: CUNDINAMARCA | J39: Aprobado con subsidio | K39: MICRO | L39: 4752 | M39: COMERCIO AL POR MAYOR Y AL POR MENOR; REPARACIÓN DE VEHÍCULOS AUTOMOTORES Y MOTOCICLETAS | N39: G | O39: Comercio al por menor de otros enseres domésticos en establecimientos especializados | P39: Comercio al por menor de otros enseres domésticos en establecimientos especializados | Q39: 1 | R39: 4 | S39: 0 | AE39: 0 | AF39: 0 | AG39: 76001 | AH39: CALI | AI39: 68 | AJ39: 19 | AK39: Jurídica | AL39: 76 | AM39: VALLE DEL CAUCA | AN39: Aprobado con subsidio | AO39: MEDIANA | AP39: 1410 | AQ39: INDUSTRIAS MANUFACTURERAS | AR39: C | AS39: Confección de prendas de vestir, excepto prendas de piel | AT39: Confección de prendas de vestir | AU39: 56 | AV39: 12 | AW39: 0 | BI39: 5360 | BJ39: 416 | BK39: 5318 | BL39: 40
C40: 11001 | D40: BOGOTÁ, D.C. | E40: 2 | F40: 3 | G40: Jurídica | H40: 11 | I40: BOGOTÁ, D.C. | J40: Aprobado con subsidio | K40: MICRO | L40: 4530 | M40: COMERCIO AL POR MAYOR Y AL POR MENOR; REPARACIÓN DE VEHÍCULOS AUTOMOTORES Y MOTOCICLETAS | N40: G | O40: Comercio de partes, piezas (autopartes) y accesorios (lujos) para vehículos automotores | P40: Comercio de partes, piezas (autopartes) y accesorios (lujos) para vehículos automotores | Q40: 0 | R40: 2 | S40: 0 | AE40: 0 | AF40: 0 | AG40: 76892 | AH40: YUMBO | AI40: 3 | AJ40: 7 | AK40: Jurídica | AL40: 76 | AM40: VALLE DEL CAUCA | AN40: Aprobado con subsidio | AO40: PEQUEÑA | AP40: 1702 | AQ40: INDUSTRIAS MANUFACTURERAS | AR40: C | AS40: Fabricación de papel, cartón y productos de papel y cartón | AT40: Fabricación de papel, cartón y productos de papel y cartón | AU40: 1 | AV40: 2 | AW40: 0 | BI40: 5042 | BJ40: 4 | BK40: 76130 | BL40: 39
C41: 15322 | D41: GUATEQUE | E41: 0 | F41: 0 | G41: Jurídica | H41: 15 | I41: BOYACÁ | J41: 0 | K41: PEQUEÑA | L41: 4290 | M41: CONSTRUCCIÓN | N41: F | O41: Construcción de otras obras de ingeniería civil | P41: Construcción de otras obras de ingeniería civil | Q41: 0 | R41: 0 | S41: 0 | AE41: 0 | AF41: 0 | AG41: 5001 | AH41: MEDELLÍN | AI41: 28 | AJ41: 1 | AK41: Jurídica | AL41: 5 | AM41: ANTIOQUIA | AN41: Aprobado con subsidio | AO41: PEQUEÑA | AP41: 2023 | AQ41: INDUSTRIAS MANUFACTURERAS | AR41: C | AS41: Fabricación de otros productos químicos | AT41: Fabricación de sustancias y productos químicos | AU41: 25 | AV41: 3 | AW41: 0 | BI41: 68307 | BJ41: 57 | BK41: 76147 | BL41: 38
C42: 8001 | D42: BARRANQUILLA | E42: 7 | F42: 0 | G42: Jurídica | H42: 8 | I42: ATLÁNTICO | J42: Aprobado con subsidio | K42: MICRO | L42: 3319 | M42: INDUSTRIAS MANUFACTURERAS | N42: C | O42: Mantenimiento y reparación especializado de productos elaborados en metal y de maquinaria y equipo | P42: Instalación, mantenimiento y reparación especializado de maquinaria y equipo | Q42: 1 | R42: 6 | S42: 0 | AE42: 0 | AF42: 0 | AG42: 91001 | AH42: LETICIA | AI42: 9 | AJ42: 46 | AK42: Jurídica | AL42: 91 | AM42: AMAZONAS | AN42: Aprobado con subsidio | AO42: MEDIANA | AP42: 1104 | AQ42: INDUSTRIAS MANUFACTURERAS | AR42: C | AS42: Elaboración de bebidas | AT42: Elaboración de bebidas | AU42: 2 | AV42: 7 | AW42: 0 | BI42: 81001 | BJ42: 7 | BK42: 5045 | BL42: 37
C43: 11001 | D43: BOGOTÁ, D.C. | E43: 5 | F43: 1 | G43: Jurídica | H43: 11 | I43: BOGOTÁ, D.C. | J43: Aprobado con subsidio | K43: MICRO | L43: 3312 | M43: INDUSTRIAS MANUFACTURERAS | N43: C | O43: Mantenimiento y reparación especializado de productos elaborados en metal y de maquinaria y equipo | P43: Instalación, mantenimiento y reparación especializado de maquinaria y equipo | Q43: 1 | R43: 4 | S43: 0 | AE43: 0 | AF43: 0 | AG43: 25286 | AH43: FUNZA | AI43: 7 | AJ43: 58 | AK43: Jurídica | AL43: 25 | AM43: CUNDINAMARCA | AN43: Aprobado con subsidio | AO43: MEDIANA | AP43: 2712 | AQ43: INDUSTRIAS MANUFACTURERAS | AR43: C | AS43: Fabricación de motores, generadores y transformadores eléctricos y de aparatos de distribución y control de la energía eléctrica | AT43: Fabricación de aparatos y equipo eléctrico | AU43: 4 | AV43: 3 | AW43: 0 | BI43: 44430 | BJ43: 4 | BK43: 15001 | BL43: 36
C44: 47189 | D44: CIÉNAGA | E44: 14 | F44: 68 | G44: Jurídica | H44: 47 | I44: MAGDALENA | J44: Aprobado con subsidio | K44: MEDIANA | L44: 4921 | M44: TRANSPORTE Y ALMACENAMIENTO | N44: H | O44: Transporte terrestre publico automotor | P44: Transporte terrestre publico automotor | Q44: 4 | R44: 10 | S44: 0 | AE44: 0 | AF44: 0 | AG44: 5308 | AH44: GIRARDOTA | AI44: 10 | AJ44: 15 | AK44: Jurídica | AL44: 5 | AM44: ANTIOQUIA | AN44: Aprobado con subsidio | AO44: PEQUEÑA | AP44: 3110 | AQ44: INDUSTRIAS MANUFACTURERAS | AR44: C | AS44: Fabricación de muebles | AT44: Fabricación de muebles, colchones y somieres | AU44: 2 | AV44: 8 | AW44: 0 | BI44: 99001 | BJ44: 1 | BK44: 8758 | BL44: 34
C45: 11001 | D45: BOGOTÁ, D.C. | E45: 2 | F45: 0 | G45: Jurídica | H45: 11 | I45: BOGOTÁ, D.C. | J45: Aprobado con subsidio | K45: MICRO | L45: 6920 | M45: ACTIVIDADES PROFESIONALES, CIENTÍFICAS Y TÉCNICAS | N45: M | O45: Actividades de contabilidad, teneduría de libros, auditoria financiera y asesoría tributaria | P45: Actividades de contabilidad, teneduría de libros, auditoria financiera y asesoría tributaria | Q45: 2 | R45: 0 | S45: 0 | AE45: 0 | AF45: 0 | AG45: 11001 | AH45: BOGOTÁ, D.C. | AI45: 79 | AJ45: 43 | AK45: Jurídica | AL45: 11 | AM45: BOGOTÁ, D.C. | AN45: Aprobado con subsidio | AO45: MEDIANA | AP45: 2593 | AQ45: INDUSTRIAS MANUFACTURERAS | AR45: C | AS45: Fabricación de otros productos elaborados de metal y actividades de servicios relacionadas con el trabajo de metales | AT45: Fabricación de productos elaborados de metal, excepto maquinaria y equipo | AU45: 49 | AV45: 30 | AW45: 0 | BI45: 68547 | BJ45: 24 | BK45: 5129 | BL45: 34
C46: 41001 | D46: NEIVA | E46: 131 | F46: 15 | G46: Jurídica | H46: 41 | I46: HUILA | J46: Aprobado con subsidio | K46: GRANDE | L46: 7710 | M46: ACTIVIDADES DE SERVICIOS ADMINISTRATIVOS Y DE APOYO | N46: N | O46: Alquiler y arrendamiento de vehículos automotores | P46: Alquiler y arrendamiento de vehículos automotores | Q46: 8 | R46: 123 | S46: 0 | AE46: 0 | AF46: 0 | AG46: 11001 | AH46: BOGOTÁ, D.C. | AI46: 78 | AJ46: 25 | AK46: Jurídica | AL46: 11 | AM46: BOGOTÁ, D.C. | AN46: Aprobado con subsidio | AO46: MEDIANA | AP46: 1410 | AQ46: INDUSTRIAS MANUFACTURERAS | AR46: C | AS46: Confección de prendas de vestir, excepto prendas de piel | AT46: Confección de prendas de vestir | AU46: 73 | AV46: 5 | AW46: 0 | BI46: 86001 | BJ46: 5 | BK46: 25899 | BL46: 33
C47: 25572 | D47: PUERTO SALGAR | E47: 2 | F47: 11 | G47: Jurídica | H47: 25 | I47: CUNDINAMARCA | J47: Aprobado con subsidio | K47: PEQUEÑA | L47: 4290 | M47: CONSTRUCCIÓN | N47: F | O47: Construcción de otras obras de ingeniería civil | P47: Construcción de otras obras de ingeniería civil | Q47: 2 | R47: 0 | S47: 0 | AE47: 0 | AF47: 0 | AG47: 5001 | AH47: MEDELLÍN | AI47: 8 | AJ47: 17 | AK47: Jurídica | AL47: 5 | AM47: ANTIOQUIA | AN47: Aprobado con subsidio | AO47: PEQUEÑA | AP47: 1012 | AQ47: INDUSTRIAS MANUFACTURERAS | AR47: C | AS47: Procesamiento y conservación de carne, pescado, crustáceos y moluscos | AT47: Elaboración de productos alimenticios | AU47: 5 | AV47: 3 | AW47: 0 | BI47: 5318 | BJ47: 40 | BK47: 70001 | BL47: 32
C48: 73483 | D48: NATAGAIMA | E48: 2 | F48: 3 | G48: Jurídica | H48: 73 | I48: TOLIMA | J48: Aprobado con subsidio | K48: MICRO | L48: 4620 | M48: COMERCIO AL POR MAYOR Y AL POR MENOR; REPARACIÓN DE VEHÍCULOS AUTOMOTORES Y MOTOCICLETAS | N48: G | O48: Comercio al por mayor de materias primas agropecuarias; animales vivos | P48: Comercio al por mayor de materias primas agropecuarias; animales vivos | Q48: 1 | R48: 1 | S48: 0 | AE48: 0 | AF48: 0 | AG48: 11001 | AH48: BOGOTÁ, D.C. | AI48: 13 | AJ48: 8 | AK48: Jurídica | AL48: 11 | AM48: BOGOTÁ, D.C. | AN48: Aprobado con subsidio | AO48: PEQUEÑA | AP48: 1011 | AQ48: INDUSTRIAS MANUFACTURERAS | AR48: C | AS48: Procesamiento y conservación de carne, pescado, crustáceos y moluscos | AT48: Elaboración de productos alimenticios | AU48: 5 | AV48: 8 | AW48: 0 | BI48: 66170 | BJ48: 126 | BK48: 5697 | BL48: 32
C49: 86320 | D49: ORITO | E49: 1 | F49: 80 | G49: Jurídica | H49: 86 | I49: PUTUMAYO | J49: Aprobado con subsidio | K49: MEDIANA | L49: 5621 | M49: ALOJAMIENTO Y SERVICIOS DE COMIDA | N49: I | O49: Actividades de catering para eventos y otros servicios de comidas | P49: Actividades de catering para eventos y otros servicios de comidas | Q49: 1 | R49: 0 | S49: 0 | AE49: 0 | AF49: 0 | AG49: 11001 | AH49: BOGOTÁ, D.C. | AI49: 0 | AJ49: 0 | AK49: Jurídica | AL49: 11 | AM49: BOGOTÁ, D.C. | AN49: 0 | AO49: MICRO | AP49: 1811 | AQ49: INDUSTRIAS MANUFACTURERAS | AR49: C | AS49: Actividades de impresión y actividades de servicios relacionados con la impresión | AT49: Actividades de impresión y de producción de copias a partir de grabaciones originales | AU49: 0 | AV49: 0 | AW49: 0 | BI49: 25473 | BJ49: 91 | BK49: 25430 | BL49: 30
C50: 76001 | D50: CALI | E50: 10 | F50: 58 | G50: Jurídica | H50: 76 | I50: VALLE DEL CAUCA | J50: Aprobado con subsidio | K50: MEDIANA | L50: 9200 | M50: ACTIVIDADES ARTÍSTICAS, DE ENTRETENIMIENTO Y RECREACIÓN | N50: R | O50: Actividades de juegos de azar y apuestas | P50: Actividades de juegos de azar y apuestas | Q50: 2 | R50: 8 | S50: 0 | AE50: 0 | AF50: 0 | AG50: 11001 | AH50: BOGOTÁ, D.C. | AI50: 5 | AJ50: 0 | AK50: Jurídica | AL50: 11 | AM50: BOGOTÁ, D.C. | AN50: Aprobado con subsidio | AO50: MICRO | AP50: 1811 | AQ50: INDUSTRIAS MANUFACTURERAS | AR50: C | AS50: Actividades de impresión y actividades de servicios relacionados con la impresión | AT50: Actividades de impresión y de producción de copias a partir de grabaciones originales | AU50: 2 | AV50: 3 | AW50: 0 | BI50: 76895 | BJ50: 5 | BK50: 15759 | BL50: 30
C51: 63001 | D51: ARMENIA | E51: 7 | F51: 0 | G51: Jurídica | H51: 63 | I51: QUINDÍO | J51: Aprobado con subsidio | K51: MICRO | L51: 9499 | M51: OTRAS ACTIVIDADES DE SERVICIOS | N51: S | O51: Actividades de otras asociaciones | P51: Actividades de otras asociaciones | Q51: 2 | R51: 5 | S51: 0 | AE51: 0 | AF51: 0 | AG51: 11001 | AH51: BOGOTÁ, D.C. | AI51: 1 | AJ51: 0 | AK51: Jurídica | AL51: 11 | AM51: BOGOTÁ, D.C. | AN51: Aprobado con subsidio | AO51: MICRO | AP51: 1812 | AQ51: INDUSTRIAS MANUFACTURERAS | AR51: C | AS51: Actividades de impresión y actividades de servicios relacionados con la impresión | AT51: Fabricación de papel, cartón y productos de papel y cartón | AU51: 0 | AV51: 1 | AW51: 0 | BI51: 5631 | BJ51: 139 | BK51: 19001 | BL51: 29
C52: 63001 | D52: ARMENIA | E52: 5 | F52: 2 | G52: Jurídica | H52: 63 | I52: QUINDÍO | J52: Aprobado con subsidio | K52: MICRO | L52: 4663 | M52: COMERCIO AL POR MAYOR Y AL POR MENOR; REPARACIÓN DE VEHÍCULOS AUTOMOTORES Y MOTOCICLETAS | N52: G | O52: Comercio al por mayor especializado de otros productos | P52: Comercio al por mayor especializado de otros productos | Q52: 2 | R52: 3 | S52: 0 | AE52: 0 | AF52: 0 | AG52: 76001 | AH52: CALI | AI52: 1 | AJ52: 5 | AK52: Jurídica | AL52: 76 | AM52: VALLE DEL CAUCA | AN52: Aprobado con subsidio | AO52: PEQUEÑA | AP52: 2512 | AQ52: INDUSTRIAS MANUFACTURERAS | AR52: C | AS52: Fabricación de productos metálicos para uso estructural, tanques, depósitos y generadores de vapor. | AT52: Fabricación de productos elaborados de metal, excepto maquinaria y equipo | AU52: 0 | AV52: 1 | AW52: 0 | BI52: 5088 | BJ52: 129 | BK52: 5376 | BL52: 29
C53: 63001 | D53: ARMENIA | E53: 7 | F53: 14 | G53: Jurídica | H53: 63 | I53: QUINDÍO | J53: Aprobado con subsidio | K53: PEQUEÑA | L53: 2823 | M53: INDUSTRIAS MANUFACTURERAS | N53: C | O53: Fabricación de maquinaria y equipo de uso especial | P53: Fabricación de maquinaria y equipo n.c.p. | Q53: 3 | R53: 4 | S53: 0 | AE53: 0 | AF53: 0 | AG53: 25307 | AH53: GIRARDOT | AI53: 6 | AJ53: 0 | AK53: Natural | AL53: 25 | AM53: CUNDINAMARCA | AN53: Aprobado con subsidio | AO53: MICRO | AP53: 1081 | AQ53: INDUSTRIAS MANUFACTURERAS | AR53: C | AS53: Elaboración de otros productos alimenticios | AT53: Elaboración de productos alimenticios | AU53: 2 | AV53: 4 | AW53: 0 | BI53: 5615 | BJ53: 124 | BK53: 25817 | BL53: 28
C54: 73001 | D54: IBAGUÉ | E54: 6 | F54: 10 | G54: Jurídica | H54: 73 | I54: TOLIMA | J54: Aprobado con subsidio | K54: PEQUEÑA | L54: 145 | M54: AGRICULTURA, GANADERÍA, CAZA, SILVICULTURA Y PESCA | N54: A | O54: Ganadería | P54: Ganadería | Q54: 2 | R54: 4 | S54: 0 | AE54: 0 | AF54: 0 | AG54: 11001 | AH54: BOGOTÁ, D.C. | AI54: 3 | AJ54: 1 | AK54: Jurídica | AL54: 11 | AM54: BOGOTÁ, D.C. | AN54: Aprobado con subsidio | AO54: PEQUEÑA | AP54: 3312 | AQ54: INDUSTRIAS MANUFACTURERAS | AR54: C | AS54: Mantenimiento y reparación especializado de productos elaborados en metal y de maquinaria y equipo | AT54: Instalación, mantenimiento y reparación especializado de maquinaria y equipo | AU54: 0 | AV54: 3 | AW54: 0 | BI54: 47189 | BJ54: 9 | BK54: 25126 | BL54: 27
C55: 8001 | D55: BARRANQUILLA | E55: 4 | F55: 0 | G55: Jurídica | H55: 8 | I55: ATLÁNTICO | J55: Aprobado con subsidio | K55: MICRO | L55: 9491 | M55: OTRAS ACTIVIDADES DE SERVICIOS | N55: S | O55: Actividades de otras asociaciones | P55: Actividades de otras asociaciones | Q55: 2 | R55: 2 | S55: 0 | AE55: 0 | AF55: 0 | AG55: 76001 | AH55: CALI | AI55: 3 | AJ55: 0 | AK55: Jurídica | AL55: 76 | AM55: VALLE DEL CAUCA | AN55: Aprobado con subsidio | AO55: MICRO | AP55: 1521 | AQ55: INDUSTRIAS MANUFACTURERAS | AR55: C | AS55: Fabricación de calzado | AT55: Curtido y recurtido de cueros; fabricación de calzado; fabricación de artículos de viaje, maletas, bolsos de mano y artículos similares, y fabricación de artículos de talabartería y guarnicionería; adobo y teñido de pieles | AU55: 2 | AV55: 1 | AW55: 0 | BI55: 20001 | BJ55: 43 | BK55: 85001 | BL55: 26
C56: 8573 | D56: PUERTO COLOMBIA | E56: 12 | F56: 63 | G56: Jurídica | H56: 8 | I56: ATLÁNTICO | J56: Aprobado con subsidio | K56: MEDIANA | L56: 4210 | M56: CONSTRUCCIÓN | N56: F | O56: Construcción de carreteras y vías de ferrocarril | P56: Construcción de carreteras y vías de ferrocarril | Q56: 3 | R56: 9 | S56: 0 | AE56: 0 | AF56: 0 | AG56: 25758 | AH56: SOPÓ | AI56: 3 | AJ56: 1 | AK56: Jurídica | AL56: 25 | AM56: CUNDINAMARCA | AN56: Aprobado con subsidio | AO56: MICRO | AP56: 3312 | AQ56: INDUSTRIAS MANUFACTURERAS | AR56: C | AS56: Mantenimiento y reparación especializado de productos elaborados en metal y de maquinaria y equipo | AT56: Instalación, mantenimiento y reparación especializado de maquinaria y equipo | AU56: 0 | AV56: 3 | AW56: 0 | BI56: 25430 | BJ56: 30 | BK56: 5308 | BL56: 26
C57: 8001 | D57: BARRANQUILLA | E57: 3 | F57: 1 | G57: Jurídica | H57: 8 | I57: ATLÁNTICO | J57: Aprobado con subsidio | K57: MICRO | L57: 4774 | M57: COMERCIO AL POR MAYOR Y AL POR MENOR; REPARACIÓN DE VEHÍCULOS AUTOMOTORES Y MOTOCICLETAS | N57: G | O57: Comercio al por menor de otros productos en establecimientos especializados | P57: Comercio al por menor de otros productos en establecimientos especializados | Q57: 2 | R57: 1 | S57: 0 | AE57: 0 | AF57: 0 | AG57: 68001 | AH57: BUCARAMANGA | AI57: 14 | AJ57: 10 | AK57: Natural | AL57: 68 | AM57: SANTANDER | AN57: Aprobado con subsidio | AO57: PEQUEÑA | AP57: 1811 | AQ57: INDUSTRIAS MANUFACTURERAS | AR57: C | AS57: Actividades de impresión y actividades de servicios relacionados con la impresión | AT57: Actividades de impresión y de producción de copias a partir de grabaciones originales | AU57: 9 | AV57: 5 | AW57: 0 | BI57: 23466 | BJ57: 4 | BK57: 5440 | BL57: 25
C58: 8001 | D58: BARRANQUILLA | E58: 87 | F58: 23 | G58: Jurídica | H58: 8 | I58: ATLÁNTICO | J58: Aprobado con subsidio | K58: MEDIANA | L58: 1410 | M58: INDUSTRIAS MANUFACTURERAS | N58: C | O58: Confección de prendas de vestir, excepto prendas de piel | P58: Confección de prendas de vestir | Q58: 73 | R58: 14 | S58: 0 | AE58: 0 | AF58: 0 | AG58: 11001 | AH58: BOGOTÁ, D.C. | AI58: 29 | AJ58: 8 | AK58: Natural | AL58: 11 | AM58: BOGOTÁ, D.C. | AN58: Aprobado con subsidio | AO58: PEQUEÑA | AP58: 1523 | AQ58: INDUSTRIAS MANUFACTURERAS | AR58: C | AS58: Fabricación de calzado | AT58: Curtido y recurtido de cueros; fabricación de calzado; fabricación de artículos de viaje, maletas, bolsos de mano y artículos similares, y fabricación de artículos de talabartería y guarnicionería; adobo y teñido de pieles | AU58: 17 | AV58: 12 | AW58: 0 | BI58: 66682 | BJ58: 17 | BK58: 68547 | BL58: 24
C59: 8001 | D59: BARRANQUILLA | E59: 11 | F59: 14 | G59: Jurídica | H59: 8 | I59: ATLÁNTICO | J59: Aprobado con subsidio | K59: PEQUEÑA | L59: 8523 | M59: EDUCACIÓN | N59: P | O59: Educación secundaria y de formación laboral | P59: Educación secundaria y de formación laboral | Q59: 9 | R59: 2 | S59: 0 | AE59: 0 | AF59: 0 | AG59: 13001 | AH59: CARTAGENA | AI59: 4 | AJ59: 64 | AK59: Jurídica | AL59: 13 | AM59: BOLÍVAR | AN59: Aprobado con subsidio | AO59: MEDIANA | AP59: 2229 | AQ59: INDUSTRIAS MANUFACTURERAS | AR59: C | AS59: Fabricación de productos de plástico | AT59: Fabricación de productos de caucho y de plástico | AU59: 1 | AV59: 3 | AW59: 0 | BI59: 5266 | BJ59: 153 | BK59: 76834 | BL59: 24
C60: 8001 | D60: BARRANQUILLA | E60: 5 | F60: 19 | G60: Jurídica | H60: 8 | I60: ATLÁNTICO | J60: Aprobado con subsidio | K60: PEQUEÑA | L60: 4923 | M60: TRANSPORTE Y ALMACENAMIENTO | N60: H | O60: Transporte terrestre publico automotor | P60: Transporte terrestre publico automotor | Q60: 2 | R60: 3 | S60: 0 | AE60: 0 | AF60: 0 | AG60: 11001 | AH60: BOGOTÁ, D.C. | AI60: 3 | AJ60: 1 | AK60: Jurídica | AL60: 11 | AM60: BOGOTÁ, D.C. | AN60: Aprobado con subsidio | AO60: PEQUEÑA | AP60: 3290 | AQ60: INDUSTRIAS MANUFACTURERAS | AR60: C | AS60: Otras industrias manufactureras n.c.p. | AT60: Otras industrias manufactureras | AU60: 3 | AV60: 0 | AW60: 0 | BI60: 5380 | BJ60: 123 | BK60: 25799 | BL60: 24
C61: 8001 | D61: BARRANQUILLA | E61: 1 | F61: 0 | G61: Jurídica | H61: 8 | I61: ATLÁNTICO | J61: Aprobado con subsidio | K61: MICRO | L61: 9499 | M61: OTRAS ACTIVIDADES DE SERVICIOS | N61: S | O61: Actividades de otras asociaciones | P61: Actividades de otras asociaciones | Q61: 1 | R61: 0 | S61: 0 | AE61: 0 | AF61: 0 | AG61: 11001 | AH61: BOGOTÁ, D.C. | AI61: 4 | AJ61: 8 | AK61: Jurídica | AL61: 11 | AM61: BOGOTÁ, D.C. | AN61: Aprobado con subsidio | AO61: PEQUEÑA | AP61: 1399 | AQ61: INDUSTRIAS MANUFACTURERAS | AR61: C | AS61: Fabricación de otros productos textiles | AT61: Fabricación de productos textiles | AU61: 2 | AV61: 2 | AW61: 0 | BI61: 23162 | BJ61: 8 | BK61: 5607 | BL61: 23
C62: 11001 | D62: BOGOTÁ, D.C. | E62: 2 | F62: 2 | G62: Jurídica | H62: 11 | I62: BOGOTÁ, D.C. | J62: Aprobado con subsidio | K62: MICRO | L62: 8621 | M62: ACTIVIDADES DE ATENCIÓN DE LA SALUD HUMANA Y DE ASISTENCIA SOCIAL | N62: Q | O62: Actividades de práctica médica y odontológica, sin internación | P62: Actividades de práctica médica y odontológica, sin internación | Q62: 1 | R62: 1 | S62: 0 | AE62: 0 | AF62: 0 | AG62: 11001 | AH62: BOGOTÁ, D.C. | AI62: 244 | AJ62: 494 | AK62: Jurídica | AL62: 11 | AM62: BOGOTÁ, D.C. | AN62: Aprobado con subsidio | AO62: MUY GRANDE | AP62: 1081 | AQ62: INDUSTRIAS MANUFACTURERAS | AR62: C | AS62: Elaboración de otros productos alimenticios | AT62: Elaboración de productos alimenticios | AU62: 152 | AV62: 92 | AW62: 0 | BI62: 50689 | BJ62: 1 | BK62: 63130 | BL62: 22
C63: 25175 | D63: CHÍA | E63: 0 | F63: 0 | G63: Jurídica | H63: 25 | I63: CUNDINAMARCA | J63: 0 | K63: MICRO | L63: 9491 | M63: OTRAS ACTIVIDADES DE SERVICIOS | N63: S | O63: Actividades de otras asociaciones | P63: Actividades de otras asociaciones | Q63: 0 | R63: 0 | S63: 0 | AE63: 0 | AF63: 0 | AG63: 11001 | AH63: BOGOTÁ, D.C. | AI63: 4 | AJ63: 6 | AK63: Jurídica | AL63: 11 | AM63: BOGOTÁ, D.C. | AN63: Aprobado con subsidio | AO63: MICRO | AP63: 1811 | AQ63: INDUSTRIAS MANUFACTURERAS | AR63: C | AS63: Actividades de impresión y actividades de servicios relacionados con la impresión | AT63: Actividades de impresión y de producción de copias a partir de grabaciones originales | AU63: 2 | AV63: 2 | AW63: 0 | BI63: 68081 | BJ63: 45 | BK63: 54874 | BL63: 20
C64: 25175 | D64: CHÍA | E64: 5 | F64: 5 | G64: Jurídica | H64: 25 | I64: CUNDINAMARCA | J64: Aprobado con subsidio | K64: MICRO | L64: 3110 | M64: INDUSTRIAS MANUFACTURERAS | N64: C | O64: Fabricación de muebles | P64: Fabricación de muebles, colchones y somieres | Q64: 1 | R64: 4 | S64: 0 | AE64: 0 | AF64: 0 | AG64: 76892 | AH64: YUMBO | AI64: 1 | AJ64: 3 | AK64: Jurídica | AL64: 76 | AM64: VALLE DEL CAUCA | AN64: Aprobado con subsidio | AO64: MICRO | AP64: 1081 | AQ64: INDUSTRIAS MANUFACTURERAS | AR64: C | AS64: Elaboración de otros productos alimenticios | AT64: Elaboración de productos alimenticios | AU64: 0 | AV64: 1 | AW64: 0 | BI64: 5847 | BJ64: 3 | BK64: 68679 | BL64: 20
C65: 81001 | D65: ARAUCA | E65: 6 | F65: 4 | G65: Jurídica | H65: 81 | I65: ARAUCA | J65: Aprobado con subsidio | K65: PEQUEÑA | L65: 5221 | M65: TRANSPORTE Y ALMACENAMIENTO | N65: H | O65: Actividades de las estaciones, vías y servicios complementarios para el transporte | P65: Actividades de las estaciones, vías y servicios complementarios para el transporte | Q65: 6 | R65: 0 | S65: 0 | AE65: 0 | AF65: 0 | AG65: 25286 | AH65: FUNZA | AI65: 11 | AJ65: 8 | AK65: Jurídica | AL65: 25 | AM65: CUNDINAMARCA | AN65: Aprobado con subsidio | AO65: PEQUEÑA | AP65: 1702 | AQ65: INDUSTRIAS MANUFACTURERAS | AR65: C | AS65: Fabricación de papel, cartón y productos de papel y cartón | AT65: Fabricación de papel, cartón y productos de papel y cartón | AU65: 5 | AV65: 6 | AW65: 0 | BI65: 68655 | BJ65: 8 | BK65: 5148 | BL65: 20
C66: 76109 | D66: BUENAVENTURA | E66: 384 | F66: 197 | G66: Jurídica | H66: 76 | I66: VALLE DEL CAUCA | J66: Aprobado con subsidio | K66: MUY GRANDE | L66: 9200 | M66: ACTIVIDADES ARTÍSTICAS, DE ENTRETENIMIENTO Y RECREACIÓN | N66: R | O66: Actividades de juegos de azar y apuestas | P66: Actividades de juegos de azar y apuestas | Q66: 362 | R66: 22 | S66: 0 | AE66: 0 | AF66: 0 | AG66: 5001 | AH66: MEDELLÍN | AI66: 3 | AJ66: 27 | AK66: Jurídica | AL66: 5 | AM66: ANTIOQUIA | AN66: Aprobado con subsidio | AO66: PEQUEÑA | AP66: 3312 | AQ66: INDUSTRIAS MANUFACTURERAS | AR66: C | AS66: Mantenimiento y reparación especializado de productos elaborados en metal y de maquinaria y equipo | AT66: Instalación, mantenimiento y reparación especializado de maquinaria y equipo | AU66: 3 | AV66: 0 | AW66: 0 | BI66: 76147 | BJ66: =COUNTIFS($AN$2:$AN$399999,"Aprobado con subsidio",$AG$2:$AG$399999,BI66) -> 38 | BK66: 76111 | BL66: 19
C67: 52356 | D67: IPIALES | E67: 2 | F67: 6 | G67: Jurídica | H67: 52 | I67: NARIÑO | J67: Aprobado con subsidio | K67: MICRO | L67: 6202 | M67: INFORMACIÓN Y COMUNICACIONES | N67: J | O67: Desarrollo de sistemas informáticos (planificación, análisis, diseño, programación, pruebas), consultoría informática y actividades relacionadas. | P67: Desarrollo de sistemas informáticos (planificación, análisis, diseño, programación, pruebas), consultoría informática y actividades relacionadas. | Q67: 0 | R67: 2 | S67: 0 | AE67: 0 | AF67: 0 | AG67: 11001 | AH67: BOGOTÁ, D.C. | AI67: 2 | AJ67: 1 | AK67: Jurídica | AL67: 11 | AM67: BOGOTÁ, D.C. | AN67: Aprobado con subsidio | AO67: MICRO | AP67: 2029 | AQ67: INDUSTRIAS MANUFACTURERAS | AR67: C | AS67: Fabricación de otros productos químicos | AT67: Fabricación de sustancias y productos químicos | AU67: 2 | AV67: 0 | AW67: 0 | BI67: 25754 | BJ67: 129 | BK67: 41551 | BL67: 19
C68: 91001 | D68: LETICIA | E68: 18 | F68: 2 | G68: Jurídica | H68: 91 | I68: AMAZONAS | J68: Aprobado con subsidio | K68: PEQUEÑA | L68: 8530 | M68: EDUCACIÓN | N68: P | O68: Establecimientos que combinan diferentes niveles de educación | P68: Establecimientos que combinan diferentes niveles de educación | Q68: 13 | R68: 5 | S68: 0 | AE68: 0 | AF68: 0 | AG68: 11001 | AH68: BOGOTÁ, D.C. | AI68: 1 | AJ68: 10 | AK68: Jurídica | AL68: 11 | AM68: BOGOTÁ, D.C. | AN68: Aprobado con subsidio | AO68: PEQUEÑA | AP68: 3320 | AQ68: INDUSTRIAS MANUFACTURERAS | AR68: C | AS68: Instalación especializada de maquinaria y equipo industrial | AT68: Instalación, mantenimiento y reparación especializado de maquinaria y equipo | AU68: 1 | AV68: 0 | AW68: 0 | BI68: 15516 | BJ68: 12 | BK68: 5079 | BL68: 19
C69: 44430 | D69: MAICAO | E69: 4 | F69: 3 | G69: Jurídica | H69: 44 | I69: LA GUAJIRA | J69: Aprobado con subsidio | K69: MICRO | L69: 4711 | M69: COMERCIO AL POR MAYOR Y AL POR MENOR; REPARACIÓN DE VEHÍCULOS AUTOMOTORES Y MOTOCICLETAS | N69: G | O69: Comercio al por menor en establecimientos no especializados | P69: Comercio al por menor en establecimientos no especializados | Q69: 2 | R69: 2 | S69: 0 | AE69: 0 | AF69: 0 | AG69: 11001 | AH69: BOGOTÁ, D.C. | AI69: 1 | AJ69: 4 | AK69: Jurídica | AL69: 11 | AM69: BOGOTÁ, D.C. | AN69: Aprobado con subsidio | AO69: MICRO | AP69: 2599 | AQ69: INDUSTRIAS MANUFACTURERAS | AR69: C | AS69: Fabricación de otros productos elaborados de metal y actividades de servicios relacionadas con el trabajo de metales | AT69: Fabricación de productos elaborados de metal, excepto maquinaria y equipo | AU69: 0 | AV69: 1 | AW69: 0 | BI69: 19698 | BJ69: 16 | BK69: 18001 | BL69: 18
C70: 85001 | D70: YOPAL | E70: 6 | F70: 20 | G70: Jurídica | H70: 85 | I70: CASANARE | J70: Aprobado con subsidio | K70: PEQUEÑA | L70: 7730 | M70: ACTIVIDADES DE SERVICIOS ADMINISTRATIVOS Y DE APOYO | N70: N | O70: Alquiler y arrendamiento de otros tipos de maquinaria, equipo y bienes tangibles n.c.p. | P70: Alquiler y arrendamiento de otros tipos de maquinaria, equipo y bienes tangibles n.c.p. | Q70: 2 | R70: 4 | S70: 0 | AE70: 0 | AF70: 0 | AG70: 76520 | AH70: PALMIRA | AI70: 6 | AJ70: 0 | AK70: Natural | AL70: 76 | AM70: VALLE DEL CAUCA | AN70: Aprobado con subsidio | AO70: MICRO | AP70: 1081 | AQ70: INDUSTRIAS MANUFACTURERAS | AR70: C | AS70: Elaboración de otros productos alimenticios | AT70: Elaboración de productos alimenticios | AU70: 2 | AV70: 4 | AW70: 0 | BI70: 15491 | BJ70: 6 | BK70: 66682 | BL70: 17
C71: 85001 | D71: YOPAL | E71: 8 | F71: 8 | G71: Jurídica | H71: 85 | I71: CASANARE | J71: Aprobado con subsidio | K71: PEQUEÑA | L71: 4290 | M71: CONSTRUCCIÓN | N71: F | O71: Construcción de otras obras de ingeniería civil | P71: Construcción de otras obras de ingeniería civil | Q71: 4 | R71: 4 | S71: 0 | AE71: 0 | AF71: 0 | AG71: 76001 | AH71: CALI | AI71: 2 | AJ71: 1 | AK71: Jurídica | AL71: 76 | AM71: VALLE DEL CAUCA | AN71: Aprobado con subsidio | AO71: MICRO | AP71: 2219 | AQ71: INDUSTRIAS MANUFACTURERAS | AR71: C | AS71: Fabricación de productos de caucho | AT71: Fabricación de productos de caucho y de plástico | AU71: 2 | AV71: 0 | AW71: 0 | BI71: 25899 | BJ71: 33 | BK71: 19698 | BL71: 16
C72: 85010 | D72: AGUAZUL | E72: 3 | F72: 1 | G72: Jurídica | H72: 85 | I72: CASANARE | J72: Aprobado con subsidio | K72: MICRO | L72: 4321 | M72: CONSTRUCCIÓN | N72: F | O72: Instalaciones eléctricas, de fontanería y otras instalaciones especializadas | P72: Instalaciones eléctricas, de fontanería y otras instalaciones especializadas | Q72: 2 | R72: 1 | S72: 0 | AE72: 0 | AF72: 0 | AG72: 54518 | AH72: PAMPLONA | AI72: 8 | AJ72: 0 | AK72: Natural | AL72: 54 | AM72: NORTE DE SANTANDER | AN72: Aprobado con subsidio | AO72: MICRO | AP72: 1081 | AQ72: INDUSTRIAS MANUFACTURERAS | AR72: C | AS72: Elaboración de otros productos alimenticios | AT72: Elaboración de productos alimenticios | AU72: 5 | AV72: 3 | AW72: 0 | BI72: 54874 | BJ72: 20 | BK72: 8296 | BL72: 15
C73: 86001 | D73: MOCOA | E73: 4 | F73: 0 | G73: Jurídica | H73: 86 | I73: PUTUMAYO | J73: Aprobado con subsidio | K73: MICRO | L73: 4752 | M73: COMERCIO AL POR MAYOR Y AL POR MENOR; REPARACIÓN DE VEHÍCULOS AUTOMOTORES Y MOTOCICLETAS | N73: G | O73: Comercio al por menor de otros enseres domésticos en establecimientos especializados | P73: Comercio al por menor de otros enseres domésticos en establecimientos especializados | Q73: 2 | R73: 2 | S73: 0 | AE73: 0 | AF73: 0 | AG73: 11001 | AH73: BOGOTÁ, D.C. | AI73: 0 | AJ73: 0 | AK73: Natural | AL73: 11 | AM73: BOGOTÁ, D.C. | AN73: 0 | AO73: MICRO | AP73: 1410 | AQ73: INDUSTRIAS MANUFACTURERAS | AR73: C | AS73: Confección de prendas de vestir, excepto prendas de piel | AT73: Confección de prendas de vestir | AU73: 0 | AV73: 0 | AW73: 0 | BI73: 76306 | BJ73: 5 | BK73: 25290 | BL73: 14
C74: 86001 | D74: MOCOA | E74: 8 | F74: 2 | G74: Jurídica | H74: 86 | I74: PUTUMAYO | J74: Aprobado con subsidio | K74: PEQUEÑA | L74: 4731 | M74: COMERCIO AL POR MAYOR Y AL POR MENOR; REPARACIÓN DE VEHÍCULOS AUTOMOTORES Y MOTOCICLETAS | N74: G | O74: Comercio al por menor de combustible, lubricantes, aditivos y productos de limpieza para automotores, en establecimientos especializados | P74: Comercio al por menor de combustible, lubricantes, aditivos y productos de limpieza para automotores, en establecimientos especializados | Q74: 1 | R74: 7 | S74: 0 | AE74: 0 | AF74: 0 | AG74: 5212 | AH74: COPACABANA | AI74: 17 | AJ74: 5 | AK74: Jurídica | AL74: 5 | AM74: ANTIOQUIA | AN74: Aprobado con subsidio | AO74: MEDIANA | AP74: 1410 | AQ74: INDUSTRIAS MANUFACTURERAS | AR74: C | AS74: Confección de prendas de vestir, excepto prendas de piel | AT74: Confección de prendas de vestir | AU74: 4 | AV74: 13 | AW74: 0 | BI74: 19573 | BJ74: 8 | BK74: 54405 | BL74: 14
C75: 86001 | D75: MOCOA | E75: 8 | F75: 39 | G75: Jurídica | H75: 86 | I75: PUTUMAYO | J75: Aprobado con subsidio | K75: PEQUEÑA | L75: 8610 | M75: ACTIVIDADES DE ATENCIÓN DE LA SALUD HUMANA Y DE ASISTENCIA SOCIAL | N75: Q | O75: Actividades de hospitales y clínicas, con internación | P75: Actividades de hospitales y clínicas, con internación | Q75: 6 | R75: 2 | S75: 0 | AE75: 0 | AF75: 0 | AG75: 76892 | AH75: YUMBO | AI75: 1 | AJ75: 49 | AK75: Jurídica | AL75: 76 | AM75: VALLE DEL CAUCA | AN75: Aprobado con subsidio | AO75: MEDIANA | AP75: 1102 | AQ75: INDUSTRIAS MANUFACTURERAS | AR75: C | AS75: Elaboración de bebidas | AT75: Elaboración de bebidas | AU75: 0 | AV75: 1 | AW75: 0 | BI75: 25817 | BJ75: 28 | BK75: 25307 | BL75: 13
C76: 11001 | D76: BOGOTÁ, D.C. | E76: 10 | F76: 13 | G76: Jurídica | H76: 11 | I76: BOGOTÁ, D.C. | J76: Aprobado con subsidio | K76: PEQUEÑA | L76: 4530 | M76: COMERCIO AL POR MAYOR Y AL POR MENOR; REPARACIÓN DE VEHÍCULOS AUTOMOTORES Y MOTOCICLETAS | N76: G | O76: Comercio de partes, piezas (autopartes) y accesorios (lujos) para vehículos automotores | P76: Comercio de partes, piezas (autopartes) y accesorios (lujos) para vehículos automotores | Q76: 1 | R76: 9 | S76: 0 | AE76: 0 | AF76: 0 | AG76: 76001 | AH76: CALI | AI76: 2 | AJ76: 0 | AK76: Jurídica | AL76: 76 | AM76: VALLE DEL CAUCA | AN76: Aprobado con subsidio | AO76: MICRO | AP76: 2819 | AQ76: INDUSTRIAS MANUFACTURERAS | AR76: C | AS76: Fabricación de maquinaria y equipo de uso general | AT76: Fabricación de maquinaria y equipo n.c.p. | AU76: 1 | AV76: 1 | AW76: 0 | BI76: 8758 | BJ76: 34 | BK76: 8433 | BL76: 13
C77: 86001 | D77: MOCOA | E77: 4 | F77: 0 | G77: Jurídica | H77: 86 | I77: PUTUMAYO | J77: Aprobado con subsidio | K77: MICRO | L77: 9603 | M77: OTRAS ACTIVIDADES DE SERVICIOS | N77: S | O77: Otras actividades de servicios personales | P77: Otras actividades de servicios personales | Q77: 2 | R77: 2 | S77: 0 | AE77: 0 | AF77: 0 | AG77: 76001 | AH77: CALI | AI77: 63 | AJ77: 12 | AK77: Jurídica | AL77: 76 | AM77: VALLE DEL CAUCA | AN77: Aprobado con subsidio | AO77: MEDIANA | AP77: 1709 | AQ77: INDUSTRIAS MANUFACTURERAS | AR77: C | AS77: Fabricación de papel, cartón y productos de papel y cartón | AT77: Fabricación de papel, cartón y productos de papel y cartón | AU77: 23 | AV77: 40 | AW77: 0 | BI77: 76318 | BJ77: 2 | BK77: 88001 | BL77: 13
C78: 20001 | D78: VALLEDUPAR | E78: 8 | F78: 23 | G78: Jurídica | H78: 20 | I78: CESAR | J78: Aprobado con subsidio | K78: PEQUEÑA | L78: 4731 | M78: COMERCIO AL POR MAYOR Y AL POR MENOR; REPARACIÓN DE VEHÍCULOS AUTOMOTORES Y MOTOCICLETAS | N78: G | O78: Comercio al por menor de combustible, lubricantes, aditivos y productos de limpieza para automotores, en establecimientos especializados | P78: Comercio al por menor de combustible, lubricantes, aditivos y productos de limpieza para automotores, en establecimientos especializados | Q78: 2 | R78: 6 | S78: 0 | AE78: 0 | AF78: 0 | AG78: 54001 | AH78: CÚCUTA | AI78: 20 | AJ78: 473 | AK78: Jurídica | AL78: 54 | AM78: NORTE DE SANTANDER | AN78: Aprobado con subsidio | AO78: MUY GRANDE | AP78: 2392 | AQ78: INDUSTRIAS MANUFACTURERAS | AR78: C | AS78: Fabricación de productos minerales no metálicos n.c.p. | AT78: Fabricación de otros productos minerales no metálicos | AU78: 5 | AV78: 15 | AW78: 0 | BI78: 66400 | BJ78: 8 | BK78: 25269 | BL78: 13
C79: 15759 | D79: SOGAMOSO | E79: 3 | F79: 9 | G79: Jurídica | H79: 15 | I79: BOYACÁ | J79: Aprobado con subsidio | K79: PEQUEÑA | L79: 3822 | M79: DISTRIBUCIÓN DE AGUA; EVACUACIÓN Y TRATAMIENTO DE AGUAS RESIDUALES, GESTIÓN DE DESECHOS Y ACTIVIDADES DE SANEAMIENTO AMBIENTAL | N79: E | O79: Tratamiento y disposición de desechos | P79: Tratamiento y disposición de desechos | Q79: 0 | R79: 3 | S79: 0 | AE79: 0 | AF79: 0 | AG79: 76001 | AH79: CALI | AI79: 2 | AJ79: 0 | AK79: Jurídica | AL79: 76 | AM79: VALLE DEL CAUCA | AN79: Aprobado con subsidio | AO79: MICRO | AP79: 2511 | AQ79: INDUSTRIAS MANUFACTURERAS | AR79: C | AS79: Fabricación de productos metálicos para uso estructural, tanques, depósitos y generadores de vapor. | AT79: Fabricación de productos elaborados de metal, excepto maquinaria y equipo | AU79: 0 | AV79: 2 | AW79: 0 | BI79: 13836 | BJ79: 9 | BK79: 5686 | BL79: 13
C80: 41001 | D80: NEIVA | E80: 23 | F80: 1 | G80: Jurídica | H80: 41 | I80: HUILA | J80: Aprobado con subsidio | K80: PEQUEÑA | L80: 9499 | M80: OTRAS ACTIVIDADES DE SERVICIOS | N80: S | O80: Actividades de otras asociaciones | P80: Actividades de otras asociaciones | Q80: 14 | R80: 9 | S80: 0 | AE80: 0 | AF80: 0 | AG80: 11001 | AH80: BOGOTÁ, D.C. | AI80: 3 | AJ80: 0 | AK80: Jurídica | AL80: 11 | AM80: BOGOTÁ, D.C. | AN80: Aprobado con subsidio | AO80: MICRO | AP80: 1811 | AQ80: INDUSTRIAS MANUFACTURERAS | AR80: C | AS80: Actividades de impresión y actividades de servicios relacionados con la impresión | AT80: Actividades de impresión y de producción de copias a partir de grabaciones originales | AU80: 0 | AV80: 3 | AW80: 0 | BI80: 76130 | BJ80: 39 | BK80: 73268 | BL80: 12
C81: 11001 | D81: BOGOTÁ, D.C. | E81: 2 | F81: 0 | G81: Jurídica | H81: 11 | I81: BOGOTÁ, D.C. | J81: Aprobado con subsidio | K81: MICRO | L81: 7990 | M81: ACTIVIDADES DE SERVICIOS ADMINISTRATIVOS Y DE APOYO | N81: N | O81: Otros servicios de reserva y actividades relacionadas | P81: Otros servicios de reserva y actividades relacionadas | Q81: 2 | R81: 0 | S81: 0 | AE81: 0 | AF81: 0 | AG81: 11001 | AH81: BOGOTÁ, D.C. | AI81: 8 | AJ81: 2 | AK81: Jurídica | AL81: 11 | AM81: BOGOTÁ, D.C. | AN81: Aprobado con subsidio | AO81: PEQUEÑA | AP81: 3312 | AQ81: INDUSTRIAS MANUFACTURERAS | AR81: C | AS81: Mantenimiento y reparación especializado de productos elaborados en metal y de maquinaria y equipo | AT81: Instalación, mantenimiento y reparación especializado de maquinaria y equipo | AU81: 5 | AV81: 3 | AW81: 0 | BI81: 63130 | BJ81: 22 | BK81: 15516 | BL81: 12
C82: 76001 | D82: CALI | E82: 9 | F82: 3 | G82: Jurídica | H82: 76 | I82: VALLE DEL CAUCA | J82: Aprobado con subsidio | K82: PEQUEÑA | L82: 5512 | M82: ALOJAMIENTO Y SERVICIOS DE COMIDA | N82: I | O82: Actividades de alojamiento de estancias cortas | P82: Actividades de alojamiento de estancias cortas | Q82: 6 | R82: 3 | S82: 0 | AE82: 0 | AF82: 0 | AG82: 11001 | AH82: BOGOTÁ, D.C. | AI82: 7 | AJ82: 2 | AK82: Jurídica | AL82: 11 | AM82: BOGOTÁ, D.C. | AN82: Aprobado con subsidio | AO82: MICRO | AP82: 3312 | AQ82: INDUSTRIAS MANUFACTURERAS | AR82: C | AS82: Mantenimiento y reparación especializado de productos elaborados en metal y de maquinaria y equipo | AT82: Instalación, mantenimiento y reparación especializado de maquinaria y equipo | AU82: 0 | AV82: 7 | AW82: 0 | BI82: 15001 | BJ82: 36 | BK82: 52835 | BL82: 12
C83: 41001 | D83: NEIVA | E83: 4 | F83: 0 | G83: Jurídica | H83: 41 | I83: HUILA | J83: Aprobado con subsidio | K83: MICRO | L83: 6613 | M83: ACTIVIDADES FINANCIERAS Y DE SEGUROS | N83: K | O83: Actividades auxiliares de las actividades de servicios financieros, excepto las de seguros y pensiones | P83: Actividades auxiliares de las actividades de servicios financieros, excepto las de seguros y pensiones | Q83: 3 | R83: 1 | S83: 0 | AE83: 0 | AF83: 0 | AG83: 11001 | AH83: BOGOTÁ, D.C. | AI83: 1 | AJ83: 1 | AK83: Jurídica | AL83: 11 | AM83: BOGOTÁ, D.C. | AN83: Aprobado con subsidio | AO83: MICRO | AP83: 1410 | AQ83: INDUSTRIAS MANUFACTURERAS | AR83: C | AS83: Confección de prendas de vestir, excepto prendas de piel | AT83: Confección de prendas de vestir | AU83: 0 | AV83: 1 | AW83: 0 | BI83: 86320 | BJ83: 2 | BK83: 17873 | BL83: 12
C84: 11001 | D84: BOGOTÁ, D.C. | E84: 4 | F84: 0 | G84: Jurídica | H84: 11 | I84: BOGOTÁ, D.C. | J84: Aprobado con subsidio | K84: MICRO | L84: 4642 | M84: COMERCIO AL POR MAYOR Y AL POR MENOR; REPARACIÓN DE VEHÍCULOS AUTOMOTORES Y MOTOCICLETAS | N84: G | O84: Comercio al por mayor de artículos y enseres domésticos (incluidas prendas de vestir) | P84: Comercio al por mayor de artículos y enseres domésticos (incluidas prendas de vestir) | Q84: 3 | R84: 1 | S84: 0 | AE84: 0 | AF84: 0 | AG84: 11001 | AH84: BOGOTÁ, D.C. | AI84: 9 | AJ84: 7 | AK84: Jurídica | AL84: 11 | AM84: BOGOTÁ, D.C. | AN84: Aprobado con subsidio | AO84: PEQUEÑA | AP84: 2511 | AQ84: INDUSTRIAS MANUFACTURERAS | AR84: C | AS84: Fabricación de productos metálicos para uso estructural, tanques, depósitos y generadores de vapor. | AT84: Fabricación de productos elaborados de metal, excepto maquinaria y equipo | AU84: 2 | AV84: 7 | AW84: 0 | BI84: 50006 | BJ84: 11 | BK84: 54518 | BL84: 11
C85: 11001 | D85: BOGOTÁ, D.C. | E85: 1 | F85: 7 | G85: Jurídica | H85: 11 | I85: BOGOTÁ, D.C. | J85: Aprobado con subsidio | K85: MICRO | L85: 7490 | M85: ACTIVIDADES PROFESIONALES, CIENTÍFICAS Y TÉCNICAS | N85: M | O85: Otras actividades profesionales, científicas y técnicas n.c.p. | P85: Otras actividades profesionales, científicas y técnicas n.c.p. | Q85: 1 | R85: 0 | S85: 0 | AE85: 0 | AF85: 0 | AG85: 50001 | AH85: VILLAVICENCIO | AI85: 2 | AJ85: 5 | AK85: Jurídica | AL85: 50 | AM85: META | AN85: Aprobado con subsidio | AO85: MICRO | AP85: 3315 | AQ85: INDUSTRIAS MANUFACTURERAS | AR85: C | AS85: Mantenimiento y reparación especializado de productos elaborados en metal y de maquinaria y equipo | AT85: Instalación, mantenimiento y reparación especializado de maquinaria y equipo | AU85: 1 | AV85: 1 | AW85: 0 | BI85: 68276 | BJ85: 48 | BK85: 50006 | BL85: 11
C86: 11001 | D86: BOGOTÁ, D.C. | E86: 3 | F86: 15 | G86: Jurídica | H86: 11 | I86: BOGOTÁ, D.C. | J86: Aprobado con subsidio | K86: PEQUEÑA | L86: 8621 | M86: ACTIVIDADES DE ATENCIÓN DE LA SALUD HUMANA Y DE ASISTENCIA SOCIAL | N86: Q | O86: Actividades de práctica médica y odontológica, sin internación | P86: Actividades de práctica médica y odontológica, sin internación | Q86: 3 | R86: 0 | S86: 0 | AE86: 0 | AF86: 0 | AG86: 11001 | AH86: BOGOTÁ, D.C. | AI86: 2 | AJ86: 7 | AK86: Jurídica | AL86: 11 | AM86: BOGOTÁ, D.C. | AN86: Aprobado con subsidio | AO86: PEQUEÑA | AP86: 2511 | AQ86: INDUSTRIAS MANUFACTURERAS | AR86: C | AS86: Fabricación de productos metálicos para uso estructural, tanques, depósitos y generadores de vapor. | AT86: Fabricación de productos elaborados de metal, excepto maquinaria y equipo | AU86: 1 | AV86: 1 | AW86: 0 | BI86: 15806 | BJ86: 2 | BK86: 25200 | BL86: 11
C87: 68679 | D87: SAN GIL | E87: 1 | F87: 7 | G87: Jurídica | H87: 68 | I87: SANTANDER | J87: Aprobado con subsidio | K87: MICRO | L87: 7120 | M87: ACTIVIDADES PROFESIONALES, CIENTÍFICAS Y TÉCNICAS | N87: M | O87: Ensayos y análisis técnicos | P87: Ensayos y análisis técnicos | Q87: 1 | R87: 0 | S87: 0 | AE87: 0 | AF87: 0 | AG87: 11001 | AH87: BOGOTÁ, D.C. | AI87: 4 | AJ87: 26 | AK87: Natural | AL87: 11 | AM87: BOGOTÁ, D.C. | AN87: Aprobado con subsidio | AO87: PEQUEÑA | AP87: 3110 | AQ87: INDUSTRIAS MANUFACTURERAS | AR87: C | AS87: Fabricación de muebles | AT87: Fabricación de muebles, colchones y somieres | AU87: 2 | AV87: 2 | AW87: 0 | BI87: 25843 | BJ87: 10 | BK87: 76109 | BL87: 11
C88: 11001 | D88: BOGOTÁ, D.C. | E88: 4 | F88: 0 | G88: Jurídica | H88: 11 | I88: BOGOTÁ, D.C. | J88: Aprobado con subsidio | K88: MICRO | L88: 4651 | M88: COMERCIO AL POR MAYOR Y AL POR MENOR; REPARACIÓN DE VEHÍCULOS AUTOMOTORES Y MOTOCICLETAS | N88: G | O88: Comercio al por mayor de maquinaria y equipo | P88: Comercio al por mayor de maquinaria y equipo | Q88: 1 | R88: 3 | S88: 0 | AE88: 0 | AF88: 0 | AG88: 11001 | AH88: BOGOTÁ, D.C. | AI88: 3 | AJ88: 0 | AK88: Natural | AL88: 11 | AM88: BOGOTÁ, D.C. | AN88: Aprobado con subsidio | AO88: MICRO | AP88: 2219 | AQ88: INDUSTRIAS MANUFACTURERAS | AR88: C | AS88: Fabricación de productos de caucho | AT88: Fabricación de productos de caucho y de plástico | AU88: 1 | AV88: 2 | AW88: 0 | BI88: 25290 | BJ88: 14 | BK88: 25843 | BL88: 10
C89: 20001 | D89: VALLEDUPAR | E89: 6 | F89: 2 | G89: Jurídica | H89: 20 | I89: CESAR | J89: Aprobado con subsidio | K89: MICRO | L89: 4290 | M89: CONSTRUCCIÓN | N89: F | O89: Construcción de otras obras de ingeniería civil | P89: Construcción de otras obras de ingeniería civil | Q89: 0 | R89: 6 | S89: 0 | AE89: 0 | AF89: 0 | AG89: 17001 | AH89: MANIZALES | AI89: 29 | AJ89: 2 | AK89: Natural | AL89: 17 | AM89: CALDAS | AN89: Aprobado con subsidio | AO89: PEQUEÑA | AP89: 1523 | AQ89: INDUSTRIAS MANUFACTURERAS | AR89: C | AS89: Fabricación de calzado | AT89: Curtido y recurtido de cueros; fabricación de calzado; fabricación de artículos de viaje, maletas, bolsos de mano y artículos similares, y fabricación de artículos de talabartería y guarnicionería; adobo y teñido de pieles | AU89: 23 | AV89: 6 | AW89: 0 | BI89: 8634 | BJ89: 4 | BK89: 25758 | BL89: 9
C90: 76834 | D90: TULUÁ | E90: 11 | F90: 8 | G90: Jurídica | H90: 76 | I90: VALLE DEL CAUCA | J90: Aprobado con subsidio | K90: PEQUEÑA | L90: 8691 | M90: ACTIVIDADES DE ATENCIÓN DE LA SALUD HUMANA Y DE ASISTENCIA SOCIAL | N90: Q | O90: Otras actividades de atención relacionadas con la salud humana | P90: Otras actividades de atención relacionadas con la salud humana | Q90: 8 | R90: 3 | S90: 0 | AE90: 0 | AF90: 0 | AG90: 52001 | AH90: PASTO | AI90: 4 | AJ90: 0 | AK90: Natural | AL90: 52 | AM90: NARIÑO | AN90: Aprobado con subsidio | AO90: MICRO | AP90: 1081 | AQ90: INDUSTRIAS MANUFACTURERAS | AR90: C | AS90: Elaboración de otros productos alimenticios | AT90: Elaboración de productos alimenticios | AU90: 4 | AV90: 0 | AW90: 0 | BI90: 25386 | BJ90: 2 | BK90: 47189 | BL90: 9
C91: 11001 | D91: BOGOTÁ, D.C. | E91: 10 | F91: 12 | G91: Jurídica | H91: 11 | I91: BOGOTÁ, D.C. | J91: Aprobado con subsidio | K91: PEQUEÑA | L91: 1393 | M91: INDUSTRIAS MANUFACTURERAS | N91: C | O91: Fabricación de otros productos textiles | P91: Fabricación de productos textiles | Q91: 6 | R91: 4 | S91: 0 | AE91: 0 | AF91: 0 | AG91: 70001 | AH91: SINCELEJO | AI91: 15 | AJ91: 28 | AK91: Natural | AL91: 70 | AM91: SUCRE | AN91: Aprobado con subsidio | AO91: PEQUEÑA | AP91: 1081 | AQ91: INDUSTRIAS MANUFACTURERAS | AR91: C | AS91: Elaboración de otros productos alimenticios | AT91: Elaboración de productos alimenticios | AU91: 9 | AV91: 6 | AW91: 0 | BI91: 13244 | BJ91: 3 | BK91: 13836 | BL91: 9
C92: 15176 | D92: CHIQUINQUIRÁ | E92: 1 | F92: 0 | G92: Jurídica | H92: 15 | I92: BOYACÁ | J92: Aprobado con subsidio | K92: MICRO | L92: 4112 | M92: CONSTRUCCIÓN | N92: F | O92: Construcción de edificios | P92: Construcción de edificios | Q92: 0 | R92: 1 | S92: 0 | AE92: 0 | AF92: 0 | AG92: 5001 | AH92: MEDELLÍN | AI92: 28 | AJ92: 21 | AK92: Jurídica | AL92: 5 | AM92: ANTIOQUIA | AN92: Aprobado con subsidio | AO92: PEQUEÑA | AP92: 1011 | AQ92: INDUSTRIAS MANUFACTURERAS | AR92: C | AS92: Procesamiento y conservación de carne, pescado, crustáceos y moluscos | AT92: Elaboración de productos alimenticios | AU92: 16 | AV92: 12 | AW92: 0 | BI92: 23001 | BJ92: 52 | BK92: 76364 | BL92: 9
C93: 15500 | D93: OICATÁ | E93: 7 | F93: 2 | G93: Jurídica | H93: 15 | I93: BOYACÁ | J93: Aprobado con subsidio | K93: MICRO | L93: 1610 | M93: INDUSTRIAS MANUFACTURERAS | N93: C | O93: Aserrado, acepillado e impregnación de la madera | P93: Transformación de la madera y fabricación de productos de madera y de corcho, excepto muebles; fabricación de artículos de cestería y espartería | Q93: 1 | R93: 6 | S93: 0 | AE93: 0 | AF93: 0 | AG93: 23417 | AH93: LORICA | AI93: 3 | AJ93: 0 | AK93: Jurídica | AL93: 23 | AM93: CÓRDOBA | AN93: Aprobado con subsidio | AO93: MICRO | AP93: 3312 | AQ93: INDUSTRIAS MANUFACTURERAS | AR93: C | AS93: Mantenimiento y reparación especializado de productos elaborados en metal y de maquinaria y equipo | AT93: Instalación, mantenimiento y reparación especializado de maquinaria y equipo | AU93: 0 | AV93: 3 | AW93: 0 | BI93: 19142 | BJ93: 4 | BK93: 5664 | BL93: 9
C94: 11001 | D94: BOGOTÁ, D.C. | E94: 5 | F94: 2 | G94: Jurídica | H94: 11 | I94: BOGOTÁ, D.C. | J94: Aprobado con subsidio | K94: MICRO | L94: 6920 | M94: ACTIVIDADES PROFESIONALES, CIENTÍFICAS Y TÉCNICAS | N94: M | O94: Actividades de contabilidad, teneduría de libros, auditoria financiera y asesoría tributaria | P94: Actividades de contabilidad, teneduría de libros, auditoria financiera y asesoría tributaria | Q94: 3 | R94: 2 | S94: 0 | AE94: 0 | AF94: 0 | AG94: 5001 | AH94: MEDELLÍN | AI94: 6 | AJ94: 22 | AK94: Jurídica | AL94: 5 | AM94: ANTIOQUIA | AN94: Aprobado con subsidio | AO94: PEQUEÑA | AP94: 2599 | AQ94: INDUSTRIAS MANUFACTURERAS | AR94: C | AS94: Fabricación de otros productos elaborados de metal y actividades de servicios relacionadas con el trabajo de metales | AT94: Fabricación de productos elaborados de metal, excepto maquinaria y equipo | AU94: 2 | AV94: 4 | AW94: 0 | BI94: 76122 | BJ94: 2 | BK94: 25740 | BL94: 9
C95: 8001 | D95: BARRANQUILLA | E95: 15 | F95: 4 | G95: Jurídica | H95: 8 | I95: ATLÁNTICO | J95: Aprobado con subsidio | K95: PEQUEÑA | L95: 4723 | M95: COMERCIO AL POR MAYOR Y AL POR MENOR; REPARACIÓN DE VEHÍCULOS AUTOMOTORES Y MOTOCICLETAS | N95: G | O95: Comercio al por menor de alimentos (víveres en general), bebidas y tabaco, en establecimientos especializados | P95: Comercio al por menor de alimentos (víveres en general), bebidas y tabaco, en establecimientos especializados | Q95: 2 | R95: 13 | S95: 0 | AE95: 0 | AF95: 0 | AG95: 50573 | AH95: PUERTO LÓPEZ | AI95: 4 | AJ95: 0 | AK95: Natural | AL95: 50 | AM95: META | AN95: Aprobado con subsidio | AO95: MICRO | AP95: 1081 | AQ95: INDUSTRIAS MANUFACTURERAS | AR95: C | AS95: Elaboración de otros productos alimenticios | AT95: Elaboración de productos alimenticios | AU95: 2 | AV95: 2 | AW95: 0 | BI95: 20710 | BJ95: 4 | BK95: 76248 | BL95: 9
C96: 15572 | D96: PUERTO BOYACÁ | E96: 3 | F96: 6 | G96: Jurídica | H96: 15 | I96: BOYACÁ | J96: Aprobado con subsidio | K96: PEQUEÑA | L96: 4290 | M96: CONSTRUCCIÓN | N96: F | O96: Construcción de otras obras de ingeniería civil | P96: Construcción de otras obras de ingeniería civil | Q96: 0 | R96: 3 | S96: 0 | AE96: 0 | AF96: 0 | AG96: 76111 | AH96: GUADALAJARA DE BUGA | AI96: 8 | AJ96: 37 | AK96: Jurídica | AL96: 76 | AM96: VALLE DEL CAUCA | AN96: Aprobado con subsidio | AO96: PEQUEÑA | AP96: 1040 | AQ96: INDUSTRIAS MANUFACTURERAS | AR96: C | AS96: Elaboración de productos lácteos | AT96: Elaboración de productos alimenticios | AU96: 6 | AV96: 2 | AW96: 0 | BI96: 23660 | BJ96: 3 | BK96: 23162 | BL96: 8
C97: 11001 | D97: BOGOTÁ, D.C. | E97: 4 | F97: 2 | G97: Jurídica | H97: 11 | I97: BOGOTÁ, D.C. | J97: Aprobado con subsidio | K97: MICRO | L97: 4659 | M97: COMERCIO AL POR MAYOR Y AL POR MENOR; REPARACIÓN DE VEHÍCULOS AUTOMOTORES Y MOTOCICLETAS | N97: G | O97: Comercio al por mayor de maquinaria y equipo | P97: Comercio al por mayor de maquinaria y equipo | Q97: 3 | R97: 1 | S97: 0 | AE97: 0 | AF97: 0 | AG97: 11001 | AH97: BOGOTÁ, D.C. | AI97: 1 | AJ97: 0 | AK97: Jurídica | AL97: 11 | AM97: BOGOTÁ, D.C. | AN97: Aprobado con subsidio | AO97: MICRO | AP97: 2592 | AQ97: INDUSTRIAS MANUFACTURERAS | AR97: C | AS97: Fabricación de otros productos elaborados de metal y actividades de servicios relacionadas con el trabajo de metales | AT97: Fabricación de productos elaborados de metal, excepto maquinaria y equipo | AU97: 0 | AV97: 1 | AW97: 0 | BI97: 85162 | BJ97: 2 | BK97: 68655 | BL97: 8
C98: 8001 | D98: BARRANQUILLA | E98: 6 | F98: 8 | G98: Jurídica | H98: 8 | I98: ATLÁNTICO | J98: Aprobado con subsidio | K98: PEQUEÑA | L98: 6820 | M98: ACTIVIDADES INMOBILIARIAS | N98: L | O98: Actividades inmobiliarias realizadas a cambio de una retribución o por contrata | P98: Actividades inmobiliarias realizadas a cambio de una retribución o por contrata | Q98: 5 | R98: 1 | S98: 0 | AE98: 0 | AF98: 0 | AG98: 11001 | AH98: BOGOTÁ, D.C. | AI98: 5 | AJ98: 1 | AK98: Natural | AL98: 11 | AM98: BOGOTÁ, D.C. | AN98: Aprobado con subsidio | AO98: MICRO | AP98: 2513 | AQ98: INDUSTRIAS MANUFACTURERAS | AR98: C | AS98: Fabricación de productos metálicos para uso estructural, tanques, depósitos y generadores de vapor. | AT98: Fabricación de productos elaborados de metal, excepto maquinaria y equipo | AU98: 1 | AV98: 4 | AW98: 0 | BI98: 25126 | BJ98: 27 | BK98: 19573 | BL98: 8
C99: 76109 | D99: BUENAVENTURA | E99: 18 | F99: 3 | G99: Jurídica | H99: 76 | I99: VALLE DEL CAUCA | J99: Aprobado con subsidio | K99: PEQUEÑA | L99: 5224 | M99: TRANSPORTE Y ALMACENAMIENTO | N99: H | O99: Actividades de las estaciones, vías y servicios complementarios para el transporte | P99: Actividades de las estaciones, vías y servicios complementarios para el transporte | Q99: 4 | R99: 14 | S99: 0 | AE99: 0 | AF99: 0 | AG99: 47001 | AH99: SANTA MARTA | AI99: 6 | AJ99: 0 | AK99: Natural | AL99: 47 | AM99: MAGDALENA | AN99: Aprobado con subsidio | AO99: MICRO | AP99: 1104 | AQ99: INDUSTRIAS MANUFACTURERAS | AR99: C | AS99: Elaboración de bebidas | AT99: Elaboración de bebidas | AU99: 3 | AV99: 3 | AW99: 0 | BI99: 50110 | BJ99: 3 | BK99: 66400 | BL99: 8
C100: 11001 | D100: BOGOTÁ, D.C. | E100: 0 | F100: 0 | G100: Jurídica | H100: 11 | I100: BOGOTÁ, D.C. | J100: 0 | K100: PEQUEÑA | L100: 3822 | M100: DISTRIBUCIÓN DE AGUA; EVACUACIÓN Y TRATAMIENTO DE AGUAS RESIDUALES, GESTIÓN DE DESECHOS Y ACTIVIDADES DE SANEAMIENTO AMBIENTAL | N100: E | O100: Tratamiento y disposición de desechos | P100: Tratamiento y disposición de desechos | Q100: 0 | R100: 0 | S100: 0 | AE100: 0 | AF100: 0 | AG100: 11001 | AH100: BOGOTÁ, D.C. | AI100: 1 | AJ100: 7 | AK100: Jurídica | AL100: 11 | AM100: BOGOTÁ, D.C. | AN100: Aprobado con subsidio | AO100: MICRO | AP100: 2511 | AQ100: INDUSTRIAS MANUFACTURERAS | AR100: C | AS100: Fabricación de productos metálicos para uso estructural, tanques, depósitos y generadores de vapor. | AT100: Fabricación de productos elaborados de metal, excepto maquinaria y equipo | AU100: 0 | AV100: 1 | AW100: 0 | BI100: 15759 | BJ100: 30 | BK100: 25377 | BL100: 8
C101: 15001 | D101: TUNJA | E101: 1 | F101: 2 | G101: Jurídica | H101: 15 | I101: BOYACÁ | J101: Aprobado con subsidio | K101: MICRO | L101: 8621 | M101: ACTIVIDADES DE ATENCIÓN DE LA SALUD HUMANA Y DE ASISTENCIA SOCIAL | N101: Q | O101: Actividades de práctica médica y odontológica, sin internación | P101: Actividades de práctica médica y odontológica, sin internación | Q101: 1 | R101: 0 | S101: 0 | AE101: 0 | AF101: 0 | AG101: 5360 | AH101: ITAGUI | AI101: 8 | AJ101: 24 | AK101: Jurídica | AL101: 5 | AM101: ANTIOQUIA | AN101: Aprobado con subsidio | AO101: PEQUEÑA | AP101: 3110 | AQ101: INDUSTRIAS MANUFACTURERAS | AR101: C | AS101: Fabricación de muebles | AT101: Fabricación de muebles, colchones y somieres | AU101: 3 | AV101: 5 | AW101: 0 | BI101: 8433 | BJ101: 13 | BK101: 44001 | BL101: 8
C102: 5001 | D102: MEDELLÍN | E102: 7 | F102: 1 | G102: Jurídica | H102: 5 | I102: ANTIOQUIA | J102: Aprobado con subsidio | K102: MICRO | L102: 4773 | M102: COMERCIO AL POR MAYOR Y AL POR MENOR; REPARACIÓN DE VEHÍCULOS AUTOMOTORES Y MOTOCICLETAS | N102: G | O102: Comercio al por menor de otros productos en establecimientos especializados | P102: Comercio al por menor de otros productos en establecimientos especializados | Q102: 7 | R102: 0 | S102: 0 | AE102: 0 | AF102: 0 | AG102: 11001 | AH102: BOGOTÁ, D.C. | AI102: 8 | AJ102: 22 | AK102: Jurídica | AL102: 11 | AM102: BOGOTÁ, D.C. | AN102: Aprobado con subsidio | AO102: MICRO | AP102: 1089 | AQ102: INDUSTRIAS MANUFACTURERAS | AR102: C | AS102: Elaboración de otros productos alimenticios | AT102: Elaboración de productos alimenticios | AU102: 5 | AV102: 3 | AW102: 0 | BI102: 5697 | BJ102: 32 | BK102: 41524 | BL102: 8
C103: 8001 | D103: BARRANQUILLA | E103: 1 | F103: 0 | G103: Jurídica | H103: 8 | I103: ATLÁNTICO | J103: Aprobado con subsidio | K103: MICRO | L103: 6810 | M103: ACTIVIDADES INMOBILIARIAS | N103: L | O103: Actividades inmobiliarias realizadas con bienes propios o arrendados | P103: Actividades inmobiliarias realizadas con bienes propios o arrendados | Q103: 1 | R103: 0 | S103: 0 | AE103: 0 | AF103: 0 | AG103: 11001 | AH103: BOGOTÁ, D.C. | AI103: 3 | AJ103: 7 | AK103: Jurídica | AL103: 11 | AM103: BOGOTÁ, D.C. | AN103: Aprobado con subsidio | AO103: PEQUEÑA | AP103: 2819 | AQ103: INDUSTRIAS MANUFACTURERAS | AR103: C | AS103: Fabricación de maquinaria y equipo de uso general | AT103: Fabricación de maquinaria y equipo n.c.p. | AU103: 0 | AV103: 3 | AW103: 0 | BI103: 76834 | BJ103: 24 | BK103: 5030 | BL103: 8
C104: 11001 | D104: BOGOTÁ, D.C. | E104: 3 | F104: 3 | G104: Jurídica | H104: 11 | I104: BOGOTÁ, D.C. | J104: Aprobado con subsidio | K104: MICRO | L104: 2229 | M104: INDUSTRIAS MANUFACTURERAS | N104: C | O104: Fabricación de productos de plástico | P104: Fabricación de productos de caucho y de plástico | Q104: 0 | R104: 3 | S104: 0 | AE104: 0 | AF104: 0 | AG104: 76520 | AH104: PALMIRA | AI104: 7 | AJ104: 0 | AK104: Natural | AL104: 76 | AM104: VALLE DEL CAUCA | AN104: Aprobado con subsidio | AO104: MICRO | AP104: 1081 | AQ104: INDUSTRIAS MANUFACTURERAS | AR104: C | AS104: Elaboración de otros productos alimenticios | AT104: Elaboración de productos alimenticios | AU104: 3 | AV104: 4 | AW104: 0 | BI104: 50226 | BJ104: 5 | BK104: 81001 | BL104: 7
C105: 25214 | D105: COTA | E105: 36 | F105: 11 | G105: Jurídica | H105: 25 | I105: CUNDINAMARCA | J105: Aprobado con subsidio | K105: MEDIANA | L105: 1011 | M105: INDUSTRIAS MANUFACTURERAS | N105: C | O105: Procesamiento y conservación de carne, pescado, crustáceos y moluscos | P105: Elaboración de productos alimenticios | Q105: 14 | R105: 22 | S105: 0 | AE105: 0 | AF105: 0 | AG105: 15238 | AH105: DUITAMA | AI105: 1 | AJ105: 0 | AK105: Jurídica | AL105: 15 | AM105: BOYACÁ | AN105: Aprobado con subsidio | AO105: MICRO | AP105: 3312 | AQ105: INDUSTRIAS MANUFACTURERAS | AR105: C | AS105: Mantenimiento y reparación especializado de productos elaborados en metal y de maquinaria y equipo | AT105: Instalación, mantenimiento y reparación especializado de maquinaria y equipo | AU105: 0 | AV105: 1 | AW105: 0 | BI105: 52835 | BJ105: 12 | BK105: 52356 | BL105: 7
C106: 5001 | D106: MEDELLÍN | E106: 2 | F106: 0 | G106: Jurídica | H106: 5 | I106: ANTIOQUIA | J106: Aprobado con subsidio | K106: MICRO | L106: 4775 | M106: COMERCIO AL POR MAYOR Y AL POR MENOR; REPARACIÓN DE VEHÍCULOS AUTOMOTORES Y MOTOCICLETAS | N106: G | O106: Comercio al por menor de otros productos en establecimientos especializados | P106: Comercio al por menor de otros productos en establecimientos especializados | Q106: 0 | R106: 2 | S106: 0 | AE106: 0 | AF106: 0 | AG106: 11001 | AH106: BOGOTÁ, D.C. | AI106: 15 | AJ106: 0 | AK106: Jurídica | AL106: 11 | AM106: BOGOTÁ, D.C. | AN106: Aprobado con subsidio | AO106: PEQUEÑA | AP106: 1410 | AQ106: INDUSTRIAS MANUFACTURERAS | AR106: C | AS106: Confección de prendas de vestir, excepto prendas de piel | AT106: Confección de prendas de vestir | AU106: 10 | AV106: 5 | AW106: 0 | BI106: 41668 | BJ106: 0 | BK106: 17380 | BL106: 7
C107: 68001 | D107: BUCARAMANGA | E107: 2 | F107: 1 | G107: Jurídica | H107: 68 | I107: SANTANDER | J107: Aprobado con subsidio | K107: MICRO | L107: 4290 | M107: CONSTRUCCIÓN | N107: F | O107: Construcción de otras obras de ingeniería civil | P107: Construcción de otras obras de ingeniería civil | Q107: 0 | R107: 2 | S107: 0 | AE107: 0 | AF107: 0 | AG107: 11001 | AH107: BOGOTÁ, D.C. | AI107: 0 | AJ107: 0 | AK107: Jurídica | AL107: 11 | AM107: BOGOTÁ, D.C. | AN107: 0 | AO107: PEQUEÑA | AP107: 2599 | AQ107: INDUSTRIAS MANUFACTURERAS | AR107: C | AS107: Fabricación de otros productos elaborados de metal y actividades de servicios relacionadas con el trabajo de metales | AT107: Fabricación de productos elaborados de metal, excepto maquinaria y equipo | AU107: 0 | AV107: 0 | AW107: 0 | BI107: 19001 | BJ107: 29 | BK107: 27001 | BL107: 7
C108: 76001 | D108: CALI | E108: 2 | F108: 1 | G108: Jurídica | H108: 76 | I108: VALLE DEL CAUCA | J108: Aprobado con subsidio | K108: MICRO | L108: 6810 | M108: ACTIVIDADES INMOBILIARIAS | N108: L | O108: Actividades inmobiliarias realizadas con bienes propios o arrendados | P108: Actividades inmobiliarias realizadas con bienes propios o arrendados | Q108: 2 | R108: 0 | S108: 0 | AE108: 0 | AF108: 0 | AG108: 5042 | AH108: SANTAFÉ DE ANTIOQUIA | AI108: 3 | AJ108: 1 | AK108: Jurídica | AL108: 5 | AM108: ANTIOQUIA | AN108: Aprobado con subsidio | AO108: MICRO | AP108: 1089 | AQ108: INDUSTRIAS MANUFACTURERAS | AR108: C | AS108: Elaboración de otros productos alimenticios | AT108: Elaboración de productos alimenticios | AU108: 0 | AV108: 3 | AW108: 0 | BI108: 5045 | BJ108: 37 | BK108: 5147 | BL108: 7
C109: 76001 | D109: CALI | E109: 3 | F109: 1 | G109: Jurídica | H109: 76 | I109: VALLE DEL CAUCA | J109: Aprobado con subsidio | K109: MICRO | L109: 8621 | M109: ACTIVIDADES DE ATENCIÓN DE LA SALUD HUMANA Y DE ASISTENCIA SOCIAL | N109: Q | O109: Actividades de práctica médica y odontológica, sin internación | P109: Actividades de práctica médica y odontológica, sin internación | Q109: 3 | R109: 0 | S109: 0 | AE109: 0 | AF109: 0 | AG109: 73001 | AH109: IBAGUÉ | AI109: 15 | AJ109: 0 | AK109: Jurídica | AL109: 73 | AM109: TOLIMA | AN109: Aprobado con subsidio | AO109: PEQUEÑA | AP109: 2023 | AQ109: INDUSTRIAS MANUFACTURERAS | AR109: C | AS109: Fabricación de otros productos químicos | AT109: Fabricación de sustancias y productos químicos | AU109: 7 | AV109: 8 | AW109: 0 | BI109: 68077 | BJ109: 6 | BK109: 91001 | BL109: 6
C110: 54001 | D110: CÚCUTA | E110: 0 | F110: 0 | G110: Jurídica | H110: 54 | I110: NORTE DE SANTANDER | J110: 0 | K110: PEQUEÑA | L110: 4631 | M110: COMERCIO AL POR MAYOR Y AL POR MENOR; REPARACIÓN DE VEHÍCULOS AUTOMOTORES Y MOTOCICLETAS | N110: G | O110: Comercio al por mayor de alimentos, bebidas y tabaco | P110: Comercio al por mayor de alimentos, bebidas y tabaco | Q110: 0 | R110: 0 | S110: 0 | AE110: 0 | AF110: 0 | AG110: 68307 | AH110: GIRÓN | AI110: 7 | AJ110: 16 | AK110: Jurídica | AL110: 68 | AM110: SANTANDER | AN110: Aprobado con subsidio | AO110: PEQUEÑA | AP110: 1394 | AQ110: INDUSTRIAS MANUFACTURERAS | AR110: C | AS110: Fabricación de otros productos textiles | AT110: Fabricación de productos textiles | AU110: 3 | AV110: 4 | AW110: 0 | BI110: 54172 | BJ110: 1 | BK110: 15491 | BL110: 6
C111: 17380 | D111: LA DORADA | E111: 3 | F111: 0 | G111: Natural | H111: 17 | I111: CALDAS | J111: Aprobado con subsidio | K111: MICRO | L111: 4723 | M111: COMERCIO AL POR MAYOR Y AL POR MENOR; REPARACIÓN DE VEHÍCULOS AUTOMOTORES Y MOTOCICLETAS | N111: G | O111: Comercio al por menor de alimentos (víveres en general), bebidas y tabaco, en establecimientos especializados | P111: Comercio al por menor de alimentos (víveres en general), bebidas y tabaco, en establecimientos especializados | Q111: 1 | R111: 2 | S111: 0 | AE111: 0 | AF111: 0 | AG111: 81001 | AH111: ARAUCA | AI111: 2 | AJ111: 0 | AK111: Jurídica | AL111: 81 | AM111: ARAUCA | AN111: Aprobado con subsidio | AO111: MICRO | AP111: 2391 | AQ111: INDUSTRIAS MANUFACTURERAS | AR111: C | AS111: Fabricación de productos minerales no metálicos n.c.p. | AT111: Fabricación de otros productos minerales no metálicos | AU111: 2 | AV111: 0 | AW111: 0 | BI111: 88564 | BJ111: 1 | BK111: 68077 | BL111: 6
C112: 68001 | D112: BUCARAMANGA | E112: 3 | F112: 0 | G112: Jurídica | H112: 68 | I112: SANTANDER | J112: Aprobado con subsidio | K112: MICRO | L112: 5912 | M112: INFORMACIÓN Y COMUNICACIONES | N112: J | O112: Actividades de producción de películas cinematográficas, vídeo y producción de programas, anuncios y comerciales de televisión | P112: Actividades de producción de películas cinematográficas, vídeo y producción de programas, anuncios y comerciales de televisión | Q112: 2 | R112: 1 | S112: 0 | AE112: 0 | AF112: 0 | AG112: 76001 | AH112: CALI | AI112: 8 | AJ112: 1 | AK112: Natural | AL112: 76 | AM112: VALLE DEL CAUCA | AN112: Aprobado con subsidio | AO112: MICRO | AP112: 1081 | AQ112: INDUSTRIAS MANUFACTURERAS | AR112: C | AS112: Elaboración de otros productos alimenticios | AT112: Elaboración de productos alimenticios | AU112: 3 | AV112: 5 | AW112: 0 | BI112: 25320 | BJ112: 3 | BK112: 25513 | BL112: 6
C113: 17380 | D113: LA DORADA | E113: 3 | F113: 0 | G113: Natural | H113: 17 | I113: CALDAS | J113: Aprobado con subsidio | K113: MICRO | L113: 4751 | M113: COMERCIO AL POR MAYOR Y AL POR MENOR; REPARACIÓN DE VEHÍCULOS AUTOMOTORES Y MOTOCICLETAS | N113: G | O113: Comercio al por menor de otros enseres domésticos en establecimientos especializados | P113: Comercio al por menor de otros enseres domésticos en establecimientos especializados | Q113: 3 | R113: 0 | S113: 0 | AE113: 0 | AF113: 0 | AG113: 11001 | AH113: BOGOTÁ, D.C. | AI113: 7 | AJ113: 0 | AK113: Jurídica | AL113: 11 | AM113: BOGOTÁ, D.C. | AN113: Aprobado con subsidio | AO113: MICRO | AP113: 1410 | AQ113: INDUSTRIAS MANUFACTURERAS | AR113: C | AS113: Confección de prendas de vestir, excepto prendas de piel | AT113: Confección de prendas de vestir | AU113: 5 | AV113: 2 | AW113: 0 | BI113: 18247 | BJ113: 1 | BK113: 17614 | BL113: 6
C114: 70001 | D114: SINCELEJO | E114: 9 | F114: 1 | G114: Natural | H114: 70 | I114: SUCRE | J114: Aprobado con subsidio | K114: PEQUEÑA | L114: 4754 | M114: COMERCIO AL POR MAYOR Y AL POR MENOR; REPARACIÓN DE VEHÍCULOS AUTOMOTORES Y MOTOCICLETAS | N114: G | O114: Comercio al por menor de otros enseres domésticos en establecimientos especializados | P114: Comercio al por menor de otros enseres domésticos en establecimientos especializados | Q114: 4 | R114: 5 | S114: 0 | AE114: 0 | AF114: 0 | AG114: 11001 | AH114: BOGOTÁ, D.C. | AI114: 0 | AJ114: 0 | AK114: Natural | AL114: 11 | AM114: BOGOTÁ, D.C. | AN114: 0 | AO114: MICRO | AP114: 2014 | AQ114: INDUSTRIAS MANUFACTURERAS | AR114: C | AS114: Fabricación de sustancias químicas básicas, abonos y compuestos inorgánicos nitrogenados, plásticos y caucho sintético en formas primarias | AT114: Fabricación de sustancias y productos químicos | AU114: 0 | AV114: 0 | AW114: 0 | BI114: 25377 | BJ114: 8 | BK114: 68861 | BL114: 6
C115: 11001 | D115: BOGOTÁ, D.C. | E115: 0 | F115: 0 | G115: Jurídica | H115: 11 | I115: BOGOTÁ, D.C. | J115: 0 | K115: $null$ | L115: 4755 | M115: COMERCIO AL POR MAYOR Y AL POR MENOR; REPARACIÓN DE VEHÍCULOS AUTOMOTORES Y MOTOCICLETAS | N115: G | O115: Comercio al por menor de otros enseres domésticos en establecimientos especializados | P115: Comercio al por menor de otros enseres domésticos en establecimientos especializados | Q115: 0 | R115: 0 | S115: 0 | AE115: 0 | AF115: 0 | AG115: 44430 | AH115: MAICAO | AI115: 8 | AJ115: 0 | AK115: Natural | AL115: 44 | AM115: LA GUAJIRA | AN115: Aprobado con subsidio | AO115: MICRO | AP115: 1081 | AQ115: INDUSTRIAS MANUFACTURERAS | AR115: C | AS115: Elaboración de otros productos alimenticios | AT115: Elaboración de productos alimenticios | AU115: 0 | AV115: 8 | AW115: 0 | BI115: 5440 | BJ115: 25 | BK115: 5154 | BL115: 6
C116: 70001 | D116: SINCELEJO | E116: 4 | F116: 0 | G116: Natural | H116: 70 | I116: SUCRE | J116: Aprobado con subsidio | K116: MICRO | L116: 5511 | M116: ALOJAMIENTO Y SERVICIOS DE COMIDA | N116: I | O116: Actividades de alojamiento de estancias cortas | P116: Actividades de alojamiento de estancias cortas | Q116: 2 | R116: 2 | S116: 0 | AE116: 0 | AF116: 0 | AG116: 99001 | AH116: PUERTO CARREÑO | AI116: 7 | AJ116: 0 | AK116: Natural | AL116: 99 | AM116: VICHADA | AN116: Aprobado con subsidio | AO116: MICRO | AP116: 1104 | AQ116: INDUSTRIAS MANUFACTURERAS | AR116: C | AS116: Elaboración de bebidas | AT116: Elaboración de bebidas | AU116: 0 | AV116: 7 | AW116: 0 | BI116: 25513 | BJ116: 6 | BK116: 63401 | BL116: 6
C117: 11001 | D117: BOGOTÁ, D.C. | E117: 3 | F117: 0 | G117: Natural | H117: 11 | I117: BOGOTÁ, D.C. | J117: Aprobado con subsidio | K117: MICRO | L117: 4711 | M117: COMERCIO AL POR MAYOR Y AL POR MENOR; REPARACIÓN DE VEHÍCULOS AUTOMOTORES Y MOTOCICLETAS | N117: G | O117: Comercio al por menor en establecimientos no especializados | P117: Comercio al por menor en establecimientos no especializados | Q117: 2 | R117: 1 | S117: 0 | AE117: 0 | AF117: 0 | AG117: 11001 | AH117: BOGOTÁ, D.C. | AI117: 3 | AJ117: 23 | AK117: Jurídica | AL117: 11 | AM117: BOGOTÁ, D.C. | AN117: Aprobado con subsidio | AO117: PEQUEÑA | AP117: 2229 | AQ117: INDUSTRIAS MANUFACTURERAS | AR117: C | AS117: Fabricación de productos de plástico | AT117: Fabricación de productos de caucho y de plástico | AU117: 1 | AV117: 2 | AW117: 0 | BI117: 68679 | BJ117: 20 | BK117: 17174 | BL117: 6
C118: 11001 | D118: BOGOTÁ, D.C. | E118: 4 | F118: 0 | G118: Jurídica | H118: 11 | I118: BOGOTÁ, D.C. | J118: Aprobado con subsidio | K118: MICRO | L118: 4752 | M118: COMERCIO AL POR MAYOR Y AL POR MENOR; REPARACIÓN DE VEHÍCULOS AUTOMOTORES Y MOTOCICLETAS | N118: G | O118: Comercio al por menor de otros enseres domésticos en establecimientos especializados | P118: Comercio al por menor de otros enseres domésticos en establecimientos especializados | Q118: 0 | R118: 4 | S118: 0 | AE118: 0 | AF118: 0 | AG118: 11001 | AH118: BOGOTÁ, D.C. | AI118: 3 | AJ118: 2 | AK118: Jurídica | AL118: 11 | AM118: BOGOTÁ, D.C. | AN118: Aprobado con subsidio | AO118: MICRO | AP118: 2599 | AQ118: INDUSTRIAS MANUFACTURERAS | AR118: C | AS118: Fabricación de otros productos elaborados de metal y actividades de servicios relacionadas con el trabajo de metales | AT118: Fabricación de productos elaborados de metal, excepto maquinaria y equipo | AU118: 1 | AV118: 2 | AW118: 0 | BI118: 52356 | BJ118: 7 | BK118: 85440 | BL118: 6
C119: 8001 | D119: BARRANQUILLA | E119: 2 | F119: 3 | G119: Jurídica | H119: 8 | I119: ATLÁNTICO | J119: Aprobado con subsidio | K119: MICRO | L119: 4741 | M119: COMERCIO AL POR MAYOR Y AL POR MENOR; REPARACIÓN DE VEHÍCULOS AUTOMOTORES Y MOTOCICLETAS | N119: G | O119: Comercio al por menor de equipos de informática y de comunicaciones, en establecimientos especializados | P119: Comercio al por menor de equipos de informática y de comunicaciones, en establecimientos especializados | Q119: 2 | R119: 0 | S119: 0 | AE119: 0 | AF119: 0 | AG119: 11001 | AH119: BOGOTÁ, D.C. | AI119: 4 | AJ119: 5 | AK119: Jurídica | AL119: 11 | AM119: BOGOTÁ, D.C. | AN119: Aprobado con subsidio | AO119: MICRO | AP119: 2930 | AQ119: INDUSTRIAS MANUFACTURERAS | AR119: C | AS119: Fabricación de partes, piezas (autopartes) y accesorios (lujos) para vehículos automotores | AT119: Fabricación de vehículos automotores, remolques y semirremolques | AU119: 1 | AV119: 3 | AW119: 0 | BI119: 25799 | BJ119: 24 | BK119: 15646 | BL119: 6
C120: 11001 | D120: BOGOTÁ, D.C. | E120: 5 | F120: 0 | G120: Jurídica | H120: 11 | I120: BOGOTÁ, D.C. | J120: Aprobado con subsidio | K120: MICRO | L120: 4530 | M120: COMERCIO AL POR MAYOR Y AL POR MENOR; REPARACIÓN DE VEHÍCULOS AUTOMOTORES Y MOTOCICLETAS | N120: G | O120: Comercio de partes, piezas (autopartes) y accesorios (lujos) para vehículos automotores | P120: Comercio de partes, piezas (autopartes) y accesorios (lujos) para vehículos automotores | Q120: 2 | R120: 3 | S120: 0 | AE120: 0 | AF120: 0 | AG120: 11001 | AH120: BOGOTÁ, D.C. | AI120: 6 | AJ120: 11 | AK120: Jurídica | AL120: 11 | AM120: BOGOTÁ, D.C. | AN120: Aprobado con subsidio | AO120: PEQUEÑA | AP120: 2592 | AQ120: INDUSTRIAS MANUFACTURERAS | AR120: C | AS120: Fabricación de otros productos elaborados de metal y actividades de servicios relacionadas con el trabajo de metales | AT120: Fabricación de productos elaborados de metal, excepto maquinaria y equipo | AU120: 2 | AV120: 4 | AW120: 0 | BI120: 5237 | BJ120: 57 | BK120: 25486 | BL120: 6
C121: 8001 | D121: BARRANQUILLA | E121: 0 | F121: 0 | G121: Jurídica | H121: 8 | I121: ATLÁNTICO | J121: 0 | K121: PEQUEÑA | L121: 4741 | M121: COMERCIO AL POR MAYOR Y AL POR MENOR; REPARACIÓN DE VEHÍCULOS AUTOMOTORES Y MOTOCICLETAS | N121: G | O121: Comercio al por menor de equipos de informática y de comunicaciones, en establecimientos especializados | P121: Comercio al por menor de equipos de informática y de comunicaciones, en establecimientos especializados | Q121: 0 | R121: 0 | S121: 0 | AE121: 0 | AF121: 0 | AG121: 5001 | AH121: MEDELLÍN | AI121: 17 | AJ121: 17 | AK121: Jurídica | AL121: 5 | AM121: ANTIOQUIA | AN121: Aprobado con subsidio | AO121: PEQUEÑA | AP121: 1410 | AQ121: INDUSTRIAS MANUFACTURERAS | AR121: C | AS121: Confección de prendas de vestir, excepto prendas de piel | AT121: Confección de prendas de vestir | AU121: 14 | AV121: 3 | AW121: 0 | BI121: 17873 | BJ121: 12 | BK121: 20011 | BL121: 6
C122: 11001 | D122: BOGOTÁ, D.C. | E122: 8 | F122: 44 | G122: Jurídica | H122: 11 | I122: BOGOTÁ, D.C. | J122: Aprobado con subsidio | K122: MEDIANA | L122: 8530 | M122: EDUCACIÓN | N122: P | O122: Establecimientos que combinan diferentes niveles de educación | P122: Establecimientos que combinan diferentes niveles de educación | Q122: 7 | R122: 1 | S122: 0 | AE122: 0 | AF122: 0 | AG122: 11001 | AH122: BOGOTÁ, D.C. | AI122: 0 | AJ122: 0 | AK122: Jurídica | AL122: 11 | AM122: BOGOTÁ, D.C. | AN122: 0 | AO122: MICRO | AP122: 1394 | AQ122: INDUSTRIAS MANUFACTURERAS | AR122: C | AS122: Fabricación de otros productos textiles | AT122: Fabricación de productos textiles | AU122: 0 | AV122: 0 | AW122: 0 | BI122: 13670 | BJ122: 1 | BK122: 76275 | BL122: 6
C123: 11001 | D123: BOGOTÁ, D.C. | E123: 3 | F123: 0 | G123: Natural | H123: 11 | I123: BOGOTÁ, D.C. | J123: Aprobado con subsidio | K123: MICRO | L123: 4719 | M123: COMERCIO AL POR MAYOR Y AL POR MENOR; REPARACIÓN DE VEHÍCULOS AUTOMOTORES Y MOTOCICLETAS | N123: G | O123: Comercio al por menor en establecimientos no especializados | P123: Comercio al por menor en establecimientos no especializados | Q123: 2 | R123: 1 | S123: 0 | AE123: 0 | AF123: 0 | AG123: 68547 | AH123: PIEDECUESTA | AI123: 4 | AJ123: 0 | AK123: Jurídica | AL123: 68 | AM123: SANTANDER | AN123: Aprobado con subsidio | AO123: MICRO | AP123: 3312 | AQ123: INDUSTRIAS MANUFACTURERAS | AR123: C | AS123: Mantenimiento y reparación especializado de productos elaborados en metal y de maquinaria y equipo | AT123: Instalación, mantenimiento y reparación especializado de maquinaria y equipo | AU123: 0 | AV123: 4 | AW123: 0 | BI123: 19548 | BJ123: 5 | BK123: 76869 | BL123: 5
C124: 11001 | D124: BOGOTÁ, D.C. | E124: 1 | F124: 3 | G124: Jurídica | H124: 11 | I124: BOGOTÁ, D.C. | J124: Aprobado con subsidio | K124: MICRO | L124: 4723 | M124: COMERCIO AL POR MAYOR Y AL POR MENOR; REPARACIÓN DE VEHÍCULOS AUTOMOTORES Y MOTOCICLETAS | N124: G | O124: Comercio al por menor de alimentos (víveres en general), bebidas y tabaco, en establecimientos especializados | P124: Comercio al por menor de alimentos (víveres en general), bebidas y tabaco, en establecimientos especializados | Q124: 0 | R124: 1 | S124: 0 | AE124: 0 | AF124: 0 | AG124: 73001 | AH124: IBAGUÉ | AI124: 6 | AJ124: 0 | AK124: Natural | AL124: 73 | AM124: TOLIMA | AN124: Aprobado con subsidio | AO124: MICRO | AP124: 3120 | AQ124: INDUSTRIAS MANUFACTURERAS | AR124: C | AS124: Fabricación de colchones y somieres | AT124: Fabricación de muebles, colchones y somieres | AU124: 3 | AV124: 3 | AW124: 0 | BI124: 17614 | BJ124: 6 | BK124: 41298 | BL124: 5
C125: 17042 | D125: ANSERMA | E125: 13 | F125: 1 | G125: Jurídica | H125: 17 | I125: CALDAS | J125: Aprobado con subsidio | K125: PEQUEÑA | L125: 4771 | M125: COMERCIO AL POR MAYOR Y AL POR MENOR; REPARACIÓN DE VEHÍCULOS AUTOMOTORES Y MOTOCICLETAS | N125: G | O125: Comercio al por menor de otros productos en establecimientos especializados | P125: Comercio al por menor de otros productos en establecimientos especializados | Q125: 10 | R125: 3 | S125: 0 | AE125: 0 | AF125: 0 | AG125: 11001 | AH125: BOGOTÁ, D.C. | AI125: 1 | AJ125: 13 | AK125: Natural | AL125: 11 | AM125: BOGOTÁ, D.C. | AN125: Aprobado con subsidio | AO125: PEQUEÑA | AP125: 2022 | AQ125: INDUSTRIAS MANUFACTURERAS | AR125: C | AS125: Fabricación de otros productos químicos | AT125: Fabricación de sustancias y productos químicos | AU125: 1 | AV125: 0 | AW125: 0 | BI125: 76113 | BJ125: 2 | BK125: 86001 | BL125: 5
C126: 11001 | D126: BOGOTÁ, D.C. | E126: 0 | F126: 0 | G126: Jurídica | H126: 11 | I126: BOGOTÁ, D.C. | J126: 0 | K126: MICRO | L126: 2229 | M126: INDUSTRIAS MANUFACTURERAS | N126: C | O126: Fabricación de productos de plástico | P126: Fabricación de productos de caucho y de plástico | Q126: 0 | R126: 0 | S126: 0 | AE126: 0 | AF126: 0 | AG126: 86001 | AH126: MOCOA | AI126: 3 | AJ126: 0 | AK126: Natural | AL126: 86 | AM126: PUTUMAYO | AN126: Aprobado con subsidio | AO126: MICRO | AP126: 2429 | AQ126: INDUSTRIAS MANUFACTURERAS | AR126: C | AS126: Industrias básicas de metales preciosos y de metales no ferrosos | AT126: Fabricación de productos metalúrgicos básicos | AU126: 0 | AV126: 3 | AW126: 0 | BI126: 15469 | BJ126: 4 | BK126: 76895 | BL126: 5
C127: 15322 | D127: GUATEQUE | E127: 2 | F127: 1 | G127: Jurídica | H127: 15 | I127: BOYACÁ | J127: Aprobado con subsidio | K127: PEQUEÑA | L127: 4112 | M127: CONSTRUCCIÓN | N127: F | O127: Construcción de edificios | P127: Construcción de edificios | Q127: 0 | R127: 2 | S127: 0 | AE127: 0 | AF127: 0 | AG127: 11001 | AH127: BOGOTÁ, D.C. | AI127: 8 | AJ127: 20 | AK127: Jurídica | AL127: 11 | AM127: BOGOTÁ, D.C. | AN127: Aprobado con subsidio | AO127: PEQUEÑA | AP127: 3110 | AQ127: INDUSTRIAS MANUFACTURERAS | AR127: C | AS127: Fabricación de muebles | AT127: Fabricación de muebles, colchones y somieres | AU127: 3 | AV127: 5 | AW127: 0 | BI127: 76622 | BJ127: 4 | BK127: 76306 | BL127: 5
C128: 52001 | D128: PASTO | E128: 0 | F128: 0 | G128: Jurídica | H128: 52 | I128: NARIÑO | J128: 0 | K128: PEQUEÑA | L128: 4663 | M128: COMERCIO AL POR MAYOR Y AL POR MENOR; REPARACIÓN DE VEHÍCULOS AUTOMOTORES Y MOTOCICLETAS | N128: G | O128: Comercio al por mayor especializado de otros productos | P128: Comercio al por mayor especializado de otros productos | Q128: 0 | R128: 0 | S128: 0 | AE128: 0 | AF128: 0 | AG128: 11001 | AH128: BOGOTÁ, D.C. | AI128: 3 | AJ128: 1 | AK128: Jurídica | AL128: 11 | AM128: BOGOTÁ, D.C. | AN128: Aprobado con subsidio | AO128: MICRO | AP128: 2221 | AQ128: INDUSTRIAS MANUFACTURERAS | AR128: C | AS128: Fabricación de productos de plástico | AT128: Fabricación de productos de caucho y de plástico | AU128: 2 | AV128: 1 | AW128: 0 | BI128: 68861 | BJ128: 6 | BK128: 50226 | BL128: 5
C129: 63001 | D129: ARMENIA | E129: 9 | F129: 9 | G129: Jurídica | H129: 63 | I129: QUINDÍO | J129: Aprobado con subsidio | K129: MICRO | L129: 4111 | M129: CONSTRUCCIÓN | N129: F | O129: Construcción de edificios | P129: Construcción de edificios | Q129: 7 | R129: 2 | S129: 0 | AE129: 0 | AF129: 0 | AG129: 5001 | AH129: MEDELLÍN | AI129: 25 | AJ129: 16 | AK129: Jurídica | AL129: 5 | AM129: ANTIOQUIA | AN129: Aprobado con subsidio | AO129: PEQUEÑA | AP129: 1410 | AQ129: INDUSTRIAS MANUFACTURERAS | AR129: C | AS129: Confección de prendas de vestir, excepto prendas de piel | AT129: Confección de prendas de vestir | AU129: 19 | AV129: 6 | AW129: 0 | BI129: 5376 | BJ129: 29 | BK129: 19548 | BL129: 5
C130: 11001 | D130: BOGOTÁ, D.C. | E130: 2 | F130: 1 | G130: Jurídica | H130: 11 | I130: BOGOTÁ, D.C. | J130: Aprobado con subsidio | K130: MICRO | L130: 7020 | M130: ACTIVIDADES PROFESIONALES, CIENTÍFICAS Y TÉCNICAS | N130: M | O130: Actividades de consultoría de gestión | P130: Actividades de consultoría de gestión | Q130: 0 | R130: 2 | S130: 0 | AE130: 0 | AF130: 0 | AG130: 11001 | AH130: BOGOTÁ, D.C. | AI130: 1 | AJ130: 0 | AK130: Jurídica | AL130: 11 | AM130: BOGOTÁ, D.C. | AN130: Aprobado con subsidio | AO130: MICRO | AP130: 1812 | AQ130: INDUSTRIAS MANUFACTURERAS | AR130: C | AS130: Actividades de impresión y actividades de servicios relacionados con la impresión | AT130: Fabricación de papel, cartón y productos de papel y cartón | AU130: 1 | AV130: 0 | AW130: 0 | BI130: 8573 | BJ130: =COUNTIFS($AN$2:$AN$399999,"Aprobado con subsidio",$AG$2:$AG$399999,BI130) -> 4 | BK130: 54261 | BL130: 5
C131: 11001 | D131: BOGOTÁ, D.C. | E131: 0 | F131: 0 | G131: Jurídica | H131: 11 | I131: BOGOTÁ, D.C. | J131: 0 | K131: MICRO | L131: 7020 | M131: ACTIVIDADES PROFESIONALES, CIENTÍFICAS Y TÉCNICAS | N131: M | O131: Actividades de consultoría de gestión | P131: Actividades de consultoría de gestión | Q131: 0 | R131: 0 | S131: 0 | AE131: 0 | AF131: 0 | AG131: 11001 | AH131: BOGOTÁ, D.C. | AI131: 2 | AJ131: 5 | AK131: Jurídica | AL131: 11 | AM131: BOGOTÁ, D.C. | AN131: Aprobado con subsidio | AO131: MICRO | AP131: 1811 | AQ131: INDUSTRIAS MANUFACTURERAS | AR131: C | AS131: Actividades de impresión y actividades de servicios relacionados con la impresión | AT131: Actividades de impresión y de producción de copias a partir de grabaciones originales | AU131: 2 | AV131: 0 | AW131: 0 | BI131: 5129 | BJ131: 34 | BK131: 18753 | BL131: 5
C132: 68001 | D132: BUCARAMANGA | E132: 1 | F132: 3 | G132: Jurídica | H132: 68 | I132: SANTANDER | J132: Aprobado con subsidio | K132: MICRO | L132: 8299 | M132: ACTIVIDADES DE SERVICIOS ADMINISTRATIVOS Y DE APOYO | N132: N | O132: Actividades de servicios de apoyo a las empresas n.c.p. | P132: Actividades de servicios de apoyo a las empresas n.c.p. | Q132: 1 | R132: 0 | S132: 0 | AE132: 0 | AF132: 0 | AG132: 11001 | AH132: BOGOTÁ, D.C. | AI132: 0 | AJ132: 0 | AK132: Jurídica | AL132: 11 | AM132: BOGOTÁ, D.C. | AN132: 0 | AO132: PEQUEÑA | AP132: 1081 | AQ132: INDUSTRIAS MANUFACTURERAS | AR132: C | AS132: Elaboración de otros productos alimenticios | AT132: Elaboración de productos alimenticios | AU132: 0 | AV132: 0 | AW132: 0 | BI132: 54405 | BJ132: 14 | BK132: 5197 | BL132: 5
C133: 68001 | D133: BUCARAMANGA | E133: 0 | F133: 0 | G133: Natural | H133: 68 | I133: SANTANDER | J133: 0 | K133: MICRO | L133: 4711 | M133: COMERCIO AL POR MAYOR Y AL POR MENOR; REPARACIÓN DE VEHÍCULOS AUTOMOTORES Y MOTOCICLETAS | N133: G | O133: Comercio al por menor en establecimientos no especializados | P133: Comercio al por menor en establecimientos no especializados | Q133: 0 | R133: 0 | S133: 0 | AE133: 0 | AF133: 0 | AG133: 11001 | AH133: BOGOTÁ, D.C. | AI133: 3 | AJ133: 0 | AK133: Jurídica | AL133: 11 | AM133: BOGOTÁ, D.C. | AN133: Aprobado con subsidio | AO133: MICRO | AP133: 1410 | AQ133: INDUSTRIAS MANUFACTURERAS | AR133: C | AS133: Confección de prendas de vestir, excepto prendas de piel | AT133: Confección de prendas de vestir | AU133: 1 | AV133: 2 | AW133: 0 | BI133: 5656 | BJ133: 1 | BK133: 73443 | BL133: 5
C134: 73001 | D134: IBAGUÉ | E134: 0 | F134: 0 | G134: Natural | H134: 73 | I134: TOLIMA | J134: 0 | K134: $null$ | L134: 5611 | M134: ALOJAMIENTO Y SERVICIOS DE COMIDA | N134: I | O134: Actividades de restaurantes, cafeterías y servicio móvil de comidas | P134: Actividades de restaurantes, cafeterías y servicio móvil de comidas | Q134: 0 | R134: 0 | S134: 0 | AE134: 0 | AF134: 0 | AG134: 5318 | AH134: GUARNE | AI134: 9 | AJ134: 42 | AK134: Jurídica | AL134: 5 | AM134: ANTIOQUIA | AN134: Aprobado con subsidio | AO134: MEDIANA | AP134: 3110 | AQ134: INDUSTRIAS MANUFACTURERAS | AR134: C | AS134: Fabricación de muebles | AT134: Fabricación de muebles, colchones y somieres | AU134: 2 | AV134: 7 | AW134: 0 | BI134: 5887 | BJ134: 3 | BK134: 5172 | BL134: 5
C135: 25269 | D135: FACATATIVÁ | E135: 3 | F135: 0 | G135: Natural | H135: 25 | I135: CUNDINAMARCA | J135: Aprobado con subsidio | K135: MICRO | L135: 4752 | M135: COMERCIO AL POR MAYOR Y AL POR MENOR; REPARACIÓN DE VEHÍCULOS AUTOMOTORES Y MOTOCICLETAS | N135: G | O135: Comercio al por menor de otros enseres domésticos en establecimientos especializados | P135: Comercio al por menor de otros enseres domésticos en establecimientos especializados | Q135: 1 | R135: 2 | S135: 0 | AE135: 0 | AF135: 0 | AG135: 11001 | AH135: BOGOTÁ, D.C. | AI135: 0 | AJ135: 0 | AK135: Jurídica | AL135: 11 | AM135: BOGOTÁ, D.C. | AN135: 0 | AO135: MICRO | AP135: 3312 | AQ135: INDUSTRIAS MANUFACTURERAS | AR135: C | AS135: Mantenimiento y reparación especializado de productos elaborados en metal y de maquinaria y equipo | AT135: Instalación, mantenimiento y reparación especializado de maquinaria y equipo | AU135: 0 | AV135: 0 | AW135: 0 | BI135: 17380 | BJ135: 7 | BK135: 73449 | BL135: 5
C136: 17380 | D136: LA DORADA | E136: 9 | F136: 10 | G136: Natural | H136: 17 | I136: CALDAS | J136: Aprobado con subsidio | K136: PEQUEÑA | L136: 5229 | M136: TRANSPORTE Y ALMACENAMIENTO | N136: H | O136: Actividades de las estaciones, vías y servicios complementarios para el transporte | P136: Actividades de las estaciones, vías y servicios complementarios para el transporte | Q136: 0 | R136: 9 | S136: 0 | AE136: 0 | AF136: 0 | AG136: 5360 | AH136: ITAGUI | AI136: 10 | AJ136: 40 | AK136: Jurídica | AL136: 5 | AM136: ANTIOQUIA | AN136: Aprobado con subsidio | AO136: MEDIANA | AP136: 3110 | AQ136: INDUSTRIAS MANUFACTURERAS | AR136: C | AS136: Fabricación de muebles | AT136: Fabricación de muebles, colchones y somieres | AU136: 3 | AV136: 7 | AW136: 0 | BI136: 41016 | BJ136: 1 | BK136: 95001 | BL136: 5
C137: 54498 | D137: OCAÑA | E137: 3 | F137: 1 | G137: Natural | H137: 54 | I137: NORTE DE SANTANDER | J137: Aprobado con subsidio | K137: MICRO | L137: 4731 | M137: COMERCIO AL POR MAYOR Y AL POR MENOR; REPARACIÓN DE VEHÍCULOS AUTOMOTORES Y MOTOCICLETAS | N137: G | O137: Comercio al por menor de combustible, lubricantes, aditivos y productos de limpieza para automotores, en establecimientos especializados | P137: Comercio al por menor de combustible, lubricantes, aditivos y productos de limpieza para automotores, en establecimientos especializados | Q137: 1 | R137: 2 | S137: 0 | AE137: 0 | AF137: 0 | AG137: 11001 | AH137: BOGOTÁ, D.C. | AI137: 6 | AJ137: 1 | AK137: Jurídica | AL137: 11 | AM137: BOGOTÁ, D.C. | AN137: Aprobado con subsidio | AO137: MICRO | AP137: 3313 | AQ137: INDUSTRIAS MANUFACTURERAS | AR137: C | AS137: Mantenimiento y reparación especializado de productos elaborados en metal y de maquinaria y equipo | AT137: Instalación, mantenimiento y reparación especializado de maquinaria y equipo | AU137: 5 | AV137: 1 | AW137: 0 | BI137: 88001 | BJ137: 13 | BK137: 76400 | BL137: 5
C138: 25290 | D138: FUSAGASUGÁ | E138: 5 | F138: 0 | G138: Natural | H138: 25 | I138: CUNDINAMARCA | J138: Aprobado con subsidio | K138: MICRO | L138: 130 | M138: AGRICULTURA, GANADERÍA, CAZA, SILVICULTURA Y PESCA | N138: A | O138: Propagación de plantas (actividades de los viveros, excepto viveros forestales) | P138: Propagación de plantas (actividades de los viveros, excepto viveros forestales) | Q138: 3 | R138: 2 | S138: 0 | AE138: 0 | AF138: 0 | AG138: 11001 | AH138: BOGOTÁ, D.C. | AI138: 3 | AJ138: 1 | AK138: Jurídica | AL138: 11 | AM138: BOGOTÁ, D.C. | AN138: Aprobado con subsidio | AO138: MICRO | AP138: 2429 | AQ138: INDUSTRIAS MANUFACTURERAS | AR138: C | AS138: Industrias básicas de metales preciosos y de metales no ferrosos | AT138: Fabricación de productos metalúrgicos básicos | AU138: 0 | AV138: 3 | AW138: 0 | BI138: 25260 | BJ138: 4 | BK138: 8638 | BL138: 4
C139: 81001 | D139: ARAUCA | E139: 2 | F139: 0 | G139: Natural | H139: 81 | I139: ARAUCA | J139: Aprobado con subsidio | K139: MICRO | L139: 5511 | M139: ALOJAMIENTO Y SERVICIOS DE COMIDA | N139: I | O139: Actividades de alojamiento de estancias cortas | P139: Actividades de alojamiento de estancias cortas | Q139: 1 | R139: 1 | S139: 0 | AE139: 0 | AF139: 0 | AG139: 8001 | AH139: BARRANQUILLA | AI139: 4 | AJ139: 6 | AK139: Jurídica | AL139: 8 | AM139: ATLÁNTICO | AN139: Aprobado con subsidio | AO139: PEQUEÑA | AP139: 2599 | AQ139: INDUSTRIAS MANUFACTURERAS | AR139: C | AS139: Fabricación de otros productos elaborados de metal y actividades de servicios relacionadas con el trabajo de metales | AT139: Fabricación de productos elaborados de metal, excepto maquinaria y equipo | AU139: 1 | AV139: 3 | AW139: 0 | BI139: 8296 | BJ139: 15 | BK139: 5042 | BL139: 4
C140: 17001 | D140: MANIZALES | E140: 3 | F140: 0 | G140: Natural | H140: 17 | I140: CALDAS | J140: Aprobado con subsidio | K140: MICRO | L140: 4663 | M140: COMERCIO AL POR MAYOR Y AL POR MENOR; REPARACIÓN DE VEHÍCULOS AUTOMOTORES Y MOTOCICLETAS | N140: G | O140: Comercio al por mayor especializado de otros productos | P140: Comercio al por mayor especializado de otros productos | Q140: 0 | R140: 3 | S140: 0 | AE140: 0 | AF140: 0 | AG140: 11001 | AH140: BOGOTÁ, D.C. | AI140: 3 | AJ140: 3 | AK140: Jurídica | AL140: 11 | AM140: BOGOTÁ, D.C. | AN140: Aprobado con subsidio | AO140: MICRO | AP140: 3313 | AQ140: INDUSTRIAS MANUFACTURERAS | AR140: C | AS140: Mantenimiento y reparación especializado de productos elaborados en metal y de maquinaria y equipo | AT140: Instalación, mantenimiento y reparación especializado de maquinaria y equipo | AU140: 1 | AV140: 2 | AW140: 0 | BI140: 41551 | BJ140: 19 | BK140: 44430 | BL140: 4
C141: 11001 | D141: BOGOTÁ, D.C. | E141: 9 | F141: 1 | G141: Natural | H141: 11 | I141: BOGOTÁ, D.C. | J141: Aprobado con subsidio | K141: MICRO | L141: 6399 | M141: INFORMACIÓN Y COMUNICACIONES | N141: J | O141: Otras actividades de servicios de información | P141: Otras actividades de servicios de información | Q141: 2 | R141: 7 | S141: 0 | AE141: 0 | AF141: 0 | AG141: 11001 | AH141: BOGOTÁ, D.C. | AI141: 1 | AJ141: 2 | AK141: Jurídica | AL141: 11 | AM141: BOGOTÁ, D.C. | AN141: Aprobado con subsidio | AO141: PEQUEÑA | AP141: 2511 | AQ141: INDUSTRIAS MANUFACTURERAS | AR141: C | AS141: Fabricación de productos metálicos para uso estructural, tanques, depósitos y generadores de vapor. | AT141: Fabricación de productos elaborados de metal, excepto maquinaria y equipo | AU141: 1 | AV141: 0 | AW141: 0 | BI141: 25295 | BJ141: 3 | BK141: 23466 | BL141: 4
C142: 91001 | D142: LETICIA | E142: 4 | F142: 3 | G142: Natural | H142: 91 | I142: AMAZONAS | J142: Aprobado con subsidio | K142: MICRO | L142: 4711 | M142: COMERCIO AL POR MAYOR Y AL POR MENOR; REPARACIÓN DE VEHÍCULOS AUTOMOTORES Y MOTOCICLETAS | N142: G | O142: Comercio al por menor en establecimientos no especializados | P142: Comercio al por menor en establecimientos no especializados | Q142: 2 | R142: 2 | S142: 0 | AE142: 0 | AF142: 0 | AG142: 66170 | AH142: DOSQUEBRADAS | AI142: 35 | AJ142: 65 | AK142: Jurídica | AL142: 66 | AM142: RISARALDA | AN142: Aprobado con subsidio | AO142: MEDIANA | AP142: 1020 | AQ142: INDUSTRIAS MANUFACTURERAS | AR142: C | AS142: Procesamiento y conservación de frutas, legumbres, hortalizas y tubérculos | AT142: Elaboración de productos alimenticios | AU142: 9 | AV142: 26 | AW142: 0 | BI142: 5789 | BJ142: 1 | BK142: 8634 | BL142: 4
C143: 76109 | D143: BUENAVENTURA | E143: 3 | F143: 0 | G143: Natural | H143: 76 | I143: VALLE DEL CAUCA | J143: Aprobado con subsidio | K143: MICRO | L143: 5511 | M143: ALOJAMIENTO Y SERVICIOS DE COMIDA | N143: I | O143: Actividades de alojamiento de estancias cortas | P143: Actividades de alojamiento de estancias cortas | Q143: 2 | R143: 1 | S143: 0 | AE143: 0 | AF143: 0 | AG143: 8001 | AH143: BARRANQUILLA | AI143: 7 | AJ143: 0 | AK143: Jurídica | AL143: 8 | AM143: ATLÁNTICO | AN143: Aprobado con subsidio | AO143: PEQUEÑA | AP143: 2599 | AQ143: INDUSTRIAS MANUFACTURERAS | AR143: C | AS143: Fabricación de otros productos elaborados de metal y actividades de servicios relacionadas con el trabajo de metales | AT143: Fabricación de productos elaborados de metal, excepto maquinaria y equipo | AU143: 1 | AV143: 6 | AW143: 0 | BI143: 81065 | BJ143: 1 | BK143: 19142 | BL143: 4
C144: 76001 | D144: CALI | E144: 7 | F144: 0 | G144: Natural | H144: 76 | I144: VALLE DEL CAUCA | J144: Aprobado con subsidio | K144: PEQUEÑA | L144: 5611 | M144: ALOJAMIENTO Y SERVICIOS DE COMIDA | N144: I | O144: Actividades de restaurantes, cafeterías y servicio móvil de comidas | P144: Actividades de restaurantes, cafeterías y servicio móvil de comidas | Q144: 6 | R144: 1 | S144: 0 | AE144: 0 | AF144: 0 | AG144: 5001 | AH144: MEDELLÍN | AI144: 10 | AJ144: 19 | AK144: Jurídica | AL144: 5 | AM144: ANTIOQUIA | AN144: Aprobado con subsidio | AO144: PEQUEÑA | AP144: 2229 | AQ144: INDUSTRIAS MANUFACTURERAS | AR144: C | AS144: Fabricación de productos de plástico | AT144: Fabricación de productos de caucho y de plástico | AU144: 1 | AV144: 9 | AW144: 0 | BI144: 76020 | BJ144: 1 | BK144: 20710 | BL144: 4
C145: 5001 | D145: MEDELLÍN | E145: 2 | F145: 1 | G145: Natural | H145: 5 | I145: ANTIOQUIA | J145: Aprobado con subsidio | K145: MICRO | L145: 4771 | M145: COMERCIO AL POR MAYOR Y AL POR MENOR; REPARACIÓN DE VEHÍCULOS AUTOMOTORES Y MOTOCICLETAS | N145: G | O145: Comercio al por menor de otros productos en establecimientos especializados | P145: Comercio al por menor de otros productos en establecimientos especializados | Q145: 1 | R145: 1 | S145: 0 | AE145: 0 | AF145: 0 | AG145: 11001 | AH145: BOGOTÁ, D.C. | AI145: 38 | AJ145: 3 | AK145: Jurídica | AL145: 11 | AM145: BOGOTÁ, D.C. | AN145: Aprobado con subsidio | AO145: MEDIANA | AP145: 1410 | AQ145: INDUSTRIAS MANUFACTURERAS | AR145: C | AS145: Confección de prendas de vestir, excepto prendas de piel | AT145: Confección de prendas de vestir | AU145: 21 | AV145: 17 | AW145: 0 | BI145: 25322 | BJ145: 0 | BK145: 15469 | BL145: 4
C146: 5001 | D146: MEDELLÍN | E146: 11 | F146: 14 | G146: Natural | H146: 5 | I146: ANTIOQUIA | J146: Aprobado con subsidio | K146: PEQUEÑA | L146: 8551 | M146: EDUCACIÓN | N146: P | O146: Otros tipos de educación | P146: Otros tipos de educación | Q146: 8 | R146: 3 | S146: 0 | AE146: 0 | AF146: 0 | AG146: 66001 | AH146: PEREIRA | AI146: 72 | AJ146: 9 | AK146: Jurídica | AL146: 66 | AM146: RISARALDA | AN146: Aprobado con subsidio | AO146: MEDIANA | AP146: 1410 | AQ146: INDUSTRIAS MANUFACTURERAS | AR146: C | AS146: Confección de prendas de vestir, excepto prendas de piel | AT146: Confección de prendas de vestir | AU146: 66 | AV146: 6 | AW146: 0 | BI146: 5079 | BJ146: 19 | BK146: 76622 | BL146: 4
C147: 8001 | D147: BARRANQUILLA | E147: 5 | F147: 0 | G147: Natural | H147: 8 | I147: ATLÁNTICO | J147: Aprobado con subsidio | K147: MICRO | L147: 5530 | M147: ALOJAMIENTO Y SERVICIOS DE COMIDA | N147: I | O147: Servicios por horas | P147: Servicios por horas | Q147: 1 | R147: 4 | S147: 0 | AE147: 0 | AF147: 0 | AG147: 25473 | AH147: MOSQUERA | AI147: 1 | AJ147: 11 | AK147: Jurídica | AL147: 25 | AM147: CUNDINAMARCA | AN147: Aprobado con subsidio | AO147: PEQUEÑA | AP147: 2011 | AQ147: INDUSTRIAS MANUFACTURERAS | AR147: C | AS147: Fabricación de sustancias químicas básicas, abonos y compuestos inorgánicos nitrogenados, plásticos y caucho sintético en formas primarias | AT147: Fabricación de sustancias y productos químicos | AU147: 0 | AV147: 1 | AW147: 0 | BI147: 5604 | BJ147: 2 | BK147: 8573 | BL147: 4
C148: 44430 | D148: MAICAO | E148: 5 | F148: 0 | G148: Natural | H148: 44 | I148: LA GUAJIRA | J148: Aprobado con subsidio | K148: MICRO | L148: 5511 | M148: ALOJAMIENTO Y SERVICIOS DE COMIDA | N148: I | O148: Actividades de alojamiento de estancias cortas | P148: Actividades de alojamiento de estancias cortas | Q148: 3 | R148: 2 | S148: 0 | AE148: 0 | AF148: 0 | AG148: 76895 | AH148: ZARZAL | AI148: 7 | AJ148: 2 | AK148: Jurídica | AL148: 76 | AM148: VALLE DEL CAUCA | AN148: Aprobado con subsidio | AO148: MICRO | AP148: 2511 | AQ148: INDUSTRIAS MANUFACTURERAS | AR148: C | AS148: Fabricación de productos metálicos para uso estructural, tanques, depósitos y generadores de vapor. | AT148: Fabricación de productos elaborados de metal, excepto maquinaria y equipo | AU148: 1 | AV148: 6 | AW148: 0 | BI148: 23350 | BJ148: 1 | BK148: 25260 | BL148: 4
C149: 8638 | D149: SABANALARGA | E149: 9 | F149: 1 | G149: Natural | H149: 8 | I149: ATLÁNTICO | J149: Aprobado con subsidio | K149: PEQUEÑA | L149: 1081 | M149: INDUSTRIAS MANUFACTURERAS | N149: C | O149: Elaboración de otros productos alimenticios | P149: Elaboración de productos alimenticios | Q149: 4 | R149: 5 | S149: 0 | AE149: 0 | AF149: 0 | AG149: 11001 | AH149: BOGOTÁ, D.C. | AI149: 0 | AJ149: 0 | AK149: Jurídica | AL149: 11 | AM149: BOGOTÁ, D.C. | AN149: 0 | AO149: PEQUEÑA | AP149: 2022 | AQ149: INDUSTRIAS MANUFACTURERAS | AR149: C | AS149: Fabricación de otros productos químicos | AT149: Fabricación de sustancias y productos químicos | AU149: 0 | AV149: 0 | AW149: 0 | BI149: 25099 | BJ149: 4 | BK149: 25099 | BL149: 4
C150: 8001 | D150: BARRANQUILLA | E150: 4 | F150: 2 | G150: Jurídica | H150: 8 | I150: ATLÁNTICO | J150: Aprobado con subsidio | K150: MICRO | L150: 5210 | M150: TRANSPORTE Y ALMACENAMIENTO | N150: H | O150: Almacenamiento y depósito | P150: Almacenamiento y depósito | Q150: 0 | R150: 4 | S150: 0 | AE150: 0 | AF150: 0 | AG150: 11001 | AH150: BOGOTÁ, D.C. | AI150: 1 | AJ150: 8 | AK150: Jurídica | AL150: 11 | AM150: BOGOTÁ, D.C. | AN150: Aprobado con subsidio | AO150: PEQUEÑA | AP150: 1811 | AQ150: INDUSTRIAS MANUFACTURERAS | AR150: C | AS150: Actividades de impresión y actividades de servicios relacionados con la impresión | AT150: Actividades de impresión y de producción de copias a partir de grabaciones originales | AU150: 0 | AV150: 1 | AW150: 0 | BI150: 18001 | BJ150: 18 | BK150: 25035 | BL150: 4
C151: 68001 | D151: BUCARAMANGA | E151: 12 | F151: 10 | G151: Jurídica | H151: 68 | I151: SANTANDER | J151: Aprobado con subsidio | K151: PEQUEÑA | L151: 8622 | M151: ACTIVIDADES DE ATENCIÓN DE LA SALUD HUMANA Y DE ASISTENCIA SOCIAL | N151: Q | O151: Actividades de práctica médica y odontológica, sin internación | P151: Actividades de práctica médica y odontológica, sin internación | Q151: 11 | R151: 1 | S151: 0 | AE151: 0 | AF151: 0 | AG151: 11001 | AH151: BOGOTÁ, D.C. | AI151: 3 | AJ151: 4 | AK151: Jurídica | AL151: 11 | AM151: BOGOTÁ, D.C. | AN151: Aprobado con subsidio | AO151: MICRO | AP151: 2429 | AQ151: INDUSTRIAS MANUFACTURERAS | AR151: C | AS151: Industrias básicas de metales preciosos y de metales no ferrosos | AT151: Fabricación de productos metalúrgicos básicos | AU151: 2 | AV151: 1 | AW151: 0 | BI151: 15764 | BJ151: 1 | BK151: 50318 | BL151: 4
C152: 68001 | D152: BUCARAMANGA | E152: 2 | F152: 0 | G152: Jurídica | H152: 68 | I152: SANTANDER | J152: Aprobado con subsidio | K152: MICRO | L152: 7911 | M152: ACTIVIDADES DE SERVICIOS ADMINISTRATIVOS Y DE APOYO | N152: N | O152: Actividades de las agencias de viajes y operadores turísticos | P152: Actividades de las agencias de viajes y operadores turísticos | Q152: 1 | R152: 1 | S152: 0 | AE152: 0 | AF152: 0 | AG152: 11001 | AH152: BOGOTÁ, D.C. | AI152: 4 | AJ152: 0 | AK152: Jurídica | AL152: 11 | AM152: BOGOTÁ, D.C. | AN152: Aprobado con subsidio | AO152: MICRO | AP152: 2410 | AQ152: INDUSTRIAS MANUFACTURERAS | AR152: C | AS152: Industrias básicas de hierro y de acero | AT152: Fabricación de productos metalúrgicos básicos | AU152: 0 | AV152: 4 | AW152: 0 | BI152: 25035 | BJ152: 4 | BK152: 15176 | BL152: 4
C153: 68001 | D153: BUCARAMANGA | E153: 4 | F153: 0 | G153: Jurídica | H153: 68 | I153: SANTANDER | J153: Aprobado con subsidio | K153: MICRO | L153: 4751 | M153: COMERCIO AL POR MAYOR Y AL POR MENOR; REPARACIÓN DE VEHÍCULOS AUTOMOTORES Y MOTOCICLETAS | N153: G | O153: Comercio al por menor de otros enseres domésticos en establecimientos especializados | P153: Comercio al por menor de otros enseres domésticos en establecimientos especializados | Q153: 3 | R153: 1 | S153: 0 | AE153: 0 | AF153: 0 | AG153: 11001 | AH153: BOGOTÁ, D.C. | AI153: 11 | AJ153: 45 | AK153: Jurídica | AL153: 11 | AM153: BOGOTÁ, D.C. | AN153: Aprobado con subsidio | AO153: MEDIANA | AP153: 1410 | AQ153: INDUSTRIAS MANUFACTURERAS | AR153: C | AS153: Confección de prendas de vestir, excepto prendas de piel | AT153: Confección de prendas de vestir | AU153: 7 | AV153: 4 | AW153: 0 | BI153: 76377 | BJ153: 1 | BK153: 5579 | BL153: 4
C154: 11001 | D154: BOGOTÁ, D.C. | E154: 91 | F154: 30 | G154: Jurídica | H154: 11 | I154: BOGOTÁ, D.C. | J154: Aprobado con subsidio | K154: MEDIANA | L154: 141 | M154: AGRICULTURA, GANADERÍA, CAZA, SILVICULTURA Y PESCA | N154: A | O154: Ganadería | P154: Ganadería | Q154: 4 | R154: 87 | S154: 0 | AE154: 0 | AF154: 0 | AG154: 25286 | AH154: FUNZA | AI154: 17 | AJ154: 3 | AK154: Jurídica | AL154: 25 | AM154: CUNDINAMARCA | AN154: Aprobado con subsidio | AO154: PEQUEÑA | AP154: 1392 | AQ154: INDUSTRIAS MANUFACTURERAS | AR154: C | AS154: Fabricación de otros productos textiles | AT154: Fabricación de productos textiles | AU154: 4 | AV154: 13 | AW154: 0 | BI154: 54261 | BJ154: 5 | BK154: 25875 | BL154: 4
C155: 11001 | D155: BOGOTÁ, D.C. | E155: 0 | F155: 0 | G155: Jurídica | H155: 11 | I155: BOGOTÁ, D.C. | J155: 0 | K155: MICRO | L155: 4690 | M155: COMERCIO AL POR MAYOR Y AL POR MENOR; REPARACIÓN DE VEHÍCULOS AUTOMOTORES Y MOTOCICLETAS | N155: G | O155: Comercio al por mayor no especializado | P155: Comercio al por mayor no especializado | Q155: 0 | R155: 0 | S155: 0 | AE155: 0 | AF155: 0 | AG155: 5631 | AH155: SABANETA | AI155: 7 | AJ155: 3 | AK155: Jurídica | AL155: 5 | AM155: ANTIOQUIA | AN155: Aprobado con subsidio | AO155: PEQUEÑA | AP155: 2511 | AQ155: INDUSTRIAS MANUFACTURERAS | AR155: C | AS155: Fabricación de productos metálicos para uso estructural, tanques, depósitos y generadores de vapor. | AT155: Fabricación de productos elaborados de metal, excepto maquinaria y equipo | AU155: 0 | AV155: 7 | AW155: 0 | BI155: 18753 | BJ155: 5 | BK155: 68755 | BL155: 4
C156: 68001 | D156: BUCARAMANGA | E156: 1 | F156: 5 | G156: Jurídica | H156: 68 | I156: SANTANDER | J156: Aprobado con subsidio | K156: MICRO | L156: 4649 | M156: COMERCIO AL POR MAYOR Y AL POR MENOR; REPARACIÓN DE VEHÍCULOS AUTOMOTORES Y MOTOCICLETAS | N156: G | O156: Comercio al por mayor de artículos y enseres domésticos (incluidas prendas de vestir) | P156: Comercio al por mayor de artículos y enseres domésticos (incluidas prendas de vestir) | Q156: 1 | R156: 0 | S156: 0 | AE156: 0 | AF156: 0 | AG156: 5088 | AH156: BELLO | AI156: 6 | AJ156: 0 | AK156: Jurídica | AL156: 5 | AM156: ANTIOQUIA | AN156: Aprobado con subsidio | AO156: MICRO | AP156: 2930 | AQ156: INDUSTRIAS MANUFACTURERAS | AR156: C | AS156: Fabricación de partes, piezas (autopartes) y accesorios (lujos) para vehículos automotores | AT156: Fabricación de vehículos automotores, remolques y semirremolques | AU156: 1 | AV156: 5 | AW156: 0 | BI156: 27001 | BJ156: 7 | BK156: 25402 | BL156: 4
C157: 68755 | D157: SOCORRO | E157: 2 | F157: 1 | G157: Jurídica | H157: 68 | I157: SANTANDER | J157: Aprobado con subsidio | K157: MICRO | L157: 9491 | M157: OTRAS ACTIVIDADES DE SERVICIOS | N157: S | O157: Actividades de otras asociaciones | P157: Actividades de otras asociaciones | Q157: 1 | R157: 1 | S157: 0 | AE157: 0 | AF157: 0 | AG157: 5615 | AH157: RIONEGRO | AI157: 5 | AJ157: 6 | AK157: Jurídica | AL157: 5 | AM157: ANTIOQUIA | AN157: Aprobado con subsidio | AO157: PEQUEÑA | AP157: 2592 | AQ157: INDUSTRIAS MANUFACTURERAS | AR157: C | AS157: Fabricación de otros productos elaborados de metal y actividades de servicios relacionadas con el trabajo de metales | AT157: Fabricación de productos elaborados de metal, excepto maquinaria y equipo | AU157: 0 | AV157: 5 | AW157: 0 | BI157: 41026 | BJ157: 1 | BK157: 5541 | BL157: 4
C158: 68001 | D158: BUCARAMANGA | E158: 8 | F158: 0 | G158: Jurídica | H158: 68 | I158: SANTANDER | J158: Aprobado con subsidio | K158: MICRO | L158: 9200 | M158: ACTIVIDADES ARTÍSTICAS, DE ENTRETENIMIENTO Y RECREACIÓN | N158: R | O158: Actividades de juegos de azar y apuestas | P158: Actividades de juegos de azar y apuestas | Q158: 7 | R158: 1 | S158: 0 | AE158: 0 | AF158: 0 | AG158: 11001 | AH158: BOGOTÁ, D.C. | AI158: 2 | AJ158: 0 | AK158: Jurídica | AL158: 11 | AM158: BOGOTÁ, D.C. | AN158: Aprobado con subsidio | AO158: MICRO | AP158: 2100 | AQ158: INDUSTRIAS MANUFACTURERAS | AR158: C | AS158: Fabricación de productos farmacéuticos, sustancias químicas medicinales y productos botánicos de uso farmacéutico | AT158: Fabricación de productos farmacéuticos, sustancias químicas medicinales y productos botánicos de uso farmacéutico | AU158: 1 | AV158: 1 | AW158: 0 | BI158: 5197 | BJ158: 5 | BK158: 85010 | BL158: 4
C159: 68001 | D159: BUCARAMANGA | E159: 5 | F159: 2 | G159: Jurídica | H159: 68 | I159: SANTANDER | J159: Aprobado con subsidio | K159: MICRO | L159: 4659 | M159: COMERCIO AL POR MAYOR Y AL POR MENOR; REPARACIÓN DE VEHÍCULOS AUTOMOTORES Y MOTOCICLETAS | N159: G | O159: Comercio al por mayor de maquinaria y equipo | P159: Comercio al por mayor de maquinaria y equipo | Q159: 5 | R159: 0 | S159: 0 | AE159: 0 | AF159: 0 | AG159: 47189 | AH159: CIÉNAGA | AI159: 3 | AJ159: 0 | AK159: Natural | AL159: 47 | AM159: MAGDALENA | AN159: Aprobado con subsidio | AO159: MICRO | AP159: 1081 | AQ159: INDUSTRIAS MANUFACTURERAS | AR159: C | AS159: Elaboración de otros productos alimenticios | AT159: Elaboración de productos alimenticios | AU159: 1 | AV159: 2 | AW159: 0 | BI159: 85139 | BJ159: 3 | BK159: 47053 | BL159: 4
C160: 68549 | D160: PINCHOTE | E160: 2 | F160: 0 | G160: Jurídica | H160: 68 | I160: SANTANDER | J160: Aprobado con subsidio | K160: MICRO | L160: 9491 | M160: OTRAS ACTIVIDADES DE SERVICIOS | N160: S | O160: Actividades de otras asociaciones | P160: Actividades de otras asociaciones | Q160: 1 | R160: 1 | S160: 0 | AE160: 0 | AF160: 0 | AG160: 20001 | AH160: VALLEDUPAR | AI160: 19 | AJ160: 3 | AK160: Jurídica | AL160: 20 | AM160: CESAR | AN160: Aprobado con subsidio | AO160: PEQUEÑA | AP160: 2395 | AQ160: INDUSTRIAS MANUFACTURERAS | AR160: C | AS160: Fabricación de productos minerales no metálicos n.c.p. | AT160: Fabricación de otros productos minerales no metálicos | AU160: 0 | AV160: 19 | AW160: 0 | BI160: 44001 | BJ160: 8 | BK160: 5034 | BL160: 4
C161: 68190 | D161: CIMITARRA | E161: 5 | F161: 1 | G161: Jurídica | H161: 68 | I161: SANTANDER | J161: Aprobado con subsidio | K161: MICRO | L161: 4663 | M161: COMERCIO AL POR MAYOR Y AL POR MENOR; REPARACIÓN DE VEHÍCULOS AUTOMOTORES Y MOTOCICLETAS | N161: G | O161: Comercio al por mayor especializado de otros productos | P161: Comercio al por mayor especializado de otros productos | Q161: 0 | R161: 5 | S161: 0 | AE161: 0 | AF161: 0 | AG161: 66170 | AH161: DOSQUEBRADAS | AI161: 1445 | AJ161: 644 | AK161: Jurídica | AL161: 66 | AM161: RISARALDA | AN161: Aprobado con subsidio | AO161: MUY GRANDE | AP161: 1410 | AQ161: INDUSTRIAS MANUFACTURERAS | AR161: C | AS161: Confección de prendas de vestir, excepto prendas de piel | AT161: Confección de prendas de vestir | AU161: 1044 | AV161: 401 | AW161: 0 | BI161: 5154 | BJ161: 6 | BK161: 25873 | BL161: 4
C162: 68547 | D162: PIEDECUESTA | E162: 5 | F162: 2 | G162: Jurídica | H162: 68 | I162: SANTANDER | J162: Aprobado con subsidio | K162: MICRO | L162: 9200 | M162: ACTIVIDADES ARTÍSTICAS, DE ENTRETENIMIENTO Y RECREACIÓN | N162: R | O162: Actividades de juegos de azar y apuestas | P162: Actividades de juegos de azar y apuestas | Q162: 5 | R162: 0 | S162: 0 | AE162: 0 | AF162: 0 | AG162: 11001 | AH162: BOGOTÁ, D.C. | AI162: 2 | AJ162: 1 | AK162: Jurídica | AL162: 11 | AM162: BOGOTÁ, D.C. | AN162: Aprobado con subsidio | AO162: MICRO | AP162: 1410 | AQ162: INDUSTRIAS MANUFACTURERAS | AR162: C | AS162: Confección de prendas de vestir, excepto prendas de piel | AT162: Confección de prendas de vestir | AU162: 1 | AV162: 1 | AW162: 0 | BI162: 15808 | BJ162: 1 | BK162: 68895 | BL162: 4
C163: 68077 | D163: BARBOSA | E163: 7 | F163: 7 | G163: Jurídica | H163: 68 | I163: SANTANDER | J163: Aprobado con subsidio | K163: PEQUEÑA | L163: 8610 | M163: ACTIVIDADES DE ATENCIÓN DE LA SALUD HUMANA Y DE ASISTENCIA SOCIAL | N163: Q | O163: Actividades de hospitales y clínicas, con internación | P163: Actividades de hospitales y clínicas, con internación | Q163: 7 | R163: 0 | S163: 0 | AE163: 0 | AF163: 0 | AG163: 11001 | AH163: BOGOTÁ, D.C. | AI163: 17 | AJ163: 11 | AK163: Jurídica | AL163: 11 | AM163: BOGOTÁ, D.C. | AN163: Aprobado con subsidio | AO163: PEQUEÑA | AP163: 2599 | AQ163: INDUSTRIAS MANUFACTURERAS | AR163: C | AS163: Fabricación de otros productos elaborados de metal y actividades de servicios relacionadas con el trabajo de metales | AT163: Fabricación de productos elaborados de metal, excepto maquinaria y equipo | AU163: 3 | AV163: 14 | AW163: 0 | BI163: 25658 | BJ163: 1 | BK163: 15500 | BL163: 3
C164: 68001 | D164: BUCARAMANGA | E164: 7 | F164: 6 | G164: Jurídica | H164: 68 | I164: SANTANDER | J164: Aprobado con subsidio | K164: PEQUEÑA | L164: 4731 | M164: COMERCIO AL POR MAYOR Y AL POR MENOR; REPARACIÓN DE VEHÍCULOS AUTOMOTORES Y MOTOCICLETAS | N164: G | O164: Comercio al por menor de combustible, lubricantes, aditivos y productos de limpieza para automotores, en establecimientos especializados | P164: Comercio al por menor de combustible, lubricantes, aditivos y productos de limpieza para automotores, en establecimientos especializados | Q164: 4 | R164: 3 | S164: 0 | AE164: 0 | AF164: 0 | AG164: 11001 | AH164: BOGOTÁ, D.C. | AI164: 10 | AJ164: 3 | AK164: Jurídica | AL164: 11 | AM164: BOGOTÁ, D.C. | AN164: Aprobado con subsidio | AO164: PEQUEÑA | AP164: 1410 | AQ164: INDUSTRIAS MANUFACTURERAS | AR164: C | AS164: Confección de prendas de vestir, excepto prendas de piel | AT164: Confección de prendas de vestir | AU164: 5 | AV164: 5 | AW164: 0 | BI164: 13473 | BJ164: 3 | BK164: 23417 | BL164: 3
C165: 11001 | D165: BOGOTÁ, D.C. | E165: 0 | F165: 0 | G165: Jurídica | H165: 11 | I165: BOGOTÁ, D.C. | J165: 0 | K165: GRANDE | L165: 1011 | M165: INDUSTRIAS MANUFACTURERAS | N165: C | O165: Procesamiento y conservación de carne, pescado, crustáceos y moluscos | P165: Elaboración de productos alimenticios | Q165: 0 | R165: 0 | S165: 0 | AE165: 0 | AF165: 0 | AG165: 11001 | AH165: BOGOTÁ, D.C. | AI165: 6 | AJ165: 9 | AK165: Jurídica | AL165: 11 | AM165: BOGOTÁ, D.C. | AN165: Aprobado con subsidio | AO165: PEQUEÑA | AP165: 3250 | AQ165: INDUSTRIAS MANUFACTURERAS | AR165: C | AS165: Fabricación de instrumentos, aparatos y materiales médicos y odontológicos (incluido mobiliario) | AT165: Otras industrias manufactureras | AU165: 3 | AV165: 3 | AW165: 0 | BI165: 73443 | BJ165: 5 | BK165: 50573 | BL165: 3
C166: 11001 | D166: BOGOTÁ, D.C. | E166: 5 | F166: 2 | G166: Jurídica | H166: 11 | I166: BOGOTÁ, D.C. | J166: Aprobado con subsidio | K166: MICRO | L166: 1082 | M166: INDUSTRIAS MANUFACTURERAS | N166: C | O166: Elaboración de otros productos alimenticios | P166: Elaboración de productos alimenticios | Q166: 3 | R166: 2 | S166: 0 | AE166: 0 | AF166: 0 | AG166: 8001 | AH166: BARRANQUILLA | AI166: 2 | AJ166: 1 | AK166: Jurídica | AL166: 8 | AM166: ATLÁNTICO | AN166: Aprobado con subsidio | AO166: MICRO | AP166: 2740 | AQ166: INDUSTRIAS MANUFACTURERAS | AR166: C | AS166: Fabricación de equipos eléctricos de iluminación | AT166: Fabricación de aparatos y equipo eléctrico | AU166: 0 | AV166: 2 | AW166: 0 | BI166: 19845 | BJ166: 2 | BK166: 5847 | BL166: 3
C167: 11001 | D167: BOGOTÁ, D.C. | E167: 2 | F167: 7 | G167: Jurídica | H167: 11 | I167: BOGOTÁ, D.C. | J167: Aprobado con subsidio | K167: MICRO | L167: 9412 | M167: OTRAS ACTIVIDADES DE SERVICIOS | N167: S | O167: Actividades de asociaciones empresariales y de empleadores y asociaciones profesionales | P167: Actividades de asociaciones empresariales y de empleadores y asociaciones profesionales | Q167: 2 | R167: 0 | S167: 0 | AE167: 0 | AF167: 0 | AG167: 47001 | AH167: SANTA MARTA | AI167: 9 | AJ167: 3 | AK167: Jurídica | AL167: 47 | AM167: MAGDALENA | AN167: Aprobado con subsidio | AO167: PEQUEÑA | AP167: 1104 | AQ167: INDUSTRIAS MANUFACTURERAS | AR167: C | AS167: Elaboración de bebidas | AT167: Elaboración de bebidas | AU167: 3 | AV167: 6 | AW167: 0 | BI167: 63690 | BJ167: 2 | BK167: 13244 | BL167: 3
C168: 11001 | D168: BOGOTÁ, D.C. | E168: 0 | F168: 0 | G168: Jurídica | H168: 11 | I168: BOGOTÁ, D.C. | J168: 0 | K168: PEQUEÑA | L168: 5911 | M168: INFORMACIÓN Y COMUNICACIONES | N168: J | O168: Actividades de producción de películas cinematográficas, vídeo y producción de programas, anuncios y comerciales de televisión | P168: Actividades de producción de películas cinematográficas, vídeo y producción de programas, anuncios y comerciales de televisión | Q168: 0 | R168: 0 | S168: 0 | AE168: 0 | AF168: 0 | AG168: 11001 | AH168: BOGOTÁ, D.C. | AI168: 2 | AJ168: 2 | AK168: Jurídica | AL168: 11 | AM168: BOGOTÁ, D.C. | AN168: Aprobado con subsidio | AO168: MICRO | AP168: 1511 | AQ168: INDUSTRIAS MANUFACTURERAS | AR168: C | AS168: Curtido y recurtido de cueros; fabricación de artículos de viaje, bolsos de mano y artículos similares, y fabricación de artículos de talabartería y guarnicionería; adobo y teñido de pieles | AT168: Curtido y recurtido de cueros; fabricación de calzado; fabricación de artículos de viaje, maletas, bolsos de mano y artículos similares, y fabricación de artículos de talabartería y guarnicionería; adobo y teñido de pieles | AU168: 1 | AV168: 1 | AW168: 0 | BI168: 25269 | BJ168: 13 | BK168: 23660 | BL168: 3
C169: 25286 | D169: FUNZA | E169: 9 | F169: 27 | G169: Jurídica | H169: 25 | I169: CUNDINAMARCA | J169: Aprobado con subsidio | K169: PEQUEÑA | L169: 1709 | M169: INDUSTRIAS MANUFACTURERAS | N169: C | O169: Fabricación de papel, cartón y productos de papel y cartón | P169: Fabricación de papel, cartón y productos de papel y cartón | Q169: 4 | R169: 5 | S169: 0 | AE169: 0 | AF169: 0 | AG169: 76001 | AH169: CALI | AI169: 7 | AJ169: 0 | AK169: Natural | AL169: 76 | AM169: VALLE DEL CAUCA | AN169: Aprobado con subsidio | AO169: MICRO | AP169: 1081 | AQ169: INDUSTRIAS MANUFACTURERAS | AR169: C | AS169: Elaboración de otros productos alimenticios | AT169: Elaboración de productos alimenticios | AU169: 3 | AV169: 4 | AW169: 0 | BI169: 17541 | BJ169: 0 | BK169: 50110 | BL169: 3
C170: 11001 | D170: BOGOTÁ, D.C. | E170: 13 | F170: 0 | G170: Jurídica | H170: 11 | I170: BOGOTÁ, D.C. | J170: Aprobado con subsidio | K170: PEQUEÑA | L170: 1011 | M170: INDUSTRIAS MANUFACTURERAS | N170: C | O170: Procesamiento y conservación de carne, pescado, crustáceos y moluscos | P170: Elaboración de productos alimenticios | Q170: 5 | R170: 8 | S170: 0 | AE170: 0 | AF170: 0 | AG170: 76001 | AH170: CALI | AI170: 7 | AJ170: 1 | AK170: Natural | AL170: 76 | AM170: VALLE DEL CAUCA | AN170: Aprobado con subsidio | AO170: PEQUEÑA | AP170: 1081 | AQ170: INDUSTRIAS MANUFACTURERAS | AR170: C | AS170: Elaboración de otros productos alimenticios | AT170: Elaboración de productos alimenticios | AU170: 2 | AV170: 5 | AW170: 0 | BI170: 19300 | BJ170: 3 | BK170: 25320 | BL170: 3
C171: 11001 | D171: BOGOTÁ, D.C. | E171: 9 | F171: 23 | G171: Jurídica | H171: 11 | I171: BOGOTÁ, D.C. | J171: Aprobado con subsidio | K171: PEQUEÑA | L171: 1011 | M171: INDUSTRIAS MANUFACTURERAS | N171: C | O171: Procesamiento y conservación de carne, pescado, crustáceos y moluscos | P171: Elaboración de productos alimenticios | Q171: 2 | R171: 7 | S171: 0 | AE171: 0 | AF171: 0 | AG171: 25430 | AH171: MADRID | AI171: 39 | AJ171: 34 | AK171: Jurídica | AL171: 25 | AM171: CUNDINAMARCA | AN171: Aprobado con subsidio | AO171: MEDIANA | AP171: 2023 | AQ171: INDUSTRIAS MANUFACTURERAS | AR171: C | AS171: Fabricación de otros productos químicos | AT171: Fabricación de sustancias y productos químicos | AU171: 18 | AV171: 21 | AW171: 0 | BI171: 73319 | BJ171: 1 | BK171: 5887 | BL171: 3
C172: 11001 | D172: BOGOTÁ, D.C. | E172: 9 | F172: 2 | G172: Jurídica | H172: 11 | I172: BOGOTÁ, D.C. | J172: Aprobado con subsidio | K172: PEQUEÑA | L172: 1011 | M172: INDUSTRIAS MANUFACTURERAS | N172: C | O172: Procesamiento y conservación de carne, pescado, crustáceos y moluscos | P172: Elaboración de productos alimenticios | Q172: 2 | R172: 7 | S172: 0 | AE172: 0 | AF172: 0 | AG172: 11001 | AH172: BOGOTÁ, D.C. | AI172: 3 | AJ172: 1 | AK172: Jurídica | AL172: 11 | AM172: BOGOTÁ, D.C. | AN172: Aprobado con subsidio | AO172: MICRO | AP172: 1410 | AQ172: INDUSTRIAS MANUFACTURERAS | AR172: C | AS172: Confección de prendas de vestir, excepto prendas de piel | AT172: Confección de prendas de vestir | AU172: 2 | AV172: 1 | AW172: 0 | BI172: 5172 | BJ172: 5 | BK172: 25295 | BL172: 3
C173: 11001 | D173: BOGOTÁ, D.C. | E173: 8 | F173: 39 | G173: Jurídica | H173: 11 | I173: BOGOTÁ, D.C. | J173: Aprobado con subsidio | K173: MEDIANA | L173: 4659 | M173: COMERCIO AL POR MAYOR Y AL POR MENOR; REPARACIÓN DE VEHÍCULOS AUTOMOTORES Y MOTOCICLETAS | N173: G | O173: Comercio al por mayor de maquinaria y equipo | P173: Comercio al por mayor de maquinaria y equipo | Q173: 2 | R173: 6 | S173: 0 | AE173: 0 | AF173: 0 | AG173: 11001 | AH173: BOGOTÁ, D.C. | AI173: 6 | AJ173: 3 | AK173: Jurídica | AL173: 11 | AM173: BOGOTÁ, D.C. | AN173: Aprobado con subsidio | AO173: PEQUEÑA | AP173: 1812 | AQ173: INDUSTRIAS MANUFACTURERAS | AR173: C | AS173: Actividades de impresión y actividades de servicios relacionados con la impresión | AT173: Fabricación de papel, cartón y productos de papel y cartón | AU173: 3 | AV173: 3 | AW173: 0 | BI173: 50318 | BJ173: 4 | BK173: 85139 | BL173: 3
C174: 11001 | D174: BOGOTÁ, D.C. | E174: 41 | F174: 56 | G174: Jurídica | H174: 11 | I174: BOGOTÁ, D.C. | J174: Aprobado con subsidio | K174: MEDIANA | L174: 4290 | M174: CONSTRUCCIÓN | N174: F | O174: Construcción de otras obras de ingeniería civil | P174: Construcción de otras obras de ingeniería civil | Q174: 6 | R174: 35 | S174: 0 | AE174: 0 | AF174: 0 | AG174: 11001 | AH174: BOGOTÁ, D.C. | AI174: 2 | AJ174: 0 | AK174: Jurídica | AL174: 11 | AM174: BOGOTÁ, D.C. | AN174: Aprobado con subsidio | AO174: MICRO | AP174: 1410 | AQ174: INDUSTRIAS MANUFACTURERAS | AR174: C | AS174: Confección de prendas de vestir, excepto prendas de piel | AT174: Confección de prendas de vestir | AU174: 1 | AV174: 1 | AW174: 0 | BI174: 54223 | BJ174: 1 | BK174: 13473 | BL174: 3
C175: 11001 | D175: BOGOTÁ, D.C. | E175: 5 | F175: 2 | G175: Jurídica | H175: 11 | I175: BOGOTÁ, D.C. | J175: Aprobado con subsidio | K175: MICRO | L175: 1811 | M175: INDUSTRIAS MANUFACTURERAS | N175: C | O175: Actividades de impresión y actividades de servicios relacionados con la impresión | P175: Actividades de impresión y de producción de copias a partir de grabaciones originales | Q175: 3 | R175: 2 | S175: 0 | AE175: 0 | AF175: 0 | AG175: 76001 | AH175: CALI | AI175: 2 | AJ175: 0 | AK175: Jurídica | AL175: 76 | AM175: VALLE DEL CAUCA | AN175: Aprobado con subsidio | AO175: MICRO | AP175: 1392 | AQ175: INDUSTRIAS MANUFACTURERAS | AR175: C | AS175: Fabricación de otros productos textiles | AT175: Fabricación de productos textiles | AU175: 2 | AV175: 0 | AW175: 0 | BI175: 63594 | BJ175: 2 | BK175: 19300 | BL175: 3
C176: 11001 | D176: BOGOTÁ, D.C. | E176: 23 | F176: 126 | G176: Jurídica | H176: 11 | I176: BOGOTÁ, D.C. | J176: Aprobado con subsidio | K176: MEDIANA | L176: 4511 | M176: COMERCIO AL POR MAYOR Y AL POR MENOR; REPARACIÓN DE VEHÍCULOS AUTOMOTORES Y MOTOCICLETAS | N176: G | O176: Comercio de vehículos automotores | P176: Comercio de vehículos automotores | Q176: 12 | R176: 11 | S176: 0 | AE176: 0 | AF176: 0 | AG176: 76001 | AH176: CALI | AI176: 4 | AJ176: 0 | AK176: Jurídica | AL176: 76 | AM176: VALLE DEL CAUCA | AN176: Aprobado con subsidio | AO176: MICRO | AP176: 2229 | AQ176: INDUSTRIAS MANUFACTURERAS | AR176: C | AS176: Fabricación de productos de plástico | AT176: Fabricación de productos de caucho y de plástico | AU176: 1 | AV176: 3 | AW176: 0 | BI176: 66088 | BJ176: 1 | BK176: 17877 | BL176: 3
C177: 11001 | D177: BOGOTÁ, D.C. | E177: 0 | F177: 0 | G177: Jurídica | H177: 11 | I177: BOGOTÁ, D.C. | J177: 0 | K177: MICRO | L177: 9319 | M177: ACTIVIDADES ARTÍSTICAS, DE ENTRETENIMIENTO Y RECREACIÓN | N177: R | O177: Actividades deportivas | P177: Actividades deportivas | Q177: 0 | R177: 0 | S177: 0 | AE177: 0 | AF177: 0 | AG177: 76001 | AH177: CALI | AI177: 6 | AJ177: 1 | AK177: Jurídica | AL177: 76 | AM177: VALLE DEL CAUCA | AN177: Aprobado con subsidio | AO177: MICRO | AP177: 1811 | AQ177: INDUSTRIAS MANUFACTURERAS | AR177: C | AS177: Actividades de impresión y actividades de servicios relacionados con la impresión | AT177: Actividades de impresión y de producción de copias a partir de grabaciones originales | AU177: 4 | AV177: 2 | AW177: 0 | BI177: 63401 | BJ177: 6 | BK177: 76126 | BL177: 3
C178: 8001 | D178: BARRANQUILLA | E178: 150 | F178: 60 | G178: Natural | H178: 8 | I178: ATLÁNTICO | J178: Aprobado con subsidio | K178: GRANDE | L178: 4723 | M178: COMERCIO AL POR MAYOR Y AL POR MENOR; REPARACIÓN DE VEHÍCULOS AUTOMOTORES Y MOTOCICLETAS | N178: G | O178: Comercio al por menor de alimentos (víveres en general), bebidas y tabaco, en establecimientos especializados | P178: Comercio al por menor de alimentos (víveres en general), bebidas y tabaco, en establecimientos especializados | Q178: 38 | R178: 112 | S178: 0 | AE178: 0 | AF178: 0 | AG178: 25286 | AH178: FUNZA | AI178: 0 | AJ178: 0 | AK178: Jurídica | AL178: 25 | AM178: CUNDINAMARCA | AN178: 0 | AO178: PEQUEÑA | AP178: 1081 | AQ178: INDUSTRIAS MANUFACTURERAS | AR178: C | AS178: Elaboración de otros productos alimenticios | AT178: Elaboración de productos alimenticios | AU178: 0 | AV178: 0 | AW178: 0 | BI178: 13052 | BJ178: 2 | BK178: 25743 | BL178: 3
C179: 11001 | D179: BOGOTÁ, D.C. | E179: 45 | F179: 35 | G179: Jurídica | H179: 11 | I179: BOGOTÁ, D.C. | J179: Aprobado con subsidio | K179: MEDIANA | L179: 6820 | M179: ACTIVIDADES INMOBILIARIAS | N179: L | O179: Actividades inmobiliarias realizadas a cambio de una retribución o por contrata | P179: Actividades inmobiliarias realizadas a cambio de una retribución o por contrata | Q179: 26 | R179: 19 | S179: 0 | AE179: 0 | AF179: 0 | AG179: 76892 | AH179: YUMBO | AI179: 19 | AJ179: 86 | AK179: Jurídica | AL179: 76 | AM179: VALLE DEL CAUCA | AN179: Aprobado con subsidio | AO179: MEDIANA | AP179: 1709 | AQ179: INDUSTRIAS MANUFACTURERAS | AR179: C | AS179: Fabricación de papel, cartón y productos de papel y cartón | AT179: Fabricación de papel, cartón y productos de papel y cartón | AU179: 8 | AV179: 11 | AW179: 0 | BI179: 15455 | BJ179: 2 | BK179: 25769 | BL179: 3
C180: 41298 | D180: GARZÓN | E180: 14 | F180: 2 | G180: Jurídica | H180: 41 | I180: HUILA | J180: Aprobado con subsidio | K180: MICRO | L180: 2392 | M180: INDUSTRIAS MANUFACTURERAS | N180: C | O180: Fabricación de productos minerales no metálicos n.c.p. | P180: Fabricación de otros productos minerales no metálicos | Q180: 1 | R180: 13 | S180: 0 | AE180: 0 | AF180: 0 | AG180: 11001 | AH180: BOGOTÁ, D.C. | AI180: 6 | AJ180: 0 | AK180: Jurídica | AL180: 11 | AM180: BOGOTÁ, D.C. | AN180: Aprobado con subsidio | AO180: MICRO | AP180: 2410 | AQ180: INDUSTRIAS MANUFACTURERAS | AR180: C | AS180: Industrias básicas de hierro y de acero | AT180: Fabricación de productos metalúrgicos básicos | AU180: 0 | AV180: 6 | AW180: 0 | BI180: 41524 | BJ180: 8 | BK180: 76563 | BL180: 3
C181: 11001 | D181: BOGOTÁ, D.C. | E181: 7 | F181: 4 | G181: Jurídica | H181: 11 | I181: BOGOTÁ, D.C. | J181: Aprobado con subsidio | K181: PEQUEÑA | L181: 9200 | M181: ACTIVIDADES ARTÍSTICAS, DE ENTRETENIMIENTO Y RECREACIÓN | N181: R | O181: Actividades de juegos de azar y apuestas | P181: Actividades de juegos de azar y apuestas | Q181: 5 | R181: 2 | S181: 0 | AE181: 0 | AF181: 0 | AG181: 11001 | AH181: BOGOTÁ, D.C. | AI181: 23 | AJ181: 16 | AK181: Jurídica | AL181: 11 | AM181: BOGOTÁ, D.C. | AN181: Aprobado con subsidio | AO181: PEQUEÑA | AP181: 1410 | AQ181: INDUSTRIAS MANUFACTURERAS | AR181: C | AS181: Confección de prendas de vestir, excepto prendas de piel | AT181: Confección de prendas de vestir | AU181: 22 | AV181: 1 | AW181: 0 | BI181: 15176 | BJ181: 4 | BK181: 54498 | BL181: 3
C182: 8001 | D182: BARRANQUILLA | E182: 58 | F182: 47 | G182: Jurídica | H182: 8 | I182: ATLÁNTICO | J182: Aprobado con subsidio | K182: MEDIANA | L182: 7820 | M182: ACTIVIDADES DE SERVICIOS ADMINISTRATIVOS Y DE APOYO | N182: N | O182: Actividades de agencias de empleo temporal | P182: Actividades de agencias de empleo temporal | Q182: 41 | R182: 17 | S182: 0 | AE182: 0 | AF182: 0 | AG182: 11001 | AH182: BOGOTÁ, D.C. | AI182: 15 | AJ182: 1 | AK182: Jurídica | AL182: 11 | AM182: BOGOTÁ, D.C. | AN182: Aprobado con subsidio | AO182: PEQUEÑA | AP182: 2030 | AQ182: INDUSTRIAS MANUFACTURERAS | AR182: C | AS182: Fabricación de fibras sintéticas y artificiales | AT182: Fabricación de sustancias y productos químicos | AU182: 2 | AV182: 13 | AW182: 0 | BI182: 76364 | BJ182: 9 | BK182: 5400 | BL182: 3
C183: 8001 | D183: BARRANQUILLA | E183: 37 | F183: 44 | G183: Jurídica | H183: 8 | I183: ATLÁNTICO | J183: Aprobado con subsidio | K183: MEDIANA | L183: 126 | M183: AGRICULTURA, GANADERÍA, CAZA, SILVICULTURA Y PESCA | N183: A | O183: Cultivos agrícolas permanentes | P183: Cultivos agrícolas permanentes | Q183: 2 | R183: 35 | S183: 0 | AE183: 0 | AF183: 0 | AG183: 47001 | AH183: SANTA MARTA | AI183: 8 | AJ183: 0 | AK183: Jurídica | AL183: 47 | AM183: MAGDALENA | AN183: Aprobado con subsidio | AO183: MICRO | AP183: 3311 | AQ183: INDUSTRIAS MANUFACTURERAS | AR183: C | AS183: Mantenimiento y reparación especializado de productos elaborados en metal y de maquinaria y equipo | AT183: Instalación, mantenimiento y reparación especializado de maquinaria y equipo | AU183: 3 | AV183: 5 | AW183: 0 | BI183: 15362 | BJ183: 1 | BK183: 73026 | BL183: 3
C184: 25754 | D184: SOACHA | E184: 6 | F184: 8 | G184: Jurídica | H184: 25 | I184: CUNDINAMARCA | J184: Aprobado con subsidio | K184: PEQUEÑA | L184: 8530 | M184: EDUCACIÓN | N184: P | O184: Establecimientos que combinan diferentes niveles de educación | P184: Establecimientos que combinan diferentes niveles de educación | Q184: 4 | R184: 2 | S184: 0 | AE184: 0 | AF184: 0 | AG184: 25430 | AH184: MADRID | AI184: 8 | AJ184: 5 | AK184: Jurídica | AL184: 25 | AM184: CUNDINAMARCA | AN184: Aprobado con subsidio | AO184: PEQUEÑA | AP184: 1523 | AQ184: INDUSTRIAS MANUFACTURERAS | AR184: C | AS184: Fabricación de calzado | AT184: Curtido y recurtido de cueros; fabricación de calzado; fabricación de artículos de viaje, maletas, bolsos de mano y artículos similares, y fabricación de artículos de talabartería y guarnicionería; adobo y teñido de pieles | AU184: 4 | AV184: 4 | AW184: 0 | BI184: 25736 | BJ184: 1 | BK184: 15087 | BL184: 3
C185: 76001 | D185: CALI | E185: 0 | F185: 0 | G185: Jurídica | H185: 76 | I185: VALLE DEL CAUCA | J185: 0 | K185: MICRO | L185: 5511 | M185: ALOJAMIENTO Y SERVICIOS DE COMIDA | N185: I | O185: Actividades de alojamiento de estancias cortas | P185: Actividades de alojamiento de estancias cortas | Q185: 0 | R185: 0 | S185: 0 | AE185: 0 | AF185: 0 | AG185: 11001 | AH185: BOGOTÁ, D.C. | AI185: 0 | AJ185: 0 | AK185: Jurídica | AL185: 11 | AM185: BOGOTÁ, D.C. | AN185: 0 | AO185: MICRO | AP185: 1811 | AQ185: INDUSTRIAS MANUFACTURERAS | AR185: C | AS185: Actividades de impresión y actividades de servicios relacionados con la impresión | AT185: Actividades de impresión y de producción de copias a partir de grabaciones originales | AU185: 0 | AV185: 0 | AW185: 0 | BI185: 17877 | BJ185: 3 | BK185: 15572 | BL185: 3
C186: 76834 | D186: TULUÁ | E186: 4 | F186: 0 | G186: Jurídica | H186: 76 | I186: VALLE DEL CAUCA | J186: Aprobado con subsidio | K186: MICRO | L186: 8621 | M186: ACTIVIDADES DE ATENCIÓN DE LA SALUD HUMANA Y DE ASISTENCIA SOCIAL | N186: Q | O186: Actividades de práctica médica y odontológica, sin internación | P186: Actividades de práctica médica y odontológica, sin internación | Q186: 4 | R186: 0 | S186: 0 | AE186: 0 | AF186: 0 | AG186: 25286 | AH186: FUNZA | AI186: 7 | AJ186: 0 | AK186: Jurídica | AL186: 25 | AM186: CUNDINAMARCA | AN186: Aprobado con subsidio | AO186: MICRO | AP186: 2512 | AQ186: INDUSTRIAS MANUFACTURERAS | AR186: C | AS186: Fabricación de productos metálicos para uso estructural, tanques, depósitos y generadores de vapor. | AT186: Fabricación de productos elaborados de metal, excepto maquinaria y equipo | AU186: 3 | AV186: 4 | AW186: 0 | BI186: 17777 | BJ186: 2 | BK186: 23189 | BL186: 3
C187: 11001 | D187: BOGOTÁ, D.C. | E187: 3 | F187: 13 | G187: Jurídica | H187: 11 | I187: BOGOTÁ, D.C. | J187: Aprobado con subsidio | K187: PEQUEÑA | L187: 4752 | M187: COMERCIO AL POR MAYOR Y AL POR MENOR; REPARACIÓN DE VEHÍCULOS AUTOMOTORES Y MOTOCICLETAS | N187: G | O187: Comercio al por menor de otros enseres domésticos en establecimientos especializados | P187: Comercio al por menor de otros enseres domésticos en establecimientos especializados | Q187: 1 | R187: 2 | S187: 0 | AE187: 0 | AF187: 0 | AG187: 17001 | AH187: MANIZALES | AI187: 2 | AJ187: 1 | AK187: Jurídica | AL187: 17 | AM187: CALDAS | AN187: Aprobado con subsidio | AO187: MICRO | AP187: 3312 | AQ187: INDUSTRIAS MANUFACTURERAS | AR187: C | AS187: Mantenimiento y reparación especializado de productos elaborados en metal y de maquinaria y equipo | AT187: Instalación, mantenimiento y reparación especializado de maquinaria y equipo | AU187: 1 | AV187: 1 | AW187: 0 | BI187: 5579 | BJ187: 4 | BK187: 73275 | BL187: 3
C188: 11001 | D188: BOGOTÁ, D.C. | E188: 12 | F188: 4 | G188: Jurídica | H188: 11 | I188: BOGOTÁ, D.C. | J188: Aprobado con subsidio | K188: PEQUEÑA | L188: 4520 | M188: COMERCIO AL POR MAYOR Y AL POR MENOR; REPARACIÓN DE VEHÍCULOS AUTOMOTORES Y MOTOCICLETAS | N188: G | O188: Mantenimiento y reparación de vehículos automotores | P188: Mantenimiento y reparación de vehículos automotores | Q188: 3 | R188: 9 | S188: 0 | AE188: 0 | AF188: 0 | AG188: 23466 | AH188: MONTELÍBANO | AI188: 2 | AJ188: 5 | AK188: Jurídica | AL188: 23 | AM188: CÓRDOBA | AN188: Aprobado con subsidio | AO188: PEQUEÑA | AP188: 3311 | AQ188: INDUSTRIAS MANUFACTURERAS | AR188: C | AS188: Mantenimiento y reparación especializado de productos elaborados en metal y de maquinaria y equipo | AT188: Instalación, mantenimiento y reparación especializado de maquinaria y equipo | AU188: 1 | AV188: 1 | AW188: 0 | BI188: 8078 | BJ188: 2 | BK188: 76890 | BL188: 3
C189: 68307 | D189: GIRÓN | E189: 3 | F189: 0 | G189: Jurídica | H189: 68 | I189: SANTANDER | J189: Aprobado con subsidio | K189: MICRO | L189: 4752 | M189: COMERCIO AL POR MAYOR Y AL POR MENOR; REPARACIÓN DE VEHÍCULOS AUTOMOTORES Y MOTOCICLETAS | N189: G | O189: Comercio al por menor de otros enseres domésticos en establecimientos especializados | P189: Comercio al por menor de otros enseres domésticos en establecimientos especializados | Q189: 1 | R189: 2 | S189: 0 | AE189: 0 | AF189: 0 | AG189: 11001 | AH189: BOGOTÁ, D.C. | AI189: 1 | AJ189: 0 | AK189: Jurídica | AL189: 11 | AM189: BOGOTÁ, D.C. | AN189: Aprobado con subsidio | AO189: MICRO | AP189: 1082 | AQ189: INDUSTRIAS MANUFACTURERAS | AR189: C | AS189: Elaboración de otros productos alimenticios | AT189: Elaboración de productos alimenticios | AU189: 1 | AV189: 0 | AW189: 0 | BI189: 17174 | BJ189: 6 | BK189: 54810 | BL189: 3
C190: 25307 | D190: GIRARDOT | E190: 2 | F190: 0 | G190: Jurídica | H190: 25 | I190: CUNDINAMARCA | J190: Aprobado con subsidio | K190: MICRO | L190: 8699 | M190: ACTIVIDADES DE ATENCIÓN DE LA SALUD HUMANA Y DE ASISTENCIA SOCIAL | N190: Q | O190: Otras actividades de atención relacionadas con la salud humana | P190: Otras actividades de atención relacionadas con la salud humana | Q190: 2 | R190: 0 | S190: 0 | AE190: 0 | AF190: 0 | AG190: 76001 | AH190: CALI | AI190: 2 | AJ190: 0 | AK190: Jurídica | AL190: 76 | AM190: VALLE DEL CAUCA | AN190: Aprobado con subsidio | AO190: MICRO | AP190: 3312 | AQ190: INDUSTRIAS MANUFACTURERAS | AR190: C | AS190: Mantenimiento y reparación especializado de productos elaborados en metal y de maquinaria y equipo | AT190: Instalación, mantenimiento y reparación especializado de maquinaria y equipo | AU190: 0 | AV190: 2 | AW190: 0 | BI190: 73449 | BJ190: 5 | BK190: 23555 | BL190: 3
C191: 11001 | D191: BOGOTÁ, D.C. | E191: 2 | F191: 2 | G191: Jurídica | H191: 11 | I191: BOGOTÁ, D.C. | J191: Aprobado con subsidio | K191: MICRO | L191: 7730 | M191: ACTIVIDADES DE SERVICIOS ADMINISTRATIVOS Y DE APOYO | N191: N | O191: Alquiler y arrendamiento de otros tipos de maquinaria, equipo y bienes tangibles n.c.p. | P191: Alquiler y arrendamiento de otros tipos de maquinaria, equipo y bienes tangibles n.c.p. | Q191: 0 | R191: 2 | S191: 0 | AE191: 0 | AF191: 0 | AG191: 11001 | AH191: BOGOTÁ, D.C. | AI191: 6 | AJ191: 0 | AK191: Jurídica | AL191: 11 | AM191: BOGOTÁ, D.C. | AN191: Aprobado con subsidio | AO191: MICRO | AP191: 1081 | AQ191: INDUSTRIAS MANUFACTURERAS | AR191: C | AS191: Elaboración de otros productos alimenticios | AT191: Elaboración de productos alimenticios | AU191: 4 | AV191: 2 | AW191: 0 | BI191: 76036 | BJ191: 2 | BK191: 5591 | BL191: 3
C192: 11001 | D192: BOGOTÁ, D.C. | E192: 2 | F192: 1 | G192: Jurídica | H192: 11 | I192: BOGOTÁ, D.C. | J192: Aprobado con subsidio | K192: MICRO | L192: 6810 | M192: ACTIVIDADES INMOBILIARIAS | N192: L | O192: Actividades inmobiliarias realizadas con bienes propios o arrendados | P192: Actividades inmobiliarias realizadas con bienes propios o arrendados | Q192: 2 | R192: 0 | S192: 0 | AE192: 0 | AF192: 0 | AG192: 5001 | AH192: MEDELLÍN | AI192: 4 | AJ192: 0 | AK192: Natural | AL192: 5 | AM192: ANTIOQUIA | AN192: Aprobado con subsidio | AO192: MICRO | AP192: 1081 | AQ192: INDUSTRIAS MANUFACTURERAS | AR192: C | AS192: Elaboración de otros productos alimenticios | AT192: Elaboración de productos alimenticios | AU192: 1 | AV192: 3 | AW192: 0 | BI192: 68575 | BJ192: 1 | BK192: 25772 | BL192: 3
C193: 85001 | D193: YOPAL | E193: 6 | F193: 7 | G193: Jurídica | H193: 85 | I193: CASANARE | J193: Aprobado con subsidio | K193: PEQUEÑA | L193: 2511 | M193: INDUSTRIAS MANUFACTURERAS | N193: C | O193: Fabricación de productos metálicos para uso estructural, tanques, depósitos y generadores de vapor. | P193: Fabricación de productos elaborados de metal, excepto maquinaria y equipo | Q193: 1 | R193: 5 | S193: 0 | AE193: 0 | AF193: 0 | AG193: 66682 | AH193: SANTA ROSA DE CABAL | AI193: 6 | AJ193: 4 | AK193: Jurídica | AL193: 66 | AM193: RISARALDA | AN193: Aprobado con subsidio | AO193: PEQUEÑA | AP193: 1104 | AQ193: INDUSTRIAS MANUFACTURERAS | AR193: C | AS193: Elaboración de bebidas | AT193: Elaboración de bebidas | AU193: 4 | AV193: 2 | AW193: 0 | BI193: 5686 | BJ193: 13 | BK193: 81736 | BL193: 3
C194: 50001 | D194: VILLAVICENCIO | E194: 1 | F194: 6 | G194: Jurídica | H194: 50 | I194: META | J194: Aprobado con subsidio | K194: PEQUEÑA | L194: 4921 | M194: TRANSPORTE Y ALMACENAMIENTO | N194: H | O194: Transporte terrestre publico automotor | P194: Transporte terrestre publico automotor | Q194: 1 | R194: 0 | S194: 0 | AE194: 0 | AF194: 0 | AG194: 11001 | AH194: BOGOTÁ, D.C. | AI194: 2 | AJ194: 12 | AK194: Jurídica | AL194: 11 | AM194: BOGOTÁ, D.C. | AN194: Aprobado con subsidio | AO194: PEQUEÑA | AP194: 2029 | AQ194: INDUSTRIAS MANUFACTURERAS | AR194: C | AS194: Fabricación de otros productos químicos | AT194: Fabricación de sustancias y productos químicos | AU194: 2 | AV194: 0 | AW194: 0 | BI194: 5664 | BJ194: =COUNTIFS($AN$2:$AN$399999,"Aprobado con subsidio",$AG$2:$AG$399999,BI194) -> 9 | BK194: 76318 | BL194: 2
C195: 17001 | D195: MANIZALES | E195: 2 | F195: 8 | G195: Jurídica | H195: 17 | I195: CALDAS | J195: Aprobado con subsidio | K195: MICRO | L195: 8621 | M195: ACTIVIDADES DE ATENCIÓN DE LA SALUD HUMANA Y DE ASISTENCIA SOCIAL | N195: Q | O195: Actividades de práctica médica y odontológica, sin internación | P195: Actividades de práctica médica y odontológica, sin internación | Q195: 2 | R195: 0 | S195: 0 | AE195: 0 | AF195: 0 | AG195: 11001 | AH195: BOGOTÁ, D.C. | AI195: 11 | AJ195: 0 | AK195: Natural | AL195: 11 | AM195: BOGOTÁ, D.C. | AN195: Aprobado con subsidio | AO195: PEQUEÑA | AP195: 1081 | AQ195: INDUSTRIAS MANUFACTURERAS | AR195: C | AS195: Elaboración de otros productos alimenticios | AT195: Elaboración de productos alimenticios | AU195: 9 | AV195: 2 | AW195: 0 | BI195: 25875 | BJ195: 4 | BK195: 86320 | BL195: 2
C196: 5001 | D196: MEDELLÍN | E196: 5 | F196: 1 | G196: Jurídica | H196: 5 | I196: ANTIOQUIA | J196: Aprobado con subsidio | K196: MICRO | L196: 8511 | M196: EDUCACIÓN | N196: P | O196: Educación de la primera infancia, preescolar y básica primaria | P196: Educación de la primera infancia, preescolar y básica primaria | Q196: 5 | R196: 0 | S196: 0 | AE196: 0 | AF196: 0 | AG196: 63001 | AH196: ARMENIA | AI196: 10 | AJ196: 5 | AK196: Natural | AL196: 63 | AM196: QUINDÍO | AN196: Aprobado con subsidio | AO196: MICRO | AP196: 1081 | AQ196: INDUSTRIAS MANUFACTURERAS | AR196: C | AS196: Elaboración de otros productos alimenticios | AT196: Elaboración de productos alimenticios | AU196: 1 | AV196: 8 | AW196: 1 | BI196: 47745 | BJ196: 1 | BK196: 15806 | BL196: 2
C197: 11001 | D197: BOGOTÁ, D.C. | E197: 1 | F197: 18 | G197: Jurídica | H197: 11 | I197: BOGOTÁ, D.C. | J197: Aprobado con subsidio | K197: PEQUEÑA | L197: 4731 | M197: COMERCIO AL POR MAYOR Y AL POR MENOR; REPARACIÓN DE VEHÍCULOS AUTOMOTORES Y MOTOCICLETAS | N197: G | O197: Comercio al por menor de combustible, lubricantes, aditivos y productos de limpieza para automotores, en establecimientos especializados | P197: Comercio al por menor de combustible, lubricantes, aditivos y productos de limpieza para automotores, en establecimientos especializados | Q197: 0 | R197: 1 | S197: 0 | AE197: 0 | AF197: 0 | AG197: 11001 | AH197: BOGOTÁ, D.C. | AI197: 14 | AJ197: 57 | AK197: Jurídica | AL197: 11 | AM197: BOGOTÁ, D.C. | AN197: Aprobado con subsidio | AO197: MEDIANA | AP197: 1921 | AQ197: INDUSTRIAS MANUFACTURERAS | AR197: C | AS197: Fabricación de productos de la refinación del petróleo | AT197: Coquización, fabricación de productos de la refinación del petróleo y actividad de mezcla de combustibles | AU197: 3 | AV197: 11 | AW197: 0 | BI197: 5607 | BJ197: 23 | BK197: 25386 | BL197: 2
C198: 17001 | D198: MANIZALES | E198: 21 | F198: 1 | G198: Jurídica | H198: 17 | I198: CALDAS | J198: Aprobado con subsidio | K198: PEQUEÑA | L198: 4754 | M198: COMERCIO AL POR MAYOR Y AL POR MENOR; REPARACIÓN DE VEHÍCULOS AUTOMOTORES Y MOTOCICLETAS | N198: G | O198: Comercio al por menor de otros enseres domésticos en establecimientos especializados | P198: Comercio al por menor de otros enseres domésticos en establecimientos especializados | Q198: 14 | R198: 7 | S198: 0 | AE198: 0 | AF198: 0 | AG198: 11001 | AH198: BOGOTÁ, D.C. | AI198: 3 | AJ198: 0 | AK198: Jurídica | AL198: 11 | AM198: BOGOTÁ, D.C. | AN198: Aprobado con subsidio | AO198: MICRO | AP198: 1040 | AQ198: INDUSTRIAS MANUFACTURERAS | AR198: C | AS198: Elaboración de productos lácteos | AT198: Elaboración de productos alimenticios | AU198: 2 | AV198: 1 | AW198: 0 | BI198: 18205 | BJ198: 1 | BK198: 76122 | BL198: 2
C199: 73001 | D199: IBAGUÉ | E199: 2 | F199: 2 | G199: Jurídica | H199: 73 | I199: TOLIMA | J199: Aprobado con subsidio | K199: MICRO | L199: 8699 | M199: ACTIVIDADES DE ATENCIÓN DE LA SALUD HUMANA Y DE ASISTENCIA SOCIAL | N199: Q | O199: Otras actividades de atención relacionadas con la salud humana | P199: Otras actividades de atención relacionadas con la salud humana | Q199: 2 | R199: 0 | S199: 0 | AE199: 0 | AF199: 0 | AG199: 5318 | AH199: GUARNE | AI199: 10 | AJ199: 39 | AK199: Jurídica | AL199: 5 | AM199: ANTIOQUIA | AN199: Aprobado con subsidio | AO199: MEDIANA | AP199: 2022 | AQ199: INDUSTRIAS MANUFACTURERAS | AR199: C | AS199: Fabricación de otros productos químicos | AT199: Fabricación de sustancias y productos químicos | AU199: 1 | AV199: 9 | AW199: 0 | BI199: 25200 | BJ199: 11 | BK199: 85162 | BL199: 2
C200: 76001 | D200: CALI | E200: 2 | F200: 0 | G200: Jurídica | H200: 76 | I200: VALLE DEL CAUCA | J200: Aprobado con subsidio | K200: MICRO | L200: 1410 | M200: INDUSTRIAS MANUFACTURERAS | N200: C | O200: Confección de prendas de vestir, excepto prendas de piel | P200: Confección de prendas de vestir | Q200: 0 | R200: 2 | S200: 0 | AE200: 0 | AF200: 0 | AG200: 5266 | AH200: ENVIGADO | AI200: 7 | AJ200: 3 | AK200: Jurídica | AL200: 5 | AM200: ANTIOQUIA | AN200: Aprobado con subsidio | AO200: MICRO | AP200: 1410 | AQ200: INDUSTRIAS MANUFACTURERAS | AR200: C | AS200: Confección de prendas de vestir, excepto prendas de piel | AT200: Confección de prendas de vestir | AU200: 3 | AV200: 4 | AW200: 0 | BI200: 5321 | BJ200: 1 | BK200: 76113 | BL200: 2
... 2050 more rows

Sheet Hoja4 (hidden)
A1: Descripción Sección Rev. 4 | B1: Sección Rev. 4 | C1: Nombre | D1: Seccion | E1: Total | G1: Nombre | H1: Seccion | I1: Total empleadores | J1: Empleadores % | K1: Total empleados | L1: Empleados % | M1: Monto | N1: Hombres | O1: Mujeres | P1: no disponible | Q1: Actividad | R1: Indice | T1: cod_dpto | U1: Departamento | V1: % empleadores general | W1: ="% empleadores sección "&Visor!$N$4 -> % empleadores sección C
A2: AGRICULTURA, GANADERÍA, CAZA, SILVICULTURA Y PESCA | B2: A | C2: Agricultura, ganadería, caza, silvicultura y pesca | D2: =B2 -> A | E2: =COUNTIFS(insumos2!$N$2:$N$399999,Hoja4!D2,insumos2!$J$2:$J$399999,"Aprobado con subsidio") -> 2396 | G2: =MID(VLOOKUP(H2,$B$2:$C$23,2,FALSE),1,36) -> Comercio al por mayor y al por menor | H2: =_xlfn._xlws.SORT($D$2:$E$23,2,-1) -> G | I2: 25805 | J2: =I2/$I$24 -> 0.2707566076 | K2: =SUMIFS(insumos2!$E$2:$E$399999,insumos2!$J$2:$J$399999,"Aprobado con subsidio",insumos2!$N$2:$N$399999,Hoja4!H2) -> 180587 | L2: =K2/$K$24 -> 0.1722236475 | M2: =SUMIFS(insumos1!$K$2:$K$372158,insumos1!$H$2:$H$372158,Hoja4!H2) -> 50169240000 | N2: =SUMIFS(insumos2!$R$2:$R$399999,insumos2!$J$2:$J$399999,"Aprobado con subsidio",insumos2!$N$2:$N$399999,Hoja4!H2) -> 101343 | O2: =SUMIFS(insumos2!$Q$2:$Q$399999,insumos2!$J$2:$J$399999,"Aprobado con subsidio",insumos2!$N$2:$N$399999,Hoja4!H2) -> 79131 | P2: =SUMIFS(insumos2!$S$2:$S$399999,insumos2!$J$2:$J$399999,"Aprobado con subsidio",insumos2!$N$2:$N$399999,Hoja4!H2) -> 113 | Q2: =G2 -> Comercio al por mayor y al por menor | R2: =O2/N2*100 -> 78.08235399 | T2: 11 | U2: BOGOTÁ, D.C. | V2: =(VLOOKUP(T2,_xlfn.ANCHORARRAY(insumos2!$W$2),2,0)/SUM(insumos2!$X$2:$X$34)) -> 0.3194833538 | W2: =VLOOKUP(T2,insumos2!$AY$2:$AZ$34,2,FALSE)/insumos2!$BF$30 -> 0.3430427081
A3: EXPLOTACIÓN DE MINAS Y CANTERAS | B3: B | C3: Explotación de minas y canteras | D3: =B3 -> B | E3: =COUNTIFS(insumos2!$N$2:$N$399999,Hoja4!D3,insumos2!$J$2:$J$399999,"Aprobado con subsidio") -> 455 | G3: =MID(VLOOKUP(H3,$B$2:$C$23,2,FALSE),1,30) -> Industrias manufactureras | H3: C | I3: 15243 | J3: 0.1599357865 | K3: =SUMIFS(insumos2!$E$2:$E$399999,insumos2!$J$2:$J$399999,"Aprobado con subsidio",insumos2!$N$2:$N$399999,Hoja4!H3) -> 155140 | L3: =K3/$K$24 -> 0.14795515 | M3: =SUMIFS(insumos1!$K$2:$K$372158,insumos1!$H$2:$H$372158,Hoja4!H3) -> 42877560000 | N3: =SUMIFS(insumos2!$R$2:$R$399999,insumos2!$J$2:$J$399999,"Aprobado con subsidio",insumos2!$N$2:$N$399999,Hoja4!H3) -> 79695 | O3: =SUMIFS(insumos2!$Q$2:$Q$399999,insumos2!$J$2:$J$399999,"Aprobado con subsidio",insumos2!$N$2:$N$399999,Hoja4!H3) -> 75313 | P3: =SUMIFS(insumos2!$S$2:$S$399999,insumos2!$J$2:$J$399999,"Aprobado con subsidio",insumos2!$N$2:$N$399999,Hoja4!H3) -> 132 | Q3: =G3 -> Industrias manufactureras | R3: 94.50153711 | T3: 5 | U3: ANTIOQUIA | V3: =(VLOOKUP(T3,_xlfn.ANCHORARRAY(insumos2!$W$2),2,0)/SUM(insumos2!$X$2:$X$34)) -> 0.1978343668 | W3: =VLOOKUP(T3,insumos2!$AY$2:$AZ$34,2,FALSE)/insumos2!$BF$30 -> 0.2593977563
A4: INDUSTRIAS MANUFACTURERAS | B4: C | C4: Industrias manufactureras | D4: C | E4: =COUNTIFS(insumos2!$N$2:$N$399999,Hoja4!D4,insumos2!$J$2:$J$399999,"Aprobado con subsidio") -> 15243 | G4: =MID(VLOOKUP(H4,$B$2:$C$23,2,FALSE),1,85) -> Construcción | H4: F | I4: 8901 | J4: 0.09339293021 | K4: =SUMIFS(insumos2!$E$2:$E$399999,insumos2!$J$2:$J$399999,"Aprobado con subsidio",insumos2!$N$2:$N$399999,Hoja4!H4) -> 96058 | L4: 0.09160935797 | M4: =SUMIFS(insumos1!$K$2:$K$372158,insumos1!$H$2:$H$372158,Hoja4!H4) -> 25607340000 | N4: =SUMIFS(insumos2!$R$2:$R$399999,insumos2!$J$2:$J$399999,"Aprobado con subsidio",insumos2!$N$2:$N$399999,Hoja4!H4) -> 77132 | O4: =SUMIFS(insumos2!$Q$2:$Q$399999,insumos2!$J$2:$J$399999,"Aprobado con subsidio",insumos2!$N$2:$N$399999,Hoja4!H4) -> 18880 | P4: =SUMIFS(insumos2!$S$2:$S$399999,insumos2!$J$2:$J$399999,"Aprobado con subsidio",insumos2!$N$2:$N$399999,Hoja4!H4) -> 46 | Q4: Construcción | R4: 24.47751906 | T4: 76 | U4: VALLE DEL CAUCA | V4: =(VLOOKUP(T4,_xlfn.ANCHORARRAY(insumos2!$W$2),2,0)/SUM(insumos2!$X$2:$X$34)) -> 0.09700231882 | W4: =VLOOKUP(T4,insumos2!$AY$2:$AZ$34,2,FALSE)/insumos2!$BF$30 -> 0.102735682
A5: SUMINISTRO DE ELECTRICIDAD, GAS, VAPOR Y AIRE ACONDICIONADO | B5: D | C5: Suministro de electricidad, gas, vapor y aire acondicionado | D5: D | E5: =COUNTIFS(insumos2!$N$2:$N$399999,Hoja4!D5,insumos2!$J$2:$J$399999,"Aprobado con subsidio") -> 80 | G5: =MID(VLOOKUP(H5,$B$2:$C$23,2,FALSE),1,30) -> Actividades profesionales, cie | H5: M | I5: 8339 | J5: 0.0874961965 | K5: =SUMIFS(insumos2!$E$2:$E$399999,insumos2!$J$2:$J$399999,"Aprobado con subsidio",insumos2!$N$2:$N$399999,Hoja4!H5) -> 62021 | L5: 0.05914868091 | M5: =SUMIFS(insumos1!$K$2:$K$372158,insumos1!$H$2:$H$372158,Hoja4!H5) -> 17321480000 | N5: =SUMIFS(insumos2!$R$2:$R$399999,insumos2!$J$2:$J$399999,"Aprobado con subsidio",insumos2!$N$2:$N$399999,Hoja4!H5) -> 32524 | O5: =SUMIFS(insumos2!$Q$2:$Q$399999,insumos2!$J$2:$J$399999,"Aprobado con subsidio",insumos2!$N$2:$N$399999,Hoja4!H5) -> 29471 | P5: =SUMIFS(insumos2!$S$2:$S$399999,insumos2!$J$2:$J$399999,"Aprobado con subsidio",insumos2!$N$2:$N$399999,Hoja4!H5) -> 26 | Q5: Actividades profesionales, cie | R5: 90.61308572 | T5: 8 | U5: ATLÁNTICO | V5: =(VLOOKUP(T5,_xlfn.ANCHORARRAY(insumos2!$W$2),2,0)/SUM(insumos2!$X$2:$X$34)) -> 0.04776144459 | W5: =VLOOKUP(T5,insumos2!$AY$2:$AZ$34,2,FALSE)/insumos2!$BF$30 -> 0.03765662927
A6: DISTRIBUCIÓN DE AGUA; EVACUACIÓN Y TRATAMIENTO DE AGUAS RESIDUALES, GESTIÓN DE DESECHOS Y ACTIVIDADES DE SANEAMIENTO AMBIENTAL | B6: E | C6: Distribución de agua; evacuación y tratamiento de aguas residuales, gestión de desechos y actividades de saneamiento ambiental | D6: E | E6: =COUNTIFS(insumos2!$N$2:$N$399999,Hoja4!D6,insumos2!$J$2:$J$399999,"Aprobado con subsidio") -> 442 | G6: =MID(VLOOKUP(H6,$B$2:$C$23,2,FALSE),1,35) -> Alojamiento y servicios de comida | H6: I | I6: 5969 | J6: 0.06262918778 | K6: =SUMIFS(insumos2!$E$2:$E$399999,insumos2!$J$2:$J$399999,"Aprobado con subsidio",insumos2!$N$2:$N$399999,Hoja4!H6) -> 59034 | L6: 0.05630001497 | M6: =SUMIFS(insumos1!$K$2:$K$372158,insumos1!$H$2:$H$372158,Hoja4!H6) -> 16369100000 | N6: =SUMIFS(insumos2!$R$2:$R$399999,insumos2!$J$2:$J$399999,"Aprobado con subsidio",insumos2!$N$2:$N$399999,Hoja4!H6) -> 24262 | O6: =SUMIFS(insumos2!$Q$2:$Q$399999,insumos2!$J$2:$J$399999,"Aprobado con subsidio",insumos2!$N$2:$N$399999,Hoja4!H6) -> 34720 | P6: =SUMIFS(insumos2!$S$2:$S$399999,insumos2!$J$2:$J$399999,"Aprobado con subsidio",insumos2!$N$2:$N$399999,Hoja4!H6) -> 52 | Q6: Alojamiento y servicios de comida | R6: 143.1044432 | T6: 25 | U6: CUNDINAMARCA | V6: =(VLOOKUP(T6,_xlfn.ANCHORARRAY(insumos2!$W$2),2,0)/SUM(insumos2!$X$2:$X$34)) -> 0.04426747248 | W6: =VLOOKUP(T6,insumos2!$AY$2:$AZ$34,2,FALSE)/insumos2!$BF$30 -> 0.04795643902
A7: CONSTRUCCIÓN | B7: F | C7: Construcción | D7: F | E7: =COUNTIFS(insumos2!$N$2:$N$399999,Hoja4!D7,insumos2!$J$2:$J$399999,"Aprobado con subsidio") -> 8901 | G7: =MID(VLOOKUP(H7,$B$2:$C$23,2,FALSE),1,30) -> Transporte y almacenamiento | H7: H | I7: 5056 | J7: 0.0530496186 | K7: =SUMIFS(insumos2!$E$2:$E$399999,insumos2!$J$2:$J$399999,"Aprobado con subsidio",insumos2!$N$2:$N$399999,Hoja4!H7) -> 107703 | L7: 0.1027150543 | M7: =SUMIFS(insumos1!$K$2:$K$372158,insumos1!$H$2:$H$372158,Hoja4!H7) -> 31688140000 | N7: =SUMIFS(insumos2!$R$2:$R$399999,insumos2!$J$2:$J$399999,"Aprobado con subsidio",insumos2!$N$2:$N$399999,Hoja4!H7) -> 92447 | O7: =SUMIFS(insumos2!$Q$2:$Q$399999,insumos2!$J$2:$J$399999,"Aprobado con subsidio",insumos2!$N$2:$N$399999,Hoja4!H7) -> 15167 | P7: =SUMIFS(insumos2!$S$2:$S$399999,insumos2!$J$2:$J$399999,"Aprobado con subsidio",insumos2!$N$2:$N$399999,Hoja4!H7) -> 89 | Q7: Transporte y almacenamiento | R7: 16.40615704 | T7: 68 | U7: SANTANDER | V7: =(VLOOKUP(T7,_xlfn.ANCHORARRAY(insumos2!$W$2),2,0)/SUM(insumos2!$X$2:$X$34)) -> 0.04534819058 | W7: =VLOOKUP(T7,insumos2!$AY$2:$AZ$34,2,FALSE)/insumos2!$BF$30 -> 0.04657875746
A8: COMERCIO AL POR MAYOR Y AL POR MENOR; REPARACIÓN DE VEHÍCULOS AUTOMOTORES Y MOTOCICLETAS | B8: G | C8: Comercio al por mayor y al por menor; reparación de vehículos automotores y motocicletas | D8: G | E8: =COUNTIFS(insumos2!$N$2:$N$399999,Hoja4!D8,insumos2!$J$2:$J$399999,"Aprobado con subsidio") -> 25805 | G8: =MID(VLOOKUP(H8,$B$2:$C$23,2,FALSE),1,40) -> Actividades de servicios administrativos | H8: N | I8: 4631 | J8: 0.04859034489 | K8: =SUMIFS(insumos2!$E$2:$E$399999,insumos2!$J$2:$J$399999,"Aprobado con subsidio",insumos2!$N$2:$N$399999,Hoja4!H8) -> 189716 | L8: 0.1809298648 | M8: =SUMIFS(insumos1!$K$2:$K$372158,insumos1!$H$2:$H$372158,Hoja4!H8) -> 50908220000 | N8: =SUMIFS(insumos2!$R$2:$R$399999,insumos2!$J$2:$J$399999,"Aprobado con subsidio",insumos2!$N$2:$N$399999,Hoja4!H8) -> 87594 | O8: =SUMIFS(insumos2!$Q$2:$Q$399999,insumos2!$J$2:$J$399999,"Aprobado con subsidio",insumos2!$N$2:$N$399999,Hoja4!H8) -> 101986 | P8: =SUMIFS(insumos2!$S$2:$S$399999,insumos2!$J$2:$J$399999,"Aprobado con subsidio",insumos2!$N$2:$N$399999,Hoja4!H8) -> 136 | Q8: Actividades de servicios administrativos | R8: 116.4303491 | T8: 13 | U8: BOLÍVAR | V8: =(VLOOKUP(T8,_xlfn.ANCHORARRAY(insumos2!$W$2),2,0)/SUM(insumos2!$X$2:$X$34)) -> 0.02933677484 | W8: =VLOOKUP(T8,insumos2!$AY$2:$AZ$34,2,FALSE)/insumos2!$BF$30 -> 0.01581053598
A9: TRANSPORTE Y ALMACENAMIENTO | B9: H | C9: Transporte y almacenamiento | D9: H | E9: =COUNTIFS(insumos2!$N$2:$N$399999,Hoja4!D9,insumos2!$J$2:$J$399999,"Aprobado con subsidio") -> 5056 | G9: =MID(VLOOKUP(H9,$B$2:$C$23,2,FALSE),1,42) -> Actividades de atención de la salud humana | H9: Q | I9: 4155 | J9: 0.04359595832 | K9: =SUMIFS(insumos2!$E$2:$E$399999,insumos2!$J$2:$J$399999,"Aprobado con subsidio",insumos2!$N$2:$N$399999,Hoja4!H9) -> 35188 | L9: 0.0335583719 | M9: =SUMIFS(insumos1!$K$2:$K$372158,insumos1!$H$2:$H$372158,Hoja4!H9) -> 9986680000 | N9: =SUMIFS(insumos2!$R$2:$R$399999,insumos2!$J$2:$J$399999,"Aprobado con subsidio",insumos2!$N$2:$N$399999,Hoja4!H9) -> 7461 | O9: =SUMIFS(insumos2!$Q$2:$Q$399999,insumos2!$J$2:$J$399999,"Aprobado con subsidio",insumos2!$N$2:$N$399999,Hoja4!H9) -> 27714 | P9: =SUMIFS(insumos2!$S$2:$S$399999,insumos2!$J$2:$J$399999,"Aprobado con subsidio",insumos2!$N$2:$N$399999,Hoja4!H9) -> 13 | Q9: Actividades de atención de la salud humana | R9: 371.451548 | T9: 66 | U9: RISARALDA | V9: =(VLOOKUP(T9,_xlfn.ANCHORARRAY(insumos2!$W$2),2,0)/SUM(insumos2!$X$2:$X$34)) -> 0.02405909325 | W9: =VLOOKUP(T9,insumos2!$AY$2:$AZ$34,2,FALSE)/insumos2!$BF$30 -> 0.02466706029
A10: ALOJAMIENTO Y SERVICIOS DE COMIDA | B10: I | C10: Alojamiento y servicios de comida | D10: I | E10: =COUNTIFS(insumos2!$N$2:$N$399999,Hoja4!D10,insumos2!$J$2:$J$399999,"Aprobado con subsidio") -> 5969 | G10: =MID(VLOOKUP(H10,$B$2:$C$23,2,FALSE),1,30) -> Otras actividades de servicios | H10: S | I10: 3437 | J10: 0.03606240885 | K10: =SUMIFS(insumos2!$E$2:$E$399999,insumos2!$J$2:$J$399999,"Aprobado con subsidio",insumos2!$N$2:$N$399999,Hoja4!H10) -> 21768 | L10: 0.02075987949 | M10: =SUMIFS(insumos1!$K$2:$K$372158,insumos1!$H$2:$H$372158,Hoja4!H10) -> 6478780000 | N10: =SUMIFS(insumos2!$R$2:$R$399999,insumos2!$J$2:$J$399999,"Aprobado con subsidio",insumos2!$N$2:$N$399999,Hoja4!H10) -> 9190 | O10: =SUMIFS(insumos2!$Q$2:$Q$399999,insumos2!$J$2:$J$399999,"Aprobado con subsidio",insumos2!$N$2:$N$399999,Hoja4!H10) -> 12565 | P10: =SUMIFS(insumos2!$S$2:$S$399999,insumos2!$J$2:$J$399999,"Aprobado con subsidio",insumos2!$N$2:$N$399999,Hoja4!H10) -> 13 | Q10: Otras actividades de servicios | R10: 136.7247008 | T10: 54 | U10: NORTE DE SANTANDER | V10: =(VLOOKUP(T10,_xlfn.ANCHORARRAY(insumos2!$W$2),2,0)/SUM(insumos2!$X$2:$X$34)) -> 0.02082743135 | W10: =VLOOKUP(T10,insumos2!$AY$2:$AZ$34,2,FALSE)/insumos2!$BF$30 -> 0.01764744473
A11: INFORMACIÓN Y COMUNICACIONES | B11: J | C11: información y comunicaciones | D11: J | E11: =COUNTIFS(insumos2!$N$2:$N$399999,Hoja4!D11,insumos2!$J$2:$J$399999,"Aprobado con subsidio") -> 2085 | G11: =MID(VLOOKUP(H11,$B$2:$C$23,2,FALSE),1,30) -> Educación | H11: P | I11: 3213 | J11: 0.03371210929 | K11: =SUMIFS(insumos2!$E$2:$E$399999,insumos2!$J$2:$J$399999,"Aprobado con subsidio",insumos2!$N$2:$N$399999,Hoja4!H11) -> 30014 | L11: 0.0286239904 | M11: =SUMIFS(insumos1!$K$2:$K$372158,insumos1!$H$2:$H$372158,Hoja4!H11) -> 8339540000 | N11: =SUMIFS(insumos2!$R$2:$R$399999,insumos2!$J$2:$J$399999,"Aprobado con subsidio",insumos2!$N$2:$N$399999,Hoja4!H11) -> 7310 | O11: =SUMIFS(insumos2!$Q$2:$Q$399999,insumos2!$J$2:$J$399999,"Aprobado con subsidio",insumos2!$N$2:$N$399999,Hoja4!H11) -> 22540 | P11: =SUMIFS(insumos2!$S$2:$S$399999,insumos2!$J$2:$J$399999,"Aprobado con subsidio",insumos2!$N$2:$N$399999,Hoja4!H11) -> 164 | Q11: Educación | R11: 308.3447332 | T11: 15 | U11: BOYACÁ | V11: =(VLOOKUP(T11,_xlfn.ANCHORARRAY(insumos2!$W$2),2,0)/SUM(insumos2!$X$2:$X$34)) -> 0.01695573253 | W11: =VLOOKUP(T11,insumos2!$AY$2:$AZ$34,2,FALSE)/insumos2!$BF$30 -> 0.01220232238
A12: ACTIVIDADES FINANCIERAS Y DE SEGUROS | B12: K | C12: Actividades financieras y de seguros | D12: K | E12: =COUNTIFS(insumos2!$N$2:$N$399999,Hoja4!D12,insumos2!$J$2:$J$399999,"Aprobado con subsidio") -> 1228 | G12: =MID(VLOOKUP(H12,$B$2:$C$23,2,FALSE),1,30) -> Actividades inmobiliarias | H12: L | I12: 2683 | J12: 0.02815113266 | K12: =SUMIFS(insumos2!$E$2:$E$399999,insumos2!$J$2:$J$399999,"Aprobado con subsidio",insumos2!$N$2:$N$399999,Hoja4!H12) -> 11587 | L12: 0.01105038238 | M12: =SUMIFS(insumos1!$K$2:$K$372158,insumos1!$H$2:$H$372158,Hoja4!H12) -> 3442340000 | N12: =SUMIFS(insumos2!$R$2:$R$399999,insumos2!$J$2:$J$399999,"Aprobado con subsidio",insumos2!$N$2:$N$399999,Hoja4!H12) -> 5463 | O12: =SUMIFS(insumos2!$Q$2:$Q$399999,insumos2!$J$2:$J$399999,"Aprobado con subsidio",insumos2!$N$2:$N$399999,Hoja4!H12) -> 6112 | P12: =SUMIFS(insumos2!$S$2:$S$399999,insumos2!$J$2:$J$399999,"Aprobado con subsidio",insumos2!$N$2:$N$399999,Hoja4!H12) -> 12 | Q12: Actividades inmobiliarias | R12: 111.8799195 | T12: 73 | U12: TOLIMA | V12: =(VLOOKUP(T12,_xlfn.ANCHORARRAY(insumos2!$W$2),2,0)/SUM(insumos2!$X$2:$X$34)) -> 0.01635766523 | W12: =VLOOKUP(T12,insumos2!$AY$2:$AZ$34,2,FALSE)/insumos2!$BF$30 -> 0.01272715345
A13: ACTIVIDADES INMOBILIARIAS | B13: L | C13: Actividades inmobiliarias | D13: L | E13: =COUNTIFS(insumos2!$N$2:$N$399999,Hoja4!D13,insumos2!$J$2:$J$399999,"Aprobado con subsidio") -> 2683 | G13: =MID(VLOOKUP(H13,$B$2:$C$23,2,FALSE),1,30) -> Agricultura, ganadería, caza, | H13: A | I13: 2396 | J13: 0.02513981135 | K13: =SUMIFS(insumos2!$E$2:$E$399999,insumos2!$J$2:$J$399999,"Aprobado con subsidio",insumos2!$N$2:$N$399999,Hoja4!H13) -> 43406 | L13: 0.04139577955 | M13: =SUMIFS(insumos1!$K$2:$K$372158,insumos1!$H$2:$H$372158,Hoja4!H13) -> 11254980000 | N13: =SUMIFS(insumos2!$R$2:$R$399999,insumos2!$J$2:$J$399999,"Aprobado con subsidio",insumos2!$N$2:$N$399999,Hoja4!H13) -> 26101 | O13: =SUMIFS(insumos2!$Q$2:$Q$399999,insumos2!$J$2:$J$399999,"Aprobado con subsidio",insumos2!$N$2:$N$399999,Hoja4!H13) -> 17292 | P13: =SUMIFS(insumos2!$S$2:$S$399999,insumos2!$J$2:$J$399999,"Aprobado con subsidio",insumos2!$N$2:$N$399999,Hoja4!H13) -> 13 | Q13: Agricultura, ganadería, caza, | R13: 66.25033524 | T13: 17 | U13: CALDAS | V13: =(VLOOKUP(T13,_xlfn.ANCHORARRAY(insumos2!$W$2),2,0)/SUM(insumos2!$X$2:$X$34)) -> 0.01519300786 | W13: =VLOOKUP(T13,insumos2!$AY$2:$AZ$34,2,FALSE)/insumos2!$BF$30 -> 0.01312077675
A14: ACTIVIDADES PROFESIONALES, CIENTÍFICAS Y TÉCNICAS | B14: M | C14: Actividades profesionales, científicas y técnicas | D14: M | E14: =COUNTIFS(insumos2!$N$2:$N$399999,Hoja4!D14,insumos2!$J$2:$J$399999,"Aprobado con subsidio") -> 8339 | G14: =MID(VLOOKUP(H14,$B$2:$C$23,2,FALSE),1,34) -> información y comunicaciones | H14: J | I14: 2085 | J14: 0.02187667223 | K14: =SUMIFS(insumos2!$E$2:$E$399999,insumos2!$J$2:$J$399999,"Aprobado con subsidio",insumos2!$N$2:$N$399999,Hoja4!H14) -> 17336 | L14: 0.01653313446 | M14: =SUMIFS(insumos1!$K$2:$K$372158,insumos1!$H$2:$H$372158,Hoja4!H14) -> 4712400000 | N14: =SUMIFS(insumos2!$R$2:$R$399999,insumos2!$J$2:$J$399999,"Aprobado con subsidio",insumos2!$N$2:$N$399999,Hoja4!H14) -> 8457 | O14: =SUMIFS(insumos2!$Q$2:$Q$399999,insumos2!$J$2:$J$399999,"Aprobado con subsidio",insumos2!$N$2:$N$399999,Hoja4!H14) -> 8869 | P14: =SUMIFS(insumos2!$S$2:$S$399999,insumos2!$J$2:$J$399999,"Aprobado con subsidio",insumos2!$N$2:$N$399999,Hoja4!H14) -> 10 | Q14: información y comunicaciones | R14: 104.8717039 | T14: 50 | U14: META | V14: =(VLOOKUP(T14,_xlfn.ANCHORARRAY(insumos2!$W$2),2,0)/SUM(insumos2!$X$2:$X$34)) -> 0.01562319662 | W14: =VLOOKUP(T14,insumos2!$AY$2:$AZ$34,2,FALSE)/insumos2!$BF$30 -> 0.00787246605
A15: ACTIVIDADES DE SERVICIOS ADMINISTRATIVOS Y DE APOYO | B15: N | C15: Actividades de servicios administrativos y de apoyo | D15: N | E15: =COUNTIFS(insumos2!$N$2:$N$399999,Hoja4!D15,insumos2!$J$2:$J$399999,"Aprobado con subsidio") -> 4631 | G15: =MID(VLOOKUP(H15,$B$2:$C$23,2,FALSE),1,40) -> Actividades financieras y de seguros | H15: K | I15: 1228 | J15: 0.01288467794 | K15: =SUMIFS(insumos2!$E$2:$E$399999,insumos2!$J$2:$J$399999,"Aprobado con subsidio",insumos2!$N$2:$N$399999,Hoja4!H15) -> 6295 | L15: 0.006003465702 | M15: =SUMIFS(insumos1!$K$2:$K$372158,insumos1!$H$2:$H$372158,Hoja4!H15) -> 1734040000 | N15: =SUMIFS(insumos2!$R$2:$R$399999,insumos2!$J$2:$J$399999,"Aprobado con subsidio",insumos2!$N$2:$N$399999,Hoja4!H15) -> 2695 | O15: =SUMIFS(insumos2!$Q$2:$Q$399999,insumos2!$J$2:$J$399999,"Aprobado con subsidio",insumos2!$N$2:$N$399999,Hoja4!H15) -> 3597 | P15: =SUMIFS(insumos2!$S$2:$S$399999,insumos2!$J$2:$J$399999,"Aprobado con subsidio",insumos2!$N$2:$N$399999,Hoja4!H15) -> 3 | Q15: Actividades financieras y de seguros | R15: 133.4693878 | T15: 41 | U15: HUILA | V15: =(VLOOKUP(T15,_xlfn.ANCHORARRAY(insumos2!$W$2),2,0)/SUM(insumos2!$X$2:$X$34)) -> 0.01453198611 | W15: =VLOOKUP(T15,insumos2!$AY$2:$AZ$34,2,FALSE)/insumos2!$BF$30 -> 0.00997179033
A16: ADMINISTRACIÓN PÚBLICA Y DEFENSA; PLANES DE SEGURIDAD SOCIAL DE AFILIACIÓN OBLIGATORIA | B16: O | C16: Administración pública y defensa; planes de seguridad social de afiliación obligatoria | D16: O | E16: =COUNTIFS(insumos2!$N$2:$N$399999,Hoja4!D16,insumos2!$J$2:$J$399999,"Aprobado con subsidio") -> 100 | G16: =MID(VLOOKUP(H16,$B$2:$C$23,2,FALSE),1,35) -> Actividades artísticas de entreteni | H16: R | I16: 1059 | J16: 0.01111146086 | K16: =SUMIFS(insumos2!$E$2:$E$399999,insumos2!$J$2:$J$399999,"Aprobado con subsidio",insumos2!$N$2:$N$399999,Hoja4!H16) -> 19483 | L16: 0.01858070251 | M16: =SUMIFS(insumos1!$K$2:$K$372158,insumos1!$H$2:$H$372158,Hoja4!H16) -> 4981240000 | N16: =SUMIFS(insumos2!$R$2:$R$399999,insumos2!$J$2:$J$399999,"Aprobado con subsidio",insumos2!$N$2:$N$399999,Hoja4!H16) -> 6241 | O16: =SUMIFS(insumos2!$Q$2:$Q$399999,insumos2!$J$2:$J$399999,"Aprobado con subsidio",insumos2!$N$2:$N$399999,Hoja4!H16) -> 13238 | P16: =SUMIFS(insumos2!$S$2:$S$399999,insumos2!$J$2:$J$399999,"Aprobado con subsidio",insumos2!$N$2:$N$399999,Hoja4!H16) -> 4 | Q16: Actividades artísticas de entreteni | R16: 212.1134434 | T16: 52 | U16: NARIÑO | V16: =(VLOOKUP(T16,_xlfn.ANCHORARRAY(insumos2!$W$2),2,0)/SUM(insumos2!$X$2:$X$34)) -> 0.0139234264 | W16: =VLOOKUP(T16,insumos2!$AY$2:$AZ$34,2,FALSE)/insumos2!$BF$30 -> 0.007741258282
A17: EDUCACIÓN | B17: P | C17: Educación | D17: P | E17: =COUNTIFS(insumos2!$N$2:$N$399999,Hoja4!D17,insumos2!$J$2:$J$399999,"Aprobado con subsidio") -> 3213 | G17: =MID(VLOOKUP(H17,$B$2:$C$23,2,FALSE),1,31) -> Explotación de minas y canteras | H17: B | I17: 455 | J17: 0.004774045978 | K17: =SUMIFS(insumos2!$E$2:$E$399999,insumos2!$J$2:$J$399999,"Aprobado con subsidio",insumos2!$N$2:$N$399999,Hoja4!H17) -> 5770 | L17: 0.005502779524 | M17: =SUMIFS(insumos1!$K$2:$K$372158,insumos1!$H$2:$H$372158,Hoja4!H17) -> 1576520000 | N17: =SUMIFS(insumos2!$R$2:$R$399999,insumos2!$J$2:$J$399999,"Aprobado con subsidio",insumos2!$N$2:$N$399999,Hoja4!H17) -> 5044 | O17: =SUMIFS(insumos2!$Q$2:$Q$399999,insumos2!$J$2:$J$399999,"Aprobado con subsidio",insumos2!$N$2:$N$399999,Hoja4!H17) -> 724 | P17: =SUMIFS(insumos2!$S$2:$S$399999,insumos2!$J$2:$J$399999,"Aprobado con subsidio",insumos2!$N$2:$N$399999,Hoja4!H17) -> 2 | Q17: Explotación de minas y canteras | R17: 14.35368755 | T17: 23 | U17: CÓRDOBA | V17: =(VLOOKUP(T17,_xlfn.ANCHORARRAY(insumos2!$W$2),2,0)/SUM(insumos2!$X$2:$X$34)) -> 0.01220267137 | W17: =VLOOKUP(T17,insumos2!$AY$2:$AZ$34,2,FALSE)/insumos2!$BF$30 -> 0.005182706816
A18: ACTIVIDADES DE ATENCIÓN DE LA SALUD HUMANA Y DE ASISTENCIA SOCIAL | B18: Q | C18: Actividades de atención de la salud humana y de asistencia social | D18: Q | E18: =COUNTIFS(insumos2!$N$2:$N$399999,Hoja4!D18,insumos2!$J$2:$J$399999,"Aprobado con subsidio") -> 4155 | G18: =MID(VLOOKUP(H18,$B$2:$C$23,2,FALSE),1,20) -> Distribución de agua | H18: E | I18: 442 | J18: 0.004637644664 | K18: =SUMIFS(insumos2!$E$2:$E$399999,insumos2!$J$2:$J$399999,"Aprobado con subsidio",insumos2!$N$2:$N$399999,Hoja4!H18) -> 4279 | L18: 0.004080830777 | M18: =SUMIFS(insumos1!$K$2:$K$372158,insumos1!$H$2:$H$372158,Hoja4!H18) -> 1196360000 | N18: =SUMIFS(insumos2!$R$2:$R$399999,insumos2!$J$2:$J$399999,"Aprobado con subsidio",insumos2!$N$2:$N$399999,Hoja4!H18) -> 3175 | O18: =SUMIFS(insumos2!$Q$2:$Q$399999,insumos2!$J$2:$J$399999,"Aprobado con subsidio",insumos2!$N$2:$N$399999,Hoja4!H18) -> 1100 | P18: =SUMIFS(insumos2!$S$2:$S$399999,insumos2!$J$2:$J$399999,"Aprobado con subsidio",insumos2!$N$2:$N$399999,Hoja4!H18) -> 4 | Q18: Distribución de agua | R18: 34.64566929 | T18: 63 | U18: QUINDÍO | V18: =(VLOOKUP(T18,_xlfn.ANCHORARRAY(insumos2!$W$2),2,0)/SUM(insumos2!$X$2:$X$34)) -> 0.01082816582 | W18: =VLOOKUP(T18,insumos2!$AY$2:$AZ$34,2,FALSE)/insumos2!$BF$30 -> 0.008790920422
A19: ACTIVIDADES ARTÍSTICAS, DE ENTRETENIMIENTO Y RECREACIÓN | B19: R | C19: Actividades artísticas de entretenimiento y recreación | D19: R | E19: =COUNTIFS(insumos2!$N$2:$N$399999,Hoja4!D19,insumos2!$J$2:$J$399999,"Aprobado con subsidio") -> 1059 | G19: =MID(VLOOKUP(H19,$B$2:$C$23,2,FALSE),1,32) -> Administración pública y defensa | H19: O | I19: 100 | J19: 0.001049240874 | K19: =SUMIFS(insumos2!$E$2:$E$399999,insumos2!$J$2:$J$399999,"Aprobado con subsidio",insumos2!$N$2:$N$399999,Hoja4!H19) -> 2281 | L19: 0.002175362235 | M19: =SUMIFS(insumos1!$K$2:$K$372158,insumos1!$H$2:$H$372158,Hoja4!H19) -> 598620000 | N19: =SUMIFS(insumos2!$R$2:$R$399999,insumos2!$J$2:$J$399999,"Aprobado con subsidio",insumos2!$N$2:$N$399999,Hoja4!H19) -> 815 | O19: =SUMIFS(insumos2!$Q$2:$Q$399999,insumos2!$J$2:$J$399999,"Aprobado con subsidio",insumos2!$N$2:$N$399999,Hoja4!H19) -> 1465 | P19: =SUMIFS(insumos2!$S$2:$S$399999,insumos2!$J$2:$J$399999,"Aprobado con subsidio",insumos2!$N$2:$N$399999,Hoja4!H19) -> 1 | Q19: Administración pública y defensa | R19: 179.7546012 | T19: 47 | U19: MAGDALENA | V19: =(VLOOKUP(T19,_xlfn.ANCHORARRAY(insumos2!$W$2),2,0)/SUM(insumos2!$X$2:$X$34)) -> 0.01135278626 | W19: =VLOOKUP(T19,insumos2!$AY$2:$AZ$34,2,FALSE)/insumos2!$BF$30 -> 0.006363576724
A20: OTRAS ACTIVIDADES DE SERVICIOS | B20: S | C20: Otras actividades de servicios | D20: S | E20: =COUNTIFS(insumos2!$N$2:$N$399999,Hoja4!D20,insumos2!$J$2:$J$399999,"Aprobado con subsidio") -> 3437 | G20: =MID(VLOOKUP(H20,$B$2:$C$23,2,FALSE),1,33) -> Suministro de electricidad, gas, | H20: D | I20: 80 | J20: 0.0008393926994 | K20: =SUMIFS(insumos2!$E$2:$E$399999,insumos2!$J$2:$J$399999,"Aprobado con subsidio",insumos2!$N$2:$N$399999,Hoja4!H20) -> 633 | L20: 0.0006036844781 | M20: =SUMIFS(insumos1!$K$2:$K$372158,insumos1!$H$2:$H$372158,Hoja4!H20) -> 188100000 | N20: =SUMIFS(insumos2!$R$2:$R$399999,insumos2!$J$2:$J$399999,"Aprobado con subsidio",insumos2!$N$2:$N$399999,Hoja4!H20) -> 432 | O20: =SUMIFS(insumos2!$Q$2:$Q$399999,insumos2!$J$2:$J$399999,"Aprobado con subsidio",insumos2!$N$2:$N$399999,Hoja4!H20) -> 201 | P20: =SUMIFS(insumos2!$S$2:$S$399999,insumos2!$J$2:$J$399999,"Aprobado con subsidio",insumos2!$N$2:$N$399999,Hoja4!H20) -> 0 | Q20: Suministro de electricidad, gas, | R20: 46.52777778 | T20: 20 | U20: CESAR | V20: =(VLOOKUP(T20,_xlfn.ANCHORARRAY(insumos2!$W$2),2,0)/SUM(insumos2!$X$2:$X$34)) -> 0.01003074276 | W20: =VLOOKUP(T20,insumos2!$AY$2:$AZ$34,2,FALSE)/insumos2!$BF$30 -> 0.003739421374
A21: ACTIVIDADES DE LOS HOGARES INDIVIDUALES EN CALIDAD DE EMPLEADORES; ACTIVIDADES NO DIFERENCIADAS DE LOS HOGARES INDIVIDUALES COMO PRODUCTORES DE BIENES Y SERVICIOS PARA USO PROPIO | B21: T | C21: Actividad de los hogares en calidad de empleadores; actividades no diferenciadas de los hogares individuales como productores de bienes y servicios para uso propio | D21: T | E21: =COUNTIFS(insumos2!$N$2:$N$399999,Hoja4!D21,insumos2!$J$2:$J$399999,"Aprobado con subsidio") -> 15 | G21: =MID(VLOOKUP(H21,$B$2:$C$23,2,FALSE),1,30) -> Actividad de los hogares en ca | H21: T | I21: 15 | J21: 0.0001573861311 | K21: =SUMIFS(insumos2!$E$2:$E$399999,insumos2!$J$2:$J$399999,"Aprobado con subsidio",insumos2!$N$2:$N$399999,Hoja4!H21) -> 183 | L21: 0.0001745248965 | M21: =SUMIFS(insumos1!$K$2:$K$372158,insumos1!$H$2:$H$372158,Hoja4!H21) -> 54560000 | N21: =SUMIFS(insumos2!$R$2:$R$399999,insumos2!$J$2:$J$399999,"Aprobado con subsidio",insumos2!$N$2:$N$399999,Hoja4!H21) -> 83 | O21: =SUMIFS(insumos2!$Q$2:$Q$399999,insumos2!$J$2:$J$399999,"Aprobado con subsidio",insumos2!$N$2:$N$399999,Hoja4!H21) -> 99 | P21: =SUMIFS(insumos2!$S$2:$S$399999,insumos2!$J$2:$J$399999,"Aprobado con subsidio",insumos2!$N$2:$N$399999,Hoja4!H21) -> 1 | Q21: Actividad de los hogares en ca | R21: 119.2771084 | T21: 19 | U21: CAUCA | V21: =(VLOOKUP(T21,_xlfn.ANCHORARRAY(insumos2!$W$2),2,0)/SUM(insumos2!$X$2:$X$34)) -> 0.007711920426 | W21: =VLOOKUP(T21,insumos2!$AY$2:$AZ$34,2,FALSE)/insumos2!$BF$30 -> 0.004789083514
A22: ACTIVIDADES DE ORGANIZACIONES Y ENTIDADES EXTRATERRITORIALES | B22: U | C22: Actividad de organizaciones y entidades extraterritoriales | D22: U | E22: =COUNTIFS(insumos2!$N$2:$N$399999,Hoja4!D22,insumos2!$J$2:$J$399999,"Aprobado con subsidio") -> 1 | G22: =MID(VLOOKUP(H22,$B$2:$C$23,2,FALSE),1,24) -> Otras | H22: Otras | I22: 14 | J22: 0.0001468937224 | K22: =SUMIFS(insumos2!$E$2:$E$399999,insumos2!$J$2:$J$399999,"Aprobado con subsidio",insumos2!$N$2:$N$399999,Hoja4!H22) -> 69 | L22: 6.580446917e-05 | M22: =SUMIFS(insumos1!$K$2:$K$372158,insumos1!$H$2:$H$372158,Hoja4!H22) -> 18260000 | N22: =SUMIFS(insumos2!$R$2:$R$399999,insumos2!$J$2:$J$399999,"Aprobado con subsidio",insumos2!$N$2:$N$399999,Hoja4!H22) -> 34 | O22: =SUMIFS(insumos2!$Q$2:$Q$399999,insumos2!$J$2:$J$399999,"Aprobado con subsidio",insumos2!$N$2:$N$399999,Hoja4!H22) -> 35 | P22: =SUMIFS(insumos2!$S$2:$S$399999,insumos2!$J$2:$J$399999,"Aprobado con subsidio",insumos2!$N$2:$N$399999,Hoja4!H22) -> 0 | Q22: Otras | R22: 102.9411765 | T22: 85 | U22: CASANARE | V22: =(VLOOKUP(T22,_xlfn.ANCHORARRAY(insumos2!$W$2),2,0)/SUM(insumos2!$X$2:$X$34)) -> 0.00625347561 | W22: =VLOOKUP(T22,insumos2!$AY$2:$AZ$34,2,FALSE)/insumos2!$BF$30 -> 0.002952174769
A23: OTRAS | B23: Otras | C23: Otras | D23: Otras | E23: =COUNTIFS(insumos2!$N$2:$N$399999,Hoja4!D23,insumos2!$J$2:$J$399999,"Aprobado con subsidio") -> 14 | G23: =MID(VLOOKUP(H23,$B$2:$C$23,2,FALSE),1,45) -> Actividad de organizaciones y entidades extra | H23: U | I23: 1 | J23: 1.049240874e-05 | K23: =SUMIFS(insumos2!$E$2:$E$399999,insumos2!$J$2:$J$399999,"Aprobado con subsidio",insumos2!$N$2:$N$399999,Hoja4!H23) -> 10 | L23: 9.53687959e-06 | M23: =SUMIFS(insumos1!$K$2:$K$372158,insumos1!$H$2:$H$372158,Hoja4!H23) -> 2420000 | N23: =SUMIFS(insumos2!$R$2:$R$399999,insumos2!$J$2:$J$399999,"Aprobado con subsidio",insumos2!$N$2:$N$399999,Hoja4!H23) -> 9 | O23: =SUMIFS(insumos2!$Q$2:$Q$399999,insumos2!$J$2:$J$399999,"Aprobado con subsidio",insumos2!$N$2:$N$399999,Hoja4!H23) -> 1 | P23: =SUMIFS(insumos2!$S$2:$S$399999,insumos2!$J$2:$J$399999,"Aprobado con subsidio",insumos2!$N$2:$N$399999,Hoja4!H23) -> 0 | Q23: Actividad de organizaciones y entidades extra | R23: 11.11111111 | T23: 70 | U23: SUCRE | V23: =(VLOOKUP(T23,_xlfn.ANCHORARRAY(insumos2!$W$2),2,0)/SUM(insumos2!$X$2:$X$34)) -> 0.005907226122 | W23: =VLOOKUP(T23,insumos2!$AY$2:$AZ$34,2,FALSE)/insumos2!$BF$30 -> 0.002689759234
E24: =SUM(E2:E23) -> 95307 | H24: General | I24: =SUM(I2:I23) -> 95307 | K24: =SUM(K2:K23) -> 1048561 | M24: =SUM(M2:M23) -> 289505920000 | N24: =SUM(N2:N23) -> 577507 | O24: =SUM(O2:O23) -> 470220 | P24: =SUM(P2:P23) -> 834 | T24: 18 | U24: CAQUETÁ | V24: =(VLOOKUP(T24,_xlfn.ANCHORARRAY(insumos2!$W$2),2,0)/SUM(insumos2!$X$2:$X$34)) -> 0.003619881016 | W24: =VLOOKUP(T24,insumos2!$AY$2:$AZ$34,2,FALSE)/insumos2!$BF$30 -> 0.001771304861
T25: 44 | U25: LA GUAJIRA | V25: =(VLOOKUP(T25,_xlfn.ANCHORARRAY(insumos2!$W$2),2,0)/SUM(insumos2!$X$2:$X$34)) -> 0.003399540432 | W25: =VLOOKUP(T25,insumos2!$AY$2:$AZ$34,2,FALSE)/insumos2!$BF$30 -> 0.000787246605
T26: 88 | U26: SAN ANDRÉS | V26: =(VLOOKUP(T26,_xlfn.ANCHORARRAY(insumos2!$W$2),2,0)/SUM(insumos2!$X$2:$X$34)) -> 0.002665071821 | W26: =VLOOKUP(T26,insumos2!$AY$2:$AZ$34,2,FALSE)/insumos2!$BF$30 -> 0.0009184543725
T27: 81 | U27: ARAUCA | V27: =(VLOOKUP(T27,_xlfn.ANCHORARRAY(insumos2!$W$2),2,0)/SUM(insumos2!$X$2:$X$34)) -> 0.002150943792 | W27: =VLOOKUP(T27,insumos2!$AY$2:$AZ$34,2,FALSE)/insumos2!$BF$30 -> 0.000787246605
A28: Código | B28: Nombre | D28: Municipio | T28: 86 | U28: PUTUMAYO | V28: =(VLOOKUP(T28,_xlfn.ANCHORARRAY(insumos2!$W$2),2,0)/SUM(insumos2!$X$2:$X$34)) -> 0.002014542479 | W28: =VLOOKUP(T28,insumos2!$AY$2:$AZ$34,2,FALSE)/insumos2!$BF$30 -> 0.0005904349537
A29: 5 | B29: Antioquia | D29: Código | E29: Nombre | T29: 27 | U29: CHOCÓ | V29: =(VLOOKUP(T29,_xlfn.ANCHORARRAY(insumos2!$W$2),2,0)/SUM(insumos2!$X$2:$X$34)) -> 0.001731247442 | W29: =VLOOKUP(T29,insumos2!$AY$2:$AZ$34,2,FALSE)/insumos2!$BF$30 -> 0.0005904349537
A30: 8 | B30: Atlántico | D30: 5001 | E30: Medellín | T30: 91 | U30: AMAZONAS | V30: =(VLOOKUP(T30,_xlfn.ANCHORARRAY(insumos2!$W$2),2,0)/SUM(insumos2!$X$2:$X$34)) -> 0.0007659458382 | W30: =VLOOKUP(T30,insumos2!$AY$2:$AZ$34,2,FALSE)/insumos2!$BF$30 -> 0.0003936233025
A31: 11 | B31: Bogotá | D31: 5002 | E31: Abejorral | T31: 95 | U31: GUAVIARE | V31: =(VLOOKUP(T31,_xlfn.ANCHORARRAY(insumos2!$W$2),2,0)/SUM(insumos2!$X$2:$X$34)) -> 0.0005351128459 | W31: =VLOOKUP(T31,insumos2!$AY$2:$AZ$34,2,FALSE)/insumos2!$BF$30 -> 0.0003280194187
A32: 13 | B32: Bolívar | D32: 5004 | E32: Abriaquí | T32: 99 | U32: VICHADA | V32: =(VLOOKUP(T32,_xlfn.ANCHORARRAY(insumos2!$W$2),2,0)/SUM(insumos2!$X$2:$X$34)) -> 0.0001468937224 | W32: =VLOOKUP(T32,insumos2!$AY$2:$AZ$34,2,FALSE)/insumos2!$BF$30 -> 6.560388375e-05
A33: 15 | B33: Boyacá | D33: 5021 | E33: Alejandría | T33: 94 | U33: GUAINÍA | V33: =(VLOOKUP(T33,_xlfn.ANCHORARRAY(insumos2!$W$2),2,0)/SUM(insumos2!$X$2:$X$34)) -> 0.0001154164962 | W33: =VLOOKUP(T33,insumos2!$AY$2:$AZ$34,2,FALSE)/insumos2!$BF$30 -> 0.0001312077675
A34: 17 | B34: Caldas | D34: 5030 | E34: Amagá | T34: 97 | U34: VAUPÉS | V34: =(VLOOKUP(T34,_xlfn.ANCHORARRAY(insumos2!$W$2),2,0)/SUM(insumos2!$X$2:$X$34)) -> 6.295445245e-05 | W34: =VLOOKUP(T34,insumos2!$AY$2:$AZ$34,2,FALSE)/insumos2!$BF$30 -> 0
A35: 18 | B35: Caquetá | D35: 5031 | E35: Amalfi | U35: Total general | V35: =SUM(V2:V34) -> 1 | W35: =SUM(W2:W34) -> 1
A36: 19 | B36: Cauca | D36: 5034 | E36: Andes
A37: 20 | B37: Cesar | D37: 5036 | E37: Angelópolis
A38: 23 | B38: Córdoba | D38: 5038 | E38: Angostura
A39: 25 | B39: Cundinamarca | D39: 5040 | E39: Anorí
A40: 27 | B40: Chocó | D40: 5042 | E40: Santa fé de anti
A41: 41 | B41: Huila | D41: 5044 | E41: Anzá
A42: 44 | B42: La guajira | D42: 5045 | E42: Apartadó
A43: 47 | B43: Magdalena | D43: 5051 | E43: Arboletes
A44: 50 | B44: Meta | D44: 5055 | E44: Argelia
A45: 52 | B45: Nariño | D45: 5059 | E45: Armenia
A46: 54 | B46: Norte de stder | D46: 5079 | E46: Barbosa
A47: 63 | B47: Quindío | D47: 5086 | E47: Belmira
A48: 66 | B48: Risaralda | D48: 5088 | E48: Bello
A49: 68 | B49: Santander | D49: 5091 | E49: Betania
A50: 70 | B50: Sucre | D50: 5093 | E50: Betulia
A51: 73 | B51: Tolima | D51: 5101 | E51: Ciudad bolívar
A52: 76 | B52: Valle del cauca | D52: 5107 | E52: Briceño
A53: 81 | B53: Arauca | D53: 5113 | E53: Buriticá
A54: 85 | B54: Casanare | D54: 5120 | E54: Cáceres
A55: 86 | B55: Putumayo | D55: 5125 | E55: Caicedo
A56: 88 | B56: San Andrés | D56: 5129 | E56: Caldas
A57: 91 | B57: Amazonas | D57: 5134 | E57: Campamento
A58: 94 | B58: Guainía | D58: 5138 | E58: Cañasgordas
A59: 95 | B59: Guaviare | D59: 5142 | E59: Caracolí
A60: 97 | B60: Vaupés | D60: 5145 | E60: Caramanta
A61: 99 | B61: Vichada | D61: 5147 | E61: Carepa
D62: 5148 | E62: El carmen de vib
D63: 5150 | E63: Carolina
D64: 5154 | E64: Caucasia
D65: 5172 | E65: Chigorodó
D66: 5190 | E66: Cisneros
D67: 5197 | E67: Cocorná
D68: 5206 | E68: Concepción
D69: 5209 | E69: Concordia
D70: 5212 | E70: Copacabana
D71: 5234 | E71: Dabeiba
D72: 5237 | E72: Donmatías
D73: 5240 | E73: Ebéjico
D74: 5250 | E74: El bagre
D75: 5264 | E75: Entrerríos
D76: 5266 | E76: Envigado
D77: 5282 | E77: Fredonia
D78: 5284 | E78: Frontino
D79: 5306 | E79: Giraldo
D80: 5308 | E80: Girardota
D81: 5310 | E81: Gómez plata
D82: 5313 | E82: Granada
D83: 5315 | E83: Guadalupe
D84: 5318 | E84: Guarne
D85: 5321 | E85: Guatapé
D86: 5347 | E86: Heliconia
D87: 5353 | E87: Hispania
D88: 5360 | E88: Itagüí
D89: 5361 | E89: Ituango
D90: 5364 | E90: Jardín
D91: 5368 | E91: Jericó
D92: 5376 | E92: La ceja
D93: 5380 | E93: La estrella
D94: 5390 | E94: La pintada
D95: 5400 | E95: La unión
D96: 5411 | E96: Liborina
D97: 5425 | E97: Maceo
D98: 5440 | E98: Marinilla
D99: 5467 | E99: Montebello
D100: 5475 | E100: Murindó
D101: 5480 | E101: Mutatá
D102: 5483 | E102: Nariño
D103: 5490 | E103: Necoclí
D104: 5495 | E104: Nechí
D105: 5501 | E105: Olaya
D106: 5541 | E106: Peñol
D107: 5543 | E107: Peque
D108: 5576 | E108: Pueblorrico
D109: 5579 | E109: Puerto berrío
D110: 5585 | E110: Puerto nare
D111: 5591 | E111: Puerto triunfo
D112: 5604 | E112: Remedios
D113: 5607 | E113: Retiro
D114: 5615 | E114: Rionegro
D115: 5628 | E115: Sabanalarga
D116: 5631 | E116: Sabaneta
D117: 5642 | E117: Salgar
D118: 5647 | E118: San andrés de cu
D119: 5649 | E119: San carlos
D120: 5652 | E120: San francisco
D121: 5656 | E121: San jerónimo
D122: 5658 | E122: San josé de la m
D123: 5659 | E123: San juan de urab
D124: 5660 | E124: San luis
D125: 5664 | E125: San pedro de los
D126: 5665 | E126: San pedro de ura
D127: 5667 | E127: San rafael
D128: 5670 | E128: San roque
D129: 5674 | E129: San vicente ferr
D130: 5679 | E130: Santa bárbara
D131: 5686 | E131: Santa rosa de os
D132: 5690 | E132: Santo domingo
D133: 5697 | E133: El santuario
D134: 5736 | E134: Segovia
D135: 5756 | E135: Sonsón
D136: 5761 | E136: Sopetrán
D137: 5789 | E137: Támesis
D138: 5790 | E138: Tarazá
D139: 5792 | E139: Tarso
D140: 5809 | E140: Titiribí
D141: 5819 | E141: Toledo
D142: 5837 | E142: Turbo
D143: 5842 | E143: Uramita
D144: 5847 | E144: Urrao
D145: 5854 | E145: Valdivia
D146: 5856 | E146: Valparaíso
D147: 5858 | E147: Vegachí
D148: 5861 | E148: Venecia
D149: 5873 | E149: Vigía del fuerte
D150: 5885 | E150: Yalí
D151: 5887 | E151: Yarumal
D152: 5890 | E152: Yolombó
D153: 5893 | E153: Yondó
D154: 5895 | E154: Zaragoza
D155: 8001 | E155: Barranquilla
D156: 8078 | E156: Baranoa
D157: 8137 | E157: Campo de la cruz
D158: 8141 | E158: Candelaria
D159: 8296 | E159: Galapa
D160: 8372 | E160: Juan de acosta
D161: 8421 | E161: Luruaco
D162: 8433 | E162: Malambo
D163: 8436 | E163: Manatí
D164: 8520 | E164: Palmar de varela
D165: 8549 | E165: Piojó
D166: 8558 | E166: Polonuevo
D167: 8560 | E167: Ponedera
D168: 8573 | E168: Puerto colombia
D169: 8606 | E169: Repelón
D170: 8634 | E170: Sabanagrande
D171: 8638 | E171: Sabanalarga
D172: 8675 | E172: Santa lucía
D173: 8685 | E173: Santo tomás
D174: 8758 | E174: Soledad
D175: 8770 | E175: Suan
D176: 8832 | E176: Tubará
D177: 8849 | E177: Usiacurí
D178: 11001 | E178: Bogotá, d.c.
D179: 13001 | E179: Cartagena de ind
D180: 13006 | E180: Achí
D181: 13030 | E181: Altos del rosari
D182: 13042 | E182: Arenal
D183: 13052 | E183: Arjona
D184: 13062 | E184: Arroyohondo
D185: 13074 | E185: Barranco de loba
D186: 13140 | E186: Calamar
D187: 13160 | E187: Cantagallo
D188: 13188 | E188: Cicuco
D189: 13212 | E189: Córdoba
D190: 13222 | E190: Clemencia
D191: 13244 | E191: El carmen de bol
D192: 13248 | E192: El guamo
D193: 13268 | E193: El peñón
D194: 13300 | E194: Hatillo de loba
D195: 13430 | E195: Magangué
D196: 13433 | E196: Mahates
D197: 13440 | E197: Margarita
D198: 13442 | E198: María la baja
D199: 13458 | E199: Montecristo
D200: 13468 | E200: Santa cruz de mo
... 950 more rows
